Workbook

Sheet ANA SAYFA
A1: AİLE VE SOSYAL HİZMETLER İL MÜDÜRLÜĞÜ | P1: SENDİKA İBAN | Q1: TR47 0020 5000 0941 6809 0000 05 | V1: ZİRAAT BANKASI CEZA İBAN | W1: TR83 0001 0025 3338 7753 6950 52
A2: EK DERS KARŞILIĞI ÇALIŞAN PERSONELLERİN MAAŞ ÖDEMESİ | P2: DAYANIŞMA İBAN | Q2: TR20 0020 5000 0941 6809 0000 06
P3: SENDİKA | Q3: -------
A4: M A A Ş | F4: K U R U M B İ L G İ L E R İ | L4: GÜNÜN TARİHİ | M4: YEMEK İSTİSNASI | N4: =ROUND(J15/30*0.06,2) -> 20.02
A5: ÖDEME EMRİ BELGESİ | C5: ÖDEME EMRİ BELGESİ 2 | G5: KURUM BİLGİLERİ | H5: 1 | I5: 2023 | J5: A | L5: =TODAY() -> 2023-01-31 | M5: GELİR VERGİSİNE GÖRE BÜRÜT YOL ÜCRETLERİ | R5: 2.YIL 1.ZAM | S5: 2.YIL 2.ZAM | T5: ENFLASYON (31.10.2021)
A6: TESLİM EVRAKI | C6: TESLİM EVRAKI 2 | G6: İBAN NO | M6: 0.71491 | N6: =ROUND('PERSONEL BİLGİ GİRİŞİ'!AD5/M6,2) -> 0
A7: TEK KİŞİLİK BORDRO | C7: İKRAMİYE BORDRO | G7: VERGİ NO | M7: 0.67241 | N7: =ROUND('PERSONEL BİLGİ GİRİŞİ'!AD5/'ANA SAYFA'!M7,2) -> 0
A8: BORDO HAZIRLIK | C8: BANKA LİSTESİ | G8: SAYMANLIK NO | M8: 0.61291 | N8: =ROUND('PERSONEL BİLGİ GİRİŞİ'!AD5/'ANA SAYFA'!M8,2) -> 0 | P8: YEMEK | R8: - | S8: =ROUND(Q8*S6+Q8,2) -> 0 | T8: =ROUND(S8*$T$6+S8,2) -> 0
A9: PERSONEL BİLGİ GİRİŞİ | C9: SGK AYRIŞTIRMASI | G9: SGK SİCİL NO | M9: A | N9: Asıl Mahiyette | P9: ÇOCUK | R9: =ROUND(Q9*R6+Q9,2) -> 0 | S9: =ROUND(R9*S6+R9,2) -> 0 | T9: =S9 -> 0
A10: BİLDİRGE | C10: İKRAMİYE BES | G10: ADRES | M10: E | N10: Ek Mahiyette | P10: BAYRAM | R10: =ROUND(Q10*R6+Q10,2) -> 0 | S10: =ROUND(R10*S6+R10,2) -> 0 | T10: =S10 -> 0
A11: PERSONEL BİLDİRİMİ | G11: HARCAMA YETKİLİSİ | I11: =VLOOKUP(H11,G25:I26,2,FALSE) ->  | J11: =VLOOKUP(H11,G25:I26,3,FALSE) ->  | M11: T | N11: Toplu İş Sözleşmesi İçin | P11: DOĞUM | R11: - | S11: =ROUND(Q11*S6+Q11,2) -> 0 | T11: =ROUND(S11*$T$6+S11,2) -> 0
A12: PUANTAJ | B12: PUANTAJ | G12: GERÇEKLEŞTİRME GÖREVLİSİ | I12: =VLOOKUP(H12,G27:I30,2,FALSE) ->  | J12: =VLOOKUP(H12,G27:I30,3,FALSE) ->  | P12: YAKACAK | R12: - | S12: =ROUND(Q12*S6+Q12,2) -> 0 | T12: 0
A13: BANKA LİSTESİ | B13: BANKA LİSTESİ | G13: MAAŞ MUTEMEDİ | I13: =VLOOKUP(H13,G31:I33,2,FALSE) ->  | J13: =VLOOKUP(H13,G31:I33,3,FALSE) ->  | M13: 1.DERECE %80 ÜZERİ | N13: =B23 -> 4400 | P13: EVLENME | R13: - | S13: =ROUND(Q13*S6+Q13,2) -> 0 | T13: 0
B14: AGİ | M14: 2.DERECE %60-%80 | N14: =B24 -> 2600 | P14: (KENDİSİ)ÖLÜM | R14: - | S14: =ROUND(Q14*S6+Q14,2) -> 0 | T14: 0
A15: BES | B15: BES | G15: MEMUR KATSAYI | H15: 0.433684 | I15: ASGARİ ÜCRET BRÜT | J15: 10008 | M15: 3.DERECE %40-60 | N15: 1100 | P15: (ÖLÜM) İŞ KAZASI | R15: - | S15: =ROUND(Q15*S6+Q15,2) -> 0 | T15: 0
A16: İCRA | B16: İCRA | I16: ASGARİ ÜCRET NET | J16: 8506.8 | P16: (ÖLÜM )YAKINI | R16: - | S16: =ROUND(Q16*S6+Q16,2) -> 0 | T16: 0
A17: NAFAKA | G17: VERGİ DİLİMLERİ | H17: 0.15 | I17: 0.2 | J17: 0.27 | P17: ASKERLİK | R17: - | S17: =ROUND(Q17*S7+Q17,2) -> 0 | T17: =ROUND(S17*$T$6+S17,2) -> 0
A18: VERGİ MATRAHLARI | H18: 70000 | I18: 150000 | J18: 550000 | R18: - | S18: =ROUND(Q18*S8+Q18,2) -> 0 | T18: 0
M19: =L5 -> 2023-01-31 | N19: 1. vergi Dilimi %15 | O19: 4800 | P19: =H18 -> 70000 | Q19: =P19+O19 -> 74800
H20: SADECE OCAK AYINDA SIFIRLAYINIZ | M20: VERGİ MATRAHLARI | N20: 2.Vergi Dilimi %20 | O20: =P19 -> 70000 | P20: =I18 -> 150000 | Q20: =P20+' BORDRO HAZIRLIK'!AH5 -> 158929
C21: VERGİ MATRAHLARI | N21: 3.Vergi Dilimi %27 | O21: =P20 -> 150000 | P21: =J18 -> 550000
A23: 1.DERECE %80 ÜZERİ | B23: 4400 | G23: M Ü D Ü R L Ü Ğ Ü N Ü Z E G Ö R E G Ü N C E L L E Y İ N İ Z
A24: 2.DERECE %60-%80 | B24: 2600 | G24: AD-SOYAD TC. ÜNVAN | M24: AYLIK MAAŞ KATSAYISI | N24: =H15 -> 0.433684
A25: 3.DERECE %40-60 | B25: 1100 | M25: EK DERS GÖSTERGESİ GÜNDÜZ | N25: 140 | O25: 150
M26: 1 SAATLİK EKDERS BRÜT ÜCRETİ | N26: =N24*N25 -> 60.72
M27: 1 SAATLİK EKDERS ÜCRETİ%15 | N27: =N24*N25-N24*N25*14%-(N24*N25-N24*N25*14%)*15%-N24*N25*0.6% -> 44.02
M28: 1 SAATLİK EKDERS ÜCRETİ%20 | N28: =N24*N25-N24*N25*14%-(N24*N25-N24*N25*14%)*20%-N24*N25*0.6% -> 41.41

Sheet TESLİM EVRAKI
A1: ='ANA SAYFA'!A1 -> AİLE VE SOSYAL HİZMETLER İL MÜDÜRLÜĞÜ
A2: ÖDEME BELGESİ VE EKİ BELGELER TESLİM/TESELLÜM TUTANAĞI
A3: Harcama Birimin Kurumsal Kodu : | C3: 24 | D3: 1 | E3: 0 | F3: 62 | G3: 323 | H3: Muhasebe Birimi | J3: Zonguldak Defterdarlık Muhasebe Müdürlüğü
A4: Dairesi : | C4: =A1 -> AİLE VE SOSYAL HİZMETLER İL MÜDÜRLÜĞÜ | H4: Düzenleme Tarihi | J4: =TODAY() -> 2023-01-31 | N4: ANA SAYFA
A5: From Sıra No : | C5: HYS-2022-34371049
A7: SIRA NO | B7: Ödeme Belgesi | F7: Eki Belge | M7: Alacaklı
B8: Tahakkuk İşlem No | C8: Yevmiye Tarihi | F8: Yevmiye No | H8: Türü | L8: Adet | M8: Adı - Soyadı | N8: TCK/VKN | O8: Brüt Tutar
A10: 1 | B10: =C5 -> HYS-2022-34371049 | C10: =TODAY() -> 2023-01-31 | H10: ÖDEME EMRİ BELGESİ | L10: 1 | M10: =A1 -> AİLE VE SOSYAL HİZMETLER İL MÜDÜRLÜĞÜ | N10: ='ANA SAYFA'!H7 -> 0 | O10: =' BORDRO HAZIRLIK'!BD80 -> 8862.7
A11: 2 | H11: BODRO DÖKÜMÜ | L11: 1
A12: 3 | H12: BANKA LİSTESİ | L12: 1 | M12: GEÇİCİ PERSONEL STATÜSÜNDE ÇALIŞAN PERSONEL
A13: 4 | H13: AGİ | L13: 1 | M13: =PUANTAJ!AI2 -> 2023-01-01
A14: 5 | H14: PUANTAJ | L14: 1
A15: 6 | H15: PERSONEL BİLDİRİMİ | L15: 1
A16: 7 | H16: SGK TAHAKKUK FİŞİ, SGK HİZMET LİSTESİ | L16: 2
A17: 8 | H17: HARCAMA TALİMATI | L17: 1
A18: 9
A19: Yukarıda alacaklıları ile alacak tutarları gösterilen toplam (1) adet tahakkuk evrakı ve ekleri teslim alınmıştır | N19: =TODAY() -> 2023-01-31 | O19: Saat ……/……
B21: =TODAY() -> 2023-01-31 | N21: =TODAY() -> 2023-01-31
B22: TESLİM EDEN | N22: TESLİM ALAN
B23: İmza | N23: İmza
B24: ='PERSONEL BİLGİ GİRİŞİ'!A82 -> 0
B25: ='PERSONEL BİLGİ GİRİŞİ'!A83 -> 
A30: *Merkezi Yönetim Harcama Belgeleri Yönetmeliğindeki belgenin adı yazılacktır.
A31: **Bu bölümler muhasebe birimi tarafından muhasebeleştirme işlemi tamamladıktan sonra doldurulacaktır.
A32: ***Bu Bölüme muhasebeleştirme işlemi tamamlandıktan sonra evrakın konulduğu torba numarası yazılcaktır.

Sheet Vergi Matrahları
B1: SIRA NO | C1: ANA SAYFA | D1: TOPLAM VERGİ MATRAHI | E1: TOPLAM İSTİSNA VERGİ MATRAHI | F1: =IF((MONTH(PUANTAJ!$B$2))=1,PUANTAJ!$B$2,"") -> 2023-01-01 | G1: =IF((MONTH(PUANTAJ!$B$2))=1,PUANTAJ!$B$2,"") -> 2023-01-01 | J1: =IF((MONTH(PUANTAJ!$B$2))=2,PUANTAJ!$B$2,"") ->  | K1: =IF((MONTH(PUANTAJ!$B$2))=2,PUANTAJ!$B$2,"") ->  | N1: =IF((MONTH(PUANTAJ!$B$2))=3,PUANTAJ!$B$2,"") ->  | O1: =IF((MONTH(PUANTAJ!$B$2))=3,PUANTAJ!$B$2,"") ->  | R1: =IF((MONTH(PUANTAJ!$B$2))=4,PUANTAJ!$B$2,"") ->  | S1: =IF((MONTH(PUANTAJ!$B$2))=4,PUANTAJ!$B$2,"") ->  | V1: =IF((MONTH(PUANTAJ!$B$2))=5,PUANTAJ!$B$2,"") ->  | W1: =IF((MONTH(PUANTAJ!$B$2))=5,PUANTAJ!$B$2,"") ->  | Z1: =IF((MONTH(PUANTAJ!$B$2))=6,PUANTAJ!$B$2,"") ->  | AA1: =IF((MONTH(PUANTAJ!$B$2))=6,PUANTAJ!$B$2,"") ->  | AD1: =IF((MONTH(PUANTAJ!$B$2))=7,PUANTAJ!$B$2,"") ->  | AE1: =IF((MONTH(PUANTAJ!$B$2))=7,PUANTAJ!$B$2,"") ->  | AH1: =IF((MONTH(PUANTAJ!$B$2))=8,PUANTAJ!$B$2,"") ->  | AI1: =IF((MONTH(PUANTAJ!$B$2))=8,PUANTAJ!$B$2,"") ->  | AL1: =IF((MONTH(PUANTAJ!$B$2))=9,PUANTAJ!$B$2,"") ->  | AM1: =IF((MONTH(PUANTAJ!$B$2))=9,PUANTAJ!$B$2,"") ->  | AP1: =IF((MONTH(PUANTAJ!$B$2))=10,PUANTAJ!$B$2,"") ->  | AQ1: =IF((MONTH(PUANTAJ!$B$2))=10,PUANTAJ!$B$2,"") ->  | AT1: =IF((MONTH(PUANTAJ!$B$2))=11,PUANTAJ!$B$2,"") ->  | AU1: =IF((MONTH(PUANTAJ!$B$2))=11,PUANTAJ!$B$2,"") ->  | AX1: =IF((MONTH(PUANTAJ!$B$2))=12,PUANTAJ!$B$2,"") ->  | AY1: =IF((MONTH(PUANTAJ!$B$2))=12,PUANTAJ!$B$2,"") ->  | BB1: ANASAYFA | BE1: İSTİSNA
C2: AD - SOYAD | F2: O C A K | G2: O C A K | H2: O C A K İSTİSNA | I2: O C A K İSTİSNA | J2: Ş U B A T | K2: Ş U B A T | L2: Ş U B A T İSTİSNA | M2: Ş U B A T İSTİSNA | N2: M A R T | O2: M A R T | P2: M A R T İSTİSNA | Q2: M A R T İSTİSNA | R2: N İ S A N | S2: N İ S A N | T2: N İ S A N İSTİSNA | U2: N İ S A N İSTİSNA | V2: M A Y I S | W2: M A Y I S | X2: M A Y I S İSTİSNA | Y2: M A Y I S İSTİSNA | Z2: H A Z İ R A N | AA2: H A Z İ R A N | AB2: H A Z İ R A N İSTİSNA | AC2: H A Z İ R A N İSTİSNA | AD2: T E M M U Z | AE2: T E M M U Z | AF2: T E M M U Z İSTİSNA | AG2: T E M M U Z İSTİSNA | AH2: A Ğ U S T O S | AI2: A Ğ U S T O S | AJ2: A Ğ U S T O S İSTİSNA | AK2: A Ğ U S T O S İSTİSNA | AL2: E Y L Ü L | AM2: E Y L Ü L | AN2: E Y L Ü L İSTİSNA | AO2: E Y L Ü L İSTİSNA | AP2: E K İ M | AQ2: E K İ M | AR2: E K İ M İSTİSNA | AS2: E K İ M İSTİSNA | AT2: K A S I M | AU2: K A S I M | AV2: K A S I M İSTİSNA | AW2: K A S I M İSTİSNA | AX2: A R A L I K | AY2: A R A L I K | AZ2: A R A L I K İSTİSNA | BA2: A R A L I K İSTİSNA | BB2: GEÇEN AYLAR VERGİ MATRAH | BC2: MEVCUT AY | BD2: TOPLAM MATRAH | BE2: GEÇEN AYLAR VERGİ MATRAH | BF2: MEVCUT AY | BG2: TOPLAM MATRAH
F3: 1 | J3: 2 | N3: 3 | R3: 4 | V3: 5 | Z3: 6 | AD3: 7 | AH3: 8 | AL3: 9 | AP3: 10 | AT3: 11 | AX3: 12
B4: =PUANTAJ!A7 -> 1 | C4: =PUANTAJ!B7 -> ALİ BZC | D4: =BD4+'PERSONEL BİLGİ GİRİŞİ'!AC5 -> 8928.85 | E4: =BG4+'PERSONEL BİLGİ GİRİŞİ'!AL5 -> 8506.8 | F4: =IF((MONTH(PUANTAJ!$B$2))=1,' BORDRO HAZIRLIK'!AH5,IF(G4>1,G4,(0))) -> 8928.85 | G4: 0 | H4: =IF((MONTH(PUANTAJ!$B$2))=1,' BORDRO HAZIRLIK'!AC5,IF(I4>1,I4,(0))) -> 8506.8 | I4: 0 | J4: =IF((MONTH(PUANTAJ!$B$2))=2,' BORDRO HAZIRLIK'!AH5,IF(K4>1,K4,(0))) -> 0 | K4: 0 | L4: =IF((MONTH(PUANTAJ!$B$2))=2,' BORDRO HAZIRLIK'!AC5,IF(M4>1,M4,(0))) -> 0 | M4: 0 | N4: =IF((MONTH(PUANTAJ!$B$2))=3,' BORDRO HAZIRLIK'!AH5,IF(O4>1,O4,(0))) -> 0 | O4: 0 | P4: =IF((MONTH(PUANTAJ!$B$2))=3,' BORDRO HAZIRLIK'!AC5,IF(Q4>1,Q4,(0))) -> 0 | Q4: 0 | R4: =IF((MONTH(PUANTAJ!$B$2))=4,' BORDRO HAZIRLIK'!AH5,IF(S4>1,S4,(0))) -> 0 | S4: 0 | T4: =IF((MONTH(PUANTAJ!$B$2))=4,' BORDRO HAZIRLIK'!AC5,IF(U4>1,U4,(0))) -> 0 | U4: 0 | V4: =IF((MONTH(PUANTAJ!$B$2))=5,' BORDRO HAZIRLIK'!AH5,IF(W4>1,W4,(0))) -> 0 | W4: 0 | X4: =IF((MONTH(PUANTAJ!$B$2))=5,' BORDRO HAZIRLIK'!AC5,IF(Y4>1,Y4,(0))) -> 0 | Y4: 0 | Z4: =IF((MONTH(PUANTAJ!$B$2))=6,' BORDRO HAZIRLIK'!AH5,IF(AA4>1,AA4,(0))) -> 0 | AA4: 0 | AB4: =IF((MONTH(PUANTAJ!$B$2))=6,' BORDRO HAZIRLIK'!AC5,IF(AC4>1,AC4,(0))) -> 0 | AC4: 0 | AD4: =IF((MONTH(PUANTAJ!$B$2))=7,' BORDRO HAZIRLIK'!AH5,IF(AE4>1,AE4,(0))) -> 0 | AE4: 0 | AF4: =IF((MONTH(PUANTAJ!$B$2))=7,' BORDRO HAZIRLIK'!AC5,IF(AG4>1,AG4,(0))) -> 0 | AG4: 0 | AH4: =IF((MONTH(PUANTAJ!$B$2))=8,' BORDRO HAZIRLIK'!AH5,IF(AI4>1,AI4,(0))) -> 0 | AI4: 0 | AJ4: =IF((MONTH(PUANTAJ!$B$2))=8,' BORDRO HAZIRLIK'!AC5,IF(AK4>1,AK4,(0))) -> 0 | AK4: 0 | AL4: =IF((MONTH(PUANTAJ!$B$2))=9,' BORDRO HAZIRLIK'!AH5,IF(AM4>1,AM4,(0))) -> 0 | AM4: 0 | AN4: =IF((MONTH(PUANTAJ!$B$2))=9,' BORDRO HAZIRLIK'!AC5,IF(AO4>1,AO4,(0))) -> 0 | AO4: 0 | AP4: =IF((MONTH(PUANTAJ!$B$2))=10,' BORDRO HAZIRLIK'!AH5,IF(AQ4>1,AQ4,(0))) -> 0 | AQ4: 0 | AR4: =IF((MONTH(PUANTAJ!$B$2))=10,' BORDRO HAZIRLIK'!AC5,IF(AS4>1,AS4,(0))) -> 0 | AS4: 0 | AT4: =IF((MONTH(PUANTAJ!$B$2))=11,' BORDRO HAZIRLIK'!AH5,IF(AU4>1,AU4,(0))) -> 0 | AU4: 0 | AV4: =IF((MONTH(PUANTAJ!$B$2))=11,' BORDRO HAZIRLIK'!AC5,IF(AW4>1,AW4,(0))) -> 0 | AW4: 0 | AX4: =IF((MONTH(PUANTAJ!$B$2))=12,' BORDRO HAZIRLIK'!AH5,IF(AY4>1,AY4,(0))) -> 0 | AY4: 0 | AZ4: =IF((MONTH(PUANTAJ!$B$2))=12,' BORDRO HAZIRLIK'!AC5,IF(BA4>1,BA4,(0))) -> 0 | BA4: 0 | BB4: =G4+K4+O4+S4+W4+AA4+AE4+AI4+AM4+AQ4+AU4+AY4 -> 0 | BC4: =' BORDRO HAZIRLIK'!AH5 -> 8928.85 | BD4: =BB4+BC4 -> 8928.85 | BE4: =I4+M4+Q4+U4+Y4+AC4+AG4+AK4+AO4+AS4+AW4+BA4 -> 0 | BF4: =' BORDRO HAZIRLIK'!AC5 -> 8506.8 | BG4: =BE4+BF4 -> 8506.8
B5: =PUANTAJ!A8 ->  | C5: =PUANTAJ!B8 ->  | D5: =BD5+'PERSONEL BİLGİ GİRİŞİ'!AC6 -> 0 | E5: =BG5+'PERSONEL BİLGİ GİRİŞİ'!AL6 -> 0 | F5: =IF((MONTH(PUANTAJ!$B$2))=1,' BORDRO HAZIRLIK'!AH6,IF(G5>1,G5,(0))) -> 0 | G5: 0 | H5: =IF((MONTH(PUANTAJ!$B$2))=1,' BORDRO HAZIRLIK'!AC6,IF(I5>1,I5,(0))) -> 0 | I5: 0 | J5: =IF((MONTH(PUANTAJ!$B$2))=2,' BORDRO HAZIRLIK'!AH6,IF(K5>1,K5,(0))) -> 0 | K5: 0 | L5: =IF((MONTH(PUANTAJ!$B$2))=2,' BORDRO HAZIRLIK'!AC6,IF(M5>1,M5,(0))) -> 0 | M5: 0 | N5: =IF((MONTH(PUANTAJ!$B$2))=3,' BORDRO HAZIRLIK'!AH6,IF(O5>1,O5,(0))) -> 0 | O5: 0 | P5: =IF((MONTH(PUANTAJ!$B$2))=3,' BORDRO HAZIRLIK'!AC6,IF(Q5>1,Q5,(0))) -> 0 | Q5: 0 | R5: =IF((MONTH(PUANTAJ!$B$2))=4,' BORDRO HAZIRLIK'!AH6,IF(S5>1,S5,(0))) -> 0 | S5: 0 | T5: =IF((MONTH(PUANTAJ!$B$2))=4,' BORDRO HAZIRLIK'!AC6,IF(U5>1,U5,(0))) -> 0 | U5: 0 | V5: =IF((MONTH(PUANTAJ!$B$2))=5,' BORDRO HAZIRLIK'!AH6,IF(W5>1,W5,(0))) -> 0 | W5: 0 | X5: =IF((MONTH(PUANTAJ!$B$2))=5,' BORDRO HAZIRLIK'!AC6,IF(Y5>1,Y5,(0))) -> 0 | Y5: 0 | Z5: =IF((MONTH(PUANTAJ!$B$2))=6,' BORDRO HAZIRLIK'!AH6,IF(AA5>1,AA5,(0))) -> 0 | AA5: 0 | AB5: =IF((MONTH(PUANTAJ!$B$2))=6,' BORDRO HAZIRLIK'!AC6,IF(AC5>1,AC5,(0))) -> 0 | AC5: 0 | AD5: =IF((MONTH(PUANTAJ!$B$2))=7,' BORDRO HAZIRLIK'!AH6,IF(AE5>1,AE5,(0))) -> 0 | AE5: 0 | AF5: =IF((MONTH(PUANTAJ!$B$2))=7,' BORDRO HAZIRLIK'!AC6,IF(AG5>1,AG5,(0))) -> 0 | AG5: 0 | AH5: =IF((MONTH(PUANTAJ!$B$2))=8,' BORDRO HAZIRLIK'!AH6,IF(AI5>1,AI5,(0))) -> 0 | AI5: 0 | AJ5: =IF((MONTH(PUANTAJ!$B$2))=8,' BORDRO HAZIRLIK'!AC6,IF(AK5>1,AK5,(0))) -> 0 | AK5: 0 | AL5: =IF((MONTH(PUANTAJ!$B$2))=9,' BORDRO HAZIRLIK'!AH6,IF(AM5>1,AM5,(0))) -> 0 | AM5: 0 | AN5: =IF((MONTH(PUANTAJ!$B$2))=9,' BORDRO HAZIRLIK'!AC6,IF(AO5>1,AO5,(0))) -> 0 | AO5: 0 | AP5: =IF((MONTH(PUANTAJ!$B$2))=10,' BORDRO HAZIRLIK'!AH6,IF(AQ5>1,AQ5,(0))) -> 0 | AQ5: 0 | AR5: =IF((MONTH(PUANTAJ!$B$2))=10,' BORDRO HAZIRLIK'!AC6,IF(AS5>1,AS5,(0))) -> 0 | AS5: 0 | AT5: =IF((MONTH(PUANTAJ!$B$2))=11,' BORDRO HAZIRLIK'!AH6,IF(AU5>1,AU5,(0))) -> 0 | AU5: 0 | AV5: =IF((MONTH(PUANTAJ!$B$2))=11,' BORDRO HAZIRLIK'!AC6,IF(AW5>1,AW5,(0))) -> 0 | AW5: 0 | AX5: =IF((MONTH(PUANTAJ!$B$2))=12,' BORDRO HAZIRLIK'!AH6,IF(AY5>1,AY5,(0))) -> 0 | AY5: 0 | AZ5: =IF((MONTH(PUANTAJ!$B$2))=12,' BORDRO HAZIRLIK'!AC6,IF(BA5>1,BA5,(0))) -> 0 | BA5: 0 | BB5: =G5+K5+O5+S5+W5+AA5+AE5+AI5+AM5+AQ5+AU5+AY5 -> 0 | BC5: =' BORDRO HAZIRLIK'!AH6 -> 0 | BD5: =BB5+BC5 -> 0 | BE5: =I5+M5+Q5+U5+Y5+AC5+AG5+AK5+AO5+AS5+AW5+BA5 -> 0 | BF5: =' BORDRO HAZIRLIK'!AC6 -> 0 | BG5: =BE5+BF5 -> 0
B6: =PUANTAJ!A9 ->  | C6: =PUANTAJ!B9 ->  | D6: =BD6+'PERSONEL BİLGİ GİRİŞİ'!AC7 -> 0 | E6: =BG6+'PERSONEL BİLGİ GİRİŞİ'!AL7 -> 0 | F6: =IF((MONTH(PUANTAJ!$B$2))=1,' BORDRO HAZIRLIK'!AH7,IF(G6>1,G6,(0))) -> 0 | G6: 0 | H6: =IF((MONTH(PUANTAJ!$B$2))=1,' BORDRO HAZIRLIK'!AC7,IF(I6>1,I6,(0))) -> 0 | I6: 0 | J6: =IF((MONTH(PUANTAJ!$B$2))=2,' BORDRO HAZIRLIK'!AH7,IF(K6>1,K6,(0))) -> 0 | K6: 0 | L6: =IF((MONTH(PUANTAJ!$B$2))=2,' BORDRO HAZIRLIK'!AC7,IF(M6>1,M6,(0))) -> 0 | M6: 0 | N6: =IF((MONTH(PUANTAJ!$B$2))=3,' BORDRO HAZIRLIK'!AH7,IF(O6>1,O6,(0))) -> 0 | O6: 0 | P6: =IF((MONTH(PUANTAJ!$B$2))=3,' BORDRO HAZIRLIK'!AC7,IF(Q6>1,Q6,(0))) -> 0 | Q6: 0 | R6: =IF((MONTH(PUANTAJ!$B$2))=4,' BORDRO HAZIRLIK'!AH7,IF(S6>1,S6,(0))) -> 0 | S6: 0 | T6: =IF((MONTH(PUANTAJ!$B$2))=4,' BORDRO HAZIRLIK'!AC7,IF(U6>1,U6,(0))) -> 0 | U6: 0 | V6: =IF((MONTH(PUANTAJ!$B$2))=5,' BORDRO HAZIRLIK'!AH7,IF(W6>1,W6,(0))) -> 0 | W6: 0 | X6: =IF((MONTH(PUANTAJ!$B$2))=5,' BORDRO HAZIRLIK'!AC7,IF(Y6>1,Y6,(0))) -> 0 | Y6: 0 | Z6: =IF((MONTH(PUANTAJ!$B$2))=6,' BORDRO HAZIRLIK'!AH7,IF(AA6>1,AA6,(0))) -> 0 | AA6: 0 | AB6: =IF((MONTH(PUANTAJ!$B$2))=6,' BORDRO HAZIRLIK'!AC7,IF(AC6>1,AC6,(0))) -> 0 | AC6: 0 | AD6: =IF((MONTH(PUANTAJ!$B$2))=7,' BORDRO HAZIRLIK'!AH7,IF(AE6>1,AE6,(0))) -> 0 | AE6: 0 | AF6: =IF((MONTH(PUANTAJ!$B$2))=7,' BORDRO HAZIRLIK'!AC7,IF(AG6>1,AG6,(0))) -> 0 | AG6: 0 | AH6: =IF((MONTH(PUANTAJ!$B$2))=8,' BORDRO HAZIRLIK'!AH7,IF(AI6>1,AI6,(0))) -> 0 | AI6: 0 | AJ6: =IF((MONTH(PUANTAJ!$B$2))=8,' BORDRO HAZIRLIK'!AC7,IF(AK6>1,AK6,(0))) -> 0 | AK6: 0 | AL6: =IF((MONTH(PUANTAJ!$B$2))=9,' BORDRO HAZIRLIK'!AH7,IF(AM6>1,AM6,(0))) -> 0 | AM6: 0 | AN6: =IF((MONTH(PUANTAJ!$B$2))=9,' BORDRO HAZIRLIK'!AC7,IF(AO6>1,AO6,(0))) -> 0 | AO6: 0 | AP6: =IF((MONTH(PUANTAJ!$B$2))=10,' BORDRO HAZIRLIK'!AH7,IF(AQ6>1,AQ6,(0))) -> 0 | AQ6: 0 | AR6: =IF((MONTH(PUANTAJ!$B$2))=10,' BORDRO HAZIRLIK'!AC7,IF(AS6>1,AS6,(0))) -> 0 | AS6: 0 | AT6: =IF((MONTH(PUANTAJ!$B$2))=11,' BORDRO HAZIRLIK'!AH7,IF(AU6>1,AU6,(0))) -> 0 | AU6: 0 | AV6: =IF((MONTH(PUANTAJ!$B$2))=11,' BORDRO HAZIRLIK'!AC7,IF(AW6>1,AW6,(0))) -> 0 | AW6: 0 | AX6: =IF((MONTH(PUANTAJ!$B$2))=12,' BORDRO HAZIRLIK'!AH7,IF(AY6>1,AY6,(0))) -> 0 | AY6: 0 | AZ6: =IF((MONTH(PUANTAJ!$B$2))=12,' BORDRO HAZIRLIK'!AC7,IF(BA6>1,BA6,(0))) -> 0 | BA6: 0 | BB6: 0 | BC6: =' BORDRO HAZIRLIK'!AH7 -> 0 | BD6: 0 | BE6: 0 | BF6: =' BORDRO HAZIRLIK'!AC7 -> 0 | BG6: 0
B7: =PUANTAJ!A10 ->  | C7: =PUANTAJ!B10 ->  | D7: =BD7+'PERSONEL BİLGİ GİRİŞİ'!AC8 -> 0 | E7: =BG7+'PERSONEL BİLGİ GİRİŞİ'!AL8 -> 0 | F7: =IF((MONTH(PUANTAJ!$B$2))=1,' BORDRO HAZIRLIK'!AH8,IF(G7>1,G7,(0))) -> 0 | G7: 0 | H7: =IF((MONTH(PUANTAJ!$B$2))=1,' BORDRO HAZIRLIK'!AC8,IF(I7>1,I7,(0))) -> 0 | I7: 0 | J7: =IF((MONTH(PUANTAJ!$B$2))=2,' BORDRO HAZIRLIK'!AH8,IF(K7>1,K7,(0))) -> 0 | K7: 0 | L7: =IF((MONTH(PUANTAJ!$B$2))=2,' BORDRO HAZIRLIK'!AC8,IF(M7>1,M7,(0))) -> 0 | M7: 0 | N7: =IF((MONTH(PUANTAJ!$B$2))=3,' BORDRO HAZIRLIK'!AH8,IF(O7>1,O7,(0))) -> 0 | O7: 0 | P7: =IF((MONTH(PUANTAJ!$B$2))=3,' BORDRO HAZIRLIK'!AC8,IF(Q7>1,Q7,(0))) -> 0 | Q7: 0 | R7: =IF((MONTH(PUANTAJ!$B$2))=4,' BORDRO HAZIRLIK'!AH8,IF(S7>1,S7,(0))) -> 0 | S7: 0 | T7: =IF((MONTH(PUANTAJ!$B$2))=4,' BORDRO HAZIRLIK'!AC8,IF(U7>1,U7,(0))) -> 0 | U7: 0 | V7: =IF((MONTH(PUANTAJ!$B$2))=5,' BORDRO HAZIRLIK'!AH8,IF(W7>1,W7,(0))) -> 0 | W7: 0 | X7: =IF((MONTH(PUANTAJ!$B$2))=5,' BORDRO HAZIRLIK'!AC8,IF(Y7>1,Y7,(0))) -> 0 | Y7: 0 | Z7: =IF((MONTH(PUANTAJ!$B$2))=6,' BORDRO HAZIRLIK'!AH8,IF(AA7>1,AA7,(0))) -> 0 | AA7: 0 | AB7: =IF((MONTH(PUANTAJ!$B$2))=6,' BORDRO HAZIRLIK'!AC8,IF(AC7>1,AC7,(0))) -> 0 | AC7: 0 | AD7: =IF((MONTH(PUANTAJ!$B$2))=7,' BORDRO HAZIRLIK'!AH8,IF(AE7>1,AE7,(0))) -> 0 | AE7: 0 | AF7: =IF((MONTH(PUANTAJ!$B$2))=7,' BORDRO HAZIRLIK'!AC8,IF(AG7>1,AG7,(0))) -> 0 | AG7: 0 | AH7: =IF((MONTH(PUANTAJ!$B$2))=8,' BORDRO HAZIRLIK'!AH8,IF(AI7>1,AI7,(0))) -> 0 | AI7: 0 | AJ7: =IF((MONTH(PUANTAJ!$B$2))=8,' BORDRO HAZIRLIK'!AC8,IF(AK7>1,AK7,(0))) -> 0 | AK7: 0 | AL7: =IF((MONTH(PUANTAJ!$B$2))=9,' BORDRO HAZIRLIK'!AH8,IF(AM7>1,AM7,(0))) -> 0 | AM7: 0 | AN7: =IF((MONTH(PUANTAJ!$B$2))=9,' BORDRO HAZIRLIK'!AC8,IF(AO7>1,AO7,(0))) -> 0 | AO7: 0 | AP7: =IF((MONTH(PUANTAJ!$B$2))=10,' BORDRO HAZIRLIK'!AH8,IF(AQ7>1,AQ7,(0))) -> 0 | AQ7: 0 | AR7: =IF((MONTH(PUANTAJ!$B$2))=10,' BORDRO HAZIRLIK'!AC8,IF(AS7>1,AS7,(0))) -> 0 | AS7: 0 | AT7: =IF((MONTH(PUANTAJ!$B$2))=11,' BORDRO HAZIRLIK'!AH8,IF(AU7>1,AU7,(0))) -> 0 | AU7: 0 | AV7: =IF((MONTH(PUANTAJ!$B$2))=11,' BORDRO HAZIRLIK'!AC8,IF(AW7>1,AW7,(0))) -> 0 | AW7: 0 | AX7: =IF((MONTH(PUANTAJ!$B$2))=12,' BORDRO HAZIRLIK'!AH8,IF(AY7>1,AY7,(0))) -> 0 | AY7: 0 | AZ7: =IF((MONTH(PUANTAJ!$B$2))=12,' BORDRO HAZIRLIK'!AC8,IF(BA7>1,BA7,(0))) -> 0 | BA7: 0 | BB7: 0 | BC7: =' BORDRO HAZIRLIK'!AH8 -> 0 | BD7: 0 | BE7: 0 | BF7: =' BORDRO HAZIRLIK'!AC8 -> 0 | BG7: 0
B8: =PUANTAJ!A11 ->  | C8: =PUANTAJ!B11 ->  | D8: =BD8+'PERSONEL BİLGİ GİRİŞİ'!AC9 -> 0 | E8: =BG8+'PERSONEL BİLGİ GİRİŞİ'!AL9 -> 0 | F8: =IF((MONTH(PUANTAJ!$B$2))=1,' BORDRO HAZIRLIK'!AH9,IF(G8>1,G8,(0))) -> 0 | G8: 0 | H8: =IF((MONTH(PUANTAJ!$B$2))=1,' BORDRO HAZIRLIK'!AC9,IF(I8>1,I8,(0))) -> 0 | I8: 0 | J8: =IF((MONTH(PUANTAJ!$B$2))=2,' BORDRO HAZIRLIK'!AH9,IF(K8>1,K8,(0))) -> 0 | K8: 0 | L8: =IF((MONTH(PUANTAJ!$B$2))=2,' BORDRO HAZIRLIK'!AC9,IF(M8>1,M8,(0))) -> 0 | M8: 0 | N8: =IF((MONTH(PUANTAJ!$B$2))=3,' BORDRO HAZIRLIK'!AH9,IF(O8>1,O8,(0))) -> 0 | O8: 0 | P8: =IF((MONTH(PUANTAJ!$B$2))=3,' BORDRO HAZIRLIK'!AC9,IF(Q8>1,Q8,(0))) -> 0 | Q8: 0 | R8: =IF((MONTH(PUANTAJ!$B$2))=4,' BORDRO HAZIRLIK'!AH9,IF(S8>1,S8,(0))) -> 0 | S8: 0 | T8: =IF((MONTH(PUANTAJ!$B$2))=4,' BORDRO HAZIRLIK'!AC9,IF(U8>1,U8,(0))) -> 0 | U8: 0 | V8: =IF((MONTH(PUANTAJ!$B$2))=5,' BORDRO HAZIRLIK'!AH9,IF(W8>1,W8,(0))) -> 0 | W8: 0 | X8: =IF((MONTH(PUANTAJ!$B$2))=5,' BORDRO HAZIRLIK'!AC9,IF(Y8>1,Y8,(0))) -> 0 | Y8: 0 | Z8: =IF((MONTH(PUANTAJ!$B$2))=6,' BORDRO HAZIRLIK'!AH9,IF(AA8>1,AA8,(0))) -> 0 | AA8: 0 | AB8: =IF((MONTH(PUANTAJ!$B$2))=6,' BORDRO HAZIRLIK'!AC9,IF(AC8>1,AC8,(0))) -> 0 | AC8: 0 | AD8: =IF((MONTH(PUANTAJ!$B$2))=7,' BORDRO HAZIRLIK'!AH9,IF(AE8>1,AE8,(0))) -> 0 | AE8: 0 | AF8: =IF((MONTH(PUANTAJ!$B$2))=7,' BORDRO HAZIRLIK'!AC9,IF(AG8>1,AG8,(0))) -> 0 | AG8: 0 | AH8: =IF((MONTH(PUANTAJ!$B$2))=8,' BORDRO HAZIRLIK'!AH9,IF(AI8>1,AI8,(0))) -> 0 | AI8: 0 | AJ8: =IF((MONTH(PUANTAJ!$B$2))=8,' BORDRO HAZIRLIK'!AC9,IF(AK8>1,AK8,(0))) -> 0 | AK8: 0 | AL8: =IF((MONTH(PUANTAJ!$B$2))=9,' BORDRO HAZIRLIK'!AH9,IF(AM8>1,AM8,(0))) -> 0 | AM8: 0 | AN8: =IF((MONTH(PUANTAJ!$B$2))=9,' BORDRO HAZIRLIK'!AC9,IF(AO8>1,AO8,(0))) -> 0 | AO8: 0 | AP8: =IF((MONTH(PUANTAJ!$B$2))=10,' BORDRO HAZIRLIK'!AH9,IF(AQ8>1,AQ8,(0))) -> 0 | AQ8: 0 | AR8: =IF((MONTH(PUANTAJ!$B$2))=10,' BORDRO HAZIRLIK'!AC9,IF(AS8>1,AS8,(0))) -> 0 | AS8: 0 | AT8: =IF((MONTH(PUANTAJ!$B$2))=11,' BORDRO HAZIRLIK'!AH9,IF(AU8>1,AU8,(0))) -> 0 | AU8: 0 | AV8: =IF((MONTH(PUANTAJ!$B$2))=11,' BORDRO HAZIRLIK'!AC9,IF(AW8>1,AW8,(0))) -> 0 | AW8: 0 | AX8: =IF((MONTH(PUANTAJ!$B$2))=12,' BORDRO HAZIRLIK'!AH9,IF(AY8>1,AY8,(0))) -> 0 | AY8: 0 | AZ8: =IF((MONTH(PUANTAJ!$B$2))=12,' BORDRO HAZIRLIK'!AC9,IF(BA8>1,BA8,(0))) -> 0 | BA8: 0 | BB8: 0 | BC8: =' BORDRO HAZIRLIK'!AH9 -> 0 | BD8: 0 | BE8: 0 | BF8: =' BORDRO HAZIRLIK'!AC9 -> 0 | BG8: 0
B9: =PUANTAJ!A12 ->  | C9: =PUANTAJ!B12 ->  | D9: =BD9+'PERSONEL BİLGİ GİRİŞİ'!AC10 -> 0 | E9: =BG9+'PERSONEL BİLGİ GİRİŞİ'!AL10 -> 0 | F9: =IF((MONTH(PUANTAJ!$B$2))=1,' BORDRO HAZIRLIK'!AH10,IF(G9>1,G9,(0))) -> 0 | G9: 0 | H9: =IF((MONTH(PUANTAJ!$B$2))=1,' BORDRO HAZIRLIK'!AC10,IF(I9>1,I9,(0))) -> 0 | I9: 0 | J9: =IF((MONTH(PUANTAJ!$B$2))=2,' BORDRO HAZIRLIK'!AH10,IF(K9>1,K9,(0))) -> 0 | K9: 0 | L9: =IF((MONTH(PUANTAJ!$B$2))=2,' BORDRO HAZIRLIK'!AC10,IF(M9>1,M9,(0))) -> 0 | M9: 0 | N9: =IF((MONTH(PUANTAJ!$B$2))=3,' BORDRO HAZIRLIK'!AH10,IF(O9>1,O9,(0))) -> 0 | O9: 0 | P9: =IF((MONTH(PUANTAJ!$B$2))=3,' BORDRO HAZIRLIK'!AC10,IF(Q9>1,Q9,(0))) -> 0 | Q9: 0 | R9: =IF((MONTH(PUANTAJ!$B$2))=4,' BORDRO HAZIRLIK'!AH10,IF(S9>1,S9,(0))) -> 0 | S9: 0 | T9: =IF((MONTH(PUANTAJ!$B$2))=4,' BORDRO HAZIRLIK'!AC10,IF(U9>1,U9,(0))) -> 0 | U9: 0 | V9: =IF((MONTH(PUANTAJ!$B$2))=5,' BORDRO HAZIRLIK'!AH10,IF(W9>1,W9,(0))) -> 0 | W9: 0 | X9: =IF((MONTH(PUANTAJ!$B$2))=5,' BORDRO HAZIRLIK'!AC10,IF(Y9>1,Y9,(0))) -> 0 | Y9: 0 | Z9: =IF((MONTH(PUANTAJ!$B$2))=6,' BORDRO HAZIRLIK'!AH10,IF(AA9>1,AA9,(0))) -> 0 | AA9: 0 | AB9: =IF((MONTH(PUANTAJ!$B$2))=6,' BORDRO HAZIRLIK'!AC10,IF(AC9>1,AC9,(0))) -> 0 | AC9: 0 | AD9: =IF((MONTH(PUANTAJ!$B$2))=7,' BORDRO HAZIRLIK'!AH10,IF(AE9>1,AE9,(0))) -> 0 | AE9: 0 | AF9: =IF((MONTH(PUANTAJ!$B$2))=7,' BORDRO HAZIRLIK'!AC10,IF(AG9>1,AG9,(0))) -> 0 | AG9: 0 | AH9: =IF((MONTH(PUANTAJ!$B$2))=8,' BORDRO HAZIRLIK'!AH10,IF(AI9>1,AI9,(0))) -> 0 | AI9: 0 | AJ9: =IF((MONTH(PUANTAJ!$B$2))=8,' BORDRO HAZIRLIK'!AC10,IF(AK9>1,AK9,(0))) -> 0 | AK9: 0 | AL9: =IF((MONTH(PUANTAJ!$B$2))=9,' BORDRO HAZIRLIK'!AH10,IF(AM9>1,AM9,(0))) -> 0 | AM9: 0 | AN9: =IF((MONTH(PUANTAJ!$B$2))=9,' BORDRO HAZIRLIK'!AC10,IF(AO9>1,AO9,(0))) -> 0 | AO9: 0 | AP9: =IF((MONTH(PUANTAJ!$B$2))=10,' BORDRO HAZIRLIK'!AH10,IF(AQ9>1,AQ9,(0))) -> 0 | AQ9: 0 | AR9: =IF((MONTH(PUANTAJ!$B$2))=10,' BORDRO HAZIRLIK'!AC10,IF(AS9>1,AS9,(0))) -> 0 | AS9: 0 | AT9: =IF((MONTH(PUANTAJ!$B$2))=11,' BORDRO HAZIRLIK'!AH10,IF(AU9>1,AU9,(0))) -> 0 | AU9: 0 | AV9: =IF((MONTH(PUANTAJ!$B$2))=11,' BORDRO HAZIRLIK'!AC10,IF(AW9>1,AW9,(0))) -> 0 | AW9: 0 | AX9: =IF((MONTH(PUANTAJ!$B$2))=12,' BORDRO HAZIRLIK'!AH10,IF(AY9>1,AY9,(0))) -> 0 | AY9: 0 | AZ9: =IF((MONTH(PUANTAJ!$B$2))=12,' BORDRO HAZIRLIK'!AC10,IF(BA9>1,BA9,(0))) -> 0 | BA9: 0 | BB9: 0 | BC9: =' BORDRO HAZIRLIK'!AH10 -> 0 | BD9: 0 | BE9: 0 | BF9: =' BORDRO HAZIRLIK'!AC10 -> 0 | BG9: 0
B10: =PUANTAJ!A13 ->  | C10: =PUANTAJ!B13 ->  | D10: =BD10+'PERSONEL BİLGİ GİRİŞİ'!AC11 -> 0 | E10: =BG10+'PERSONEL BİLGİ GİRİŞİ'!AL11 -> 0 | F10: =IF((MONTH(PUANTAJ!$B$2))=1,' BORDRO HAZIRLIK'!AH11,IF(G10>1,G10,(0))) -> 0 | G10: 0 | H10: =IF((MONTH(PUANTAJ!$B$2))=1,' BORDRO HAZIRLIK'!AC11,IF(I10>1,I10,(0))) -> 0 | I10: 0 | J10: =IF((MONTH(PUANTAJ!$B$2))=2,' BORDRO HAZIRLIK'!AH11,IF(K10>1,K10,(0))) -> 0 | K10: 0 | L10: =IF((MONTH(PUANTAJ!$B$2))=2,' BORDRO HAZIRLIK'!AC11,IF(M10>1,M10,(0))) -> 0 | M10: 0 | N10: =IF((MONTH(PUANTAJ!$B$2))=3,' BORDRO HAZIRLIK'!AH11,IF(O10>1,O10,(0))) -> 0 | O10: 0 | P10: =IF((MONTH(PUANTAJ!$B$2))=3,' BORDRO HAZIRLIK'!AC11,IF(Q10>1,Q10,(0))) -> 0 | Q10: 0 | R10: =IF((MONTH(PUANTAJ!$B$2))=4,' BORDRO HAZIRLIK'!AH11,IF(S10>1,S10,(0))) -> 0 | S10: 0 | T10: =IF((MONTH(PUANTAJ!$B$2))=4,' BORDRO HAZIRLIK'!AC11,IF(U10>1,U10,(0))) -> 0 | U10: 0 | V10: =IF((MONTH(PUANTAJ!$B$2))=5,' BORDRO HAZIRLIK'!AH11,IF(W10>1,W10,(0))) -> 0 | W10: 0 | X10: =IF((MONTH(PUANTAJ!$B$2))=5,' BORDRO HAZIRLIK'!AC11,IF(Y10>1,Y10,(0))) -> 0 | Y10: 0 | Z10: =IF((MONTH(PUANTAJ!$B$2))=6,' BORDRO HAZIRLIK'!AH11,IF(AA10>1,AA10,(0))) -> 0 | AA10: 0 | AB10: =IF((MONTH(PUANTAJ!$B$2))=6,' BORDRO HAZIRLIK'!AC11,IF(AC10>1,AC10,(0))) -> 0 | AC10: 0 | AD10: =IF((MONTH(PUANTAJ!$B$2))=7,' BORDRO HAZIRLIK'!AH11,IF(AE10>1,AE10,(0))) -> 0 | AE10: 0 | AF10: =IF((MONTH(PUANTAJ!$B$2))=7,' BORDRO HAZIRLIK'!AC11,IF(AG10>1,AG10,(0))) -> 0 | AG10: 0 | AH10: =IF((MONTH(PUANTAJ!$B$2))=8,' BORDRO HAZIRLIK'!AH11,IF(AI10>1,AI10,(0))) -> 0 | AI10: 0 | AJ10: =IF((MONTH(PUANTAJ!$B$2))=8,' BORDRO HAZIRLIK'!AC11,IF(AK10>1,AK10,(0))) -> 0 | AK10: 0 | AL10: =IF((MONTH(PUANTAJ!$B$2))=9,' BORDRO HAZIRLIK'!AH11,IF(AM10>1,AM10,(0))) -> 0 | AM10: 0 | AN10: =IF((MONTH(PUANTAJ!$B$2))=9,' BORDRO HAZIRLIK'!AC11,IF(AO10>1,AO10,(0))) -> 0 | AO10: 0 | AP10: =IF((MONTH(PUANTAJ!$B$2))=10,' BORDRO HAZIRLIK'!AH11,IF(AQ10>1,AQ10,(0))) -> 0 | AQ10: 0 | AR10: =IF((MONTH(PUANTAJ!$B$2))=10,' BORDRO HAZIRLIK'!AC11,IF(AS10>1,AS10,(0))) -> 0 | AS10: 0 | AT10: =IF((MONTH(PUANTAJ!$B$2))=11,' BORDRO HAZIRLIK'!AH11,IF(AU10>1,AU10,(0))) -> 0 | AU10: 0 | AV10: =IF((MONTH(PUANTAJ!$B$2))=11,' BORDRO HAZIRLIK'!AC11,IF(AW10>1,AW10,(0))) -> 0 | AW10: 0 | AX10: =IF((MONTH(PUANTAJ!$B$2))=12,' BORDRO HAZIRLIK'!AH11,IF(AY10>1,AY10,(0))) -> 0 | AY10: 0 | AZ10: =IF((MONTH(PUANTAJ!$B$2))=12,' BORDRO HAZIRLIK'!AC11,IF(BA10>1,BA10,(0))) -> 0 | BA10: 0 | BB10: 0 | BC10: =' BORDRO HAZIRLIK'!AH11 -> 0 | BD10: 0 | BE10: 0 | BF10: =' BORDRO HAZIRLIK'!AC11 -> 0 | BG10: 0
B11: =PUANTAJ!A14 ->  | C11: =PUANTAJ!B14 ->  | D11: =BD11+'PERSONEL BİLGİ GİRİŞİ'!AC12 -> 0 | E11: =BG11+'PERSONEL BİLGİ GİRİŞİ'!AL12 -> 0 | F11: =IF((MONTH(PUANTAJ!$B$2))=1,' BORDRO HAZIRLIK'!AH12,IF(G11>1,G11,(0))) -> 0 | G11: 0 | H11: =IF((MONTH(PUANTAJ!$B$2))=1,' BORDRO HAZIRLIK'!AC12,IF(I11>1,I11,(0))) -> 0 | I11: 0 | J11: =IF((MONTH(PUANTAJ!$B$2))=2,' BORDRO HAZIRLIK'!AH12,IF(K11>1,K11,(0))) -> 0 | K11: 0 | L11: =IF((MONTH(PUANTAJ!$B$2))=2,' BORDRO HAZIRLIK'!AC12,IF(M11>1,M11,(0))) -> 0 | M11: 0 | N11: =IF((MONTH(PUANTAJ!$B$2))=3,' BORDRO HAZIRLIK'!AH12,IF(O11>1,O11,(0))) -> 0 | O11: 0 | P11: =IF((MONTH(PUANTAJ!$B$2))=3,' BORDRO HAZIRLIK'!AC12,IF(Q11>1,Q11,(0))) -> 0 | Q11: 0 | R11: =IF((MONTH(PUANTAJ!$B$2))=4,' BORDRO HAZIRLIK'!AH12,IF(S11>1,S11,(0))) -> 0 | S11: 0 | T11: =IF((MONTH(PUANTAJ!$B$2))=4,' BORDRO HAZIRLIK'!AC12,IF(U11>1,U11,(0))) -> 0 | U11: 0 | V11: =IF((MONTH(PUANTAJ!$B$2))=5,' BORDRO HAZIRLIK'!AH12,IF(W11>1,W11,(0))) -> 0 | W11: 0 | X11: =IF((MONTH(PUANTAJ!$B$2))=5,' BORDRO HAZIRLIK'!AC12,IF(Y11>1,Y11,(0))) -> 0 | Y11: 0 | Z11: =IF((MONTH(PUANTAJ!$B$2))=6,' BORDRO HAZIRLIK'!AH12,IF(AA11>1,AA11,(0))) -> 0 | AA11: 0 | AB11: =IF((MONTH(PUANTAJ!$B$2))=6,' BORDRO HAZIRLIK'!AC12,IF(AC11>1,AC11,(0))) -> 0 | AC11: 0 | AD11: =IF((MONTH(PUANTAJ!$B$2))=7,' BORDRO HAZIRLIK'!AH12,IF(AE11>1,AE11,(0))) -> 0 | AE11: 0 | AF11: =IF((MONTH(PUANTAJ!$B$2))=7,' BORDRO HAZIRLIK'!AC12,IF(AG11>1,AG11,(0))) -> 0 | AG11: 0 | AH11: =IF((MONTH(PUANTAJ!$B$2))=8,' BORDRO HAZIRLIK'!AH12,IF(AI11>1,AI11,(0))) -> 0 | AI11: 0 | AJ11: =IF((MONTH(PUANTAJ!$B$2))=8,' BORDRO HAZIRLIK'!AC12,IF(AK11>1,AK11,(0))) -> 0 | AK11: 0 | AL11: =IF((MONTH(PUANTAJ!$B$2))=9,' BORDRO HAZIRLIK'!AH12,IF(AM11>1,AM11,(0))) -> 0 | AM11: 0 | AN11: =IF((MONTH(PUANTAJ!$B$2))=9,' BORDRO HAZIRLIK'!AC12,IF(AO11>1,AO11,(0))) -> 0 | AO11: 0 | AP11: =IF((MONTH(PUANTAJ!$B$2))=10,' BORDRO HAZIRLIK'!AH12,IF(AQ11>1,AQ11,(0))) -> 0 | AQ11: 0 | AR11: =IF((MONTH(PUANTAJ!$B$2))=10,' BORDRO HAZIRLIK'!AC12,IF(AS11>1,AS11,(0))) -> 0 | AS11: 0 | AT11: =IF((MONTH(PUANTAJ!$B$2))=11,' BORDRO HAZIRLIK'!AH12,IF(AU11>1,AU11,(0))) -> 0 | AU11: 0 | AV11: =IF((MONTH(PUANTAJ!$B$2))=11,' BORDRO HAZIRLIK'!AC12,IF(AW11>1,AW11,(0))) -> 0 | AW11: 0 | AX11: =IF((MONTH(PUANTAJ!$B$2))=12,' BORDRO HAZIRLIK'!AH12,IF(AY11>1,AY11,(0))) -> 0 | AY11: 0 | AZ11: =IF((MONTH(PUANTAJ!$B$2))=12,' BORDRO HAZIRLIK'!AC12,IF(BA11>1,BA11,(0))) -> 0 | BA11: 0 | BB11: 0 | BC11: =' BORDRO HAZIRLIK'!AH12 -> 0 | BD11: 0 | BE11: 0 | BF11: =' BORDRO HAZIRLIK'!AC12 -> 0 | BG11: 0
B12: =PUANTAJ!A15 ->  | C12: =PUANTAJ!B15 ->  | D12: =BD12+'PERSONEL BİLGİ GİRİŞİ'!AC13 -> 0 | E12: =BG12+'PERSONEL BİLGİ GİRİŞİ'!AL13 -> 0 | F12: =IF((MONTH(PUANTAJ!$B$2))=1,' BORDRO HAZIRLIK'!AH13,IF(G12>1,G12,(0))) -> 0 | G12: 0 | H12: =IF((MONTH(PUANTAJ!$B$2))=1,' BORDRO HAZIRLIK'!AC13,IF(I12>1,I12,(0))) -> 0 | I12: 0 | J12: =IF((MONTH(PUANTAJ!$B$2))=2,' BORDRO HAZIRLIK'!AH13,IF(K12>1,K12,(0))) -> 0 | K12: 0 | L12: =IF((MONTH(PUANTAJ!$B$2))=2,' BORDRO HAZIRLIK'!AC13,IF(M12>1,M12,(0))) -> 0 | M12: 0 | N12: =IF((MONTH(PUANTAJ!$B$2))=3,' BORDRO HAZIRLIK'!AH13,IF(O12>1,O12,(0))) -> 0 | O12: 0 | P12: =IF((MONTH(PUANTAJ!$B$2))=3,' BORDRO HAZIRLIK'!AC13,IF(Q12>1,Q12,(0))) -> 0 | Q12: 0 | R12: =IF((MONTH(PUANTAJ!$B$2))=4,' BORDRO HAZIRLIK'!AH13,IF(S12>1,S12,(0))) -> 0 | S12: 0 | T12: =IF((MONTH(PUANTAJ!$B$2))=4,' BORDRO HAZIRLIK'!AC13,IF(U12>1,U12,(0))) -> 0 | U12: 0 | V12: =IF((MONTH(PUANTAJ!$B$2))=5,' BORDRO HAZIRLIK'!AH13,IF(W12>1,W12,(0))) -> 0 | W12: 0 | X12: =IF((MONTH(PUANTAJ!$B$2))=5,' BORDRO HAZIRLIK'!AC13,IF(Y12>1,Y12,(0))) -> 0 | Y12: 0 | Z12: =IF((MONTH(PUANTAJ!$B$2))=6,' BORDRO HAZIRLIK'!AH13,IF(AA12>1,AA12,(0))) -> 0 | AA12: 0 | AB12: =IF((MONTH(PUANTAJ!$B$2))=6,' BORDRO HAZIRLIK'!AC13,IF(AC12>1,AC12,(0))) -> 0 | AC12: 0 | AD12: =IF((MONTH(PUANTAJ!$B$2))=7,' BORDRO HAZIRLIK'!AH13,IF(AE12>1,AE12,(0))) -> 0 | AE12: 0 | AF12: =IF((MONTH(PUANTAJ!$B$2))=7,' BORDRO HAZIRLIK'!AC13,IF(AG12>1,AG12,(0))) -> 0 | AG12: 0 | AH12: =IF((MONTH(PUANTAJ!$B$2))=8,' BORDRO HAZIRLIK'!AH13,IF(AI12>1,AI12,(0))) -> 0 | AI12: 0 | AJ12: =IF((MONTH(PUANTAJ!$B$2))=8,' BORDRO HAZIRLIK'!AC13,IF(AK12>1,AK12,(0))) -> 0 | AK12: 0 | AL12: =IF((MONTH(PUANTAJ!$B$2))=9,' BORDRO HAZIRLIK'!AH13,IF(AM12>1,AM12,(0))) -> 0 | AM12: 0 | AN12: =IF((MONTH(PUANTAJ!$B$2))=9,' BORDRO HAZIRLIK'!AC13,IF(AO12>1,AO12,(0))) -> 0 | AO12: 0 | AP12: =IF((MONTH(PUANTAJ!$B$2))=10,' BORDRO HAZIRLIK'!AH13,IF(AQ12>1,AQ12,(0))) -> 0 | AQ12: 0 | AR12: =IF((MONTH(PUANTAJ!$B$2))=10,' BORDRO HAZIRLIK'!AC13,IF(AS12>1,AS12,(0))) -> 0 | AS12: 0 | AT12: =IF((MONTH(PUANTAJ!$B$2))=11,' BORDRO HAZIRLIK'!AH13,IF(AU12>1,AU12,(0))) -> 0 | AU12: 0 | AV12: =IF((MONTH(PUANTAJ!$B$2))=11,' BORDRO HAZIRLIK'!AC13,IF(AW12>1,AW12,(0))) -> 0 | AW12: 0 | AX12: =IF((MONTH(PUANTAJ!$B$2))=12,' BORDRO HAZIRLIK'!AH13,IF(AY12>1,AY12,(0))) -> 0 | AY12: 0 | AZ12: =IF((MONTH(PUANTAJ!$B$2))=12,' BORDRO HAZIRLIK'!AC13,IF(BA12>1,BA12,(0))) -> 0 | BA12: 0 | BB12: 0 | BC12: =' BORDRO HAZIRLIK'!AH13 -> 0 | BD12: 0 | BE12: 0 | BF12: =' BORDRO HAZIRLIK'!AC13 -> 0 | BG12: 0
B13: =PUANTAJ!A16 ->  | C13: =PUANTAJ!B16 ->  | D13: =BD13+'PERSONEL BİLGİ GİRİŞİ'!AC14 -> 0 | E13: =BG13+'PERSONEL BİLGİ GİRİŞİ'!AL14 -> 0 | F13: =IF((MONTH(PUANTAJ!$B$2))=1,' BORDRO HAZIRLIK'!AH14,IF(G13>1,G13,(0))) -> 0 | G13: 0 | H13: =IF((MONTH(PUANTAJ!$B$2))=1,' BORDRO HAZIRLIK'!AC14,IF(I13>1,I13,(0))) -> 0 | I13: 0 | J13: =IF((MONTH(PUANTAJ!$B$2))=2,' BORDRO HAZIRLIK'!AH14,IF(K13>1,K13,(0))) -> 0 | K13: 0 | L13: =IF((MONTH(PUANTAJ!$B$2))=2,' BORDRO HAZIRLIK'!AC14,IF(M13>1,M13,(0))) -> 0 | M13: 0 | N13: =IF((MONTH(PUANTAJ!$B$2))=3,' BORDRO HAZIRLIK'!AH14,IF(O13>1,O13,(0))) -> 0 | O13: 0 | P13: =IF((MONTH(PUANTAJ!$B$2))=3,' BORDRO HAZIRLIK'!AC14,IF(Q13>1,Q13,(0))) -> 0 | Q13: 0 | R13: =IF((MONTH(PUANTAJ!$B$2))=4,' BORDRO HAZIRLIK'!AH14,IF(S13>1,S13,(0))) -> 0 | S13: 0 | T13: =IF((MONTH(PUANTAJ!$B$2))=4,' BORDRO HAZIRLIK'!AC14,IF(U13>1,U13,(0))) -> 0 | U13: 0 | V13: =IF((MONTH(PUANTAJ!$B$2))=5,' BORDRO HAZIRLIK'!AH14,IF(W13>1,W13,(0))) -> 0 | W13: 0 | X13: =IF((MONTH(PUANTAJ!$B$2))=5,' BORDRO HAZIRLIK'!AC14,IF(Y13>1,Y13,(0))) -> 0 | Y13: 0 | Z13: =IF((MONTH(PUANTAJ!$B$2))=6,' BORDRO HAZIRLIK'!AH14,IF(AA13>1,AA13,(0))) -> 0 | AA13: 0 | AB13: =IF((MONTH(PUANTAJ!$B$2))=6,' BORDRO HAZIRLIK'!AC14,IF(AC13>1,AC13,(0))) -> 0 | AC13: 0 | AD13: =IF((MONTH(PUANTAJ!$B$2))=7,' BORDRO HAZIRLIK'!AH14,IF(AE13>1,AE13,(0))) -> 0 | AE13: 0 | AF13: =IF((MONTH(PUANTAJ!$B$2))=7,' BORDRO HAZIRLIK'!AC14,IF(AG13>1,AG13,(0))) -> 0 | AG13: 0 | AH13: =IF((MONTH(PUANTAJ!$B$2))=8,' BORDRO HAZIRLIK'!AH14,IF(AI13>1,AI13,(0))) -> 0 | AI13: 0 | AJ13: =IF((MONTH(PUANTAJ!$B$2))=8,' BORDRO HAZIRLIK'!AC14,IF(AK13>1,AK13,(0))) -> 0 | AK13: 0 | AL13: =IF((MONTH(PUANTAJ!$B$2))=9,' BORDRO HAZIRLIK'!AH14,IF(AM13>1,AM13,(0))) -> 0 | AM13: 0 | AN13: =IF((MONTH(PUANTAJ!$B$2))=9,' BORDRO HAZIRLIK'!AC14,IF(AO13>1,AO13,(0))) -> 0 | AO13: 0 | AP13: =IF((MONTH(PUANTAJ!$B$2))=10,' BORDRO HAZIRLIK'!AH14,IF(AQ13>1,AQ13,(0))) -> 0 | AQ13: 0 | AR13: =IF((MONTH(PUANTAJ!$B$2))=10,' BORDRO HAZIRLIK'!AC14,IF(AS13>1,AS13,(0))) -> 0 | AS13: 0 | AT13: =IF((MONTH(PUANTAJ!$B$2))=11,' BORDRO HAZIRLIK'!AH14,IF(AU13>1,AU13,(0))) -> 0 | AU13: 0 | AV13: =IF((MONTH(PUANTAJ!$B$2))=11,' BORDRO HAZIRLIK'!AC14,IF(AW13>1,AW13,(0))) -> 0 | AW13: 0 | AX13: =IF((MONTH(PUANTAJ!$B$2))=12,' BORDRO HAZIRLIK'!AH14,IF(AY13>1,AY13,(0))) -> 0 | AY13: 0 | AZ13: =IF((MONTH(PUANTAJ!$B$2))=12,' BORDRO HAZIRLIK'!AC14,IF(BA13>1,BA13,(0))) -> 0 | BA13: 0 | BB13: 0 | BC13: =' BORDRO HAZIRLIK'!AH14 -> 0 | BD13: 0 | BE13: 0 | BF13: =' BORDRO HAZIRLIK'!AC14 -> 0 | BG13: 0
B14: =PUANTAJ!A17 ->  | C14: =PUANTAJ!B17 ->  | D14: =BD14+'PERSONEL BİLGİ GİRİŞİ'!AC15 -> 0 | E14: =BG14+'PERSONEL BİLGİ GİRİŞİ'!AL15 -> 0 | F14: =IF((MONTH(PUANTAJ!$B$2))=1,' BORDRO HAZIRLIK'!AH15,IF(G14>1,G14,(0))) -> 0 | G14: 0 | H14: =IF((MONTH(PUANTAJ!$B$2))=1,' BORDRO HAZIRLIK'!AC15,IF(I14>1,I14,(0))) -> 0 | I14: 0 | J14: =IF((MONTH(PUANTAJ!$B$2))=2,' BORDRO HAZIRLIK'!AH15,IF(K14>1,K14,(0))) -> 0 | K14: 0 | L14: =IF((MONTH(PUANTAJ!$B$2))=2,' BORDRO HAZIRLIK'!AC15,IF(M14>1,M14,(0))) -> 0 | M14: 0 | N14: =IF((MONTH(PUANTAJ!$B$2))=3,' BORDRO HAZIRLIK'!AH15,IF(O14>1,O14,(0))) -> 0 | O14: 0 | P14: =IF((MONTH(PUANTAJ!$B$2))=3,' BORDRO HAZIRLIK'!AC15,IF(Q14>1,Q14,(0))) -> 0 | Q14: 0 | R14: =IF((MONTH(PUANTAJ!$B$2))=4,' BORDRO HAZIRLIK'!AH15,IF(S14>1,S14,(0))) -> 0 | S14: 0 | T14: =IF((MONTH(PUANTAJ!$B$2))=4,' BORDRO HAZIRLIK'!AC15,IF(U14>1,U14,(0))) -> 0 | U14: 0 | V14: =IF((MONTH(PUANTAJ!$B$2))=5,' BORDRO HAZIRLIK'!AH15,IF(W14>1,W14,(0))) -> 0 | W14: 0 | X14: =IF((MONTH(PUANTAJ!$B$2))=5,' BORDRO HAZIRLIK'!AC15,IF(Y14>1,Y14,(0))) -> 0 | Y14: 0 | Z14: =IF((MONTH(PUANTAJ!$B$2))=6,' BORDRO HAZIRLIK'!AH15,IF(AA14>1,AA14,(0))) -> 0 | AA14: 0 | AB14: =IF((MONTH(PUANTAJ!$B$2))=6,' BORDRO HAZIRLIK'!AC15,IF(AC14>1,AC14,(0))) -> 0 | AC14: 0 | AD14: =IF((MONTH(PUANTAJ!$B$2))=7,' BORDRO HAZIRLIK'!AH15,IF(AE14>1,AE14,(0))) -> 0 | AE14: 0 | AF14: =IF((MONTH(PUANTAJ!$B$2))=7,' BORDRO HAZIRLIK'!AC15,IF(AG14>1,AG14,(0))) -> 0 | AG14: 0 | AH14: =IF((MONTH(PUANTAJ!$B$2))=8,' BORDRO HAZIRLIK'!AH15,IF(AI14>1,AI14,(0))) -> 0 | AI14: 0 | AJ14: =IF((MONTH(PUANTAJ!$B$2))=8,' BORDRO HAZIRLIK'!AC15,IF(AK14>1,AK14,(0))) -> 0 | AK14: 0 | AL14: =IF((MONTH(PUANTAJ!$B$2))=9,' BORDRO HAZIRLIK'!AH15,IF(AM14>1,AM14,(0))) -> 0 | AM14: 0 | AN14: =IF((MONTH(PUANTAJ!$B$2))=9,' BORDRO HAZIRLIK'!AC15,IF(AO14>1,AO14,(0))) -> 0 | AO14: 0 | AP14: =IF((MONTH(PUANTAJ!$B$2))=10,' BORDRO HAZIRLIK'!AH15,IF(AQ14>1,AQ14,(0))) -> 0 | AQ14: 0 | AR14: =IF((MONTH(PUANTAJ!$B$2))=10,' BORDRO HAZIRLIK'!AC15,IF(AS14>1,AS14,(0))) -> 0 | AS14: 0 | AT14: =IF((MONTH(PUANTAJ!$B$2))=11,' BORDRO HAZIRLIK'!AH15,IF(AU14>1,AU14,(0))) -> 0 | AU14: 0 | AV14: =IF((MONTH(PUANTAJ!$B$2))=11,' BORDRO HAZIRLIK'!AC15,IF(AW14>1,AW14,(0))) -> 0 | AW14: 0 | AX14: =IF((MONTH(PUANTAJ!$B$2))=12,' BORDRO HAZIRLIK'!AH15,IF(AY14>1,AY14,(0))) -> 0 | AY14: 0 | AZ14: =IF((MONTH(PUANTAJ!$B$2))=12,' BORDRO HAZIRLIK'!AC15,IF(BA14>1,BA14,(0))) -> 0 | BA14: 0 | BB14: 0 | BC14: =' BORDRO HAZIRLIK'!AH15 -> 0 | BD14: 0 | BE14: 0 | BF14: =' BORDRO HAZIRLIK'!AC15 -> 0 | BG14: 0
B15: =PUANTAJ!A18 ->  | C15: =PUANTAJ!B18 ->  | D15: =BD15+'PERSONEL BİLGİ GİRİŞİ'!AC16 -> 0 | E15: =BG15+'PERSONEL BİLGİ GİRİŞİ'!AL16 -> 0 | F15: =IF((MONTH(PUANTAJ!$B$2))=1,' BORDRO HAZIRLIK'!AH16,IF(G15>1,G15,(0))) -> 0 | G15: 0 | H15: =IF((MONTH(PUANTAJ!$B$2))=1,' BORDRO HAZIRLIK'!AC16,IF(I15>1,I15,(0))) -> 0 | I15: 0 | J15: =IF((MONTH(PUANTAJ!$B$2))=2,' BORDRO HAZIRLIK'!AH16,IF(K15>1,K15,(0))) -> 0 | K15: 0 | L15: =IF((MONTH(PUANTAJ!$B$2))=2,' BORDRO HAZIRLIK'!AC16,IF(M15>1,M15,(0))) -> 0 | M15: 0 | N15: =IF((MONTH(PUANTAJ!$B$2))=3,' BORDRO HAZIRLIK'!AH16,IF(O15>1,O15,(0))) -> 0 | O15: 0 | P15: =IF((MONTH(PUANTAJ!$B$2))=3,' BORDRO HAZIRLIK'!AC16,IF(Q15>1,Q15,(0))) -> 0 | Q15: 0 | R15: =IF((MONTH(PUANTAJ!$B$2))=4,' BORDRO HAZIRLIK'!AH16,IF(S15>1,S15,(0))) -> 0 | S15: 0 | T15: =IF((MONTH(PUANTAJ!$B$2))=4,' BORDRO HAZIRLIK'!AC16,IF(U15>1,U15,(0))) -> 0 | U15: 0 | V15: =IF((MONTH(PUANTAJ!$B$2))=5,' BORDRO HAZIRLIK'!AH16,IF(W15>1,W15,(0))) -> 0 | W15: 0 | X15: =IF((MONTH(PUANTAJ!$B$2))=5,' BORDRO HAZIRLIK'!AC16,IF(Y15>1,Y15,(0))) -> 0 | Y15: 0 | Z15: =IF((MONTH(PUANTAJ!$B$2))=6,' BORDRO HAZIRLIK'!AH16,IF(AA15>1,AA15,(0))) -> 0 | AA15: 0 | AB15: =IF((MONTH(PUANTAJ!$B$2))=6,' BORDRO HAZIRLIK'!AC16,IF(AC15>1,AC15,(0))) -> 0 | AC15: 0 | AD15: =IF((MONTH(PUANTAJ!$B$2))=7,' BORDRO HAZIRLIK'!AH16,IF(AE15>1,AE15,(0))) -> 0 | AE15: 0 | AF15: =IF((MONTH(PUANTAJ!$B$2))=7,' BORDRO HAZIRLIK'!AC16,IF(AG15>1,AG15,(0))) -> 0 | AG15: 0 | AH15: =IF((MONTH(PUANTAJ!$B$2))=8,' BORDRO HAZIRLIK'!AH16,IF(AI15>1,AI15,(0))) -> 0 | AI15: 0 | AJ15: =IF((MONTH(PUANTAJ!$B$2))=8,' BORDRO HAZIRLIK'!AC16,IF(AK15>1,AK15,(0))) -> 0 | AK15: 0 | AL15: =IF((MONTH(PUANTAJ!$B$2))=9,' BORDRO HAZIRLIK'!AH16,IF(AM15>1,AM15,(0))) -> 0 | AM15: 0 | AN15: =IF((MONTH(PUANTAJ!$B$2))=9,' BORDRO HAZIRLIK'!AC16,IF(AO15>1,AO15,(0))) -> 0 | AO15: 0 | AP15: =IF((MONTH(PUANTAJ!$B$2))=10,' BORDRO HAZIRLIK'!AH16,IF(AQ15>1,AQ15,(0))) -> 0 | AQ15: 0 | AR15: =IF((MONTH(PUANTAJ!$B$2))=10,' BORDRO HAZIRLIK'!AC16,IF(AS15>1,AS15,(0))) -> 0 | AS15: 0 | AT15: =IF((MONTH(PUANTAJ!$B$2))=11,' BORDRO HAZIRLIK'!AH16,IF(AU15>1,AU15,(0))) -> 0 | AU15: 0 | AV15: =IF((MONTH(PUANTAJ!$B$2))=11,' BORDRO HAZIRLIK'!AC16,IF(AW15>1,AW15,(0))) -> 0 | AW15: 0 | AX15: =IF((MONTH(PUANTAJ!$B$2))=12,' BORDRO HAZIRLIK'!AH16,IF(AY15>1,AY15,(0))) -> 0 | AY15: 0 | AZ15: =IF((MONTH(PUANTAJ!$B$2))=12,' BORDRO HAZIRLIK'!AC16,IF(BA15>1,BA15,(0))) -> 0 | BA15: 0 | BB15: 0 | BC15: =' BORDRO HAZIRLIK'!AH16 -> 0 | BD15: 0 | BE15: 0 | BF15: =' BORDRO HAZIRLIK'!AC16 -> 0 | BG15: 0
B16: =PUANTAJ!A19 ->  | C16: =PUANTAJ!B19 ->  | D16: =BD16+'PERSONEL BİLGİ GİRİŞİ'!AC17 -> 0 | E16: =BG16+'PERSONEL BİLGİ GİRİŞİ'!AL17 -> 0 | F16: =IF((MONTH(PUANTAJ!$B$2))=1,' BORDRO HAZIRLIK'!AH17,IF(G16>1,G16,(0))) -> 0 | G16: 0 | H16: =IF((MONTH(PUANTAJ!$B$2))=1,' BORDRO HAZIRLIK'!AC17,IF(I16>1,I16,(0))) -> 0 | I16: 0 | J16: =IF((MONTH(PUANTAJ!$B$2))=2,' BORDRO HAZIRLIK'!AH17,IF(K16>1,K16,(0))) -> 0 | K16: 0 | L16: =IF((MONTH(PUANTAJ!$B$2))=2,' BORDRO HAZIRLIK'!AC17,IF(M16>1,M16,(0))) -> 0 | M16: 0 | N16: =IF((MONTH(PUANTAJ!$B$2))=3,' BORDRO HAZIRLIK'!AH17,IF(O16>1,O16,(0))) -> 0 | O16: 0 | P16: =IF((MONTH(PUANTAJ!$B$2))=3,' BORDRO HAZIRLIK'!AC17,IF(Q16>1,Q16,(0))) -> 0 | Q16: 0 | R16: =IF((MONTH(PUANTAJ!$B$2))=4,' BORDRO HAZIRLIK'!AH17,IF(S16>1,S16,(0))) -> 0 | S16: 0 | T16: =IF((MONTH(PUANTAJ!$B$2))=4,' BORDRO HAZIRLIK'!AC17,IF(U16>1,U16,(0))) -> 0 | U16: 0 | V16: =IF((MONTH(PUANTAJ!$B$2))=5,' BORDRO HAZIRLIK'!AH17,IF(W16>1,W16,(0))) -> 0 | W16: 0 | X16: =IF((MONTH(PUANTAJ!$B$2))=5,' BORDRO HAZIRLIK'!AC17,IF(Y16>1,Y16,(0))) -> 0 | Y16: 0 | Z16: =IF((MONTH(PUANTAJ!$B$2))=6,' BORDRO HAZIRLIK'!AH17,IF(AA16>1,AA16,(0))) -> 0 | AA16: 0 | AB16: =IF((MONTH(PUANTAJ!$B$2))=6,' BORDRO HAZIRLIK'!AC17,IF(AC16>1,AC16,(0))) -> 0 | AC16: 0 | AD16: =IF((MONTH(PUANTAJ!$B$2))=7,' BORDRO HAZIRLIK'!AH17,IF(AE16>1,AE16,(0))) -> 0 | AE16: 0 | AF16: =IF((MONTH(PUANTAJ!$B$2))=7,' BORDRO HAZIRLIK'!AC17,IF(AG16>1,AG16,(0))) -> 0 | AG16: 0 | AH16: =IF((MONTH(PUANTAJ!$B$2))=8,' BORDRO HAZIRLIK'!AH17,IF(AI16>1,AI16,(0))) -> 0 | AI16: 0 | AJ16: =IF((MONTH(PUANTAJ!$B$2))=8,' BORDRO HAZIRLIK'!AC17,IF(AK16>1,AK16,(0))) -> 0 | AK16: 0 | AL16: =IF((MONTH(PUANTAJ!$B$2))=9,' BORDRO HAZIRLIK'!AH17,IF(AM16>1,AM16,(0))) -> 0 | AM16: 0 | AN16: =IF((MONTH(PUANTAJ!$B$2))=9,' BORDRO HAZIRLIK'!AC17,IF(AO16>1,AO16,(0))) -> 0 | AO16: 0 | AP16: =IF((MONTH(PUANTAJ!$B$2))=10,' BORDRO HAZIRLIK'!AH17,IF(AQ16>1,AQ16,(0))) -> 0 | AQ16: 0 | AR16: =IF((MONTH(PUANTAJ!$B$2))=10,' BORDRO HAZIRLIK'!AC17,IF(AS16>1,AS16,(0))) -> 0 | AS16: 0 | AT16: =IF((MONTH(PUANTAJ!$B$2))=11,' BORDRO HAZIRLIK'!AH17,IF(AU16>1,AU16,(0))) -> 0 | AU16: 0 | AV16: =IF((MONTH(PUANTAJ!$B$2))=11,' BORDRO HAZIRLIK'!AC17,IF(AW16>1,AW16,(0))) -> 0 | AW16: 0 | AX16: =IF((MONTH(PUANTAJ!$B$2))=12,' BORDRO HAZIRLIK'!AH17,IF(AY16>1,AY16,(0))) -> 0 | AY16: 0 | AZ16: =IF((MONTH(PUANTAJ!$B$2))=12,' BORDRO HAZIRLIK'!AC17,IF(BA16>1,BA16,(0))) -> 0 | BA16: 0 | BB16: 0 | BC16: =' BORDRO HAZIRLIK'!AH17 -> 0 | BD16: 0 | BE16: 0 | BF16: =' BORDRO HAZIRLIK'!AC17 -> 0 | BG16: 0
B17: =PUANTAJ!A20 ->  | C17: =PUANTAJ!B20 ->  | D17: =BD17+'PERSONEL BİLGİ GİRİŞİ'!AC18 -> 0 | E17: =BG17+'PERSONEL BİLGİ GİRİŞİ'!AL18 -> 0 | F17: =IF((MONTH(PUANTAJ!$B$2))=1,' BORDRO HAZIRLIK'!AH18,IF(G17>1,G17,(0))) -> 0 | G17: 0 | H17: =IF((MONTH(PUANTAJ!$B$2))=1,' BORDRO HAZIRLIK'!AC18,IF(I17>1,I17,(0))) -> 0 | I17: 0 | J17: =IF((MONTH(PUANTAJ!$B$2))=2,' BORDRO HAZIRLIK'!AH18,IF(K17>1,K17,(0))) -> 0 | K17: 0 | L17: =IF((MONTH(PUANTAJ!$B$2))=2,' BORDRO HAZIRLIK'!AC18,IF(M17>1,M17,(0))) -> 0 | M17: 0 | N17: =IF((MONTH(PUANTAJ!$B$2))=3,' BORDRO HAZIRLIK'!AH18,IF(O17>1,O17,(0))) -> 0 | O17: 0 | P17: =IF((MONTH(PUANTAJ!$B$2))=3,' BORDRO HAZIRLIK'!AC18,IF(Q17>1,Q17,(0))) -> 0 | Q17: 0 | R17: =IF((MONTH(PUANTAJ!$B$2))=4,' BORDRO HAZIRLIK'!AH18,IF(S17>1,S17,(0))) -> 0 | S17: 0 | T17: =IF((MONTH(PUANTAJ!$B$2))=4,' BORDRO HAZIRLIK'!AC18,IF(U17>1,U17,(0))) -> 0 | U17: 0 | V17: =IF((MONTH(PUANTAJ!$B$2))=5,' BORDRO HAZIRLIK'!AH18,IF(W17>1,W17,(0))) -> 0 | W17: 0 | X17: =IF((MONTH(PUANTAJ!$B$2))=5,' BORDRO HAZIRLIK'!AC18,IF(Y17>1,Y17,(0))) -> 0 | Y17: 0 | Z17: =IF((MONTH(PUANTAJ!$B$2))=6,' BORDRO HAZIRLIK'!AH18,IF(AA17>1,AA17,(0))) -> 0 | AA17: 0 | AB17: =IF((MONTH(PUANTAJ!$B$2))=6,' BORDRO HAZIRLIK'!AC18,IF(AC17>1,AC17,(0))) -> 0 | AC17: 0 | AD17: =IF((MONTH(PUANTAJ!$B$2))=7,' BORDRO HAZIRLIK'!AH18,IF(AE17>1,AE17,(0))) -> 0 | AE17: 0 | AF17: =IF((MONTH(PUANTAJ!$B$2))=7,' BORDRO HAZIRLIK'!AC18,IF(AG17>1,AG17,(0))) -> 0 | AG17: 0 | AH17: =IF((MONTH(PUANTAJ!$B$2))=8,' BORDRO HAZIRLIK'!AH18,IF(AI17>1,AI17,(0))) -> 0 | AI17: 0 | AJ17: =IF((MONTH(PUANTAJ!$B$2))=8,' BORDRO HAZIRLIK'!AC18,IF(AK17>1,AK17,(0))) -> 0 | AK17: 0 | AL17: =IF((MONTH(PUANTAJ!$B$2))=9,' BORDRO HAZIRLIK'!AH18,IF(AM17>1,AM17,(0))) -> 0 | AM17: 0 | AN17: =IF((MONTH(PUANTAJ!$B$2))=9,' BORDRO HAZIRLIK'!AC18,IF(AO17>1,AO17,(0))) -> 0 | AO17: 0 | AP17: =IF((MONTH(PUANTAJ!$B$2))=10,' BORDRO HAZIRLIK'!AH18,IF(AQ17>1,AQ17,(0))) -> 0 | AQ17: 0 | AR17: =IF((MONTH(PUANTAJ!$B$2))=10,' BORDRO HAZIRLIK'!AC18,IF(AS17>1,AS17,(0))) -> 0 | AS17: 0 | AT17: =IF((MONTH(PUANTAJ!$B$2))=11,' BORDRO HAZIRLIK'!AH18,IF(AU17>1,AU17,(0))) -> 0 | AU17: 0 | AV17: =IF((MONTH(PUANTAJ!$B$2))=11,' BORDRO HAZIRLIK'!AC18,IF(AW17>1,AW17,(0))) -> 0 | AW17: 0 | AX17: =IF((MONTH(PUANTAJ!$B$2))=12,' BORDRO HAZIRLIK'!AH18,IF(AY17>1,AY17,(0))) -> 0 | AY17: 0 | AZ17: =IF((MONTH(PUANTAJ!$B$2))=12,' BORDRO HAZIRLIK'!AC18,IF(BA17>1,BA17,(0))) -> 0 | BA17: 0 | BB17: 0 | BC17: =' BORDRO HAZIRLIK'!AH18 -> 0 | BD17: 0 | BE17: 0 | BF17: =' BORDRO HAZIRLIK'!AC18 -> 0 | BG17: 0
B18: =PUANTAJ!A21 ->  | C18: =PUANTAJ!B21 ->  | D18: =BD18+'PERSONEL BİLGİ GİRİŞİ'!AC19 -> 0 | E18: =BG18+'PERSONEL BİLGİ GİRİŞİ'!AL19 -> 0 | F18: =IF((MONTH(PUANTAJ!$B$2))=1,' BORDRO HAZIRLIK'!AH19,IF(G18>1,G18,(0))) -> 0 | G18: 0 | H18: =IF((MONTH(PUANTAJ!$B$2))=1,' BORDRO HAZIRLIK'!AC19,IF(I18>1,I18,(0))) -> 0 | I18: 0 | J18: =IF((MONTH(PUANTAJ!$B$2))=2,' BORDRO HAZIRLIK'!AH19,IF(K18>1,K18,(0))) -> 0 | K18: 0 | L18: =IF((MONTH(PUANTAJ!$B$2))=2,' BORDRO HAZIRLIK'!AC19,IF(M18>1,M18,(0))) -> 0 | M18: 0 | N18: =IF((MONTH(PUANTAJ!$B$2))=3,' BORDRO HAZIRLIK'!AH19,IF(O18>1,O18,(0))) -> 0 | O18: 0 | P18: =IF((MONTH(PUANTAJ!$B$2))=3,' BORDRO HAZIRLIK'!AC19,IF(Q18>1,Q18,(0))) -> 0 | Q18: 0 | R18: =IF((MONTH(PUANTAJ!$B$2))=4,' BORDRO HAZIRLIK'!AH19,IF(S18>1,S18,(0))) -> 0 | S18: 0 | T18: =IF((MONTH(PUANTAJ!$B$2))=4,' BORDRO HAZIRLIK'!AC19,IF(U18>1,U18,(0))) -> 0 | U18: 0 | V18: =IF((MONTH(PUANTAJ!$B$2))=5,' BORDRO HAZIRLIK'!AH19,IF(W18>1,W18,(0))) -> 0 | W18: 0 | X18: =IF((MONTH(PUANTAJ!$B$2))=5,' BORDRO HAZIRLIK'!AC19,IF(Y18>1,Y18,(0))) -> 0 | Y18: 0 | Z18: =IF((MONTH(PUANTAJ!$B$2))=6,' BORDRO HAZIRLIK'!AH19,IF(AA18>1,AA18,(0))) -> 0 | AA18: 0 | AB18: =IF((MONTH(PUANTAJ!$B$2))=6,' BORDRO HAZIRLIK'!AC19,IF(AC18>1,AC18,(0))) -> 0 | AC18: 0 | AD18: =IF((MONTH(PUANTAJ!$B$2))=7,' BORDRO HAZIRLIK'!AH19,IF(AE18>1,AE18,(0))) -> 0 | AE18: 0 | AF18: =IF((MONTH(PUANTAJ!$B$2))=7,' BORDRO HAZIRLIK'!AC19,IF(AG18>1,AG18,(0))) -> 0 | AG18: 0 | AH18: =IF((MONTH(PUANTAJ!$B$2))=8,' BORDRO HAZIRLIK'!AH19,IF(AI18>1,AI18,(0))) -> 0 | AI18: 0 | AJ18: =IF((MONTH(PUANTAJ!$B$2))=8,' BORDRO HAZIRLIK'!AC19,IF(AK18>1,AK18,(0))) -> 0 | AK18: 0 | AL18: =IF((MONTH(PUANTAJ!$B$2))=9,' BORDRO HAZIRLIK'!AH19,IF(AM18>1,AM18,(0))) -> 0 | AM18: 0 | AN18: =IF((MONTH(PUANTAJ!$B$2))=9,' BORDRO HAZIRLIK'!AC19,IF(AO18>1,AO18,(0))) -> 0 | AO18: 0 | AP18: =IF((MONTH(PUANTAJ!$B$2))=10,' BORDRO HAZIRLIK'!AH19,IF(AQ18>1,AQ18,(0))) -> 0 | AQ18: 0 | AR18: =IF((MONTH(PUANTAJ!$B$2))=10,' BORDRO HAZIRLIK'!AC19,IF(AS18>1,AS18,(0))) -> 0 | AS18: 0 | AT18: =IF((MONTH(PUANTAJ!$B$2))=11,' BORDRO HAZIRLIK'!AH19,IF(AU18>1,AU18,(0))) -> 0 | AU18: 0 | AV18: =IF((MONTH(PUANTAJ!$B$2))=11,' BORDRO HAZIRLIK'!AC19,IF(AW18>1,AW18,(0))) -> 0 | AW18: 0 | AX18: =IF((MONTH(PUANTAJ!$B$2))=12,' BORDRO HAZIRLIK'!AH19,IF(AY18>1,AY18,(0))) -> 0 | AY18: 0 | AZ18: =IF((MONTH(PUANTAJ!$B$2))=12,' BORDRO HAZIRLIK'!AC19,IF(BA18>1,BA18,(0))) -> 0 | BA18: 0 | BB18: 0 | BC18: =' BORDRO HAZIRLIK'!AH19 -> 0 | BD18: 0 | BE18: 0 | BF18: =' BORDRO HAZIRLIK'!AC19 -> 0 | BG18: 0
B19: =PUANTAJ!A22 ->  | C19: =PUANTAJ!B22 ->  | D19: =BD19+'PERSONEL BİLGİ GİRİŞİ'!AC20 -> 0 | E19: =BG19+'PERSONEL BİLGİ GİRİŞİ'!AL20 -> 0 | F19: =IF((MONTH(PUANTAJ!$B$2))=1,' BORDRO HAZIRLIK'!AH20,IF(G19>1,G19,(0))) -> 0 | G19: 0 | H19: =IF((MONTH(PUANTAJ!$B$2))=1,' BORDRO HAZIRLIK'!AC20,IF(I19>1,I19,(0))) -> 0 | I19: 0 | J19: =IF((MONTH(PUANTAJ!$B$2))=2,' BORDRO HAZIRLIK'!AH20,IF(K19>1,K19,(0))) -> 0 | K19: 0 | L19: =IF((MONTH(PUANTAJ!$B$2))=2,' BORDRO HAZIRLIK'!AC20,IF(M19>1,M19,(0))) -> 0 | M19: 0 | N19: =IF((MONTH(PUANTAJ!$B$2))=3,' BORDRO HAZIRLIK'!AH20,IF(O19>1,O19,(0))) -> 0 | O19: 0 | P19: =IF((MONTH(PUANTAJ!$B$2))=3,' BORDRO HAZIRLIK'!AC20,IF(Q19>1,Q19,(0))) -> 0 | Q19: 0 | R19: =IF((MONTH(PUANTAJ!$B$2))=4,' BORDRO HAZIRLIK'!AH20,IF(S19>1,S19,(0))) -> 0 | S19: 0 | T19: =IF((MONTH(PUANTAJ!$B$2))=4,' BORDRO HAZIRLIK'!AC20,IF(U19>1,U19,(0))) -> 0 | U19: 0 | V19: =IF((MONTH(PUANTAJ!$B$2))=5,' BORDRO HAZIRLIK'!AH20,IF(W19>1,W19,(0))) -> 0 | W19: 0 | X19: =IF((MONTH(PUANTAJ!$B$2))=5,' BORDRO HAZIRLIK'!AC20,IF(Y19>1,Y19,(0))) -> 0 | Y19: 0 | Z19: =IF((MONTH(PUANTAJ!$B$2))=6,' BORDRO HAZIRLIK'!AH20,IF(AA19>1,AA19,(0))) -> 0 | AA19: 0 | AB19: =IF((MONTH(PUANTAJ!$B$2))=6,' BORDRO HAZIRLIK'!AC20,IF(AC19>1,AC19,(0))) -> 0 | AC19: 0 | AD19: =IF((MONTH(PUANTAJ!$B$2))=7,' BORDRO HAZIRLIK'!AH20,IF(AE19>1,AE19,(0))) -> 0 | AE19: 0 | AF19: =IF((MONTH(PUANTAJ!$B$2))=7,' BORDRO HAZIRLIK'!AC20,IF(AG19>1,AG19,(0))) -> 0 | AG19: 0 | AH19: =IF((MONTH(PUANTAJ!$B$2))=8,' BORDRO HAZIRLIK'!AH20,IF(AI19>1,AI19,(0))) -> 0 | AI19: 0 | AJ19: =IF((MONTH(PUANTAJ!$B$2))=8,' BORDRO HAZIRLIK'!AC20,IF(AK19>1,AK19,(0))) -> 0 | AK19: 0 | AL19: =IF((MONTH(PUANTAJ!$B$2))=9,' BORDRO HAZIRLIK'!AH20,IF(AM19>1,AM19,(0))) -> 0 | AM19: 0 | AN19: =IF((MONTH(PUANTAJ!$B$2))=9,' BORDRO HAZIRLIK'!AC20,IF(AO19>1,AO19,(0))) -> 0 | AO19: 0 | AP19: =IF((MONTH(PUANTAJ!$B$2))=10,' BORDRO HAZIRLIK'!AH20,IF(AQ19>1,AQ19,(0))) -> 0 | AQ19: 0 | AR19: =IF((MONTH(PUANTAJ!$B$2))=10,' BORDRO HAZIRLIK'!AC20,IF(AS19>1,AS19,(0))) -> 0 | AS19: 0 | AT19: =IF((MONTH(PUANTAJ!$B$2))=11,' BORDRO HAZIRLIK'!AH20,IF(AU19>1,AU19,(0))) -> 0 | AU19: 0 | AV19: =IF((MONTH(PUANTAJ!$B$2))=11,' BORDRO HAZIRLIK'!AC20,IF(AW19>1,AW19,(0))) -> 0 | AW19: 0 | AX19: =IF((MONTH(PUANTAJ!$B$2))=12,' BORDRO HAZIRLIK'!AH20,IF(AY19>1,AY19,(0))) -> 0 | AY19: 0 | AZ19: =IF((MONTH(PUANTAJ!$B$2))=12,' BORDRO HAZIRLIK'!AC20,IF(BA19>1,BA19,(0))) -> 0 | BA19: 0 | BB19: 0 | BC19: =' BORDRO HAZIRLIK'!AH20 -> 0 | BD19: 0 | BE19: 0 | BF19: =' BORDRO HAZIRLIK'!AC20 -> 0 | BG19: 0
B20: =PUANTAJ!A23 ->  | C20: =PUANTAJ!B23 ->  | D20: =BD20+'PERSONEL BİLGİ GİRİŞİ'!AC21 -> 0 | E20: =BG20+'PERSONEL BİLGİ GİRİŞİ'!AL21 -> 0 | F20: =IF((MONTH(PUANTAJ!$B$2))=1,' BORDRO HAZIRLIK'!AH21,IF(G20>1,G20,(0))) -> 0 | G20: 0 | H20: =IF((MONTH(PUANTAJ!$B$2))=1,' BORDRO HAZIRLIK'!AC21,IF(I20>1,I20,(0))) -> 0 | I20: 0 | J20: =IF((MONTH(PUANTAJ!$B$2))=2,' BORDRO HAZIRLIK'!AH21,IF(K20>1,K20,(0))) -> 0 | K20: 0 | L20: =IF((MONTH(PUANTAJ!$B$2))=2,' BORDRO HAZIRLIK'!AC21,IF(M20>1,M20,(0))) -> 0 | M20: 0 | N20: =IF((MONTH(PUANTAJ!$B$2))=3,' BORDRO HAZIRLIK'!AH21,IF(O20>1,O20,(0))) -> 0 | O20: 0 | P20: =IF((MONTH(PUANTAJ!$B$2))=3,' BORDRO HAZIRLIK'!AC21,IF(Q20>1,Q20,(0))) -> 0 | Q20: 0 | R20: =IF((MONTH(PUANTAJ!$B$2))=4,' BORDRO HAZIRLIK'!AH21,IF(S20>1,S20,(0))) -> 0 | S20: 0 | T20: =IF((MONTH(PUANTAJ!$B$2))=4,' BORDRO HAZIRLIK'!AC21,IF(U20>1,U20,(0))) -> 0 | U20: 0 | V20: =IF((MONTH(PUANTAJ!$B$2))=5,' BORDRO HAZIRLIK'!AH21,IF(W20>1,W20,(0))) -> 0 | W20: 0 | X20: =IF((MONTH(PUANTAJ!$B$2))=5,' BORDRO HAZIRLIK'!AC21,IF(Y20>1,Y20,(0))) -> 0 | Y20: 0 | Z20: =IF((MONTH(PUANTAJ!$B$2))=6,' BORDRO HAZIRLIK'!AH21,IF(AA20>1,AA20,(0))) -> 0 | AA20: 0 | AB20: =IF((MONTH(PUANTAJ!$B$2))=6,' BORDRO HAZIRLIK'!AC21,IF(AC20>1,AC20,(0))) -> 0 | AC20: 0 | AD20: =IF((MONTH(PUANTAJ!$B$2))=7,' BORDRO HAZIRLIK'!AH21,IF(AE20>1,AE20,(0))) -> 0 | AE20: 0 | AF20: =IF((MONTH(PUANTAJ!$B$2))=7,' BORDRO HAZIRLIK'!AC21,IF(AG20>1,AG20,(0))) -> 0 | AG20: 0 | AH20: =IF((MONTH(PUANTAJ!$B$2))=8,' BORDRO HAZIRLIK'!AH21,IF(AI20>1,AI20,(0))) -> 0 | AI20: 0 | AJ20: =IF((MONTH(PUANTAJ!$B$2))=8,' BORDRO HAZIRLIK'!AC21,IF(AK20>1,AK20,(0))) -> 0 | AK20: 0 | AL20: =IF((MONTH(PUANTAJ!$B$2))=9,' BORDRO HAZIRLIK'!AH21,IF(AM20>1,AM20,(0))) -> 0 | AM20: 0 | AN20: =IF((MONTH(PUANTAJ!$B$2))=9,' BORDRO HAZIRLIK'!AC21,IF(AO20>1,AO20,(0))) -> 0 | AO20: 0 | AP20: =IF((MONTH(PUANTAJ!$B$2))=10,' BORDRO HAZIRLIK'!AH21,IF(AQ20>1,AQ20,(0))) -> 0 | AQ20: 0 | AR20: =IF((MONTH(PUANTAJ!$B$2))=10,' BORDRO HAZIRLIK'!AC21,IF(AS20>1,AS20,(0))) -> 0 | AS20: 0 | AT20: =IF((MONTH(PUANTAJ!$B$2))=11,' BORDRO HAZIRLIK'!AH21,IF(AU20>1,AU20,(0))) -> 0 | AU20: 0 | AV20: =IF((MONTH(PUANTAJ!$B$2))=11,' BORDRO HAZIRLIK'!AC21,IF(AW20>1,AW20,(0))) -> 0 | AW20: 0 | AX20: =IF((MONTH(PUANTAJ!$B$2))=12,' BORDRO HAZIRLIK'!AH21,IF(AY20>1,AY20,(0))) -> 0 | AY20: 0 | AZ20: =IF((MONTH(PUANTAJ!$B$2))=12,' BORDRO HAZIRLIK'!AC21,IF(BA20>1,BA20,(0))) -> 0 | BA20: 0 | BB20: 0 | BC20: =' BORDRO HAZIRLIK'!AH21 -> 0 | BD20: 0 | BE20: 0 | BF20: =' BORDRO HAZIRLIK'!AC21 -> 0 | BG20: 0
B21: =PUANTAJ!A24 ->  | C21: =PUANTAJ!B24 ->  | D21: =BD21+'PERSONEL BİLGİ GİRİŞİ'!AC22 -> 0 | E21: =BG21+'PERSONEL BİLGİ GİRİŞİ'!AL22 -> 0 | F21: =IF((MONTH(PUANTAJ!$B$2))=1,' BORDRO HAZIRLIK'!AH22,IF(G21>1,G21,(0))) -> 0 | G21: 0 | H21: =IF((MONTH(PUANTAJ!$B$2))=1,' BORDRO HAZIRLIK'!AC22,IF(I21>1,I21,(0))) -> 0 | I21: 0 | J21: =IF((MONTH(PUANTAJ!$B$2))=2,' BORDRO HAZIRLIK'!AH22,IF(K21>1,K21,(0))) -> 0 | K21: 0 | L21: =IF((MONTH(PUANTAJ!$B$2))=2,' BORDRO HAZIRLIK'!AC22,IF(M21>1,M21,(0))) -> 0 | M21: 0 | N21: =IF((MONTH(PUANTAJ!$B$2))=3,' BORDRO HAZIRLIK'!AH22,IF(O21>1,O21,(0))) -> 0 | O21: 0 | P21: =IF((MONTH(PUANTAJ!$B$2))=3,' BORDRO HAZIRLIK'!AC22,IF(Q21>1,Q21,(0))) -> 0 | Q21: 0 | R21: =IF((MONTH(PUANTAJ!$B$2))=4,' BORDRO HAZIRLIK'!AH22,IF(S21>1,S21,(0))) -> 0 | S21: 0 | T21: =IF((MONTH(PUANTAJ!$B$2))=4,' BORDRO HAZIRLIK'!AC22,IF(U21>1,U21,(0))) -> 0 | U21: 0 | V21: =IF((MONTH(PUANTAJ!$B$2))=5,' BORDRO HAZIRLIK'!AH22,IF(W21>1,W21,(0))) -> 0 | W21: 0 | X21: =IF((MONTH(PUANTAJ!$B$2))=5,' BORDRO HAZIRLIK'!AC22,IF(Y21>1,Y21,(0))) -> 0 | Y21: 0 | Z21: =IF((MONTH(PUANTAJ!$B$2))=6,' BORDRO HAZIRLIK'!AH22,IF(AA21>1,AA21,(0))) -> 0 | AA21: 0 | AB21: =IF((MONTH(PUANTAJ!$B$2))=6,' BORDRO HAZIRLIK'!AC22,IF(AC21>1,AC21,(0))) -> 0 | AC21: 0 | AD21: =IF((MONTH(PUANTAJ!$B$2))=7,' BORDRO HAZIRLIK'!AH22,IF(AE21>1,AE21,(0))) -> 0 | AE21: 0 | AF21: =IF((MONTH(PUANTAJ!$B$2))=7,' BORDRO HAZIRLIK'!AC22,IF(AG21>1,AG21,(0))) -> 0 | AG21: 0 | AH21: =IF((MONTH(PUANTAJ!$B$2))=8,' BORDRO HAZIRLIK'!AH22,IF(AI21>1,AI21,(0))) -> 0 | AI21: 0 | AJ21: =IF((MONTH(PUANTAJ!$B$2))=8,' BORDRO HAZIRLIK'!AC22,IF(AK21>1,AK21,(0))) -> 0 | AK21: 0 | AL21: =IF((MONTH(PUANTAJ!$B$2))=9,' BORDRO HAZIRLIK'!AH22,IF(AM21>1,AM21,(0))) -> 0 | AM21: 0 | AN21: =IF((MONTH(PUANTAJ!$B$2))=9,' BORDRO HAZIRLIK'!AC22,IF(AO21>1,AO21,(0))) -> 0 | AO21: 0 | AP21: =IF((MONTH(PUANTAJ!$B$2))=10,' BORDRO HAZIRLIK'!AH22,IF(AQ21>1,AQ21,(0))) -> 0 | AQ21: 0 | AR21: =IF((MONTH(PUANTAJ!$B$2))=10,' BORDRO HAZIRLIK'!AC22,IF(AS21>1,AS21,(0))) -> 0 | AS21: 0 | AT21: =IF((MONTH(PUANTAJ!$B$2))=11,' BORDRO HAZIRLIK'!AH22,IF(AU21>1,AU21,(0))) -> 0 | AU21: 0 | AV21: =IF((MONTH(PUANTAJ!$B$2))=11,' BORDRO HAZIRLIK'!AC22,IF(AW21>1,AW21,(0))) -> 0 | AW21: 0 | AX21: =IF((MONTH(PUANTAJ!$B$2))=12,' BORDRO HAZIRLIK'!AH22,IF(AY21>1,AY21,(0))) -> 0 | AY21: 0 | AZ21: =IF((MONTH(PUANTAJ!$B$2))=12,' BORDRO HAZIRLIK'!AC22,IF(BA21>1,BA21,(0))) -> 0 | BA21: 0 | BB21: 0 | BC21: =' BORDRO HAZIRLIK'!AH22 -> 0 | BD21: 0 | BE21: 0 | BF21: =' BORDRO HAZIRLIK'!AC22 -> 0 | BG21: 0
B22: =PUANTAJ!A25 ->  | C22: =PUANTAJ!B25 ->  | D22: =BD22+'PERSONEL BİLGİ GİRİŞİ'!AC23 -> 0 | E22: =BG22+'PERSONEL BİLGİ GİRİŞİ'!AL23 -> 0 | F22: =IF((MONTH(PUANTAJ!$B$2))=1,' BORDRO HAZIRLIK'!AH23,IF(G22>1,G22,(0))) -> 0 | G22: 0 | H22: =IF((MONTH(PUANTAJ!$B$2))=1,' BORDRO HAZIRLIK'!AC23,IF(I22>1,I22,(0))) -> 0 | I22: 0 | J22: =IF((MONTH(PUANTAJ!$B$2))=2,' BORDRO HAZIRLIK'!AH23,IF(K22>1,K22,(0))) -> 0 | K22: 0 | L22: =IF((MONTH(PUANTAJ!$B$2))=2,' BORDRO HAZIRLIK'!AC23,IF(M22>1,M22,(0))) -> 0 | M22: 0 | N22: =IF((MONTH(PUANTAJ!$B$2))=3,' BORDRO HAZIRLIK'!AH23,IF(O22>1,O22,(0))) -> 0 | O22: 0 | P22: =IF((MONTH(PUANTAJ!$B$2))=3,' BORDRO HAZIRLIK'!AC23,IF(Q22>1,Q22,(0))) -> 0 | Q22: 0 | R22: =IF((MONTH(PUANTAJ!$B$2))=4,' BORDRO HAZIRLIK'!AH23,IF(S22>1,S22,(0))) -> 0 | S22: 0 | T22: =IF((MONTH(PUANTAJ!$B$2))=4,' BORDRO HAZIRLIK'!AC23,IF(U22>1,U22,(0))) -> 0 | U22: 0 | V22: =IF((MONTH(PUANTAJ!$B$2))=5,' BORDRO HAZIRLIK'!AH23,IF(W22>1,W22,(0))) -> 0 | W22: 0 | X22: =IF((MONTH(PUANTAJ!$B$2))=5,' BORDRO HAZIRLIK'!AC23,IF(Y22>1,Y22,(0))) -> 0 | Y22: 0 | Z22: =IF((MONTH(PUANTAJ!$B$2))=6,' BORDRO HAZIRLIK'!AH23,IF(AA22>1,AA22,(0))) -> 0 | AA22: 0 | AB22: =IF((MONTH(PUANTAJ!$B$2))=6,' BORDRO HAZIRLIK'!AC23,IF(AC22>1,AC22,(0))) -> 0 | AC22: 0 | AD22: =IF((MONTH(PUANTAJ!$B$2))=7,' BORDRO HAZIRLIK'!AH23,IF(AE22>1,AE22,(0))) -> 0 | AE22: 0 | AF22: =IF((MONTH(PUANTAJ!$B$2))=7,' BORDRO HAZIRLIK'!AC23,IF(AG22>1,AG22,(0))) -> 0 | AG22: 0 | AH22: =IF((MONTH(PUANTAJ!$B$2))=8,' BORDRO HAZIRLIK'!AH23,IF(AI22>1,AI22,(0))) -> 0 | AI22: 0 | AJ22: =IF((MONTH(PUANTAJ!$B$2))=8,' BORDRO HAZIRLIK'!AC23,IF(AK22>1,AK22,(0))) -> 0 | AK22: 0 | AL22: =IF((MONTH(PUANTAJ!$B$2))=9,' BORDRO HAZIRLIK'!AH23,IF(AM22>1,AM22,(0))) -> 0 | AM22: 0 | AN22: =IF((MONTH(PUANTAJ!$B$2))=9,' BORDRO HAZIRLIK'!AC23,IF(AO22>1,AO22,(0))) -> 0 | AO22: 0 | AP22: =IF((MONTH(PUANTAJ!$B$2))=10,' BORDRO HAZIRLIK'!AH23,IF(AQ22>1,AQ22,(0))) -> 0 | AQ22: 0 | AR22: =IF((MONTH(PUANTAJ!$B$2))=10,' BORDRO HAZIRLIK'!AC23,IF(AS22>1,AS22,(0))) -> 0 | AS22: 0 | AT22: =IF((MONTH(PUANTAJ!$B$2))=11,' BORDRO HAZIRLIK'!AH23,IF(AU22>1,AU22,(0))) -> 0 | AU22: 0 | AV22: =IF((MONTH(PUANTAJ!$B$2))=11,' BORDRO HAZIRLIK'!AC23,IF(AW22>1,AW22,(0))) -> 0 | AW22: 0 | AX22: =IF((MONTH(PUANTAJ!$B$2))=12,' BORDRO HAZIRLIK'!AH23,IF(AY22>1,AY22,(0))) -> 0 | AY22: 0 | AZ22: =IF((MONTH(PUANTAJ!$B$2))=12,' BORDRO HAZIRLIK'!AC23,IF(BA22>1,BA22,(0))) -> 0 | BA22: 0 | BB22: 0 | BC22: =' BORDRO HAZIRLIK'!AH23 -> 0 | BD22: 0 | BE22: 0 | BF22: =' BORDRO HAZIRLIK'!AC23 -> 0 | BG22: 0
B23: =PUANTAJ!A26 ->  | C23: =PUANTAJ!B26 ->  | D23: =BD23+'PERSONEL BİLGİ GİRİŞİ'!AC24 -> 0 | E23: =BG23+'PERSONEL BİLGİ GİRİŞİ'!AL24 -> 0 | F23: =IF((MONTH(PUANTAJ!$B$2))=1,' BORDRO HAZIRLIK'!AH24,IF(G23>1,G23,(0))) -> 0 | G23: 0 | H23: =IF((MONTH(PUANTAJ!$B$2))=1,' BORDRO HAZIRLIK'!AC24,IF(I23>1,I23,(0))) -> 0 | I23: 0 | J23: =IF((MONTH(PUANTAJ!$B$2))=2,' BORDRO HAZIRLIK'!AH24,IF(K23>1,K23,(0))) -> 0 | K23: 0 | L23: =IF((MONTH(PUANTAJ!$B$2))=2,' BORDRO HAZIRLIK'!AC24,IF(M23>1,M23,(0))) -> 0 | M23: 0 | N23: =IF((MONTH(PUANTAJ!$B$2))=3,' BORDRO HAZIRLIK'!AH24,IF(O23>1,O23,(0))) -> 0 | O23: 0 | P23: =IF((MONTH(PUANTAJ!$B$2))=3,' BORDRO HAZIRLIK'!AC24,IF(Q23>1,Q23,(0))) -> 0 | Q23: 0 | R23: =IF((MONTH(PUANTAJ!$B$2))=4,' BORDRO HAZIRLIK'!AH24,IF(S23>1,S23,(0))) -> 0 | S23: 0 | T23: =IF((MONTH(PUANTAJ!$B$2))=4,' BORDRO HAZIRLIK'!AC24,IF(U23>1,U23,(0))) -> 0 | U23: 0 | V23: =IF((MONTH(PUANTAJ!$B$2))=5,' BORDRO HAZIRLIK'!AH24,IF(W23>1,W23,(0))) -> 0 | W23: 0 | X23: =IF((MONTH(PUANTAJ!$B$2))=5,' BORDRO HAZIRLIK'!AC24,IF(Y23>1,Y23,(0))) -> 0 | Y23: 0 | Z23: =IF((MONTH(PUANTAJ!$B$2))=6,' BORDRO HAZIRLIK'!AH24,IF(AA23>1,AA23,(0))) -> 0 | AA23: 0 | AB23: =IF((MONTH(PUANTAJ!$B$2))=6,' BORDRO HAZIRLIK'!AC24,IF(AC23>1,AC23,(0))) -> 0 | AC23: 0 | AD23: =IF((MONTH(PUANTAJ!$B$2))=7,' BORDRO HAZIRLIK'!AH24,IF(AE23>1,AE23,(0))) -> 0 | AE23: 0 | AF23: =IF((MONTH(PUANTAJ!$B$2))=7,' BORDRO HAZIRLIK'!AC24,IF(AG23>1,AG23,(0))) -> 0 | AG23: 0 | AH23: =IF((MONTH(PUANTAJ!$B$2))=8,' BORDRO HAZIRLIK'!AH24,IF(AI23>1,AI23,(0))) -> 0 | AI23: 0 | AJ23: =IF((MONTH(PUANTAJ!$B$2))=8,' BORDRO HAZIRLIK'!AC24,IF(AK23>1,AK23,(0))) -> 0 | AK23: 0 | AL23: =IF((MONTH(PUANTAJ!$B$2))=9,' BORDRO HAZIRLIK'!AH24,IF(AM23>1,AM23,(0))) -> 0 | AM23: 0 | AN23: =IF((MONTH(PUANTAJ!$B$2))=9,' BORDRO HAZIRLIK'!AC24,IF(AO23>1,AO23,(0))) -> 0 | AO23: 0 | AP23: =IF((MONTH(PUANTAJ!$B$2))=10,' BORDRO HAZIRLIK'!AH24,IF(AQ23>1,AQ23,(0))) -> 0 | AQ23: 0 | AR23: =IF((MONTH(PUANTAJ!$B$2))=10,' BORDRO HAZIRLIK'!AC24,IF(AS23>1,AS23,(0))) -> 0 | AS23: 0 | AT23: =IF((MONTH(PUANTAJ!$B$2))=11,' BORDRO HAZIRLIK'!AH24,IF(AU23>1,AU23,(0))) -> 0 | AU23: 0 | AV23: =IF((MONTH(PUANTAJ!$B$2))=11,' BORDRO HAZIRLIK'!AC24,IF(AW23>1,AW23,(0))) -> 0 | AW23: 0 | AX23: =IF((MONTH(PUANTAJ!$B$2))=12,' BORDRO HAZIRLIK'!AH24,IF(AY23>1,AY23,(0))) -> 0 | AY23: 0 | AZ23: =IF((MONTH(PUANTAJ!$B$2))=12,' BORDRO HAZIRLIK'!AC24,IF(BA23>1,BA23,(0))) -> 0 | BA23: 0 | BB23: 0 | BC23: =' BORDRO HAZIRLIK'!AH24 -> 0 | BD23: 0 | BE23: 0 | BF23: =' BORDRO HAZIRLIK'!AC24 -> 0 | BG23: 0
B24: =PUANTAJ!A27 ->  | C24: =PUANTAJ!B27 ->  | D24: =BD24+'PERSONEL BİLGİ GİRİŞİ'!AC25 -> 0 | E24: =BG24+'PERSONEL BİLGİ GİRİŞİ'!AL25 -> 0 | F24: =IF((MONTH(PUANTAJ!$B$2))=1,' BORDRO HAZIRLIK'!AH25,IF(G24>1,G24,(0))) -> 0 | G24: 0 | H24: =IF((MONTH(PUANTAJ!$B$2))=1,' BORDRO HAZIRLIK'!AC25,IF(I24>1,I24,(0))) -> 0 | I24: 0 | J24: =IF((MONTH(PUANTAJ!$B$2))=2,' BORDRO HAZIRLIK'!AH25,IF(K24>1,K24,(0))) -> 0 | K24: 0 | L24: =IF((MONTH(PUANTAJ!$B$2))=2,' BORDRO HAZIRLIK'!AC25,IF(M24>1,M24,(0))) -> 0 | M24: 0 | N24: =IF((MONTH(PUANTAJ!$B$2))=3,' BORDRO HAZIRLIK'!AH25,IF(O24>1,O24,(0))) -> 0 | O24: 0 | P24: =IF((MONTH(PUANTAJ!$B$2))=3,' BORDRO HAZIRLIK'!AC25,IF(Q24>1,Q24,(0))) -> 0 | Q24: 0 | R24: =IF((MONTH(PUANTAJ!$B$2))=4,' BORDRO HAZIRLIK'!AH25,IF(S24>1,S24,(0))) -> 0 | S24: 0 | T24: =IF((MONTH(PUANTAJ!$B$2))=4,' BORDRO HAZIRLIK'!AC25,IF(U24>1,U24,(0))) -> 0 | U24: 0 | V24: =IF((MONTH(PUANTAJ!$B$2))=5,' BORDRO HAZIRLIK'!AH25,IF(W24>1,W24,(0))) -> 0 | W24: 0 | X24: =IF((MONTH(PUANTAJ!$B$2))=5,' BORDRO HAZIRLIK'!AC25,IF(Y24>1,Y24,(0))) -> 0 | Y24: 0 | Z24: =IF((MONTH(PUANTAJ!$B$2))=6,' BORDRO HAZIRLIK'!AH25,IF(AA24>1,AA24,(0))) -> 0 | AA24: 0 | AB24: =IF((MONTH(PUANTAJ!$B$2))=6,' BORDRO HAZIRLIK'!AC25,IF(AC24>1,AC24,(0))) -> 0 | AC24: 0 | AD24: =IF((MONTH(PUANTAJ!$B$2))=7,' BORDRO HAZIRLIK'!AH25,IF(AE24>1,AE24,(0))) -> 0 | AE24: 0 | AF24: =IF((MONTH(PUANTAJ!$B$2))=7,' BORDRO HAZIRLIK'!AC25,IF(AG24>1,AG24,(0))) -> 0 | AG24: 0 | AH24: =IF((MONTH(PUANTAJ!$B$2))=8,' BORDRO HAZIRLIK'!AH25,IF(AI24>1,AI24,(0))) -> 0 | AI24: 0 | AJ24: =IF((MONTH(PUANTAJ!$B$2))=8,' BORDRO HAZIRLIK'!AC25,IF(AK24>1,AK24,(0))) -> 0 | AK24: 0 | AL24: =IF((MONTH(PUANTAJ!$B$2))=9,' BORDRO HAZIRLIK'!AH25,IF(AM24>1,AM24,(0))) -> 0 | AM24: 0 | AN24: =IF((MONTH(PUANTAJ!$B$2))=9,' BORDRO HAZIRLIK'!AC25,IF(AO24>1,AO24,(0))) -> 0 | AO24: 0 | AP24: =IF((MONTH(PUANTAJ!$B$2))=10,' BORDRO HAZIRLIK'!AH25,IF(AQ24>1,AQ24,(0))) -> 0 | AQ24: 0 | AR24: =IF((MONTH(PUANTAJ!$B$2))=10,' BORDRO HAZIRLIK'!AC25,IF(AS24>1,AS24,(0))) -> 0 | AS24: 0 | AT24: =IF((MONTH(PUANTAJ!$B$2))=11,' BORDRO HAZIRLIK'!AH25,IF(AU24>1,AU24,(0))) -> 0 | AU24: 0 | AV24: =IF((MONTH(PUANTAJ!$B$2))=11,' BORDRO HAZIRLIK'!AC25,IF(AW24>1,AW24,(0))) -> 0 | AW24: 0 | AX24: =IF((MONTH(PUANTAJ!$B$2))=12,' BORDRO HAZIRLIK'!AH25,IF(AY24>1,AY24,(0))) -> 0 | AY24: 0 | AZ24: =IF((MONTH(PUANTAJ!$B$2))=12,' BORDRO HAZIRLIK'!AC25,IF(BA24>1,BA24,(0))) -> 0 | BA24: 0 | BB24: 0 | BC24: =' BORDRO HAZIRLIK'!AH25 -> 0 | BD24: 0 | BE24: 0 | BF24: =' BORDRO HAZIRLIK'!AC25 -> 0 | BG24: 0
B25: =PUANTAJ!A28 ->  | C25: =PUANTAJ!B28 ->  | D25: =BD25+'PERSONEL BİLGİ GİRİŞİ'!AC26 -> 0 | E25: =BG25+'PERSONEL BİLGİ GİRİŞİ'!AL26 -> 0 | F25: =IF((MONTH(PUANTAJ!$B$2))=1,' BORDRO HAZIRLIK'!AH26,IF(G25>1,G25,(0))) -> 0 | G25: 0 | H25: =IF((MONTH(PUANTAJ!$B$2))=1,' BORDRO HAZIRLIK'!AC26,IF(I25>1,I25,(0))) -> 0 | I25: 0 | J25: =IF((MONTH(PUANTAJ!$B$2))=2,' BORDRO HAZIRLIK'!AH26,IF(K25>1,K25,(0))) -> 0 | K25: 0 | L25: =IF((MONTH(PUANTAJ!$B$2))=2,' BORDRO HAZIRLIK'!AC26,IF(M25>1,M25,(0))) -> 0 | M25: 0 | N25: =IF((MONTH(PUANTAJ!$B$2))=3,' BORDRO HAZIRLIK'!AH26,IF(O25>1,O25,(0))) -> 0 | O25: 0 | P25: =IF((MONTH(PUANTAJ!$B$2))=3,' BORDRO HAZIRLIK'!AC26,IF(Q25>1,Q25,(0))) -> 0 | Q25: 0 | R25: =IF((MONTH(PUANTAJ!$B$2))=4,' BORDRO HAZIRLIK'!AH26,IF(S25>1,S25,(0))) -> 0 | S25: 0 | T25: =IF((MONTH(PUANTAJ!$B$2))=4,' BORDRO HAZIRLIK'!AC26,IF(U25>1,U25,(0))) -> 0 | U25: 0 | V25: =IF((MONTH(PUANTAJ!$B$2))=5,' BORDRO HAZIRLIK'!AH26,IF(W25>1,W25,(0))) -> 0 | W25: 0 | X25: =IF((MONTH(PUANTAJ!$B$2))=5,' BORDRO HAZIRLIK'!AC26,IF(Y25>1,Y25,(0))) -> 0 | Y25: 0 | Z25: =IF((MONTH(PUANTAJ!$B$2))=6,' BORDRO HAZIRLIK'!AH26,IF(AA25>1,AA25,(0))) -> 0 | AA25: 0 | AB25: =IF((MONTH(PUANTAJ!$B$2))=6,' BORDRO HAZIRLIK'!AC26,IF(AC25>1,AC25,(0))) -> 0 | AC25: 0 | AD25: =IF((MONTH(PUANTAJ!$B$2))=7,' BORDRO HAZIRLIK'!AH26,IF(AE25>1,AE25,(0))) -> 0 | AE25: 0 | AF25: =IF((MONTH(PUANTAJ!$B$2))=7,' BORDRO HAZIRLIK'!AC26,IF(AG25>1,AG25,(0))) -> 0 | AG25: 0 | AH25: =IF((MONTH(PUANTAJ!$B$2))=8,' BORDRO HAZIRLIK'!AH26,IF(AI25>1,AI25,(0))) -> 0 | AI25: 0 | AJ25: =IF((MONTH(PUANTAJ!$B$2))=8,' BORDRO HAZIRLIK'!AC26,IF(AK25>1,AK25,(0))) -> 0 | AK25: 0 | AL25: =IF((MONTH(PUANTAJ!$B$2))=9,' BORDRO HAZIRLIK'!AH26,IF(AM25>1,AM25,(0))) -> 0 | AM25: 0 | AN25: =IF((MONTH(PUANTAJ!$B$2))=9,' BORDRO HAZIRLIK'!AC26,IF(AO25>1,AO25,(0))) -> 0 | AO25: 0 | AP25: =IF((MONTH(PUANTAJ!$B$2))=10,' BORDRO HAZIRLIK'!AH26,IF(AQ25>1,AQ25,(0))) -> 0 | AQ25: 0 | AR25: =IF((MONTH(PUANTAJ!$B$2))=10,' BORDRO HAZIRLIK'!AC26,IF(AS25>1,AS25,(0))) -> 0 | AS25: 0 | AT25: =IF((MONTH(PUANTAJ!$B$2))=11,' BORDRO HAZIRLIK'!AH26,IF(AU25>1,AU25,(0))) -> 0 | AU25: 0 | AV25: =IF((MONTH(PUANTAJ!$B$2))=11,' BORDRO HAZIRLIK'!AC26,IF(AW25>1,AW25,(0))) -> 0 | AW25: 0 | AX25: =IF((MONTH(PUANTAJ!$B$2))=12,' BORDRO HAZIRLIK'!AH26,IF(AY25>1,AY25,(0))) -> 0 | AY25: 0 | AZ25: =IF((MONTH(PUANTAJ!$B$2))=12,' BORDRO HAZIRLIK'!AC26,IF(BA25>1,BA25,(0))) -> 0 | BA25: 0 | BB25: 0 | BC25: =' BORDRO HAZIRLIK'!AH26 -> 0 | BD25: 0 | BE25: 0 | BF25: =' BORDRO HAZIRLIK'!AC26 -> 0 | BG25: 0
B26: =PUANTAJ!A29 ->  | C26: =PUANTAJ!B29 ->  | D26: =BD26+'PERSONEL BİLGİ GİRİŞİ'!AC27 -> 0 | E26: =BG26+'PERSONEL BİLGİ GİRİŞİ'!AL27 -> 0 | F26: =IF((MONTH(PUANTAJ!$B$2))=1,' BORDRO HAZIRLIK'!AH27,IF(G26>1,G26,(0))) -> 0 | G26: 0 | H26: =IF((MONTH(PUANTAJ!$B$2))=1,' BORDRO HAZIRLIK'!AC27,IF(I26>1,I26,(0))) -> 0 | I26: 0 | J26: =IF((MONTH(PUANTAJ!$B$2))=2,' BORDRO HAZIRLIK'!AH27,IF(K26>1,K26,(0))) -> 0 | K26: 0 | L26: =IF((MONTH(PUANTAJ!$B$2))=2,' BORDRO HAZIRLIK'!AC27,IF(M26>1,M26,(0))) -> 0 | M26: 0 | N26: =IF((MONTH(PUANTAJ!$B$2))=3,' BORDRO HAZIRLIK'!AH27,IF(O26>1,O26,(0))) -> 0 | O26: 0 | P26: =IF((MONTH(PUANTAJ!$B$2))=3,' BORDRO HAZIRLIK'!AC27,IF(Q26>1,Q26,(0))) -> 0 | Q26: 0 | R26: =IF((MONTH(PUANTAJ!$B$2))=4,' BORDRO HAZIRLIK'!AH27,IF(S26>1,S26,(0))) -> 0 | S26: 0 | T26: =IF((MONTH(PUANTAJ!$B$2))=4,' BORDRO HAZIRLIK'!AC27,IF(U26>1,U26,(0))) -> 0 | U26: 0 | V26: =IF((MONTH(PUANTAJ!$B$2))=5,' BORDRO HAZIRLIK'!AH27,IF(W26>1,W26,(0))) -> 0 | W26: 0 | X26: =IF((MONTH(PUANTAJ!$B$2))=5,' BORDRO HAZIRLIK'!AC27,IF(Y26>1,Y26,(0))) -> 0 | Y26: 0 | Z26: =IF((MONTH(PUANTAJ!$B$2))=6,' BORDRO HAZIRLIK'!AH27,IF(AA26>1,AA26,(0))) -> 0 | AA26: 0 | AB26: =IF((MONTH(PUANTAJ!$B$2))=6,' BORDRO HAZIRLIK'!AC27,IF(AC26>1,AC26,(0))) -> 0 | AC26: 0 | AD26: =IF((MONTH(PUANTAJ!$B$2))=7,' BORDRO HAZIRLIK'!AH27,IF(AE26>1,AE26,(0))) -> 0 | AE26: 0 | AF26: =IF((MONTH(PUANTAJ!$B$2))=7,' BORDRO HAZIRLIK'!AC27,IF(AG26>1,AG26,(0))) -> 0 | AG26: 0 | AH26: =IF((MONTH(PUANTAJ!$B$2))=8,' BORDRO HAZIRLIK'!AH27,IF(AI26>1,AI26,(0))) -> 0 | AI26: 0 | AJ26: =IF((MONTH(PUANTAJ!$B$2))=8,' BORDRO HAZIRLIK'!AC27,IF(AK26>1,AK26,(0))) -> 0 | AK26: 0 | AL26: =IF((MONTH(PUANTAJ!$B$2))=9,' BORDRO HAZIRLIK'!AH27,IF(AM26>1,AM26,(0))) -> 0 | AM26: 0 | AN26: =IF((MONTH(PUANTAJ!$B$2))=9,' BORDRO HAZIRLIK'!AC27,IF(AO26>1,AO26,(0))) -> 0 | AO26: 0 | AP26: =IF((MONTH(PUANTAJ!$B$2))=10,' BORDRO HAZIRLIK'!AH27,IF(AQ26>1,AQ26,(0))) -> 0 | AQ26: 0 | AR26: =IF((MONTH(PUANTAJ!$B$2))=10,' BORDRO HAZIRLIK'!AC27,IF(AS26>1,AS26,(0))) -> 0 | AS26: 0 | AT26: =IF((MONTH(PUANTAJ!$B$2))=11,' BORDRO HAZIRLIK'!AH27,IF(AU26>1,AU26,(0))) -> 0 | AU26: 0 | AV26: =IF((MONTH(PUANTAJ!$B$2))=11,' BORDRO HAZIRLIK'!AC27,IF(AW26>1,AW26,(0))) -> 0 | AW26: 0 | AX26: =IF((MONTH(PUANTAJ!$B$2))=12,' BORDRO HAZIRLIK'!AH27,IF(AY26>1,AY26,(0))) -> 0 | AY26: 0 | AZ26: =IF((MONTH(PUANTAJ!$B$2))=12,' BORDRO HAZIRLIK'!AC27,IF(BA26>1,BA26,(0))) -> 0 | BA26: 0 | BB26: 0 | BC26: =' BORDRO HAZIRLIK'!AH27 -> 0 | BD26: 0 | BE26: 0 | BF26: =' BORDRO HAZIRLIK'!AC27 -> 0 | BG26: 0
B27: =PUANTAJ!A30 ->  | C27: =PUANTAJ!B30 ->  | D27: =BD27+'PERSONEL BİLGİ GİRİŞİ'!AC28 -> 0 | E27: =BG27+'PERSONEL BİLGİ GİRİŞİ'!AL28 -> 0 | F27: =IF((MONTH(PUANTAJ!$B$2))=1,' BORDRO HAZIRLIK'!AH28,IF(G27>1,G27,(0))) -> 0 | G27: 0 | H27: =IF((MONTH(PUANTAJ!$B$2))=1,' BORDRO HAZIRLIK'!AC28,IF(I27>1,I27,(0))) -> 0 | I27: 0 | J27: =IF((MONTH(PUANTAJ!$B$2))=2,' BORDRO HAZIRLIK'!AH28,IF(K27>1,K27,(0))) -> 0 | K27: 0 | L27: =IF((MONTH(PUANTAJ!$B$2))=2,' BORDRO HAZIRLIK'!AC28,IF(M27>1,M27,(0))) -> 0 | M27: 0 | N27: =IF((MONTH(PUANTAJ!$B$2))=3,' BORDRO HAZIRLIK'!AH28,IF(O27>1,O27,(0))) -> 0 | O27: 0 | P27: =IF((MONTH(PUANTAJ!$B$2))=3,' BORDRO HAZIRLIK'!AC28,IF(Q27>1,Q27,(0))) -> 0 | Q27: 0 | R27: =IF((MONTH(PUANTAJ!$B$2))=4,' BORDRO HAZIRLIK'!AH28,IF(S27>1,S27,(0))) -> 0 | S27: 0 | T27: =IF((MONTH(PUANTAJ!$B$2))=4,' BORDRO HAZIRLIK'!AC28,IF(U27>1,U27,(0))) -> 0 | U27: 0 | V27: =IF((MONTH(PUANTAJ!$B$2))=5,' BORDRO HAZIRLIK'!AH28,IF(W27>1,W27,(0))) -> 0 | W27: 0 | X27: =IF((MONTH(PUANTAJ!$B$2))=5,' BORDRO HAZIRLIK'!AC28,IF(Y27>1,Y27,(0))) -> 0 | Y27: 0 | Z27: =IF((MONTH(PUANTAJ!$B$2))=6,' BORDRO HAZIRLIK'!AH28,IF(AA27>1,AA27,(0))) -> 0 | AA27: 0 | AB27: =IF((MONTH(PUANTAJ!$B$2))=6,' BORDRO HAZIRLIK'!AC28,IF(AC27>1,AC27,(0))) -> 0 | AC27: 0 | AD27: =IF((MONTH(PUANTAJ!$B$2))=7,' BORDRO HAZIRLIK'!AH28,IF(AE27>1,AE27,(0))) -> 0 | AE27: 0 | AF27: =IF((MONTH(PUANTAJ!$B$2))=7,' BORDRO HAZIRLIK'!AC28,IF(AG27>1,AG27,(0))) -> 0 | AG27: 0 | AH27: =IF((MONTH(PUANTAJ!$B$2))=8,' BORDRO HAZIRLIK'!AH28,IF(AI27>1,AI27,(0))) -> 0 | AI27: 0 | AJ27: =IF((MONTH(PUANTAJ!$B$2))=8,' BORDRO HAZIRLIK'!AC28,IF(AK27>1,AK27,(0))) -> 0 | AK27: 0 | AL27: =IF((MONTH(PUANTAJ!$B$2))=9,' BORDRO HAZIRLIK'!AH28,IF(AM27>1,AM27,(0))) -> 0 | AM27: 0 | AN27: =IF((MONTH(PUANTAJ!$B$2))=9,' BORDRO HAZIRLIK'!AC28,IF(AO27>1,AO27,(0))) -> 0 | AO27: 0 | AP27: =IF((MONTH(PUANTAJ!$B$2))=10,' BORDRO HAZIRLIK'!AH28,IF(AQ27>1,AQ27,(0))) -> 0 | AQ27: 0 | AR27: =IF((MONTH(PUANTAJ!$B$2))=10,' BORDRO HAZIRLIK'!AC28,IF(AS27>1,AS27,(0))) -> 0 | AS27: 0 | AT27: =IF((MONTH(PUANTAJ!$B$2))=11,' BORDRO HAZIRLIK'!AH28,IF(AU27>1,AU27,(0))) -> 0 | AU27: 0 | AV27: =IF((MONTH(PUANTAJ!$B$2))=11,' BORDRO HAZIRLIK'!AC28,IF(AW27>1,AW27,(0))) -> 0 | AW27: 0 | AX27: =IF((MONTH(PUANTAJ!$B$2))=12,' BORDRO HAZIRLIK'!AH28,IF(AY27>1,AY27,(0))) -> 0 | AY27: 0 | AZ27: =IF((MONTH(PUANTAJ!$B$2))=12,' BORDRO HAZIRLIK'!AC28,IF(BA27>1,BA27,(0))) -> 0 | BA27: 0 | BB27: 0 | BC27: =' BORDRO HAZIRLIK'!AH28 -> 0 | BD27: 0 | BE27: 0 | BF27: =' BORDRO HAZIRLIK'!AC28 -> 0 | BG27: 0
B28: =PUANTAJ!A31 ->  | C28: =PUANTAJ!B31 ->  | D28: =BD28+'PERSONEL BİLGİ GİRİŞİ'!AC29 -> 0 | E28: =BG28+'PERSONEL BİLGİ GİRİŞİ'!AL29 -> 0 | F28: =IF((MONTH(PUANTAJ!$B$2))=1,' BORDRO HAZIRLIK'!AH29,IF(G28>1,G28,(0))) -> 0 | G28: 0 | H28: =IF((MONTH(PUANTAJ!$B$2))=1,' BORDRO HAZIRLIK'!AC29,IF(I28>1,I28,(0))) -> 0 | I28: 0 | J28: =IF((MONTH(PUANTAJ!$B$2))=2,' BORDRO HAZIRLIK'!AH29,IF(K28>1,K28,(0))) -> 0 | K28: 0 | L28: =IF((MONTH(PUANTAJ!$B$2))=2,' BORDRO HAZIRLIK'!AC29,IF(M28>1,M28,(0))) -> 0 | M28: 0 | N28: =IF((MONTH(PUANTAJ!$B$2))=3,' BORDRO HAZIRLIK'!AH29,IF(O28>1,O28,(0))) -> 0 | O28: 0 | P28: =IF((MONTH(PUANTAJ!$B$2))=3,' BORDRO HAZIRLIK'!AC29,IF(Q28>1,Q28,(0))) -> 0 | Q28: 0 | R28: =IF((MONTH(PUANTAJ!$B$2))=4,' BORDRO HAZIRLIK'!AH29,IF(S28>1,S28,(0))) -> 0 | S28: 0 | T28: =IF((MONTH(PUANTAJ!$B$2))=4,' BORDRO HAZIRLIK'!AC29,IF(U28>1,U28,(0))) -> 0 | U28: 0 | V28: =IF((MONTH(PUANTAJ!$B$2))=5,' BORDRO HAZIRLIK'!AH29,IF(W28>1,W28,(0))) -> 0 | W28: 0 | X28: =IF((MONTH(PUANTAJ!$B$2))=5,' BORDRO HAZIRLIK'!AC29,IF(Y28>1,Y28,(0))) -> 0 | Y28: 0 | Z28: =IF((MONTH(PUANTAJ!$B$2))=6,' BORDRO HAZIRLIK'!AH29,IF(AA28>1,AA28,(0))) -> 0 | AA28: 0 | AB28: =IF((MONTH(PUANTAJ!$B$2))=6,' BORDRO HAZIRLIK'!AC29,IF(AC28>1,AC28,(0))) -> 0 | AC28: 0 | AD28: =IF((MONTH(PUANTAJ!$B$2))=7,' BORDRO HAZIRLIK'!AH29,IF(AE28>1,AE28,(0))) -> 0 | AE28: 0 | AF28: =IF((MONTH(PUANTAJ!$B$2))=7,' BORDRO HAZIRLIK'!AC29,IF(AG28>1,AG28,(0))) -> 0 | AG28: 0 | AH28: =IF((MONTH(PUANTAJ!$B$2))=8,' BORDRO HAZIRLIK'!AH29,IF(AI28>1,AI28,(0))) -> 0 | AI28: 0 | AJ28: =IF((MONTH(PUANTAJ!$B$2))=8,' BORDRO HAZIRLIK'!AC29,IF(AK28>1,AK28,(0))) -> 0 | AK28: 0 | AL28: =IF((MONTH(PUANTAJ!$B$2))=9,' BORDRO HAZIRLIK'!AH29,IF(AM28>1,AM28,(0))) -> 0 | AM28: 0 | AN28: =IF((MONTH(PUANTAJ!$B$2))=9,' BORDRO HAZIRLIK'!AC29,IF(AO28>1,AO28,(0))) -> 0 | AO28: 0 | AP28: =IF((MONTH(PUANTAJ!$B$2))=10,' BORDRO HAZIRLIK'!AH29,IF(AQ28>1,AQ28,(0))) -> 0 | AQ28: 0 | AR28: =IF((MONTH(PUANTAJ!$B$2))=10,' BORDRO HAZIRLIK'!AC29,IF(AS28>1,AS28,(0))) -> 0 | AS28: 0 | AT28: =IF((MONTH(PUANTAJ!$B$2))=11,' BORDRO HAZIRLIK'!AH29,IF(AU28>1,AU28,(0))) -> 0 | AU28: 0 | AV28: =IF((MONTH(PUANTAJ!$B$2))=11,' BORDRO HAZIRLIK'!AC29,IF(AW28>1,AW28,(0))) -> 0 | AW28: 0 | AX28: =IF((MONTH(PUANTAJ!$B$2))=12,' BORDRO HAZIRLIK'!AH29,IF(AY28>1,AY28,(0))) -> 0 | AY28: 0 | AZ28: =IF((MONTH(PUANTAJ!$B$2))=12,' BORDRO HAZIRLIK'!AC29,IF(BA28>1,BA28,(0))) -> 0 | BA28: 0 | BB28: 0 | BC28: =' BORDRO HAZIRLIK'!AH29 -> 0 | BD28: 0 | BE28: 0 | BF28: =' BORDRO HAZIRLIK'!AC29 -> 0 | BG28: 0
B29: =PUANTAJ!A32 ->  | C29: =PUANTAJ!B32 ->  | D29: =BD29+'PERSONEL BİLGİ GİRİŞİ'!AC30 -> 0 | E29: =BG29+'PERSONEL BİLGİ GİRİŞİ'!AL30 -> 0 | F29: =IF((MONTH(PUANTAJ!$B$2))=1,' BORDRO HAZIRLIK'!AH30,IF(G29>1,G29,(0))) -> 0 | G29: 0 | H29: =IF((MONTH(PUANTAJ!$B$2))=1,' BORDRO HAZIRLIK'!AC30,IF(I29>1,I29,(0))) -> 0 | I29: 0 | J29: =IF((MONTH(PUANTAJ!$B$2))=2,' BORDRO HAZIRLIK'!AH30,IF(K29>1,K29,(0))) -> 0 | K29: 0 | L29: =IF((MONTH(PUANTAJ!$B$2))=2,' BORDRO HAZIRLIK'!AC30,IF(M29>1,M29,(0))) -> 0 | M29: 0 | N29: =IF((MONTH(PUANTAJ!$B$2))=3,' BORDRO HAZIRLIK'!AH30,IF(O29>1,O29,(0))) -> 0 | O29: 0 | P29: =IF((MONTH(PUANTAJ!$B$2))=3,' BORDRO HAZIRLIK'!AC30,IF(Q29>1,Q29,(0))) -> 0 | Q29: 0 | R29: =IF((MONTH(PUANTAJ!$B$2))=4,' BORDRO HAZIRLIK'!AH30,IF(S29>1,S29,(0))) -> 0 | S29: 0 | T29: =IF((MONTH(PUANTAJ!$B$2))=4,' BORDRO HAZIRLIK'!AC30,IF(U29>1,U29,(0))) -> 0 | U29: 0 | V29: =IF((MONTH(PUANTAJ!$B$2))=5,' BORDRO HAZIRLIK'!AH30,IF(W29>1,W29,(0))) -> 0 | W29: 0 | X29: =IF((MONTH(PUANTAJ!$B$2))=5,' BORDRO HAZIRLIK'!AC30,IF(Y29>1,Y29,(0))) -> 0 | Y29: 0 | Z29: =IF((MONTH(PUANTAJ!$B$2))=6,' BORDRO HAZIRLIK'!AH30,IF(AA29>1,AA29,(0))) -> 0 | AA29: 0 | AB29: =IF((MONTH(PUANTAJ!$B$2))=6,' BORDRO HAZIRLIK'!AC30,IF(AC29>1,AC29,(0))) -> 0 | AC29: 0 | AD29: =IF((MONTH(PUANTAJ!$B$2))=7,' BORDRO HAZIRLIK'!AH30,IF(AE29>1,AE29,(0))) -> 0 | AE29: 0 | AF29: =IF((MONTH(PUANTAJ!$B$2))=7,' BORDRO HAZIRLIK'!AC30,IF(AG29>1,AG29,(0))) -> 0 | AG29: 0 | AH29: =IF((MONTH(PUANTAJ!$B$2))=8,' BORDRO HAZIRLIK'!AH30,IF(AI29>1,AI29,(0))) -> 0 | AI29: 0 | AJ29: =IF((MONTH(PUANTAJ!$B$2))=8,' BORDRO HAZIRLIK'!AC30,IF(AK29>1,AK29,(0))) -> 0 | AK29: 0 | AL29: =IF((MONTH(PUANTAJ!$B$2))=9,' BORDRO HAZIRLIK'!AH30,IF(AM29>1,AM29,(0))) -> 0 | AM29: 0 | AN29: =IF((MONTH(PUANTAJ!$B$2))=9,' BORDRO HAZIRLIK'!AC30,IF(AO29>1,AO29,(0))) -> 0 | AO29: 0 | AP29: =IF((MONTH(PUANTAJ!$B$2))=10,' BORDRO HAZIRLIK'!AH30,IF(AQ29>1,AQ29,(0))) -> 0 | AQ29: 0 | AR29: =IF((MONTH(PUANTAJ!$B$2))=10,' BORDRO HAZIRLIK'!AC30,IF(AS29>1,AS29,(0))) -> 0 | AS29: 0 | AT29: =IF((MONTH(PUANTAJ!$B$2))=11,' BORDRO HAZIRLIK'!AH30,IF(AU29>1,AU29,(0))) -> 0 | AU29: 0 | AV29: =IF((MONTH(PUANTAJ!$B$2))=11,' BORDRO HAZIRLIK'!AC30,IF(AW29>1,AW29,(0))) -> 0 | AW29: 0 | AX29: =IF((MONTH(PUANTAJ!$B$2))=12,' BORDRO HAZIRLIK'!AH30,IF(AY29>1,AY29,(0))) -> 0 | AY29: 0 | AZ29: =IF((MONTH(PUANTAJ!$B$2))=12,' BORDRO HAZIRLIK'!AC30,IF(BA29>1,BA29,(0))) -> 0 | BA29: 0 | BB29: 0 | BC29: =' BORDRO HAZIRLIK'!AH30 -> 0 | BD29: 0 | BE29: 0 | BF29: =' BORDRO HAZIRLIK'!AC30 -> 0 | BG29: 0
B30: =PUANTAJ!A33 ->  | C30: =PUANTAJ!B33 ->  | D30: =BD30+'PERSONEL BİLGİ GİRİŞİ'!AC31 -> 0 | E30: =BG30+'PERSONEL BİLGİ GİRİŞİ'!AL31 -> 0 | F30: =IF((MONTH(PUANTAJ!$B$2))=1,' BORDRO HAZIRLIK'!AH31,IF(G30>1,G30,(0))) -> 0 | G30: 0 | H30: =IF((MONTH(PUANTAJ!$B$2))=1,' BORDRO HAZIRLIK'!AC31,IF(I30>1,I30,(0))) -> 0 | I30: 0 | J30: =IF((MONTH(PUANTAJ!$B$2))=2,' BORDRO HAZIRLIK'!AH31,IF(K30>1,K30,(0))) -> 0 | K30: 0 | L30: =IF((MONTH(PUANTAJ!$B$2))=2,' BORDRO HAZIRLIK'!AC31,IF(M30>1,M30,(0))) -> 0 | M30: 0 | N30: =IF((MONTH(PUANTAJ!$B$2))=3,' BORDRO HAZIRLIK'!AH31,IF(O30>1,O30,(0))) -> 0 | O30: 0 | P30: =IF((MONTH(PUANTAJ!$B$2))=3,' BORDRO HAZIRLIK'!AC31,IF(Q30>1,Q30,(0))) -> 0 | Q30: 0 | R30: =IF((MONTH(PUANTAJ!$B$2))=4,' BORDRO HAZIRLIK'!AH31,IF(S30>1,S30,(0))) -> 0 | S30: 0 | T30: =IF((MONTH(PUANTAJ!$B$2))=4,' BORDRO HAZIRLIK'!AC31,IF(U30>1,U30,(0))) -> 0 | U30: 0 | V30: =IF((MONTH(PUANTAJ!$B$2))=5,' BORDRO HAZIRLIK'!AH31,IF(W30>1,W30,(0))) -> 0 | W30: 0 | X30: =IF((MONTH(PUANTAJ!$B$2))=5,' BORDRO HAZIRLIK'!AC31,IF(Y30>1,Y30,(0))) -> 0 | Y30: 0 | Z30: =IF((MONTH(PUANTAJ!$B$2))=6,' BORDRO HAZIRLIK'!AH31,IF(AA30>1,AA30,(0))) -> 0 | AA30: 0 | AB30: =IF((MONTH(PUANTAJ!$B$2))=6,' BORDRO HAZIRLIK'!AC31,IF(AC30>1,AC30,(0))) -> 0 | AC30: 0 | AD30: =IF((MONTH(PUANTAJ!$B$2))=7,' BORDRO HAZIRLIK'!AH31,IF(AE30>1,AE30,(0))) -> 0 | AE30: 0 | AF30: =IF((MONTH(PUANTAJ!$B$2))=7,' BORDRO HAZIRLIK'!AC31,IF(AG30>1,AG30,(0))) -> 0 | AG30: 0 | AH30: =IF((MONTH(PUANTAJ!$B$2))=8,' BORDRO HAZIRLIK'!AH31,IF(AI30>1,AI30,(0))) -> 0 | AI30: 0 | AJ30: =IF((MONTH(PUANTAJ!$B$2))=8,' BORDRO HAZIRLIK'!AC31,IF(AK30>1,AK30,(0))) -> 0 | AK30: 0 | AL30: =IF((MONTH(PUANTAJ!$B$2))=9,' BORDRO HAZIRLIK'!AH31,IF(AM30>1,AM30,(0))) -> 0 | AM30: 0 | AN30: =IF((MONTH(PUANTAJ!$B$2))=9,' BORDRO HAZIRLIK'!AC31,IF(AO30>1,AO30,(0))) -> 0 | AO30: 0 | AP30: =IF((MONTH(PUANTAJ!$B$2))=10,' BORDRO HAZIRLIK'!AH31,IF(AQ30>1,AQ30,(0))) -> 0 | AQ30: 0 | AR30: =IF((MONTH(PUANTAJ!$B$2))=10,' BORDRO HAZIRLIK'!AC31,IF(AS30>1,AS30,(0))) -> 0 | AS30: 0 | AT30: =IF((MONTH(PUANTAJ!$B$2))=11,' BORDRO HAZIRLIK'!AH31,IF(AU30>1,AU30,(0))) -> 0 | AU30: 0 | AV30: =IF((MONTH(PUANTAJ!$B$2))=11,' BORDRO HAZIRLIK'!AC31,IF(AW30>1,AW30,(0))) -> 0 | AW30: 0 | AX30: =IF((MONTH(PUANTAJ!$B$2))=12,' BORDRO HAZIRLIK'!AH31,IF(AY30>1,AY30,(0))) -> 0 | AY30: 0 | AZ30: =IF((MONTH(PUANTAJ!$B$2))=12,' BORDRO HAZIRLIK'!AC31,IF(BA30>1,BA30,(0))) -> 0 | BA30: 0 | BB30: 0 | BC30: =' BORDRO HAZIRLIK'!AH31 -> 0 | BD30: 0 | BE30: 0 | BF30: =' BORDRO HAZIRLIK'!AC31 -> 0 | BG30: 0
B31: =PUANTAJ!A34 ->  | C31: =PUANTAJ!B34 ->  | D31: =BD31+'PERSONEL BİLGİ GİRİŞİ'!AC32 -> 0 | E31: =BG31+'PERSONEL BİLGİ GİRİŞİ'!AL32 -> 0 | F31: =IF((MONTH(PUANTAJ!$B$2))=1,' BORDRO HAZIRLIK'!AH32,IF(G31>1,G31,(0))) -> 0 | G31: 0 | H31: =IF((MONTH(PUANTAJ!$B$2))=1,' BORDRO HAZIRLIK'!AC32,IF(I31>1,I31,(0))) -> 0 | I31: 0 | J31: =IF((MONTH(PUANTAJ!$B$2))=2,' BORDRO HAZIRLIK'!AH32,IF(K31>1,K31,(0))) -> 0 | K31: 0 | L31: =IF((MONTH(PUANTAJ!$B$2))=2,' BORDRO HAZIRLIK'!AC32,IF(M31>1,M31,(0))) -> 0 | M31: 0 | N31: =IF((MONTH(PUANTAJ!$B$2))=3,' BORDRO HAZIRLIK'!AH32,IF(O31>1,O31,(0))) -> 0 | O31: 0 | P31: =IF((MONTH(PUANTAJ!$B$2))=3,' BORDRO HAZIRLIK'!AC32,IF(Q31>1,Q31,(0))) -> 0 | Q31: 0 | R31: =IF((MONTH(PUANTAJ!$B$2))=4,' BORDRO HAZIRLIK'!AH32,IF(S31>1,S31,(0))) -> 0 | S31: 0 | T31: =IF((MONTH(PUANTAJ!$B$2))=4,' BORDRO HAZIRLIK'!AC32,IF(U31>1,U31,(0))) -> 0 | U31: 0 | V31: =IF((MONTH(PUANTAJ!$B$2))=5,' BORDRO HAZIRLIK'!AH32,IF(W31>1,W31,(0))) -> 0 | W31: 0 | X31: =IF((MONTH(PUANTAJ!$B$2))=5,' BORDRO HAZIRLIK'!AC32,IF(Y31>1,Y31,(0))) -> 0 | Y31: 0 | Z31: =IF((MONTH(PUANTAJ!$B$2))=6,' BORDRO HAZIRLIK'!AH32,IF(AA31>1,AA31,(0))) -> 0 | AA31: 0 | AB31: =IF((MONTH(PUANTAJ!$B$2))=6,' BORDRO HAZIRLIK'!AC32,IF(AC31>1,AC31,(0))) -> 0 | AC31: 0 | AD31: =IF((MONTH(PUANTAJ!$B$2))=7,' BORDRO HAZIRLIK'!AH32,IF(AE31>1,AE31,(0))) -> 0 | AE31: 0 | AF31: =IF((MONTH(PUANTAJ!$B$2))=7,' BORDRO HAZIRLIK'!AC32,IF(AG31>1,AG31,(0))) -> 0 | AG31: 0 | AH31: =IF((MONTH(PUANTAJ!$B$2))=8,' BORDRO HAZIRLIK'!AH32,IF(AI31>1,AI31,(0))) -> 0 | AI31: 0 | AJ31: =IF((MONTH(PUANTAJ!$B$2))=8,' BORDRO HAZIRLIK'!AC32,IF(AK31>1,AK31,(0))) -> 0 | AK31: 0 | AL31: =IF((MONTH(PUANTAJ!$B$2))=9,' BORDRO HAZIRLIK'!AH32,IF(AM31>1,AM31,(0))) -> 0 | AM31: 0 | AN31: =IF((MONTH(PUANTAJ!$B$2))=9,' BORDRO HAZIRLIK'!AC32,IF(AO31>1,AO31,(0))) -> 0 | AO31: 0 | AP31: =IF((MONTH(PUANTAJ!$B$2))=10,' BORDRO HAZIRLIK'!AH32,IF(AQ31>1,AQ31,(0))) -> 0 | AQ31: 0 | AR31: =IF((MONTH(PUANTAJ!$B$2))=10,' BORDRO HAZIRLIK'!AC32,IF(AS31>1,AS31,(0))) -> 0 | AS31: 0 | AT31: =IF((MONTH(PUANTAJ!$B$2))=11,' BORDRO HAZIRLIK'!AH32,IF(AU31>1,AU31,(0))) -> 0 | AU31: 0 | AV31: =IF((MONTH(PUANTAJ!$B$2))=11,' BORDRO HAZIRLIK'!AC32,IF(AW31>1,AW31,(0))) -> 0 | AW31: 0 | AX31: =IF((MONTH(PUANTAJ!$B$2))=12,' BORDRO HAZIRLIK'!AH32,IF(AY31>1,AY31,(0))) -> 0 | AY31: 0 | AZ31: =IF((MONTH(PUANTAJ!$B$2))=12,' BORDRO HAZIRLIK'!AC32,IF(BA31>1,BA31,(0))) -> 0 | BA31: 0 | BB31: 0 | BC31: =' BORDRO HAZIRLIK'!AH32 -> 0 | BD31: 0 | BE31: 0 | BF31: =' BORDRO HAZIRLIK'!AC32 -> 0 | BG31: 0
B32: =PUANTAJ!A35 ->  | C32: =PUANTAJ!B35 ->  | D32: =BD32+'PERSONEL BİLGİ GİRİŞİ'!AC33 -> 0 | E32: =BG32+'PERSONEL BİLGİ GİRİŞİ'!AL33 -> 0 | F32: =IF((MONTH(PUANTAJ!$B$2))=1,' BORDRO HAZIRLIK'!AH33,IF(G32>1,G32,(0))) -> 0 | G32: 0 | H32: =IF((MONTH(PUANTAJ!$B$2))=1,' BORDRO HAZIRLIK'!AC33,IF(I32>1,I32,(0))) -> 0 | I32: 0 | J32: =IF((MONTH(PUANTAJ!$B$2))=2,' BORDRO HAZIRLIK'!AH33,IF(K32>1,K32,(0))) -> 0 | K32: 0 | L32: =IF((MONTH(PUANTAJ!$B$2))=2,' BORDRO HAZIRLIK'!AC33,IF(M32>1,M32,(0))) -> 0 | M32: 0 | N32: =IF((MONTH(PUANTAJ!$B$2))=3,' BORDRO HAZIRLIK'!AH33,IF(O32>1,O32,(0))) -> 0 | O32: 0 | P32: =IF((MONTH(PUANTAJ!$B$2))=3,' BORDRO HAZIRLIK'!AC33,IF(Q32>1,Q32,(0))) -> 0 | Q32: 0 | R32: =IF((MONTH(PUANTAJ!$B$2))=4,' BORDRO HAZIRLIK'!AH33,IF(S32>1,S32,(0))) -> 0 | S32: 0 | T32: =IF((MONTH(PUANTAJ!$B$2))=4,' BORDRO HAZIRLIK'!AC33,IF(U32>1,U32,(0))) -> 0 | U32: 0 | V32: =IF((MONTH(PUANTAJ!$B$2))=5,' BORDRO HAZIRLIK'!AH33,IF(W32>1,W32,(0))) -> 0 | W32: 0 | X32: =IF((MONTH(PUANTAJ!$B$2))=5,' BORDRO HAZIRLIK'!AC33,IF(Y32>1,Y32,(0))) -> 0 | Y32: 0 | Z32: =IF((MONTH(PUANTAJ!$B$2))=6,' BORDRO HAZIRLIK'!AH33,IF(AA32>1,AA32,(0))) -> 0 | AA32: 0 | AB32: =IF((MONTH(PUANTAJ!$B$2))=6,' BORDRO HAZIRLIK'!AC33,IF(AC32>1,AC32,(0))) -> 0 | AC32: 0 | AD32: =IF((MONTH(PUANTAJ!$B$2))=7,' BORDRO HAZIRLIK'!AH33,IF(AE32>1,AE32,(0))) -> 0 | AE32: 0 | AF32: =IF((MONTH(PUANTAJ!$B$2))=7,' BORDRO HAZIRLIK'!AC33,IF(AG32>1,AG32,(0))) -> 0 | AG32: 0 | AH32: =IF((MONTH(PUANTAJ!$B$2))=8,' BORDRO HAZIRLIK'!AH33,IF(AI32>1,AI32,(0))) -> 0 | AI32: 0 | AJ32: =IF((MONTH(PUANTAJ!$B$2))=8,' BORDRO HAZIRLIK'!AC33,IF(AK32>1,AK32,(0))) -> 0 | AK32: 0 | AL32: =IF((MONTH(PUANTAJ!$B$2))=9,' BORDRO HAZIRLIK'!AH33,IF(AM32>1,AM32,(0))) -> 0 | AM32: 0 | AN32: =IF((MONTH(PUANTAJ!$B$2))=9,' BORDRO HAZIRLIK'!AC33,IF(AO32>1,AO32,(0))) -> 0 | AO32: 0 | AP32: =IF((MONTH(PUANTAJ!$B$2))=10,' BORDRO HAZIRLIK'!AH33,IF(AQ32>1,AQ32,(0))) -> 0 | AQ32: 0 | AR32: =IF((MONTH(PUANTAJ!$B$2))=10,' BORDRO HAZIRLIK'!AC33,IF(AS32>1,AS32,(0))) -> 0 | AS32: 0 | AT32: =IF((MONTH(PUANTAJ!$B$2))=11,' BORDRO HAZIRLIK'!AH33,IF(AU32>1,AU32,(0))) -> 0 | AU32: 0 | AV32: =IF((MONTH(PUANTAJ!$B$2))=11,' BORDRO HAZIRLIK'!AC33,IF(AW32>1,AW32,(0))) -> 0 | AW32: 0 | AX32: =IF((MONTH(PUANTAJ!$B$2))=12,' BORDRO HAZIRLIK'!AH33,IF(AY32>1,AY32,(0))) -> 0 | AY32: 0 | AZ32: =IF((MONTH(PUANTAJ!$B$2))=12,' BORDRO HAZIRLIK'!AC33,IF(BA32>1,BA32,(0))) -> 0 | BA32: 0 | BB32: 0 | BC32: =' BORDRO HAZIRLIK'!AH33 -> 0 | BD32: 0 | BE32: 0 | BF32: =' BORDRO HAZIRLIK'!AC33 -> 0 | BG32: 0
B33: =PUANTAJ!A36 ->  | C33: =PUANTAJ!B36 ->  | D33: =BD33+'PERSONEL BİLGİ GİRİŞİ'!AC34 -> 0 | E33: =BG33+'PERSONEL BİLGİ GİRİŞİ'!AL34 -> 0 | F33: =IF((MONTH(PUANTAJ!$B$2))=1,' BORDRO HAZIRLIK'!AH34,IF(G33>1,G33,(0))) -> 0 | G33: 0 | H33: =IF((MONTH(PUANTAJ!$B$2))=1,' BORDRO HAZIRLIK'!AC34,IF(I33>1,I33,(0))) -> 0 | I33: 0 | J33: =IF((MONTH(PUANTAJ!$B$2))=2,' BORDRO HAZIRLIK'!AH34,IF(K33>1,K33,(0))) -> 0 | K33: 0 | L33: =IF((MONTH(PUANTAJ!$B$2))=2,' BORDRO HAZIRLIK'!AC34,IF(M33>1,M33,(0))) -> 0 | M33: 0 | N33: =IF((MONTH(PUANTAJ!$B$2))=3,' BORDRO HAZIRLIK'!AH34,IF(O33>1,O33,(0))) -> 0 | O33: 0 | P33: =IF((MONTH(PUANTAJ!$B$2))=3,' BORDRO HAZIRLIK'!AC34,IF(Q33>1,Q33,(0))) -> 0 | Q33: 0 | R33: =IF((MONTH(PUANTAJ!$B$2))=4,' BORDRO HAZIRLIK'!AH34,IF(S33>1,S33,(0))) -> 0 | S33: 0 | T33: =IF((MONTH(PUANTAJ!$B$2))=4,' BORDRO HAZIRLIK'!AC34,IF(U33>1,U33,(0))) -> 0 | U33: 0 | V33: =IF((MONTH(PUANTAJ!$B$2))=5,' BORDRO HAZIRLIK'!AH34,IF(W33>1,W33,(0))) -> 0 | W33: 0 | X33: =IF((MONTH(PUANTAJ!$B$2))=5,' BORDRO HAZIRLIK'!AC34,IF(Y33>1,Y33,(0))) -> 0 | Y33: 0 | Z33: =IF((MONTH(PUANTAJ!$B$2))=6,' BORDRO HAZIRLIK'!AH34,IF(AA33>1,AA33,(0))) -> 0 | AA33: 0 | AB33: =IF((MONTH(PUANTAJ!$B$2))=6,' BORDRO HAZIRLIK'!AC34,IF(AC33>1,AC33,(0))) -> 0 | AC33: 0 | AD33: =IF((MONTH(PUANTAJ!$B$2))=7,' BORDRO HAZIRLIK'!AH34,IF(AE33>1,AE33,(0))) -> 0 | AE33: 0 | AF33: =IF((MONTH(PUANTAJ!$B$2))=7,' BORDRO HAZIRLIK'!AC34,IF(AG33>1,AG33,(0))) -> 0 | AG33: 0 | AH33: =IF((MONTH(PUANTAJ!$B$2))=8,' BORDRO HAZIRLIK'!AH34,IF(AI33>1,AI33,(0))) -> 0 | AI33: 0 | AJ33: =IF((MONTH(PUANTAJ!$B$2))=8,' BORDRO HAZIRLIK'!AC34,IF(AK33>1,AK33,(0))) -> 0 | AK33: 0 | AL33: =IF((MONTH(PUANTAJ!$B$2))=9,' BORDRO HAZIRLIK'!AH34,IF(AM33>1,AM33,(0))) -> 0 | AM33: 0 | AN33: =IF((MONTH(PUANTAJ!$B$2))=9,' BORDRO HAZIRLIK'!AC34,IF(AO33>1,AO33,(0))) -> 0 | AO33: 0 | AP33: =IF((MONTH(PUANTAJ!$B$2))=10,' BORDRO HAZIRLIK'!AH34,IF(AQ33>1,AQ33,(0))) -> 0 | AQ33: 0 | AR33: =IF((MONTH(PUANTAJ!$B$2))=10,' BORDRO HAZIRLIK'!AC34,IF(AS33>1,AS33,(0))) -> 0 | AS33: 0 | AT33: =IF((MONTH(PUANTAJ!$B$2))=11,' BORDRO HAZIRLIK'!AH34,IF(AU33>1,AU33,(0))) -> 0 | AU33: 0 | AV33: =IF((MONTH(PUANTAJ!$B$2))=11,' BORDRO HAZIRLIK'!AC34,IF(AW33>1,AW33,(0))) -> 0 | AW33: 0 | AX33: =IF((MONTH(PUANTAJ!$B$2))=12,' BORDRO HAZIRLIK'!AH34,IF(AY33>1,AY33,(0))) -> 0 | AY33: 0 | AZ33: =IF((MONTH(PUANTAJ!$B$2))=12,' BORDRO HAZIRLIK'!AC34,IF(BA33>1,BA33,(0))) -> 0 | BA33: 0 | BB33: 0 | BC33: =' BORDRO HAZIRLIK'!AH34 -> 0 | BD33: 0 | BE33: 0 | BF33: =' BORDRO HAZIRLIK'!AC34 -> 0 | BG33: 0
B34: =PUANTAJ!A37 ->  | C34: =PUANTAJ!B37 ->  | D34: =BD34+'PERSONEL BİLGİ GİRİŞİ'!AC35 -> 0 | E34: =BG34+'PERSONEL BİLGİ GİRİŞİ'!AL35 -> 0 | F34: =IF((MONTH(PUANTAJ!$B$2))=1,' BORDRO HAZIRLIK'!AH35,IF(G34>1,G34,(0))) -> 0 | G34: 0 | H34: =IF((MONTH(PUANTAJ!$B$2))=1,' BORDRO HAZIRLIK'!AC35,IF(I34>1,I34,(0))) -> 0 | I34: 0 | J34: =IF((MONTH(PUANTAJ!$B$2))=2,' BORDRO HAZIRLIK'!AH35,IF(K34>1,K34,(0))) -> 0 | K34: 0 | L34: =IF((MONTH(PUANTAJ!$B$2))=2,' BORDRO HAZIRLIK'!AC35,IF(M34>1,M34,(0))) -> 0 | M34: 0 | N34: =IF((MONTH(PUANTAJ!$B$2))=3,' BORDRO HAZIRLIK'!AH35,IF(O34>1,O34,(0))) -> 0 | O34: 0 | P34: =IF((MONTH(PUANTAJ!$B$2))=3,' BORDRO HAZIRLIK'!AC35,IF(Q34>1,Q34,(0))) -> 0 | Q34: 0 | R34: =IF((MONTH(PUANTAJ!$B$2))=4,' BORDRO HAZIRLIK'!AH35,IF(S34>1,S34,(0))) -> 0 | S34: 0 | T34: =IF((MONTH(PUANTAJ!$B$2))=4,' BORDRO HAZIRLIK'!AC35,IF(U34>1,U34,(0))) -> 0 | U34: 0 | V34: =IF((MONTH(PUANTAJ!$B$2))=5,' BORDRO HAZIRLIK'!AH35,IF(W34>1,W34,(0))) -> 0 | W34: 0 | X34: =IF((MONTH(PUANTAJ!$B$2))=5,' BORDRO HAZIRLIK'!AC35,IF(Y34>1,Y34,(0))) -> 0 | Y34: 0 | Z34: =IF((MONTH(PUANTAJ!$B$2))=6,' BORDRO HAZIRLIK'!AH35,IF(AA34>1,AA34,(0))) -> 0 | AA34: 0 | AB34: =IF((MONTH(PUANTAJ!$B$2))=6,' BORDRO HAZIRLIK'!AC35,IF(AC34>1,AC34,(0))) -> 0 | AC34: 0 | AD34: =IF((MONTH(PUANTAJ!$B$2))=7,' BORDRO HAZIRLIK'!AH35,IF(AE34>1,AE34,(0))) -> 0 | AE34: 0 | AF34: =IF((MONTH(PUANTAJ!$B$2))=7,' BORDRO HAZIRLIK'!AC35,IF(AG34>1,AG34,(0))) -> 0 | AG34: 0 | AH34: =IF((MONTH(PUANTAJ!$B$2))=8,' BORDRO HAZIRLIK'!AH35,IF(AI34>1,AI34,(0))) -> 0 | AI34: 0 | AJ34: =IF((MONTH(PUANTAJ!$B$2))=8,' BORDRO HAZIRLIK'!AC35,IF(AK34>1,AK34,(0))) -> 0 | AK34: 0 | AL34: =IF((MONTH(PUANTAJ!$B$2))=9,' BORDRO HAZIRLIK'!AH35,IF(AM34>1,AM34,(0))) -> 0 | AM34: 0 | AN34: =IF((MONTH(PUANTAJ!$B$2))=9,' BORDRO HAZIRLIK'!AC35,IF(AO34>1,AO34,(0))) -> 0 | AO34: 0 | AP34: =IF((MONTH(PUANTAJ!$B$2))=10,' BORDRO HAZIRLIK'!AH35,IF(AQ34>1,AQ34,(0))) -> 0 | AQ34: 0 | AR34: =IF((MONTH(PUANTAJ!$B$2))=10,' BORDRO HAZIRLIK'!AC35,IF(AS34>1,AS34,(0))) -> 0 | AS34: 0 | AT34: =IF((MONTH(PUANTAJ!$B$2))=11,' BORDRO HAZIRLIK'!AH35,IF(AU34>1,AU34,(0))) -> 0 | AU34: 0 | AV34: =IF((MONTH(PUANTAJ!$B$2))=11,' BORDRO HAZIRLIK'!AC35,IF(AW34>1,AW34,(0))) -> 0 | AW34: 0 | AX34: =IF((MONTH(PUANTAJ!$B$2))=12,' BORDRO HAZIRLIK'!AH35,IF(AY34>1,AY34,(0))) -> 0 | AY34: 0 | AZ34: =IF((MONTH(PUANTAJ!$B$2))=12,' BORDRO HAZIRLIK'!AC35,IF(BA34>1,BA34,(0))) -> 0 | BA34: 0 | BB34: 0 | BC34: =' BORDRO HAZIRLIK'!AH35 -> 0 | BD34: 0 | BE34: 0 | BF34: =' BORDRO HAZIRLIK'!AC35 -> 0 | BG34: 0
B35: =PUANTAJ!A38 ->  | C35: =PUANTAJ!B38 ->  | D35: =BD35+'PERSONEL BİLGİ GİRİŞİ'!AC36 -> 0 | E35: =BG35+'PERSONEL BİLGİ GİRİŞİ'!AL36 -> 0 | F35: =IF((MONTH(PUANTAJ!$B$2))=1,' BORDRO HAZIRLIK'!AH36,IF(G35>1,G35,(0))) -> 0 | G35: 0 | H35: =IF((MONTH(PUANTAJ!$B$2))=1,' BORDRO HAZIRLIK'!AC36,IF(I35>1,I35,(0))) -> 0 | I35: 0 | J35: =IF((MONTH(PUANTAJ!$B$2))=2,' BORDRO HAZIRLIK'!AH36,IF(K35>1,K35,(0))) -> 0 | K35: 0 | L35: =IF((MONTH(PUANTAJ!$B$2))=2,' BORDRO HAZIRLIK'!AC36,IF(M35>1,M35,(0))) -> 0 | M35: 0 | N35: =IF((MONTH(PUANTAJ!$B$2))=3,' BORDRO HAZIRLIK'!AH36,IF(O35>1,O35,(0))) -> 0 | O35: 0 | P35: =IF((MONTH(PUANTAJ!$B$2))=3,' BORDRO HAZIRLIK'!AC36,IF(Q35>1,Q35,(0))) -> 0 | Q35: 0 | R35: =IF((MONTH(PUANTAJ!$B$2))=4,' BORDRO HAZIRLIK'!AH36,IF(S35>1,S35,(0))) -> 0 | S35: 0 | T35: =IF((MONTH(PUANTAJ!$B$2))=4,' BORDRO HAZIRLIK'!AC36,IF(U35>1,U35,(0))) -> 0 | U35: 0 | V35: =IF((MONTH(PUANTAJ!$B$2))=5,' BORDRO HAZIRLIK'!AH36,IF(W35>1,W35,(0))) -> 0 | W35: 0 | X35: =IF((MONTH(PUANTAJ!$B$2))=5,' BORDRO HAZIRLIK'!AC36,IF(Y35>1,Y35,(0))) -> 0 | Y35: 0 | Z35: =IF((MONTH(PUANTAJ!$B$2))=6,' BORDRO HAZIRLIK'!AH36,IF(AA35>1,AA35,(0))) -> 0 | AA35: 0 | AB35: =IF((MONTH(PUANTAJ!$B$2))=6,' BORDRO HAZIRLIK'!AC36,IF(AC35>1,AC35,(0))) -> 0 | AC35: 0 | AD35: =IF((MONTH(PUANTAJ!$B$2))=7,' BORDRO HAZIRLIK'!AH36,IF(AE35>1,AE35,(0))) -> 0 | AE35: 0 | AF35: =IF((MONTH(PUANTAJ!$B$2))=7,' BORDRO HAZIRLIK'!AC36,IF(AG35>1,AG35,(0))) -> 0 | AG35: 0 | AH35: =IF((MONTH(PUANTAJ!$B$2))=8,' BORDRO HAZIRLIK'!AH36,IF(AI35>1,AI35,(0))) -> 0 | AI35: 0 | AJ35: =IF((MONTH(PUANTAJ!$B$2))=8,' BORDRO HAZIRLIK'!AC36,IF(AK35>1,AK35,(0))) -> 0 | AK35: 0 | AL35: =IF((MONTH(PUANTAJ!$B$2))=9,' BORDRO HAZIRLIK'!AH36,IF(AM35>1,AM35,(0))) -> 0 | AM35: 0 | AN35: =IF((MONTH(PUANTAJ!$B$2))=9,' BORDRO HAZIRLIK'!AC36,IF(AO35>1,AO35,(0))) -> 0 | AO35: 0 | AP35: =IF((MONTH(PUANTAJ!$B$2))=10,' BORDRO HAZIRLIK'!AH36,IF(AQ35>1,AQ35,(0))) -> 0 | AQ35: 0 | AR35: =IF((MONTH(PUANTAJ!$B$2))=10,' BORDRO HAZIRLIK'!AC36,IF(AS35>1,AS35,(0))) -> 0 | AS35: 0 | AT35: =IF((MONTH(PUANTAJ!$B$2))=11,' BORDRO HAZIRLIK'!AH36,IF(AU35>1,AU35,(0))) -> 0 | AU35: 0 | AV35: =IF((MONTH(PUANTAJ!$B$2))=11,' BORDRO HAZIRLIK'!AC36,IF(AW35>1,AW35,(0))) -> 0 | AW35: 0 | AX35: =IF((MONTH(PUANTAJ!$B$2))=12,' BORDRO HAZIRLIK'!AH36,IF(AY35>1,AY35,(0))) -> 0 | AY35: 0 | AZ35: =IF((MONTH(PUANTAJ!$B$2))=12,' BORDRO HAZIRLIK'!AC36,IF(BA35>1,BA35,(0))) -> 0 | BA35: 0 | BB35: 0 | BC35: =' BORDRO HAZIRLIK'!AH36 -> 0 | BD35: 0 | BE35: 0 | BF35: =' BORDRO HAZIRLIK'!AC36 -> 0 | BG35: 0
B36: =PUANTAJ!A39 ->  | C36: =PUANTAJ!B39 ->  | D36: =BD36+'PERSONEL BİLGİ GİRİŞİ'!AC37 -> 0 | E36: =BG36+'PERSONEL BİLGİ GİRİŞİ'!AL37 -> 0 | F36: =IF((MONTH(PUANTAJ!$B$2))=1,' BORDRO HAZIRLIK'!AH37,IF(G36>1,G36,(0))) -> 0 | G36: 0 | H36: =IF((MONTH(PUANTAJ!$B$2))=1,' BORDRO HAZIRLIK'!AC37,IF(I36>1,I36,(0))) -> 0 | I36: 0 | J36: =IF((MONTH(PUANTAJ!$B$2))=2,' BORDRO HAZIRLIK'!AH37,IF(K36>1,K36,(0))) -> 0 | K36: 0 | L36: =IF((MONTH(PUANTAJ!$B$2))=2,' BORDRO HAZIRLIK'!AC37,IF(M36>1,M36,(0))) -> 0 | M36: 0 | N36: =IF((MONTH(PUANTAJ!$B$2))=3,' BORDRO HAZIRLIK'!AH37,IF(O36>1,O36,(0))) -> 0 | O36: 0 | P36: =IF((MONTH(PUANTAJ!$B$2))=3,' BORDRO HAZIRLIK'!AC37,IF(Q36>1,Q36,(0))) -> 0 | Q36: 0 | R36: =IF((MONTH(PUANTAJ!$B$2))=4,' BORDRO HAZIRLIK'!AH37,IF(S36>1,S36,(0))) -> 0 | S36: 0 | T36: =IF((MONTH(PUANTAJ!$B$2))=4,' BORDRO HAZIRLIK'!AC37,IF(U36>1,U36,(0))) -> 0 | U36: 0 | V36: =IF((MONTH(PUANTAJ!$B$2))=5,' BORDRO HAZIRLIK'!AH37,IF(W36>1,W36,(0))) -> 0 | W36: 0 | X36: =IF((MONTH(PUANTAJ!$B$2))=5,' BORDRO HAZIRLIK'!AC37,IF(Y36>1,Y36,(0))) -> 0 | Y36: 0 | Z36: =IF((MONTH(PUANTAJ!$B$2))=6,' BORDRO HAZIRLIK'!AH37,IF(AA36>1,AA36,(0))) -> 0 | AA36: 0 | AB36: =IF((MONTH(PUANTAJ!$B$2))=6,' BORDRO HAZIRLIK'!AC37,IF(AC36>1,AC36,(0))) -> 0 | AC36: 0 | AD36: =IF((MONTH(PUANTAJ!$B$2))=7,' BORDRO HAZIRLIK'!AH37,IF(AE36>1,AE36,(0))) -> 0 | AE36: 0 | AF36: =IF((MONTH(PUANTAJ!$B$2))=7,' BORDRO HAZIRLIK'!AC37,IF(AG36>1,AG36,(0))) -> 0 | AG36: 0 | AH36: =IF((MONTH(PUANTAJ!$B$2))=8,' BORDRO HAZIRLIK'!AH37,IF(AI36>1,AI36,(0))) -> 0 | AI36: 0 | AJ36: =IF((MONTH(PUANTAJ!$B$2))=8,' BORDRO HAZIRLIK'!AC37,IF(AK36>1,AK36,(0))) -> 0 | AK36: 0 | AL36: =IF((MONTH(PUANTAJ!$B$2))=9,' BORDRO HAZIRLIK'!AH37,IF(AM36>1,AM36,(0))) -> 0 | AM36: 0 | AN36: =IF((MONTH(PUANTAJ!$B$2))=9,' BORDRO HAZIRLIK'!AC37,IF(AO36>1,AO36,(0))) -> 0 | AO36: 0 | AP36: =IF((MONTH(PUANTAJ!$B$2))=10,' BORDRO HAZIRLIK'!AH37,IF(AQ36>1,AQ36,(0))) -> 0 | AQ36: 0 | AR36: =IF((MONTH(PUANTAJ!$B$2))=10,' BORDRO HAZIRLIK'!AC37,IF(AS36>1,AS36,(0))) -> 0 | AS36: 0 | AT36: =IF((MONTH(PUANTAJ!$B$2))=11,' BORDRO HAZIRLIK'!AH37,IF(AU36>1,AU36,(0))) -> 0 | AU36: 0 | AV36: =IF((MONTH(PUANTAJ!$B$2))=11,' BORDRO HAZIRLIK'!AC37,IF(AW36>1,AW36,(0))) -> 0 | AW36: 0 | AX36: =IF((MONTH(PUANTAJ!$B$2))=12,' BORDRO HAZIRLIK'!AH37,IF(AY36>1,AY36,(0))) -> 0 | AY36: 0 | AZ36: =IF((MONTH(PUANTAJ!$B$2))=12,' BORDRO HAZIRLIK'!AC37,IF(BA36>1,BA36,(0))) -> 0 | BA36: 0 | BB36: 0 | BC36: =' BORDRO HAZIRLIK'!AH37 -> 0 | BD36: 0 | BE36: 0 | BF36: =' BORDRO HAZIRLIK'!AC37 -> 0 | BG36: 0
B37: =PUANTAJ!A40 ->  | C37: =PUANTAJ!B40 ->  | D37: =BD37+'PERSONEL BİLGİ GİRİŞİ'!AC38 -> 0 | E37: =BG37+'PERSONEL BİLGİ GİRİŞİ'!AL38 -> 0 | F37: =IF((MONTH(PUANTAJ!$B$2))=1,' BORDRO HAZIRLIK'!AH38,IF(G37>1,G37,(0))) -> 0 | G37: 0 | H37: =IF((MONTH(PUANTAJ!$B$2))=1,' BORDRO HAZIRLIK'!AC38,IF(I37>1,I37,(0))) -> 0 | I37: 0 | J37: =IF((MONTH(PUANTAJ!$B$2))=2,' BORDRO HAZIRLIK'!AH38,IF(K37>1,K37,(0))) -> 0 | K37: 0 | L37: =IF((MONTH(PUANTAJ!$B$2))=2,' BORDRO HAZIRLIK'!AC38,IF(M37>1,M37,(0))) -> 0 | M37: 0 | N37: =IF((MONTH(PUANTAJ!$B$2))=3,' BORDRO HAZIRLIK'!AH38,IF(O37>1,O37,(0))) -> 0 | O37: 0 | P37: =IF((MONTH(PUANTAJ!$B$2))=3,' BORDRO HAZIRLIK'!AC38,IF(Q37>1,Q37,(0))) -> 0 | Q37: 0 | R37: =IF((MONTH(PUANTAJ!$B$2))=4,' BORDRO HAZIRLIK'!AH38,IF(S37>1,S37,(0))) -> 0 | S37: 0 | T37: =IF((MONTH(PUANTAJ!$B$2))=4,' BORDRO HAZIRLIK'!AC38,IF(U37>1,U37,(0))) -> 0 | U37: 0 | V37: =IF((MONTH(PUANTAJ!$B$2))=5,' BORDRO HAZIRLIK'!AH38,IF(W37>1,W37,(0))) -> 0 | W37: 0 | X37: =IF((MONTH(PUANTAJ!$B$2))=5,' BORDRO HAZIRLIK'!AC38,IF(Y37>1,Y37,(0))) -> 0 | Y37: 0 | Z37: =IF((MONTH(PUANTAJ!$B$2))=6,' BORDRO HAZIRLIK'!AH38,IF(AA37>1,AA37,(0))) -> 0 | AA37: 0 | AB37: =IF((MONTH(PUANTAJ!$B$2))=6,' BORDRO HAZIRLIK'!AC38,IF(AC37>1,AC37,(0))) -> 0 | AC37: 0 | AD37: =IF((MONTH(PUANTAJ!$B$2))=7,' BORDRO HAZIRLIK'!AH38,IF(AE37>1,AE37,(0))) -> 0 | AE37: 0 | AF37: =IF((MONTH(PUANTAJ!$B$2))=7,' BORDRO HAZIRLIK'!AC38,IF(AG37>1,AG37,(0))) -> 0 | AG37: 0 | AH37: =IF((MONTH(PUANTAJ!$B$2))=8,' BORDRO HAZIRLIK'!AH38,IF(AI37>1,AI37,(0))) -> 0 | AI37: 0 | AJ37: =IF((MONTH(PUANTAJ!$B$2))=8,' BORDRO HAZIRLIK'!AC38,IF(AK37>1,AK37,(0))) -> 0 | AK37: 0 | AL37: =IF((MONTH(PUANTAJ!$B$2))=9,' BORDRO HAZIRLIK'!AH38,IF(AM37>1,AM37,(0))) -> 0 | AM37: 0 | AN37: =IF((MONTH(PUANTAJ!$B$2))=9,' BORDRO HAZIRLIK'!AC38,IF(AO37>1,AO37,(0))) -> 0 | AO37: 0 | AP37: =IF((MONTH(PUANTAJ!$B$2))=10,' BORDRO HAZIRLIK'!AH38,IF(AQ37>1,AQ37,(0))) -> 0 | AQ37: 0 | AR37: =IF((MONTH(PUANTAJ!$B$2))=10,' BORDRO HAZIRLIK'!AC38,IF(AS37>1,AS37,(0))) -> 0 | AS37: 0 | AT37: =IF((MONTH(PUANTAJ!$B$2))=11,' BORDRO HAZIRLIK'!AH38,IF(AU37>1,AU37,(0))) -> 0 | AU37: 0 | AV37: =IF((MONTH(PUANTAJ!$B$2))=11,' BORDRO HAZIRLIK'!AC38,IF(AW37>1,AW37,(0))) -> 0 | AW37: 0 | AX37: =IF((MONTH(PUANTAJ!$B$2))=12,' BORDRO HAZIRLIK'!AH38,IF(AY37>1,AY37,(0))) -> 0 | AY37: 0 | AZ37: =IF((MONTH(PUANTAJ!$B$2))=12,' BORDRO HAZIRLIK'!AC38,IF(BA37>1,BA37,(0))) -> 0 | BA37: 0 | BB37: 0 | BC37: =' BORDRO HAZIRLIK'!AH38 -> 0 | BD37: 0 | BE37: 0 | BF37: =' BORDRO HAZIRLIK'!AC38 -> 0 | BG37: 0
B38: =PUANTAJ!A41 ->  | C38: =PUANTAJ!B41 ->  | D38: =BD38+'PERSONEL BİLGİ GİRİŞİ'!AC39 -> 0 | E38: =BG38+'PERSONEL BİLGİ GİRİŞİ'!AL39 -> 0 | F38: =IF((MONTH(PUANTAJ!$B$2))=1,' BORDRO HAZIRLIK'!AH39,IF(G38>1,G38,(0))) -> 0 | G38: 0 | H38: =IF((MONTH(PUANTAJ!$B$2))=1,' BORDRO HAZIRLIK'!AC39,IF(I38>1,I38,(0))) -> 0 | I38: 0 | J38: =IF((MONTH(PUANTAJ!$B$2))=2,' BORDRO HAZIRLIK'!AH39,IF(K38>1,K38,(0))) -> 0 | K38: 0 | L38: =IF((MONTH(PUANTAJ!$B$2))=2,' BORDRO HAZIRLIK'!AC39,IF(M38>1,M38,(0))) -> 0 | M38: 0 | N38: =IF((MONTH(PUANTAJ!$B$2))=3,' BORDRO HAZIRLIK'!AH39,IF(O38>1,O38,(0))) -> 0 | O38: 0 | P38: =IF((MONTH(PUANTAJ!$B$2))=3,' BORDRO HAZIRLIK'!AC39,IF(Q38>1,Q38,(0))) -> 0 | Q38: 0 | R38: =IF((MONTH(PUANTAJ!$B$2))=4,' BORDRO HAZIRLIK'!AH39,IF(S38>1,S38,(0))) -> 0 | S38: 0 | T38: =IF((MONTH(PUANTAJ!$B$2))=4,' BORDRO HAZIRLIK'!AC39,IF(U38>1,U38,(0))) -> 0 | U38: 0 | V38: =IF((MONTH(PUANTAJ!$B$2))=5,' BORDRO HAZIRLIK'!AH39,IF(W38>1,W38,(0))) -> 0 | W38: 0 | X38: =IF((MONTH(PUANTAJ!$B$2))=5,' BORDRO HAZIRLIK'!AC39,IF(Y38>1,Y38,(0))) -> 0 | Y38: 0 | Z38: =IF((MONTH(PUANTAJ!$B$2))=6,' BORDRO HAZIRLIK'!AH39,IF(AA38>1,AA38,(0))) -> 0 | AA38: 0 | AB38: =IF((MONTH(PUANTAJ!$B$2))=6,' BORDRO HAZIRLIK'!AC39,IF(AC38>1,AC38,(0))) -> 0 | AC38: 0 | AD38: =IF((MONTH(PUANTAJ!$B$2))=7,' BORDRO HAZIRLIK'!AH39,IF(AE38>1,AE38,(0))) -> 0 | AE38: 0 | AF38: =IF((MONTH(PUANTAJ!$B$2))=7,' BORDRO HAZIRLIK'!AC39,IF(AG38>1,AG38,(0))) -> 0 | AG38: 0 | AH38: =IF((MONTH(PUANTAJ!$B$2))=8,' BORDRO HAZIRLIK'!AH39,IF(AI38>1,AI38,(0))) -> 0 | AI38: 0 | AJ38: =IF((MONTH(PUANTAJ!$B$2))=8,' BORDRO HAZIRLIK'!AC39,IF(AK38>1,AK38,(0))) -> 0 | AK38: 0 | AL38: =IF((MONTH(PUANTAJ!$B$2))=9,' BORDRO HAZIRLIK'!AH39,IF(AM38>1,AM38,(0))) -> 0 | AM38: 0 | AN38: =IF((MONTH(PUANTAJ!$B$2))=9,' BORDRO HAZIRLIK'!AC39,IF(AO38>1,AO38,(0))) -> 0 | AO38: 0 | AP38: =IF((MONTH(PUANTAJ!$B$2))=10,' BORDRO HAZIRLIK'!AH39,IF(AQ38>1,AQ38,(0))) -> 0 | AQ38: 0 | AR38: =IF((MONTH(PUANTAJ!$B$2))=10,' BORDRO HAZIRLIK'!AC39,IF(AS38>1,AS38,(0))) -> 0 | AS38: 0 | AT38: =IF((MONTH(PUANTAJ!$B$2))=11,' BORDRO HAZIRLIK'!AH39,IF(AU38>1,AU38,(0))) -> 0 | AU38: 0 | AV38: =IF((MONTH(PUANTAJ!$B$2))=11,' BORDRO HAZIRLIK'!AC39,IF(AW38>1,AW38,(0))) -> 0 | AW38: 0 | AX38: =IF((MONTH(PUANTAJ!$B$2))=12,' BORDRO HAZIRLIK'!AH39,IF(AY38>1,AY38,(0))) -> 0 | AY38: 0 | AZ38: =IF((MONTH(PUANTAJ!$B$2))=12,' BORDRO HAZIRLIK'!AC39,IF(BA38>1,BA38,(0))) -> 0 | BA38: 0 | BB38: 0 | BC38: =' BORDRO HAZIRLIK'!AH39 -> 0 | BD38: 0 | BE38: 0 | BF38: =' BORDRO HAZIRLIK'!AC39 -> 0 | BG38: 0
B39: =PUANTAJ!A42 ->  | C39: =PUANTAJ!B42 ->  | D39: =BD39+'PERSONEL BİLGİ GİRİŞİ'!AC40 -> 0 | E39: =BG39+'PERSONEL BİLGİ GİRİŞİ'!AL40 -> 0 | F39: =IF((MONTH(PUANTAJ!$B$2))=1,' BORDRO HAZIRLIK'!AH40,IF(G39>1,G39,(0))) -> 0 | G39: 0 | H39: =IF((MONTH(PUANTAJ!$B$2))=1,' BORDRO HAZIRLIK'!AC40,IF(I39>1,I39,(0))) -> 0 | I39: 0 | J39: =IF((MONTH(PUANTAJ!$B$2))=2,' BORDRO HAZIRLIK'!AH40,IF(K39>1,K39,(0))) -> 0 | K39: 0 | L39: =IF((MONTH(PUANTAJ!$B$2))=2,' BORDRO HAZIRLIK'!AC40,IF(M39>1,M39,(0))) -> 0 | M39: 0 | N39: =IF((MONTH(PUANTAJ!$B$2))=3,' BORDRO HAZIRLIK'!AH40,IF(O39>1,O39,(0))) -> 0 | O39: 0 | P39: =IF((MONTH(PUANTAJ!$B$2))=3,' BORDRO HAZIRLIK'!AC40,IF(Q39>1,Q39,(0))) -> 0 | Q39: 0 | R39: =IF((MONTH(PUANTAJ!$B$2))=4,' BORDRO HAZIRLIK'!AH40,IF(S39>1,S39,(0))) -> 0 | S39: 0 | T39: =IF((MONTH(PUANTAJ!$B$2))=4,' BORDRO HAZIRLIK'!AC40,IF(U39>1,U39,(0))) -> 0 | U39: 0 | V39: =IF((MONTH(PUANTAJ!$B$2))=5,' BORDRO HAZIRLIK'!AH40,IF(W39>1,W39,(0))) -> 0 | W39: 0 | X39: =IF((MONTH(PUANTAJ!$B$2))=5,' BORDRO HAZIRLIK'!AC40,IF(Y39>1,Y39,(0))) -> 0 | Y39: 0 | Z39: =IF((MONTH(PUANTAJ!$B$2))=6,' BORDRO HAZIRLIK'!AH40,IF(AA39>1,AA39,(0))) -> 0 | AA39: 0 | AB39: =IF((MONTH(PUANTAJ!$B$2))=6,' BORDRO HAZIRLIK'!AC40,IF(AC39>1,AC39,(0))) -> 0 | AC39: 0 | AD39: =IF((MONTH(PUANTAJ!$B$2))=7,' BORDRO HAZIRLIK'!AH40,IF(AE39>1,AE39,(0))) -> 0 | AE39: 0 | AF39: =IF((MONTH(PUANTAJ!$B$2))=7,' BORDRO HAZIRLIK'!AC40,IF(AG39>1,AG39,(0))) -> 0 | AG39: 0 | AH39: =IF((MONTH(PUANTAJ!$B$2))=8,' BORDRO HAZIRLIK'!AH40,IF(AI39>1,AI39,(0))) -> 0 | AI39: 0 | AJ39: =IF((MONTH(PUANTAJ!$B$2))=8,' BORDRO HAZIRLIK'!AC40,IF(AK39>1,AK39,(0))) -> 0 | AK39: 0 | AL39: =IF((MONTH(PUANTAJ!$B$2))=9,' BORDRO HAZIRLIK'!AH40,IF(AM39>1,AM39,(0))) -> 0 | AM39: 0 | AN39: =IF((MONTH(PUANTAJ!$B$2))=9,' BORDRO HAZIRLIK'!AC40,IF(AO39>1,AO39,(0))) -> 0 | AO39: 0 | AP39: =IF((MONTH(PUANTAJ!$B$2))=10,' BORDRO HAZIRLIK'!AH40,IF(AQ39>1,AQ39,(0))) -> 0 | AQ39: 0 | AR39: =IF((MONTH(PUANTAJ!$B$2))=10,' BORDRO HAZIRLIK'!AC40,IF(AS39>1,AS39,(0))) -> 0 | AS39: 0 | AT39: =IF((MONTH(PUANTAJ!$B$2))=11,' BORDRO HAZIRLIK'!AH40,IF(AU39>1,AU39,(0))) -> 0 | AU39: 0 | AV39: =IF((MONTH(PUANTAJ!$B$2))=11,' BORDRO HAZIRLIK'!AC40,IF(AW39>1,AW39,(0))) -> 0 | AW39: 0 | AX39: =IF((MONTH(PUANTAJ!$B$2))=12,' BORDRO HAZIRLIK'!AH40,IF(AY39>1,AY39,(0))) -> 0 | AY39: 0 | AZ39: =IF((MONTH(PUANTAJ!$B$2))=12,' BORDRO HAZIRLIK'!AC40,IF(BA39>1,BA39,(0))) -> 0 | BA39: 0 | BB39: 0 | BC39: =' BORDRO HAZIRLIK'!AH40 -> 0 | BD39: 0 | BE39: 0 | BF39: =' BORDRO HAZIRLIK'!AC40 -> 0 | BG39: 0
B40: =PUANTAJ!A43 ->  | C40: =PUANTAJ!B43 ->  | D40: =BD40+'PERSONEL BİLGİ GİRİŞİ'!AC41 -> 0 | E40: =BG40+'PERSONEL BİLGİ GİRİŞİ'!AL41 -> 0 | F40: =IF((MONTH(PUANTAJ!$B$2))=1,' BORDRO HAZIRLIK'!AH41,IF(G40>1,G40,(0))) -> 0 | G40: 0 | H40: =IF((MONTH(PUANTAJ!$B$2))=1,' BORDRO HAZIRLIK'!AC41,IF(I40>1,I40,(0))) -> 0 | I40: 0 | J40: =IF((MONTH(PUANTAJ!$B$2))=2,' BORDRO HAZIRLIK'!AH41,IF(K40>1,K40,(0))) -> 0 | K40: 0 | L40: =IF((MONTH(PUANTAJ!$B$2))=2,' BORDRO HAZIRLIK'!AC41,IF(M40>1,M40,(0))) -> 0 | M40: 0 | N40: =IF((MONTH(PUANTAJ!$B$2))=3,' BORDRO HAZIRLIK'!AH41,IF(O40>1,O40,(0))) -> 0 | O40: 0 | P40: =IF((MONTH(PUANTAJ!$B$2))=3,' BORDRO HAZIRLIK'!AC41,IF(Q40>1,Q40,(0))) -> 0 | Q40: 0 | R40: =IF((MONTH(PUANTAJ!$B$2))=4,' BORDRO HAZIRLIK'!AH41,IF(S40>1,S40,(0))) -> 0 | S40: 0 | T40: =IF((MONTH(PUANTAJ!$B$2))=4,' BORDRO HAZIRLIK'!AC41,IF(U40>1,U40,(0))) -> 0 | U40: 0 | V40: =IF((MONTH(PUANTAJ!$B$2))=5,' BORDRO HAZIRLIK'!AH41,IF(W40>1,W40,(0))) -> 0 | W40: 0 | X40: =IF((MONTH(PUANTAJ!$B$2))=5,' BORDRO HAZIRLIK'!AC41,IF(Y40>1,Y40,(0))) -> 0 | Y40: 0 | Z40: =IF((MONTH(PUANTAJ!$B$2))=6,' BORDRO HAZIRLIK'!AH41,IF(AA40>1,AA40,(0))) -> 0 | AA40: 0 | AB40: =IF((MONTH(PUANTAJ!$B$2))=6,' BORDRO HAZIRLIK'!AC41,IF(AC40>1,AC40,(0))) -> 0 | AC40: 0 | AD40: =IF((MONTH(PUANTAJ!$B$2))=7,' BORDRO HAZIRLIK'!AH41,IF(AE40>1,AE40,(0))) -> 0 | AE40: 0 | AF40: =IF((MONTH(PUANTAJ!$B$2))=7,' BORDRO HAZIRLIK'!AC41,IF(AG40>1,AG40,(0))) -> 0 | AG40: 0 | AH40: =IF((MONTH(PUANTAJ!$B$2))=8,' BORDRO HAZIRLIK'!AH41,IF(AI40>1,AI40,(0))) -> 0 | AI40: 0 | AJ40: =IF((MONTH(PUANTAJ!$B$2))=8,' BORDRO HAZIRLIK'!AC41,IF(AK40>1,AK40,(0))) -> 0 | AK40: 0 | AL40: =IF((MONTH(PUANTAJ!$B$2))=9,' BORDRO HAZIRLIK'!AH41,IF(AM40>1,AM40,(0))) -> 0 | AM40: 0 | AN40: =IF((MONTH(PUANTAJ!$B$2))=9,' BORDRO HAZIRLIK'!AC41,IF(AO40>1,AO40,(0))) -> 0 | AO40: 0 | AP40: =IF((MONTH(PUANTAJ!$B$2))=10,' BORDRO HAZIRLIK'!AH41,IF(AQ40>1,AQ40,(0))) -> 0 | AQ40: 0 | AR40: =IF((MONTH(PUANTAJ!$B$2))=10,' BORDRO HAZIRLIK'!AC41,IF(AS40>1,AS40,(0))) -> 0 | AS40: 0 | AT40: =IF((MONTH(PUANTAJ!$B$2))=11,' BORDRO HAZIRLIK'!AH41,IF(AU40>1,AU40,(0))) -> 0 | AU40: 0 | AV40: =IF((MONTH(PUANTAJ!$B$2))=11,' BORDRO HAZIRLIK'!AC41,IF(AW40>1,AW40,(0))) -> 0 | AW40: 0 | AX40: =IF((MONTH(PUANTAJ!$B$2))=12,' BORDRO HAZIRLIK'!AH41,IF(AY40>1,AY40,(0))) -> 0 | AY40: 0 | AZ40: =IF((MONTH(PUANTAJ!$B$2))=12,' BORDRO HAZIRLIK'!AC41,IF(BA40>1,BA40,(0))) -> 0 | BA40: 0 | BB40: 0 | BC40: =' BORDRO HAZIRLIK'!AH41 -> 0 | BD40: 0 | BE40: 0 | BF40: =' BORDRO HAZIRLIK'!AC41 -> 0 | BG40: 0
B41: =PUANTAJ!A44 ->  | C41: =PUANTAJ!B44 ->  | D41: =BD41+'PERSONEL BİLGİ GİRİŞİ'!AC42 -> 0 | E41: =BG41+'PERSONEL BİLGİ GİRİŞİ'!AL42 -> 0 | F41: =IF((MONTH(PUANTAJ!$B$2))=1,' BORDRO HAZIRLIK'!AH42,IF(G41>1,G41,(0))) -> 0 | G41: 0 | H41: =IF((MONTH(PUANTAJ!$B$2))=1,' BORDRO HAZIRLIK'!AC42,IF(I41>1,I41,(0))) -> 0 | I41: 0 | J41: =IF((MONTH(PUANTAJ!$B$2))=2,' BORDRO HAZIRLIK'!AH42,IF(K41>1,K41,(0))) -> 0 | K41: 0 | L41: =IF((MONTH(PUANTAJ!$B$2))=2,' BORDRO HAZIRLIK'!AC42,IF(M41>1,M41,(0))) -> 0 | M41: 0 | N41: =IF((MONTH(PUANTAJ!$B$2))=3,' BORDRO HAZIRLIK'!AH42,IF(O41>1,O41,(0))) -> 0 | O41: 0 | P41: =IF((MONTH(PUANTAJ!$B$2))=3,' BORDRO HAZIRLIK'!AC42,IF(Q41>1,Q41,(0))) -> 0 | Q41: 0 | R41: =IF((MONTH(PUANTAJ!$B$2))=4,' BORDRO HAZIRLIK'!AH42,IF(S41>1,S41,(0))) -> 0 | S41: 0 | T41: =IF((MONTH(PUANTAJ!$B$2))=4,' BORDRO HAZIRLIK'!AC42,IF(U41>1,U41,(0))) -> 0 | U41: 0 | V41: =IF((MONTH(PUANTAJ!$B$2))=5,' BORDRO HAZIRLIK'!AH42,IF(W41>1,W41,(0))) -> 0 | W41: 0 | X41: =IF((MONTH(PUANTAJ!$B$2))=5,' BORDRO HAZIRLIK'!AC42,IF(Y41>1,Y41,(0))) -> 0 | Y41: 0 | Z41: =IF((MONTH(PUANTAJ!$B$2))=6,' BORDRO HAZIRLIK'!AH42,IF(AA41>1,AA41,(0))) -> 0 | AA41: 0 | AB41: =IF((MONTH(PUANTAJ!$B$2))=6,' BORDRO HAZIRLIK'!AC42,IF(AC41>1,AC41,(0))) -> 0 | AC41: 0 | AD41: =IF((MONTH(PUANTAJ!$B$2))=7,' BORDRO HAZIRLIK'!AH42,IF(AE41>1,AE41,(0))) -> 0 | AE41: 0 | AF41: =IF((MONTH(PUANTAJ!$B$2))=7,' BORDRO HAZIRLIK'!AC42,IF(AG41>1,AG41,(0))) -> 0 | AG41: 0 | AH41: =IF((MONTH(PUANTAJ!$B$2))=8,' BORDRO HAZIRLIK'!AH42,IF(AI41>1,AI41,(0))) -> 0 | AI41: 0 | AJ41: =IF((MONTH(PUANTAJ!$B$2))=8,' BORDRO HAZIRLIK'!AC42,IF(AK41>1,AK41,(0))) -> 0 | AK41: 0 | AL41: =IF((MONTH(PUANTAJ!$B$2))=9,' BORDRO HAZIRLIK'!AH42,IF(AM41>1,AM41,(0))) -> 0 | AM41: 0 | AN41: =IF((MONTH(PUANTAJ!$B$2))=9,' BORDRO HAZIRLIK'!AC42,IF(AO41>1,AO41,(0))) -> 0 | AO41: 0 | AP41: =IF((MONTH(PUANTAJ!$B$2))=10,' BORDRO HAZIRLIK'!AH42,IF(AQ41>1,AQ41,(0))) -> 0 | AQ41: 0 | AR41: =IF((MONTH(PUANTAJ!$B$2))=10,' BORDRO HAZIRLIK'!AC42,IF(AS41>1,AS41,(0))) -> 0 | AS41: 0 | AT41: =IF((MONTH(PUANTAJ!$B$2))=11,' BORDRO HAZIRLIK'!AH42,IF(AU41>1,AU41,(0))) -> 0 | AU41: 0 | AV41: =IF((MONTH(PUANTAJ!$B$2))=11,' BORDRO HAZIRLIK'!AC42,IF(AW41>1,AW41,(0))) -> 0 | AW41: 0 | AX41: =IF((MONTH(PUANTAJ!$B$2))=12,' BORDRO HAZIRLIK'!AH42,IF(AY41>1,AY41,(0))) -> 0 | AY41: 0 | AZ41: =IF((MONTH(PUANTAJ!$B$2))=12,' BORDRO HAZIRLIK'!AC42,IF(BA41>1,BA41,(0))) -> 0 | BA41: 0 | BB41: 0 | BC41: =' BORDRO HAZIRLIK'!AH42 -> 0 | BD41: 0 | BE41: 0 | BF41: =' BORDRO HAZIRLIK'!AC42 -> 0 | BG41: 0
B42: =PUANTAJ!A45 ->  | C42: =PUANTAJ!B45 ->  | D42: =BD42+'PERSONEL BİLGİ GİRİŞİ'!AC43 -> 0 | E42: =BG42+'PERSONEL BİLGİ GİRİŞİ'!AL43 -> 0 | F42: =IF((MONTH(PUANTAJ!$B$2))=1,' BORDRO HAZIRLIK'!AH43,IF(G42>1,G42,(0))) -> 0 | G42: 0 | H42: =IF((MONTH(PUANTAJ!$B$2))=1,' BORDRO HAZIRLIK'!AC43,IF(I42>1,I42,(0))) -> 0 | I42: 0 | J42: =IF((MONTH(PUANTAJ!$B$2))=2,' BORDRO HAZIRLIK'!AH43,IF(K42>1,K42,(0))) -> 0 | K42: 0 | L42: =IF((MONTH(PUANTAJ!$B$2))=2,' BORDRO HAZIRLIK'!AC43,IF(M42>1,M42,(0))) -> 0 | M42: 0 | N42: =IF((MONTH(PUANTAJ!$B$2))=3,' BORDRO HAZIRLIK'!AH43,IF(O42>1,O42,(0))) -> 0 | O42: 0 | P42: =IF((MONTH(PUANTAJ!$B$2))=3,' BORDRO HAZIRLIK'!AC43,IF(Q42>1,Q42,(0))) -> 0 | Q42: 0 | R42: =IF((MONTH(PUANTAJ!$B$2))=4,' BORDRO HAZIRLIK'!AH43,IF(S42>1,S42,(0))) -> 0 | S42: 0 | T42: =IF((MONTH(PUANTAJ!$B$2))=4,' BORDRO HAZIRLIK'!AC43,IF(U42>1,U42,(0))) -> 0 | U42: 0 | V42: =IF((MONTH(PUANTAJ!$B$2))=5,' BORDRO HAZIRLIK'!AH43,IF(W42>1,W42,(0))) -> 0 | W42: 0 | X42: =IF((MONTH(PUANTAJ!$B$2))=5,' BORDRO HAZIRLIK'!AC43,IF(Y42>1,Y42,(0))) -> 0 | Y42: 0 | Z42: =IF((MONTH(PUANTAJ!$B$2))=6,' BORDRO HAZIRLIK'!AH43,IF(AA42>1,AA42,(0))) -> 0 | AA42: 0 | AB42: =IF((MONTH(PUANTAJ!$B$2))=6,' BORDRO HAZIRLIK'!AC43,IF(AC42>1,AC42,(0))) -> 0 | AC42: 0 | AD42: =IF((MONTH(PUANTAJ!$B$2))=7,' BORDRO HAZIRLIK'!AH43,IF(AE42>1,AE42,(0))) -> 0 | AE42: 0 | AF42: =IF((MONTH(PUANTAJ!$B$2))=7,' BORDRO HAZIRLIK'!AC43,IF(AG42>1,AG42,(0))) -> 0 | AG42: 0 | AH42: =IF((MONTH(PUANTAJ!$B$2))=8,' BORDRO HAZIRLIK'!AH43,IF(AI42>1,AI42,(0))) -> 0 | AI42: 0 | AJ42: =IF((MONTH(PUANTAJ!$B$2))=8,' BORDRO HAZIRLIK'!AC43,IF(AK42>1,AK42,(0))) -> 0 | AK42: 0 | AL42: =IF((MONTH(PUANTAJ!$B$2))=9,' BORDRO HAZIRLIK'!AH43,IF(AM42>1,AM42,(0))) -> 0 | AM42: 0 | AN42: =IF((MONTH(PUANTAJ!$B$2))=9,' BORDRO HAZIRLIK'!AC43,IF(AO42>1,AO42,(0))) -> 0 | AO42: 0 | AP42: =IF((MONTH(PUANTAJ!$B$2))=10,' BORDRO HAZIRLIK'!AH43,IF(AQ42>1,AQ42,(0))) -> 0 | AQ42: 0 | AR42: =IF((MONTH(PUANTAJ!$B$2))=10,' BORDRO HAZIRLIK'!AC43,IF(AS42>1,AS42,(0))) -> 0 | AS42: 0 | AT42: =IF((MONTH(PUANTAJ!$B$2))=11,' BORDRO HAZIRLIK'!AH43,IF(AU42>1,AU42,(0))) -> 0 | AU42: 0 | AV42: =IF((MONTH(PUANTAJ!$B$2))=11,' BORDRO HAZIRLIK'!AC43,IF(AW42>1,AW42,(0))) -> 0 | AW42: 0 | AX42: =IF((MONTH(PUANTAJ!$B$2))=12,' BORDRO HAZIRLIK'!AH43,IF(AY42>1,AY42,(0))) -> 0 | AY42: 0 | AZ42: =IF((MONTH(PUANTAJ!$B$2))=12,' BORDRO HAZIRLIK'!AC43,IF(BA42>1,BA42,(0))) -> 0 | BA42: 0 | BB42: 0 | BC42: =' BORDRO HAZIRLIK'!AH43 -> 0 | BD42: 0 | BE42: 0 | BF42: =' BORDRO HAZIRLIK'!AC43 -> 0 | BG42: 0
B43: =PUANTAJ!A46 ->  | C43: =PUANTAJ!B46 ->  | D43: =BD43+'PERSONEL BİLGİ GİRİŞİ'!AC44 -> 0 | E43: =BG43+'PERSONEL BİLGİ GİRİŞİ'!AL44 -> 0 | F43: =IF((MONTH(PUANTAJ!$B$2))=1,' BORDRO HAZIRLIK'!AH44,IF(G43>1,G43,(0))) -> 0 | G43: 0 | H43: =IF((MONTH(PUANTAJ!$B$2))=1,' BORDRO HAZIRLIK'!AC44,IF(I43>1,I43,(0))) -> 0 | I43: 0 | J43: =IF((MONTH(PUANTAJ!$B$2))=2,' BORDRO HAZIRLIK'!AH44,IF(K43>1,K43,(0))) -> 0 | K43: 0 | L43: =IF((MONTH(PUANTAJ!$B$2))=2,' BORDRO HAZIRLIK'!AC44,IF(M43>1,M43,(0))) -> 0 | M43: 0 | N43: =IF((MONTH(PUANTAJ!$B$2))=3,' BORDRO HAZIRLIK'!AH44,IF(O43>1,O43,(0))) -> 0 | O43: 0 | P43: =IF((MONTH(PUANTAJ!$B$2))=3,' BORDRO HAZIRLIK'!AC44,IF(Q43>1,Q43,(0))) -> 0 | Q43: 0 | R43: =IF((MONTH(PUANTAJ!$B$2))=4,' BORDRO HAZIRLIK'!AH44,IF(S43>1,S43,(0))) -> 0 | S43: 0 | T43: =IF((MONTH(PUANTAJ!$B$2))=4,' BORDRO HAZIRLIK'!AC44,IF(U43>1,U43,(0))) -> 0 | U43: 0 | V43: =IF((MONTH(PUANTAJ!$B$2))=5,' BORDRO HAZIRLIK'!AH44,IF(W43>1,W43,(0))) -> 0 | W43: 0 | X43: =IF((MONTH(PUANTAJ!$B$2))=5,' BORDRO HAZIRLIK'!AC44,IF(Y43>1,Y43,(0))) -> 0 | Y43: 0 | Z43: =IF((MONTH(PUANTAJ!$B$2))=6,' BORDRO HAZIRLIK'!AH44,IF(AA43>1,AA43,(0))) -> 0 | AA43: 0 | AB43: =IF((MONTH(PUANTAJ!$B$2))=6,' BORDRO HAZIRLIK'!AC44,IF(AC43>1,AC43,(0))) -> 0 | AC43: 0 | AD43: =IF((MONTH(PUANTAJ!$B$2))=7,' BORDRO HAZIRLIK'!AH44,IF(AE43>1,AE43,(0))) -> 0 | AE43: 0 | AF43: =IF((MONTH(PUANTAJ!$B$2))=7,' BORDRO HAZIRLIK'!AC44,IF(AG43>1,AG43,(0))) -> 0 | AG43: 0 | AH43: =IF((MONTH(PUANTAJ!$B$2))=8,' BORDRO HAZIRLIK'!AH44,IF(AI43>1,AI43,(0))) -> 0 | AI43: 0 | AJ43: =IF((MONTH(PUANTAJ!$B$2))=8,' BORDRO HAZIRLIK'!AC44,IF(AK43>1,AK43,(0))) -> 0 | AK43: 0 | AL43: =IF((MONTH(PUANTAJ!$B$2))=9,' BORDRO HAZIRLIK'!AH44,IF(AM43>1,AM43,(0))) -> 0 | AM43: 0 | AN43: =IF((MONTH(PUANTAJ!$B$2))=9,' BORDRO HAZIRLIK'!AC44,IF(AO43>1,AO43,(0))) -> 0 | AO43: 0 | AP43: =IF((MONTH(PUANTAJ!$B$2))=10,' BORDRO HAZIRLIK'!AH44,IF(AQ43>1,AQ43,(0))) -> 0 | AQ43: 0 | AR43: =IF((MONTH(PUANTAJ!$B$2))=10,' BORDRO HAZIRLIK'!AC44,IF(AS43>1,AS43,(0))) -> 0 | AS43: 0 | AT43: =IF((MONTH(PUANTAJ!$B$2))=11,' BORDRO HAZIRLIK'!AH44,IF(AU43>1,AU43,(0))) -> 0 | AU43: 0 | AV43: =IF((MONTH(PUANTAJ!$B$2))=11,' BORDRO HAZIRLIK'!AC44,IF(AW43>1,AW43,(0))) -> 0 | AW43: 0 | AX43: =IF((MONTH(PUANTAJ!$B$2))=12,' BORDRO HAZIRLIK'!AH44,IF(AY43>1,AY43,(0))) -> 0 | AY43: 0 | AZ43: =IF((MONTH(PUANTAJ!$B$2))=12,' BORDRO HAZIRLIK'!AC44,IF(BA43>1,BA43,(0))) -> 0 | BA43: 0 | BB43: 0 | BC43: =' BORDRO HAZIRLIK'!AH44 -> 0 | BD43: 0 | BE43: 0 | BF43: =' BORDRO HAZIRLIK'!AC44 -> 0 | BG43: 0
B44: =PUANTAJ!A47 ->  | C44: =PUANTAJ!B47 ->  | D44: =BD44+'PERSONEL BİLGİ GİRİŞİ'!AC45 -> 0 | E44: =BG44+'PERSONEL BİLGİ GİRİŞİ'!AL45 -> 0 | F44: =IF((MONTH(PUANTAJ!$B$2))=1,' BORDRO HAZIRLIK'!AH45,IF(G44>1,G44,(0))) -> 0 | G44: 0 | H44: =IF((MONTH(PUANTAJ!$B$2))=1,' BORDRO HAZIRLIK'!AC45,IF(I44>1,I44,(0))) -> 0 | I44: 0 | J44: =IF((MONTH(PUANTAJ!$B$2))=2,' BORDRO HAZIRLIK'!AH45,IF(K44>1,K44,(0))) -> 0 | K44: 0 | L44: =IF((MONTH(PUANTAJ!$B$2))=2,' BORDRO HAZIRLIK'!AC45,IF(M44>1,M44,(0))) -> 0 | M44: 0 | N44: =IF((MONTH(PUANTAJ!$B$2))=3,' BORDRO HAZIRLIK'!AH45,IF(O44>1,O44,(0))) -> 0 | O44: 0 | P44: =IF((MONTH(PUANTAJ!$B$2))=3,' BORDRO HAZIRLIK'!AC45,IF(Q44>1,Q44,(0))) -> 0 | Q44: 0 | R44: =IF((MONTH(PUANTAJ!$B$2))=4,' BORDRO HAZIRLIK'!AH45,IF(S44>1,S44,(0))) -> 0 | S44: 0 | T44: =IF((MONTH(PUANTAJ!$B$2))=4,' BORDRO HAZIRLIK'!AC45,IF(U44>1,U44,(0))) -> 0 | U44: 0 | V44: =IF((MONTH(PUANTAJ!$B$2))=5,' BORDRO HAZIRLIK'!AH45,IF(W44>1,W44,(0))) -> 0 | W44: 0 | X44: =IF((MONTH(PUANTAJ!$B$2))=5,' BORDRO HAZIRLIK'!AC45,IF(Y44>1,Y44,(0))) -> 0 | Y44: 0 | Z44: =IF((MONTH(PUANTAJ!$B$2))=6,' BORDRO HAZIRLIK'!AH45,IF(AA44>1,AA44,(0))) -> 0 | AA44: 0 | AB44: =IF((MONTH(PUANTAJ!$B$2))=6,' BORDRO HAZIRLIK'!AC45,IF(AC44>1,AC44,(0))) -> 0 | AC44: 0 | AD44: =IF((MONTH(PUANTAJ!$B$2))=7,' BORDRO HAZIRLIK'!AH45,IF(AE44>1,AE44,(0))) -> 0 | AE44: 0 | AF44: =IF((MONTH(PUANTAJ!$B$2))=7,' BORDRO HAZIRLIK'!AC45,IF(AG44>1,AG44,(0))) -> 0 | AG44: 0 | AH44: =IF((MONTH(PUANTAJ!$B$2))=8,' BORDRO HAZIRLIK'!AH45,IF(AI44>1,AI44,(0))) -> 0 | AI44: 0 | AJ44: =IF((MONTH(PUANTAJ!$B$2))=8,' BORDRO HAZIRLIK'!AC45,IF(AK44>1,AK44,(0))) -> 0 | AK44: 0 | AL44: =IF((MONTH(PUANTAJ!$B$2))=9,' BORDRO HAZIRLIK'!AH45,IF(AM44>1,AM44,(0))) -> 0 | AM44: 0 | AN44: =IF((MONTH(PUANTAJ!$B$2))=9,' BORDRO HAZIRLIK'!AC45,IF(AO44>1,AO44,(0))) -> 0 | AO44: 0 | AP44: =IF((MONTH(PUANTAJ!$B$2))=10,' BORDRO HAZIRLIK'!AH45,IF(AQ44>1,AQ44,(0))) -> 0 | AQ44: 0 | AR44: =IF((MONTH(PUANTAJ!$B$2))=10,' BORDRO HAZIRLIK'!AC45,IF(AS44>1,AS44,(0))) -> 0 | AS44: 0 | AT44: =IF((MONTH(PUANTAJ!$B$2))=11,' BORDRO HAZIRLIK'!AH45,IF(AU44>1,AU44,(0))) -> 0 | AU44: 0 | AV44: =IF((MONTH(PUANTAJ!$B$2))=11,' BORDRO HAZIRLIK'!AC45,IF(AW44>1,AW44,(0))) -> 0 | AW44: 0 | AX44: =IF((MONTH(PUANTAJ!$B$2))=12,' BORDRO HAZIRLIK'!AH45,IF(AY44>1,AY44,(0))) -> 0 | AY44: 0 | AZ44: =IF((MONTH(PUANTAJ!$B$2))=12,' BORDRO HAZIRLIK'!AC45,IF(BA44>1,BA44,(0))) -> 0 | BA44: 0 | BB44: 0 | BC44: =' BORDRO HAZIRLIK'!AH45 -> 0 | BD44: 0 | BE44: 0 | BF44: =' BORDRO HAZIRLIK'!AC45 -> 0 | BG44: 0
B45: =PUANTAJ!A48 ->  | C45: =PUANTAJ!B48 ->  | D45: =BD45+'PERSONEL BİLGİ GİRİŞİ'!AC46 -> 0 | E45: =BG45+'PERSONEL BİLGİ GİRİŞİ'!AL46 -> 0 | F45: =IF((MONTH(PUANTAJ!$B$2))=1,' BORDRO HAZIRLIK'!AH46,IF(G45>1,G45,(0))) -> 0 | G45: 0 | H45: =IF((MONTH(PUANTAJ!$B$2))=1,' BORDRO HAZIRLIK'!AC46,IF(I45>1,I45,(0))) -> 0 | I45: 0 | J45: =IF((MONTH(PUANTAJ!$B$2))=2,' BORDRO HAZIRLIK'!AH46,IF(K45>1,K45,(0))) -> 0 | K45: 0 | L45: =IF((MONTH(PUANTAJ!$B$2))=2,' BORDRO HAZIRLIK'!AC46,IF(M45>1,M45,(0))) -> 0 | M45: 0 | N45: =IF((MONTH(PUANTAJ!$B$2))=3,' BORDRO HAZIRLIK'!AH46,IF(O45>1,O45,(0))) -> 0 | O45: 0 | P45: =IF((MONTH(PUANTAJ!$B$2))=3,' BORDRO HAZIRLIK'!AC46,IF(Q45>1,Q45,(0))) -> 0 | Q45: 0 | R45: =IF((MONTH(PUANTAJ!$B$2))=4,' BORDRO HAZIRLIK'!AH46,IF(S45>1,S45,(0))) -> 0 | S45: 0 | T45: =IF((MONTH(PUANTAJ!$B$2))=4,' BORDRO HAZIRLIK'!AC46,IF(U45>1,U45,(0))) -> 0 | U45: 0 | V45: =IF((MONTH(PUANTAJ!$B$2))=5,' BORDRO HAZIRLIK'!AH46,IF(W45>1,W45,(0))) -> 0 | W45: 0 | X45: =IF((MONTH(PUANTAJ!$B$2))=5,' BORDRO HAZIRLIK'!AC46,IF(Y45>1,Y45,(0))) -> 0 | Y45: 0 | Z45: =IF((MONTH(PUANTAJ!$B$2))=6,' BORDRO HAZIRLIK'!AH46,IF(AA45>1,AA45,(0))) -> 0 | AA45: 0 | AB45: =IF((MONTH(PUANTAJ!$B$2))=6,' BORDRO HAZIRLIK'!AC46,IF(AC45>1,AC45,(0))) -> 0 | AC45: 0 | AD45: =IF((MONTH(PUANTAJ!$B$2))=7,' BORDRO HAZIRLIK'!AH46,IF(AE45>1,AE45,(0))) -> 0 | AE45: 0 | AF45: =IF((MONTH(PUANTAJ!$B$2))=7,' BORDRO HAZIRLIK'!AC46,IF(AG45>1,AG45,(0))) -> 0 | AG45: 0 | AH45: =IF((MONTH(PUANTAJ!$B$2))=8,' BORDRO HAZIRLIK'!AH46,IF(AI45>1,AI45,(0))) -> 0 | AI45: 0 | AJ45: =IF((MONTH(PUANTAJ!$B$2))=8,' BORDRO HAZIRLIK'!AC46,IF(AK45>1,AK45,(0))) -> 0 | AK45: 0 | AL45: =IF((MONTH(PUANTAJ!$B$2))=9,' BORDRO HAZIRLIK'!AH46,IF(AM45>1,AM45,(0))) -> 0 | AM45: 0 | AN45: =IF((MONTH(PUANTAJ!$B$2))=9,' BORDRO HAZIRLIK'!AC46,IF(AO45>1,AO45,(0))) -> 0 | AO45: 0 | AP45: =IF((MONTH(PUANTAJ!$B$2))=10,' BORDRO HAZIRLIK'!AH46,IF(AQ45>1,AQ45,(0))) -> 0 | AQ45: 0 | AR45: =IF((MONTH(PUANTAJ!$B$2))=10,' BORDRO HAZIRLIK'!AC46,IF(AS45>1,AS45,(0))) -> 0 | AS45: 0 | AT45: =IF((MONTH(PUANTAJ!$B$2))=11,' BORDRO HAZIRLIK'!AH46,IF(AU45>1,AU45,(0))) -> 0 | AU45: 0 | AV45: =IF((MONTH(PUANTAJ!$B$2))=11,' BORDRO HAZIRLIK'!AC46,IF(AW45>1,AW45,(0))) -> 0 | AW45: 0 | AX45: =IF((MONTH(PUANTAJ!$B$2))=12,' BORDRO HAZIRLIK'!AH46,IF(AY45>1,AY45,(0))) -> 0 | AY45: 0 | AZ45: =IF((MONTH(PUANTAJ!$B$2))=12,' BORDRO HAZIRLIK'!AC46,IF(BA45>1,BA45,(0))) -> 0 | BA45: 0 | BB45: 0 | BC45: =' BORDRO HAZIRLIK'!AH46 -> 0 | BD45: 0 | BE45: 0 | BF45: =' BORDRO HAZIRLIK'!AC46 -> 0 | BG45: 0
B46: =PUANTAJ!A49 ->  | C46: =PUANTAJ!B49 ->  | D46: =BD46+'PERSONEL BİLGİ GİRİŞİ'!AC47 -> 0 | E46: =BG46+'PERSONEL BİLGİ GİRİŞİ'!AL47 -> 0 | F46: =IF((MONTH(PUANTAJ!$B$2))=1,' BORDRO HAZIRLIK'!AH47,IF(G46>1,G46,(0))) -> 0 | G46: 0 | H46: =IF((MONTH(PUANTAJ!$B$2))=1,' BORDRO HAZIRLIK'!AC47,IF(I46>1,I46,(0))) -> 0 | I46: 0 | J46: =IF((MONTH(PUANTAJ!$B$2))=2,' BORDRO HAZIRLIK'!AH47,IF(K46>1,K46,(0))) -> 0 | K46: 0 | L46: =IF((MONTH(PUANTAJ!$B$2))=2,' BORDRO HAZIRLIK'!AC47,IF(M46>1,M46,(0))) -> 0 | M46: 0 | N46: =IF((MONTH(PUANTAJ!$B$2))=3,' BORDRO HAZIRLIK'!AH47,IF(O46>1,O46,(0))) -> 0 | O46: 0 | P46: =IF((MONTH(PUANTAJ!$B$2))=3,' BORDRO HAZIRLIK'!AC47,IF(Q46>1,Q46,(0))) -> 0 | Q46: 0 | R46: =IF((MONTH(PUANTAJ!$B$2))=4,' BORDRO HAZIRLIK'!AH47,IF(S46>1,S46,(0))) -> 0 | S46: 0 | T46: =IF((MONTH(PUANTAJ!$B$2))=4,' BORDRO HAZIRLIK'!AC47,IF(U46>1,U46,(0))) -> 0 | U46: 0 | V46: =IF((MONTH(PUANTAJ!$B$2))=5,' BORDRO HAZIRLIK'!AH47,IF(W46>1,W46,(0))) -> 0 | W46: 0 | X46: =IF((MONTH(PUANTAJ!$B$2))=5,' BORDRO HAZIRLIK'!AC47,IF(Y46>1,Y46,(0))) -> 0 | Y46: 0 | Z46: =IF((MONTH(PUANTAJ!$B$2))=6,' BORDRO HAZIRLIK'!AH47,IF(AA46>1,AA46,(0))) -> 0 | AA46: 0 | AB46: =IF((MONTH(PUANTAJ!$B$2))=6,' BORDRO HAZIRLIK'!AC47,IF(AC46>1,AC46,(0))) -> 0 | AC46: 0 | AD46: =IF((MONTH(PUANTAJ!$B$2))=7,' BORDRO HAZIRLIK'!AH47,IF(AE46>1,AE46,(0))) -> 0 | AE46: 0 | AF46: =IF((MONTH(PUANTAJ!$B$2))=7,' BORDRO HAZIRLIK'!AC47,IF(AG46>1,AG46,(0))) -> 0 | AG46: 0 | AH46: =IF((MONTH(PUANTAJ!$B$2))=8,' BORDRO HAZIRLIK'!AH47,IF(AI46>1,AI46,(0))) -> 0 | AI46: 0 | AJ46: =IF((MONTH(PUANTAJ!$B$2))=8,' BORDRO HAZIRLIK'!AC47,IF(AK46>1,AK46,(0))) -> 0 | AK46: 0 | AL46: =IF((MONTH(PUANTAJ!$B$2))=9,' BORDRO HAZIRLIK'!AH47,IF(AM46>1,AM46,(0))) -> 0 | AM46: 0 | AN46: =IF((MONTH(PUANTAJ!$B$2))=9,' BORDRO HAZIRLIK'!AC47,IF(AO46>1,AO46,(0))) -> 0 | AO46: 0 | AP46: =IF((MONTH(PUANTAJ!$B$2))=10,' BORDRO HAZIRLIK'!AH47,IF(AQ46>1,AQ46,(0))) -> 0 | AQ46: 0 | AR46: =IF((MONTH(PUANTAJ!$B$2))=10,' BORDRO HAZIRLIK'!AC47,IF(AS46>1,AS46,(0))) -> 0 | AS46: 0 | AT46: =IF((MONTH(PUANTAJ!$B$2))=11,' BORDRO HAZIRLIK'!AH47,IF(AU46>1,AU46,(0))) -> 0 | AU46: 0 | AV46: =IF((MONTH(PUANTAJ!$B$2))=11,' BORDRO HAZIRLIK'!AC47,IF(AW46>1,AW46,(0))) -> 0 | AW46: 0 | AX46: =IF((MONTH(PUANTAJ!$B$2))=12,' BORDRO HAZIRLIK'!AH47,IF(AY46>1,AY46,(0))) -> 0 | AY46: 0 | AZ46: =IF((MONTH(PUANTAJ!$B$2))=12,' BORDRO HAZIRLIK'!AC47,IF(BA46>1,BA46,(0))) -> 0 | BA46: 0 | BB46: 0 | BC46: =' BORDRO HAZIRLIK'!AH47 -> 0 | BD46: 0 | BE46: 0 | BF46: =' BORDRO HAZIRLIK'!AC47 -> 0 | BG46: 0
B47: =PUANTAJ!A50 ->  | C47: =PUANTAJ!B50 ->  | D47: =BD47+'PERSONEL BİLGİ GİRİŞİ'!AC48 -> 0 | E47: =BG47+'PERSONEL BİLGİ GİRİŞİ'!AL48 -> 0 | F47: =IF((MONTH(PUANTAJ!$B$2))=1,' BORDRO HAZIRLIK'!AH48,IF(G47>1,G47,(0))) -> 0 | G47: 0 | H47: =IF((MONTH(PUANTAJ!$B$2))=1,' BORDRO HAZIRLIK'!AC48,IF(I47>1,I47,(0))) -> 0 | I47: 0 | J47: =IF((MONTH(PUANTAJ!$B$2))=2,' BORDRO HAZIRLIK'!AH48,IF(K47>1,K47,(0))) -> 0 | K47: 0 | L47: =IF((MONTH(PUANTAJ!$B$2))=2,' BORDRO HAZIRLIK'!AC48,IF(M47>1,M47,(0))) -> 0 | M47: 0 | N47: =IF((MONTH(PUANTAJ!$B$2))=3,' BORDRO HAZIRLIK'!AH48,IF(O47>1,O47,(0))) -> 0 | O47: 0 | P47: =IF((MONTH(PUANTAJ!$B$2))=3,' BORDRO HAZIRLIK'!AC48,IF(Q47>1,Q47,(0))) -> 0 | Q47: 0 | R47: =IF((MONTH(PUANTAJ!$B$2))=4,' BORDRO HAZIRLIK'!AH48,IF(S47>1,S47,(0))) -> 0 | S47: 0 | T47: =IF((MONTH(PUANTAJ!$B$2))=4,' BORDRO HAZIRLIK'!AC48,IF(U47>1,U47,(0))) -> 0 | U47: 0 | V47: =IF((MONTH(PUANTAJ!$B$2))=5,' BORDRO HAZIRLIK'!AH48,IF(W47>1,W47,(0))) -> 0 | W47: 0 | X47: =IF((MONTH(PUANTAJ!$B$2))=5,' BORDRO HAZIRLIK'!AC48,IF(Y47>1,Y47,(0))) -> 0 | Y47: 0 | Z47: =IF((MONTH(PUANTAJ!$B$2))=6,' BORDRO HAZIRLIK'!AH48,IF(AA47>1,AA47,(0))) -> 0 | AA47: 0 | AB47: =IF((MONTH(PUANTAJ!$B$2))=6,' BORDRO HAZIRLIK'!AC48,IF(AC47>1,AC47,(0))) -> 0 | AC47: 0 | AD47: =IF((MONTH(PUANTAJ!$B$2))=7,' BORDRO HAZIRLIK'!AH48,IF(AE47>1,AE47,(0))) -> 0 | AE47: 0 | AF47: =IF((MONTH(PUANTAJ!$B$2))=7,' BORDRO HAZIRLIK'!AC48,IF(AG47>1,AG47,(0))) -> 0 | AG47: 0 | AH47: =IF((MONTH(PUANTAJ!$B$2))=8,' BORDRO HAZIRLIK'!AH48,IF(AI47>1,AI47,(0))) -> 0 | AI47: 0 | AJ47: =IF((MONTH(PUANTAJ!$B$2))=8,' BORDRO HAZIRLIK'!AC48,IF(AK47>1,AK47,(0))) -> 0 | AK47: 0 | AL47: =IF((MONTH(PUANTAJ!$B$2))=9,' BORDRO HAZIRLIK'!AH48,IF(AM47>1,AM47,(0))) -> 0 | AM47: 0 | AN47: =IF((MONTH(PUANTAJ!$B$2))=9,' BORDRO HAZIRLIK'!AC48,IF(AO47>1,AO47,(0))) -> 0 | AO47: 0 | AP47: =IF((MONTH(PUANTAJ!$B$2))=10,' BORDRO HAZIRLIK'!AH48,IF(AQ47>1,AQ47,(0))) -> 0 | AQ47: 0 | AR47: =IF((MONTH(PUANTAJ!$B$2))=10,' BORDRO HAZIRLIK'!AC48,IF(AS47>1,AS47,(0))) -> 0 | AS47: 0 | AT47: =IF((MONTH(PUANTAJ!$B$2))=11,' BORDRO HAZIRLIK'!AH48,IF(AU47>1,AU47,(0))) -> 0 | AU47: 0 | AV47: =IF((MONTH(PUANTAJ!$B$2))=11,' BORDRO HAZIRLIK'!AC48,IF(AW47>1,AW47,(0))) -> 0 | AW47: 0 | AX47: =IF((MONTH(PUANTAJ!$B$2))=12,' BORDRO HAZIRLIK'!AH48,IF(AY47>1,AY47,(0))) -> 0 | AY47: 0 | AZ47: =IF((MONTH(PUANTAJ!$B$2))=12,' BORDRO HAZIRLIK'!AC48,IF(BA47>1,BA47,(0))) -> 0 | BA47: 0 | BB47: 0 | BC47: =' BORDRO HAZIRLIK'!AH48 -> 0 | BD47: 0 | BE47: 0 | BF47: =' BORDRO HAZIRLIK'!AC48 -> 0 | BG47: 0
B48: =PUANTAJ!A51 ->  | C48: =PUANTAJ!B51 ->  | D48: =BD48+'PERSONEL BİLGİ GİRİŞİ'!AC49 -> 0 | E48: =BG48+'PERSONEL BİLGİ GİRİŞİ'!AL49 -> 0 | F48: =IF((MONTH(PUANTAJ!$B$2))=1,' BORDRO HAZIRLIK'!AH49,IF(G48>1,G48,(0))) -> 0 | G48: 0 | H48: =IF((MONTH(PUANTAJ!$B$2))=1,' BORDRO HAZIRLIK'!AC49,IF(I48>1,I48,(0))) -> 0 | I48: 0 | J48: =IF((MONTH(PUANTAJ!$B$2))=2,' BORDRO HAZIRLIK'!AH49,IF(K48>1,K48,(0))) -> 0 | K48: 0 | L48: =IF((MONTH(PUANTAJ!$B$2))=2,' BORDRO HAZIRLIK'!AC49,IF(M48>1,M48,(0))) -> 0 | M48: 0 | N48: =IF((MONTH(PUANTAJ!$B$2))=3,' BORDRO HAZIRLIK'!AH49,IF(O48>1,O48,(0))) -> 0 | O48: 0 | P48: =IF((MONTH(PUANTAJ!$B$2))=3,' BORDRO HAZIRLIK'!AC49,IF(Q48>1,Q48,(0))) -> 0 | Q48: 0 | R48: =IF((MONTH(PUANTAJ!$B$2))=4,' BORDRO HAZIRLIK'!AH49,IF(S48>1,S48,(0))) -> 0 | S48: 0 | T48: =IF((MONTH(PUANTAJ!$B$2))=4,' BORDRO HAZIRLIK'!AC49,IF(U48>1,U48,(0))) -> 0 | U48: 0 | V48: =IF((MONTH(PUANTAJ!$B$2))=5,' BORDRO HAZIRLIK'!AH49,IF(W48>1,W48,(0))) -> 0 | W48: 0 | X48: =IF((MONTH(PUANTAJ!$B$2))=5,' BORDRO HAZIRLIK'!AC49,IF(Y48>1,Y48,(0))) -> 0 | Y48: 0 | Z48: =IF((MONTH(PUANTAJ!$B$2))=6,' BORDRO HAZIRLIK'!AH49,IF(AA48>1,AA48,(0))) -> 0 | AA48: 0 | AB48: =IF((MONTH(PUANTAJ!$B$2))=6,' BORDRO HAZIRLIK'!AC49,IF(AC48>1,AC48,(0))) -> 0 | AC48: 0 | AD48: =IF((MONTH(PUANTAJ!$B$2))=7,' BORDRO HAZIRLIK'!AH49,IF(AE48>1,AE48,(0))) -> 0 | AE48: 0 | AF48: =IF((MONTH(PUANTAJ!$B$2))=7,' BORDRO HAZIRLIK'!AC49,IF(AG48>1,AG48,(0))) -> 0 | AG48: 0 | AH48: =IF((MONTH(PUANTAJ!$B$2))=8,' BORDRO HAZIRLIK'!AH49,IF(AI48>1,AI48,(0))) -> 0 | AI48: 0 | AJ48: =IF((MONTH(PUANTAJ!$B$2))=8,' BORDRO HAZIRLIK'!AC49,IF(AK48>1,AK48,(0))) -> 0 | AK48: 0 | AL48: =IF((MONTH(PUANTAJ!$B$2))=9,' BORDRO HAZIRLIK'!AH49,IF(AM48>1,AM48,(0))) -> 0 | AM48: 0 | AN48: =IF((MONTH(PUANTAJ!$B$2))=9,' BORDRO HAZIRLIK'!AC49,IF(AO48>1,AO48,(0))) -> 0 | AO48: 0 | AP48: =IF((MONTH(PUANTAJ!$B$2))=10,' BORDRO HAZIRLIK'!AH49,IF(AQ48>1,AQ48,(0))) -> 0 | AQ48: 0 | AR48: =IF((MONTH(PUANTAJ!$B$2))=10,' BORDRO HAZIRLIK'!AC49,IF(AS48>1,AS48,(0))) -> 0 | AS48: 0 | AT48: =IF((MONTH(PUANTAJ!$B$2))=11,' BORDRO HAZIRLIK'!AH49,IF(AU48>1,AU48,(0))) -> 0 | AU48: 0 | AV48: =IF((MONTH(PUANTAJ!$B$2))=11,' BORDRO HAZIRLIK'!AC49,IF(AW48>1,AW48,(0))) -> 0 | AW48: 0 | AX48: =IF((MONTH(PUANTAJ!$B$2))=12,' BORDRO HAZIRLIK'!AH49,IF(AY48>1,AY48,(0))) -> 0 | AY48: 0 | AZ48: =IF((MONTH(PUANTAJ!$B$2))=12,' BORDRO HAZIRLIK'!AC49,IF(BA48>1,BA48,(0))) -> 0 | BA48: 0 | BB48: 0 | BC48: =' BORDRO HAZIRLIK'!AH49 -> 0 | BD48: 0 | BE48: 0 | BF48: =' BORDRO HAZIRLIK'!AC49 -> 0 | BG48: 0
B49: =PUANTAJ!A52 ->  | C49: =PUANTAJ!B52 ->  | D49: =BD49+'PERSONEL BİLGİ GİRİŞİ'!AC50 -> 0 | E49: =BG49+'PERSONEL BİLGİ GİRİŞİ'!AL50 -> 0 | F49: =IF((MONTH(PUANTAJ!$B$2))=1,' BORDRO HAZIRLIK'!AH50,IF(G49>1,G49,(0))) -> 0 | G49: 0 | H49: =IF((MONTH(PUANTAJ!$B$2))=1,' BORDRO HAZIRLIK'!AC50,IF(I49>1,I49,(0))) -> 0 | I49: 0 | J49: =IF((MONTH(PUANTAJ!$B$2))=2,' BORDRO HAZIRLIK'!AH50,IF(K49>1,K49,(0))) -> 0 | K49: 0 | L49: =IF((MONTH(PUANTAJ!$B$2))=2,' BORDRO HAZIRLIK'!AC50,IF(M49>1,M49,(0))) -> 0 | M49: 0 | N49: =IF((MONTH(PUANTAJ!$B$2))=3,' BORDRO HAZIRLIK'!AH50,IF(O49>1,O49,(0))) -> 0 | O49: 0 | P49: =IF((MONTH(PUANTAJ!$B$2))=3,' BORDRO HAZIRLIK'!AC50,IF(Q49>1,Q49,(0))) -> 0 | Q49: 0 | R49: =IF((MONTH(PUANTAJ!$B$2))=4,' BORDRO HAZIRLIK'!AH50,IF(S49>1,S49,(0))) -> 0 | S49: 0 | T49: =IF((MONTH(PUANTAJ!$B$2))=4,' BORDRO HAZIRLIK'!AC50,IF(U49>1,U49,(0))) -> 0 | U49: 0 | V49: =IF((MONTH(PUANTAJ!$B$2))=5,' BORDRO HAZIRLIK'!AH50,IF(W49>1,W49,(0))) -> 0 | W49: 0 | X49: =IF((MONTH(PUANTAJ!$B$2))=5,' BORDRO HAZIRLIK'!AC50,IF(Y49>1,Y49,(0))) -> 0 | Y49: 0 | Z49: =IF((MONTH(PUANTAJ!$B$2))=6,' BORDRO HAZIRLIK'!AH50,IF(AA49>1,AA49,(0))) -> 0 | AA49: 0 | AB49: =IF((MONTH(PUANTAJ!$B$2))=6,' BORDRO HAZIRLIK'!AC50,IF(AC49>1,AC49,(0))) -> 0 | AC49: 0 | AD49: =IF((MONTH(PUANTAJ!$B$2))=7,' BORDRO HAZIRLIK'!AH50,IF(AE49>1,AE49,(0))) -> 0 | AE49: 0 | AF49: =IF((MONTH(PUANTAJ!$B$2))=7,' BORDRO HAZIRLIK'!AC50,IF(AG49>1,AG49,(0))) -> 0 | AG49: 0 | AH49: =IF((MONTH(PUANTAJ!$B$2))=8,' BORDRO HAZIRLIK'!AH50,IF(AI49>1,AI49,(0))) -> 0 | AI49: 0 | AJ49: =IF((MONTH(PUANTAJ!$B$2))=8,' BORDRO HAZIRLIK'!AC50,IF(AK49>1,AK49,(0))) -> 0 | AK49: 0 | AL49: =IF((MONTH(PUANTAJ!$B$2))=9,' BORDRO HAZIRLIK'!AH50,IF(AM49>1,AM49,(0))) -> 0 | AM49: 0 | AN49: =IF((MONTH(PUANTAJ!$B$2))=9,' BORDRO HAZIRLIK'!AC50,IF(AO49>1,AO49,(0))) -> 0 | AO49: 0 | AP49: =IF((MONTH(PUANTAJ!$B$2))=10,' BORDRO HAZIRLIK'!AH50,IF(AQ49>1,AQ49,(0))) -> 0 | AQ49: 0 | AR49: =IF((MONTH(PUANTAJ!$B$2))=10,' BORDRO HAZIRLIK'!AC50,IF(AS49>1,AS49,(0))) -> 0 | AS49: 0 | AT49: =IF((MONTH(PUANTAJ!$B$2))=11,' BORDRO HAZIRLIK'!AH50,IF(AU49>1,AU49,(0))) -> 0 | AU49: 0 | AV49: =IF((MONTH(PUANTAJ!$B$2))=11,' BORDRO HAZIRLIK'!AC50,IF(AW49>1,AW49,(0))) -> 0 | AW49: 0 | AX49: =IF((MONTH(PUANTAJ!$B$2))=12,' BORDRO HAZIRLIK'!AH50,IF(AY49>1,AY49,(0))) -> 0 | AY49: 0 | AZ49: =IF((MONTH(PUANTAJ!$B$2))=12,' BORDRO HAZIRLIK'!AC50,IF(BA49>1,BA49,(0))) -> 0 | BA49: 0 | BB49: 0 | BC49: =' BORDRO HAZIRLIK'!AH50 -> 0 | BD49: 0 | BE49: 0 | BF49: =' BORDRO HAZIRLIK'!AC50 -> 0 | BG49: 0
B50: =PUANTAJ!A53 ->  | C50: =PUANTAJ!B53 ->  | D50: =BD50+'PERSONEL BİLGİ GİRİŞİ'!AC51 -> 0 | E50: =BG50+'PERSONEL BİLGİ GİRİŞİ'!AL51 -> 0 | F50: =IF((MONTH(PUANTAJ!$B$2))=1,' BORDRO HAZIRLIK'!AH51,IF(G50>1,G50,(0))) -> 0 | G50: 0 | H50: =IF((MONTH(PUANTAJ!$B$2))=1,' BORDRO HAZIRLIK'!AC51,IF(I50>1,I50,(0))) -> 0 | I50: 0 | J50: =IF((MONTH(PUANTAJ!$B$2))=2,' BORDRO HAZIRLIK'!AH51,IF(K50>1,K50,(0))) -> 0 | K50: 0 | L50: =IF((MONTH(PUANTAJ!$B$2))=2,' BORDRO HAZIRLIK'!AC51,IF(M50>1,M50,(0))) -> 0 | M50: 0 | N50: =IF((MONTH(PUANTAJ!$B$2))=3,' BORDRO HAZIRLIK'!AH51,IF(O50>1,O50,(0))) -> 0 | O50: 0 | P50: =IF((MONTH(PUANTAJ!$B$2))=3,' BORDRO HAZIRLIK'!AC51,IF(Q50>1,Q50,(0))) -> 0 | Q50: 0 | R50: =IF((MONTH(PUANTAJ!$B$2))=4,' BORDRO HAZIRLIK'!AH51,IF(S50>1,S50,(0))) -> 0 | S50: 0 | T50: =IF((MONTH(PUANTAJ!$B$2))=4,' BORDRO HAZIRLIK'!AC51,IF(U50>1,U50,(0))) -> 0 | U50: 0 | V50: =IF((MONTH(PUANTAJ!$B$2))=5,' BORDRO HAZIRLIK'!AH51,IF(W50>1,W50,(0))) -> 0 | W50: 0 | X50: =IF((MONTH(PUANTAJ!$B$2))=5,' BORDRO HAZIRLIK'!AC51,IF(Y50>1,Y50,(0))) -> 0 | Y50: 0 | Z50: =IF((MONTH(PUANTAJ!$B$2))=6,' BORDRO HAZIRLIK'!AH51,IF(AA50>1,AA50,(0))) -> 0 | AA50: 0 | AB50: =IF((MONTH(PUANTAJ!$B$2))=6,' BORDRO HAZIRLIK'!AC51,IF(AC50>1,AC50,(0))) -> 0 | AC50: 0 | AD50: =IF((MONTH(PUANTAJ!$B$2))=7,' BORDRO HAZIRLIK'!AH51,IF(AE50>1,AE50,(0))) -> 0 | AE50: 0 | AF50: =IF((MONTH(PUANTAJ!$B$2))=7,' BORDRO HAZIRLIK'!AC51,IF(AG50>1,AG50,(0))) -> 0 | AG50: 0 | AH50: =IF((MONTH(PUANTAJ!$B$2))=8,' BORDRO HAZIRLIK'!AH51,IF(AI50>1,AI50,(0))) -> 0 | AI50: 0 | AJ50: =IF((MONTH(PUANTAJ!$B$2))=8,' BORDRO HAZIRLIK'!AC51,IF(AK50>1,AK50,(0))) -> 0 | AK50: 0 | AL50: =IF((MONTH(PUANTAJ!$B$2))=9,' BORDRO HAZIRLIK'!AH51,IF(AM50>1,AM50,(0))) -> 0 | AM50: 0 | AN50: =IF((MONTH(PUANTAJ!$B$2))=9,' BORDRO HAZIRLIK'!AC51,IF(AO50>1,AO50,(0))) -> 0 | AO50: 0 | AP50: =IF((MONTH(PUANTAJ!$B$2))=10,' BORDRO HAZIRLIK'!AH51,IF(AQ50>1,AQ50,(0))) -> 0 | AQ50: 0 | AR50: =IF((MONTH(PUANTAJ!$B$2))=10,' BORDRO HAZIRLIK'!AC51,IF(AS50>1,AS50,(0))) -> 0 | AS50: 0 | AT50: =IF((MONTH(PUANTAJ!$B$2))=11,' BORDRO HAZIRLIK'!AH51,IF(AU50>1,AU50,(0))) -> 0 | AU50: 0 | AV50: =IF((MONTH(PUANTAJ!$B$2))=11,' BORDRO HAZIRLIK'!AC51,IF(AW50>1,AW50,(0))) -> 0 | AW50: 0 | AX50: =IF((MONTH(PUANTAJ!$B$2))=12,' BORDRO HAZIRLIK'!AH51,IF(AY50>1,AY50,(0))) -> 0 | AY50: 0 | AZ50: =IF((MONTH(PUANTAJ!$B$2))=12,' BORDRO HAZIRLIK'!AC51,IF(BA50>1,BA50,(0))) -> 0 | BA50: 0 | BB50: 0 | BC50: =' BORDRO HAZIRLIK'!AH51 -> 0 | BD50: 0 | BE50: 0 | BF50: =' BORDRO HAZIRLIK'!AC51 -> 0 | BG50: 0
B51: =PUANTAJ!A54 ->  | C51: =PUANTAJ!B54 ->  | D51: =BD51+'PERSONEL BİLGİ GİRİŞİ'!AC52 -> 0 | E51: =BG51+'PERSONEL BİLGİ GİRİŞİ'!AL52 -> 0 | F51: =IF((MONTH(PUANTAJ!$B$2))=1,' BORDRO HAZIRLIK'!AH52,IF(G51>1,G51,(0))) -> 0 | G51: 0 | H51: =IF((MONTH(PUANTAJ!$B$2))=1,' BORDRO HAZIRLIK'!AC52,IF(I51>1,I51,(0))) -> 0 | I51: 0 | J51: =IF((MONTH(PUANTAJ!$B$2))=2,' BORDRO HAZIRLIK'!AH52,IF(K51>1,K51,(0))) -> 0 | K51: 0 | L51: =IF((MONTH(PUANTAJ!$B$2))=2,' BORDRO HAZIRLIK'!AC52,IF(M51>1,M51,(0))) -> 0 | M51: 0 | N51: =IF((MONTH(PUANTAJ!$B$2))=3,' BORDRO HAZIRLIK'!AH52,IF(O51>1,O51,(0))) -> 0 | O51: 0 | P51: =IF((MONTH(PUANTAJ!$B$2))=3,' BORDRO HAZIRLIK'!AC52,IF(Q51>1,Q51,(0))) -> 0 | Q51: 0 | R51: =IF((MONTH(PUANTAJ!$B$2))=4,' BORDRO HAZIRLIK'!AH52,IF(S51>1,S51,(0))) -> 0 | S51: 0 | T51: =IF((MONTH(PUANTAJ!$B$2))=4,' BORDRO HAZIRLIK'!AC52,IF(U51>1,U51,(0))) -> 0 | U51: 0 | V51: =IF((MONTH(PUANTAJ!$B$2))=5,' BORDRO HAZIRLIK'!AH52,IF(W51>1,W51,(0))) -> 0 | W51: 0 | X51: =IF((MONTH(PUANTAJ!$B$2))=5,' BORDRO HAZIRLIK'!AC52,IF(Y51>1,Y51,(0))) -> 0 | Y51: 0 | Z51: =IF((MONTH(PUANTAJ!$B$2))=6,' BORDRO HAZIRLIK'!AH52,IF(AA51>1,AA51,(0))) -> 0 | AA51: 0 | AB51: =IF((MONTH(PUANTAJ!$B$2))=6,' BORDRO HAZIRLIK'!AC52,IF(AC51>1,AC51,(0))) -> 0 | AC51: 0 | AD51: =IF((MONTH(PUANTAJ!$B$2))=7,' BORDRO HAZIRLIK'!AH52,IF(AE51>1,AE51,(0))) -> 0 | AE51: 0 | AF51: =IF((MONTH(PUANTAJ!$B$2))=7,' BORDRO HAZIRLIK'!AC52,IF(AG51>1,AG51,(0))) -> 0 | AG51: 0 | AH51: =IF((MONTH(PUANTAJ!$B$2))=8,' BORDRO HAZIRLIK'!AH52,IF(AI51>1,AI51,(0))) -> 0 | AI51: 0 | AJ51: =IF((MONTH(PUANTAJ!$B$2))=8,' BORDRO HAZIRLIK'!AC52,IF(AK51>1,AK51,(0))) -> 0 | AK51: 0 | AL51: =IF((MONTH(PUANTAJ!$B$2))=9,' BORDRO HAZIRLIK'!AH52,IF(AM51>1,AM51,(0))) -> 0 | AM51: 0 | AN51: =IF((MONTH(PUANTAJ!$B$2))=9,' BORDRO HAZIRLIK'!AC52,IF(AO51>1,AO51,(0))) -> 0 | AO51: 0 | AP51: =IF((MONTH(PUANTAJ!$B$2))=10,' BORDRO HAZIRLIK'!AH52,IF(AQ51>1,AQ51,(0))) -> 0 | AQ51: 0 | AR51: =IF((MONTH(PUANTAJ!$B$2))=10,' BORDRO HAZIRLIK'!AC52,IF(AS51>1,AS51,(0))) -> 0 | AS51: 0 | AT51: =IF((MONTH(PUANTAJ!$B$2))=11,' BORDRO HAZIRLIK'!AH52,IF(AU51>1,AU51,(0))) -> 0 | AU51: 0 | AV51: =IF((MONTH(PUANTAJ!$B$2))=11,' BORDRO HAZIRLIK'!AC52,IF(AW51>1,AW51,(0))) -> 0 | AW51: 0 | AX51: =IF((MONTH(PUANTAJ!$B$2))=12,' BORDRO HAZIRLIK'!AH52,IF(AY51>1,AY51,(0))) -> 0 | AY51: 0 | AZ51: =IF((MONTH(PUANTAJ!$B$2))=12,' BORDRO HAZIRLIK'!AC52,IF(BA51>1,BA51,(0))) -> 0 | BA51: 0 | BB51: 0 | BC51: =' BORDRO HAZIRLIK'!AH52 -> 0 | BD51: 0 | BE51: 0 | BF51: =' BORDRO HAZIRLIK'!AC52 -> 0 | BG51: 0
B52: =PUANTAJ!A55 ->  | C52: =PUANTAJ!B55 ->  | D52: =BD52+'PERSONEL BİLGİ GİRİŞİ'!AC53 -> 0 | E52: =BG52+'PERSONEL BİLGİ GİRİŞİ'!AL53 -> 0 | F52: =IF((MONTH(PUANTAJ!$B$2))=1,' BORDRO HAZIRLIK'!AH53,IF(G52>1,G52,(0))) -> 0 | G52: 0 | H52: =IF((MONTH(PUANTAJ!$B$2))=1,' BORDRO HAZIRLIK'!AC53,IF(I52>1,I52,(0))) -> 0 | I52: 0 | J52: =IF((MONTH(PUANTAJ!$B$2))=2,' BORDRO HAZIRLIK'!AH53,IF(K52>1,K52,(0))) -> 0 | K52: 0 | L52: =IF((MONTH(PUANTAJ!$B$2))=2,' BORDRO HAZIRLIK'!AC53,IF(M52>1,M52,(0))) -> 0 | M52: 0 | N52: =IF((MONTH(PUANTAJ!$B$2))=3,' BORDRO HAZIRLIK'!AH53,IF(O52>1,O52,(0))) -> 0 | O52: 0 | P52: =IF((MONTH(PUANTAJ!$B$2))=3,' BORDRO HAZIRLIK'!AC53,IF(Q52>1,Q52,(0))) -> 0 | Q52: 0 | R52: =IF((MONTH(PUANTAJ!$B$2))=4,' BORDRO HAZIRLIK'!AH53,IF(S52>1,S52,(0))) -> 0 | S52: 0 | T52: =IF((MONTH(PUANTAJ!$B$2))=4,' BORDRO HAZIRLIK'!AC53,IF(U52>1,U52,(0))) -> 0 | U52: 0 | V52: =IF((MONTH(PUANTAJ!$B$2))=5,' BORDRO HAZIRLIK'!AH53,IF(W52>1,W52,(0))) -> 0 | W52: 0 | X52: =IF((MONTH(PUANTAJ!$B$2))=5,' BORDRO HAZIRLIK'!AC53,IF(Y52>1,Y52,(0))) -> 0 | Y52: 0 | Z52: =IF((MONTH(PUANTAJ!$B$2))=6,' BORDRO HAZIRLIK'!AH53,IF(AA52>1,AA52,(0))) -> 0 | AA52: 0 | AB52: =IF((MONTH(PUANTAJ!$B$2))=6,' BORDRO HAZIRLIK'!AC53,IF(AC52>1,AC52,(0))) -> 0 | AC52: 0 | AD52: =IF((MONTH(PUANTAJ!$B$2))=7,' BORDRO HAZIRLIK'!AH53,IF(AE52>1,AE52,(0))) -> 0 | AE52: 0 | AF52: =IF((MONTH(PUANTAJ!$B$2))=7,' BORDRO HAZIRLIK'!AC53,IF(AG52>1,AG52,(0))) -> 0 | AG52: 0 | AH52: =IF((MONTH(PUANTAJ!$B$2))=8,' BORDRO HAZIRLIK'!AH53,IF(AI52>1,AI52,(0))) -> 0 | AI52: 0 | AJ52: =IF((MONTH(PUANTAJ!$B$2))=8,' BORDRO HAZIRLIK'!AC53,IF(AK52>1,AK52,(0))) -> 0 | AK52: 0 | AL52: =IF((MONTH(PUANTAJ!$B$2))=9,' BORDRO HAZIRLIK'!AH53,IF(AM52>1,AM52,(0))) -> 0 | AM52: 0 | AN52: =IF((MONTH(PUANTAJ!$B$2))=9,' BORDRO HAZIRLIK'!AC53,IF(AO52>1,AO52,(0))) -> 0 | AO52: 0 | AP52: =IF((MONTH(PUANTAJ!$B$2))=10,' BORDRO HAZIRLIK'!AH53,IF(AQ52>1,AQ52,(0))) -> 0 | AQ52: 0 | AR52: =IF((MONTH(PUANTAJ!$B$2))=10,' BORDRO HAZIRLIK'!AC53,IF(AS52>1,AS52,(0))) -> 0 | AS52: 0 | AT52: =IF((MONTH(PUANTAJ!$B$2))=11,' BORDRO HAZIRLIK'!AH53,IF(AU52>1,AU52,(0))) -> 0 | AU52: 0 | AV52: =IF((MONTH(PUANTAJ!$B$2))=11,' BORDRO HAZIRLIK'!AC53,IF(AW52>1,AW52,(0))) -> 0 | AW52: 0 | AX52: =IF((MONTH(PUANTAJ!$B$2))=12,' BORDRO HAZIRLIK'!AH53,IF(AY52>1,AY52,(0))) -> 0 | AY52: 0 | AZ52: =IF((MONTH(PUANTAJ!$B$2))=12,' BORDRO HAZIRLIK'!AC53,IF(BA52>1,BA52,(0))) -> 0 | BA52: 0 | BB52: 0 | BC52: =' BORDRO HAZIRLIK'!AH53 -> 0 | BD52: 0 | BE52: 0 | BF52: =' BORDRO HAZIRLIK'!AC53 -> 0 | BG52: 0
B53: =PUANTAJ!A56 ->  | C53: =PUANTAJ!B56 ->  | D53: =BD53+'PERSONEL BİLGİ GİRİŞİ'!AC54 -> 0 | E53: =BG53+'PERSONEL BİLGİ GİRİŞİ'!AL54 -> 0 | F53: =IF((MONTH(PUANTAJ!$B$2))=1,' BORDRO HAZIRLIK'!AH54,IF(G53>1,G53,(0))) -> 0 | G53: 0 | H53: =IF((MONTH(PUANTAJ!$B$2))=1,' BORDRO HAZIRLIK'!AC54,IF(I53>1,I53,(0))) -> 0 | I53: 0 | J53: =IF((MONTH(PUANTAJ!$B$2))=2,' BORDRO HAZIRLIK'!AH54,IF(K53>1,K53,(0))) -> 0 | K53: 0 | L53: =IF((MONTH(PUANTAJ!$B$2))=2,' BORDRO HAZIRLIK'!AC54,IF(M53>1,M53,(0))) -> 0 | M53: 0 | N53: =IF((MONTH(PUANTAJ!$B$2))=3,' BORDRO HAZIRLIK'!AH54,IF(O53>1,O53,(0))) -> 0 | O53: 0 | P53: =IF((MONTH(PUANTAJ!$B$2))=3,' BORDRO HAZIRLIK'!AC54,IF(Q53>1,Q53,(0))) -> 0 | Q53: 0 | R53: =IF((MONTH(PUANTAJ!$B$2))=4,' BORDRO HAZIRLIK'!AH54,IF(S53>1,S53,(0))) -> 0 | S53: 0 | T53: =IF((MONTH(PUANTAJ!$B$2))=4,' BORDRO HAZIRLIK'!AC54,IF(U53>1,U53,(0))) -> 0 | U53: 0 | V53: =IF((MONTH(PUANTAJ!$B$2))=5,' BORDRO HAZIRLIK'!AH54,IF(W53>1,W53,(0))) -> 0 | W53: 0 | X53: =IF((MONTH(PUANTAJ!$B$2))=5,' BORDRO HAZIRLIK'!AC54,IF(Y53>1,Y53,(0))) -> 0 | Y53: 0 | Z53: =IF((MONTH(PUANTAJ!$B$2))=6,' BORDRO HAZIRLIK'!AH54,IF(AA53>1,AA53,(0))) -> 0 | AA53: 0 | AB53: =IF((MONTH(PUANTAJ!$B$2))=6,' BORDRO HAZIRLIK'!AC54,IF(AC53>1,AC53,(0))) -> 0 | AC53: 0 | AD53: =IF((MONTH(PUANTAJ!$B$2))=7,' BORDRO HAZIRLIK'!AH54,IF(AE53>1,AE53,(0))) -> 0 | AE53: 0 | AF53: =IF((MONTH(PUANTAJ!$B$2))=7,' BORDRO HAZIRLIK'!AC54,IF(AG53>1,AG53,(0))) -> 0 | AG53: 0 | AH53: =IF((MONTH(PUANTAJ!$B$2))=8,' BORDRO HAZIRLIK'!AH54,IF(AI53>1,AI53,(0))) -> 0 | AI53: 0 | AJ53: =IF((MONTH(PUANTAJ!$B$2))=8,' BORDRO HAZIRLIK'!AC54,IF(AK53>1,AK53,(0))) -> 0 | AK53: 0 | AL53: =IF((MONTH(PUANTAJ!$B$2))=9,' BORDRO HAZIRLIK'!AH54,IF(AM53>1,AM53,(0))) -> 0 | AM53: 0 | AN53: =IF((MONTH(PUANTAJ!$B$2))=9,' BORDRO HAZIRLIK'!AC54,IF(AO53>1,AO53,(0))) -> 0 | AO53: 0 | AP53: =IF((MONTH(PUANTAJ!$B$2))=10,' BORDRO HAZIRLIK'!AH54,IF(AQ53>1,AQ53,(0))) -> 0 | AQ53: 0 | AR53: =IF((MONTH(PUANTAJ!$B$2))=10,' BORDRO HAZIRLIK'!AC54,IF(AS53>1,AS53,(0))) -> 0 | AS53: 0 | AT53: =IF((MONTH(PUANTAJ!$B$2))=11,' BORDRO HAZIRLIK'!AH54,IF(AU53>1,AU53,(0))) -> 0 | AU53: 0 | AV53: =IF((MONTH(PUANTAJ!$B$2))=11,' BORDRO HAZIRLIK'!AC54,IF(AW53>1,AW53,(0))) -> 0 | AW53: 0 | AX53: =IF((MONTH(PUANTAJ!$B$2))=12,' BORDRO HAZIRLIK'!AH54,IF(AY53>1,AY53,(0))) -> 0 | AY53: 0 | AZ53: =IF((MONTH(PUANTAJ!$B$2))=12,' BORDRO HAZIRLIK'!AC54,IF(BA53>1,BA53,(0))) -> 0 | BA53: 0 | BB53: 0 | BC53: =' BORDRO HAZIRLIK'!AH54 -> 0 | BD53: 0 | BE53: 0 | BF53: =' BORDRO HAZIRLIK'!AC54 -> 0 | BG53: 0
B54: =PUANTAJ!A57 ->  | C54: =PUANTAJ!B57 ->  | D54: =BD54+'PERSONEL BİLGİ GİRİŞİ'!AC55 -> 0 | E54: =BG54+'PERSONEL BİLGİ GİRİŞİ'!AL55 -> 0 | F54: =IF((MONTH(PUANTAJ!$B$2))=1,' BORDRO HAZIRLIK'!AH55,IF(G54>1,G54,(0))) -> 0 | G54: 0 | H54: =IF((MONTH(PUANTAJ!$B$2))=1,' BORDRO HAZIRLIK'!AC55,IF(I54>1,I54,(0))) -> 0 | I54: 0 | J54: =IF((MONTH(PUANTAJ!$B$2))=2,' BORDRO HAZIRLIK'!AH55,IF(K54>1,K54,(0))) -> 0 | K54: 0 | L54: =IF((MONTH(PUANTAJ!$B$2))=2,' BORDRO HAZIRLIK'!AC55,IF(M54>1,M54,(0))) -> 0 | M54: 0 | N54: =IF((MONTH(PUANTAJ!$B$2))=3,' BORDRO HAZIRLIK'!AH55,IF(O54>1,O54,(0))) -> 0 | O54: 0 | P54: =IF((MONTH(PUANTAJ!$B$2))=3,' BORDRO HAZIRLIK'!AC55,IF(Q54>1,Q54,(0))) -> 0 | Q54: 0 | R54: =IF((MONTH(PUANTAJ!$B$2))=4,' BORDRO HAZIRLIK'!AH55,IF(S54>1,S54,(0))) -> 0 | S54: 0 | T54: =IF((MONTH(PUANTAJ!$B$2))=4,' BORDRO HAZIRLIK'!AC55,IF(U54>1,U54,(0))) -> 0 | U54: 0 | V54: =IF((MONTH(PUANTAJ!$B$2))=5,' BORDRO HAZIRLIK'!AH55,IF(W54>1,W54,(0))) -> 0 | W54: 0 | X54: =IF((MONTH(PUANTAJ!$B$2))=5,' BORDRO HAZIRLIK'!AC55,IF(Y54>1,Y54,(0))) -> 0 | Y54: 0 | Z54: =IF((MONTH(PUANTAJ!$B$2))=6,' BORDRO HAZIRLIK'!AH55,IF(AA54>1,AA54,(0))) -> 0 | AA54: 0 | AB54: =IF((MONTH(PUANTAJ!$B$2))=6,' BORDRO HAZIRLIK'!AC55,IF(AC54>1,AC54,(0))) -> 0 | AC54: 0 | AD54: =IF((MONTH(PUANTAJ!$B$2))=7,' BORDRO HAZIRLIK'!AH55,IF(AE54>1,AE54,(0))) -> 0 | AE54: 0 | AF54: =IF((MONTH(PUANTAJ!$B$2))=7,' BORDRO HAZIRLIK'!AC55,IF(AG54>1,AG54,(0))) -> 0 | AG54: 0 | AH54: =IF((MONTH(PUANTAJ!$B$2))=8,' BORDRO HAZIRLIK'!AH55,IF(AI54>1,AI54,(0))) -> 0 | AI54: 0 | AJ54: =IF((MONTH(PUANTAJ!$B$2))=8,' BORDRO HAZIRLIK'!AC55,IF(AK54>1,AK54,(0))) -> 0 | AK54: 0 | AL54: =IF((MONTH(PUANTAJ!$B$2))=9,' BORDRO HAZIRLIK'!AH55,IF(AM54>1,AM54,(0))) -> 0 | AM54: 0 | AN54: =IF((MONTH(PUANTAJ!$B$2))=9,' BORDRO HAZIRLIK'!AC55,IF(AO54>1,AO54,(0))) -> 0 | AO54: 0 | AP54: =IF((MONTH(PUANTAJ!$B$2))=10,' BORDRO HAZIRLIK'!AH55,IF(AQ54>1,AQ54,(0))) -> 0 | AQ54: 0 | AR54: =IF((MONTH(PUANTAJ!$B$2))=10,' BORDRO HAZIRLIK'!AC55,IF(AS54>1,AS54,(0))) -> 0 | AS54: 0 | AT54: =IF((MONTH(PUANTAJ!$B$2))=11,' BORDRO HAZIRLIK'!AH55,IF(AU54>1,AU54,(0))) -> 0 | AU54: 0 | AV54: =IF((MONTH(PUANTAJ!$B$2))=11,' BORDRO HAZIRLIK'!AC55,IF(AW54>1,AW54,(0))) -> 0 | AW54: 0 | AX54: =IF((MONTH(PUANTAJ!$B$2))=12,' BORDRO HAZIRLIK'!AH55,IF(AY54>1,AY54,(0))) -> 0 | AY54: 0 | AZ54: =IF((MONTH(PUANTAJ!$B$2))=12,' BORDRO HAZIRLIK'!AC55,IF(BA54>1,BA54,(0))) -> 0 | BA54: 0 | BB54: 0 | BC54: =' BORDRO HAZIRLIK'!AH55 -> 0 | BD54: 0 | BE54: 0 | BF54: =' BORDRO HAZIRLIK'!AC55 -> 0 | BG54: 0
B55: =PUANTAJ!A58 ->  | C55: =PUANTAJ!B58 ->  | D55: =BD55+'PERSONEL BİLGİ GİRİŞİ'!AC56 -> 0 | E55: =BG55+'PERSONEL BİLGİ GİRİŞİ'!AL56 -> 0 | F55: =IF((MONTH(PUANTAJ!$B$2))=1,' BORDRO HAZIRLIK'!AH56,IF(G55>1,G55,(0))) -> 0 | G55: 0 | H55: =IF((MONTH(PUANTAJ!$B$2))=1,' BORDRO HAZIRLIK'!AC56,IF(I55>1,I55,(0))) -> 0 | I55: 0 | J55: =IF((MONTH(PUANTAJ!$B$2))=2,' BORDRO HAZIRLIK'!AH56,IF(K55>1,K55,(0))) -> 0 | K55: 0 | L55: =IF((MONTH(PUANTAJ!$B$2))=2,' BORDRO HAZIRLIK'!AC56,IF(M55>1,M55,(0))) -> 0 | M55: 0 | N55: =IF((MONTH(PUANTAJ!$B$2))=3,' BORDRO HAZIRLIK'!AH56,IF(O55>1,O55,(0))) -> 0 | O55: 0 | P55: =IF((MONTH(PUANTAJ!$B$2))=3,' BORDRO HAZIRLIK'!AC56,IF(Q55>1,Q55,(0))) -> 0 | Q55: 0 | R55: =IF((MONTH(PUANTAJ!$B$2))=4,' BORDRO HAZIRLIK'!AH56,IF(S55>1,S55,(0))) -> 0 | S55: 0 | T55: =IF((MONTH(PUANTAJ!$B$2))=4,' BORDRO HAZIRLIK'!AC56,IF(U55>1,U55,(0))) -> 0 | U55: 0 | V55: =IF((MONTH(PUANTAJ!$B$2))=5,' BORDRO HAZIRLIK'!AH56,IF(W55>1,W55,(0))) -> 0 | W55: 0 | X55: =IF((MONTH(PUANTAJ!$B$2))=5,' BORDRO HAZIRLIK'!AC56,IF(Y55>1,Y55,(0))) -> 0 | Y55: 0 | Z55: =IF((MONTH(PUANTAJ!$B$2))=6,' BORDRO HAZIRLIK'!AH56,IF(AA55>1,AA55,(0))) -> 0 | AA55: 0 | AB55: =IF((MONTH(PUANTAJ!$B$2))=6,' BORDRO HAZIRLIK'!AC56,IF(AC55>1,AC55,(0))) -> 0 | AC55: 0 | AD55: =IF((MONTH(PUANTAJ!$B$2))=7,' BORDRO HAZIRLIK'!AH56,IF(AE55>1,AE55,(0))) -> 0 | AE55: 0 | AF55: =IF((MONTH(PUANTAJ!$B$2))=7,' BORDRO HAZIRLIK'!AC56,IF(AG55>1,AG55,(0))) -> 0 | AG55: 0 | AH55: =IF((MONTH(PUANTAJ!$B$2))=8,' BORDRO HAZIRLIK'!AH56,IF(AI55>1,AI55,(0))) -> 0 | AI55: 0 | AJ55: =IF((MONTH(PUANTAJ!$B$2))=8,' BORDRO HAZIRLIK'!AC56,IF(AK55>1,AK55,(0))) -> 0 | AK55: 0 | AL55: =IF((MONTH(PUANTAJ!$B$2))=9,' BORDRO HAZIRLIK'!AH56,IF(AM55>1,AM55,(0))) -> 0 | AM55: 0 | AN55: =IF((MONTH(PUANTAJ!$B$2))=9,' BORDRO HAZIRLIK'!AC56,IF(AO55>1,AO55,(0))) -> 0 | AO55: 0 | AP55: =IF((MONTH(PUANTAJ!$B$2))=10,' BORDRO HAZIRLIK'!AH56,IF(AQ55>1,AQ55,(0))) -> 0 | AQ55: 0 | AR55: =IF((MONTH(PUANTAJ!$B$2))=10,' BORDRO HAZIRLIK'!AC56,IF(AS55>1,AS55,(0))) -> 0 | AS55: 0 | AT55: =IF((MONTH(PUANTAJ!$B$2))=11,' BORDRO HAZIRLIK'!AH56,IF(AU55>1,AU55,(0))) -> 0 | AU55: 0 | AV55: =IF((MONTH(PUANTAJ!$B$2))=11,' BORDRO HAZIRLIK'!AC56,IF(AW55>1,AW55,(0))) -> 0 | AW55: 0 | AX55: =IF((MONTH(PUANTAJ!$B$2))=12,' BORDRO HAZIRLIK'!AH56,IF(AY55>1,AY55,(0))) -> 0 | AY55: 0 | AZ55: =IF((MONTH(PUANTAJ!$B$2))=12,' BORDRO HAZIRLIK'!AC56,IF(BA55>1,BA55,(0))) -> 0 | BA55: 0 | BB55: 0 | BC55: =' BORDRO HAZIRLIK'!AH56 -> 0 | BD55: 0 | BE55: 0 | BF55: =' BORDRO HAZIRLIK'!AC56 -> 0 | BG55: 0
B56: =PUANTAJ!A59 ->  | C56: =PUANTAJ!B59 ->  | D56: =BD56+'PERSONEL BİLGİ GİRİŞİ'!AC57 -> 0 | E56: =BG56+'PERSONEL BİLGİ GİRİŞİ'!AL57 -> 0 | F56: =IF((MONTH(PUANTAJ!$B$2))=1,' BORDRO HAZIRLIK'!AH57,IF(G56>1,G56,(0))) -> 0 | G56: 0 | H56: =IF((MONTH(PUANTAJ!$B$2))=1,' BORDRO HAZIRLIK'!AC57,IF(I56>1,I56,(0))) -> 0 | I56: 0 | J56: =IF((MONTH(PUANTAJ!$B$2))=2,' BORDRO HAZIRLIK'!AH57,IF(K56>1,K56,(0))) -> 0 | K56: 0 | L56: =IF((MONTH(PUANTAJ!$B$2))=2,' BORDRO HAZIRLIK'!AC57,IF(M56>1,M56,(0))) -> 0 | M56: 0 | N56: =IF((MONTH(PUANTAJ!$B$2))=3,' BORDRO HAZIRLIK'!AH57,IF(O56>1,O56,(0))) -> 0 | O56: 0 | P56: =IF((MONTH(PUANTAJ!$B$2))=3,' BORDRO HAZIRLIK'!AC57,IF(Q56>1,Q56,(0))) -> 0 | Q56: 0 | R56: =IF((MONTH(PUANTAJ!$B$2))=4,' BORDRO HAZIRLIK'!AH57,IF(S56>1,S56,(0))) -> 0 | S56: 0 | T56: =IF((MONTH(PUANTAJ!$B$2))=4,' BORDRO HAZIRLIK'!AC57,IF(U56>1,U56,(0))) -> 0 | U56: 0 | V56: =IF((MONTH(PUANTAJ!$B$2))=5,' BORDRO HAZIRLIK'!AH57,IF(W56>1,W56,(0))) -> 0 | W56: 0 | X56: =IF((MONTH(PUANTAJ!$B$2))=5,' BORDRO HAZIRLIK'!AC57,IF(Y56>1,Y56,(0))) -> 0 | Y56: 0 | Z56: =IF((MONTH(PUANTAJ!$B$2))=6,' BORDRO HAZIRLIK'!AH57,IF(AA56>1,AA56,(0))) -> 0 | AA56: 0 | AB56: =IF((MONTH(PUANTAJ!$B$2))=6,' BORDRO HAZIRLIK'!AC57,IF(AC56>1,AC56,(0))) -> 0 | AC56: 0 | AD56: =IF((MONTH(PUANTAJ!$B$2))=7,' BORDRO HAZIRLIK'!AH57,IF(AE56>1,AE56,(0))) -> 0 | AE56: 0 | AF56: =IF((MONTH(PUANTAJ!$B$2))=7,' BORDRO HAZIRLIK'!AC57,IF(AG56>1,AG56,(0))) -> 0 | AG56: 0 | AH56: =IF((MONTH(PUANTAJ!$B$2))=8,' BORDRO HAZIRLIK'!AH57,IF(AI56>1,AI56,(0))) -> 0 | AI56: 0 | AJ56: =IF((MONTH(PUANTAJ!$B$2))=8,' BORDRO HAZIRLIK'!AC57,IF(AK56>1,AK56,(0))) -> 0 | AK56: 0 | AL56: =IF((MONTH(PUANTAJ!$B$2))=9,' BORDRO HAZIRLIK'!AH57,IF(AM56>1,AM56,(0))) -> 0 | AM56: 0 | AN56: =IF((MONTH(PUANTAJ!$B$2))=9,' BORDRO HAZIRLIK'!AC57,IF(AO56>1,AO56,(0))) -> 0 | AO56: 0 | AP56: =IF((MONTH(PUANTAJ!$B$2))=10,' BORDRO HAZIRLIK'!AH57,IF(AQ56>1,AQ56,(0))) -> 0 | AQ56: 0 | AR56: =IF((MONTH(PUANTAJ!$B$2))=10,' BORDRO HAZIRLIK'!AC57,IF(AS56>1,AS56,(0))) -> 0 | AS56: 0 | AT56: =IF((MONTH(PUANTAJ!$B$2))=11,' BORDRO HAZIRLIK'!AH57,IF(AU56>1,AU56,(0))) -> 0 | AU56: 0 | AV56: =IF((MONTH(PUANTAJ!$B$2))=11,' BORDRO HAZIRLIK'!AC57,IF(AW56>1,AW56,(0))) -> 0 | AW56: 0 | AX56: =IF((MONTH(PUANTAJ!$B$2))=12,' BORDRO HAZIRLIK'!AH57,IF(AY56>1,AY56,(0))) -> 0 | AY56: 0 | AZ56: =IF((MONTH(PUANTAJ!$B$2))=12,' BORDRO HAZIRLIK'!AC57,IF(BA56>1,BA56,(0))) -> 0 | BA56: 0 | BB56: 0 | BC56: =' BORDRO HAZIRLIK'!AH57 -> 0 | BD56: 0 | BE56: 0 | BF56: =' BORDRO HAZIRLIK'!AC57 -> 0 | BG56: 0
B57: =PUANTAJ!A60 ->  | C57: =PUANTAJ!B60 ->  | D57: =BD57+'PERSONEL BİLGİ GİRİŞİ'!AC58 -> 0 | E57: =BG57+'PERSONEL BİLGİ GİRİŞİ'!AL58 -> 0 | F57: =IF((MONTH(PUANTAJ!$B$2))=1,' BORDRO HAZIRLIK'!AH58,IF(G57>1,G57,(0))) -> 0 | G57: 0 | H57: =IF((MONTH(PUANTAJ!$B$2))=1,' BORDRO HAZIRLIK'!AC58,IF(I57>1,I57,(0))) -> 0 | I57: 0 | J57: =IF((MONTH(PUANTAJ!$B$2))=2,' BORDRO HAZIRLIK'!AH58,IF(K57>1,K57,(0))) -> 0 | K57: 0 | L57: =IF((MONTH(PUANTAJ!$B$2))=2,' BORDRO HAZIRLIK'!AC58,IF(M57>1,M57,(0))) -> 0 | M57: 0 | N57: =IF((MONTH(PUANTAJ!$B$2))=3,' BORDRO HAZIRLIK'!AH58,IF(O57>1,O57,(0))) -> 0 | O57: 0 | P57: =IF((MONTH(PUANTAJ!$B$2))=3,' BORDRO HAZIRLIK'!AC58,IF(Q57>1,Q57,(0))) -> 0 | Q57: 0 | R57: =IF((MONTH(PUANTAJ!$B$2))=4,' BORDRO HAZIRLIK'!AH58,IF(S57>1,S57,(0))) -> 0 | S57: 0 | T57: =IF((MONTH(PUANTAJ!$B$2))=4,' BORDRO HAZIRLIK'!AC58,IF(U57>1,U57,(0))) -> 0 | U57: 0 | V57: =IF((MONTH(PUANTAJ!$B$2))=5,' BORDRO HAZIRLIK'!AH58,IF(W57>1,W57,(0))) -> 0 | W57: 0 | X57: =IF((MONTH(PUANTAJ!$B$2))=5,' BORDRO HAZIRLIK'!AC58,IF(Y57>1,Y57,(0))) -> 0 | Y57: 0 | Z57: =IF((MONTH(PUANTAJ!$B$2))=6,' BORDRO HAZIRLIK'!AH58,IF(AA57>1,AA57,(0))) -> 0 | AA57: 0 | AB57: =IF((MONTH(PUANTAJ!$B$2))=6,' BORDRO HAZIRLIK'!AC58,IF(AC57>1,AC57,(0))) -> 0 | AC57: 0 | AD57: =IF((MONTH(PUANTAJ!$B$2))=7,' BORDRO HAZIRLIK'!AH58,IF(AE57>1,AE57,(0))) -> 0 | AE57: 0 | AF57: =IF((MONTH(PUANTAJ!$B$2))=7,' BORDRO HAZIRLIK'!AC58,IF(AG57>1,AG57,(0))) -> 0 | AG57: 0 | AH57: =IF((MONTH(PUANTAJ!$B$2))=8,' BORDRO HAZIRLIK'!AH58,IF(AI57>1,AI57,(0))) -> 0 | AI57: 0 | AJ57: =IF((MONTH(PUANTAJ!$B$2))=8,' BORDRO HAZIRLIK'!AC58,IF(AK57>1,AK57,(0))) -> 0 | AK57: 0 | AL57: =IF((MONTH(PUANTAJ!$B$2))=9,' BORDRO HAZIRLIK'!AH58,IF(AM57>1,AM57,(0))) -> 0 | AM57: 0 | AN57: =IF((MONTH(PUANTAJ!$B$2))=9,' BORDRO HAZIRLIK'!AC58,IF(AO57>1,AO57,(0))) -> 0 | AO57: 0 | AP57: =IF((MONTH(PUANTAJ!$B$2))=10,' BORDRO HAZIRLIK'!AH58,IF(AQ57>1,AQ57,(0))) -> 0 | AQ57: 0 | AR57: =IF((MONTH(PUANTAJ!$B$2))=10,' BORDRO HAZIRLIK'!AC58,IF(AS57>1,AS57,(0))) -> 0 | AS57: 0 | AT57: =IF((MONTH(PUANTAJ!$B$2))=11,' BORDRO HAZIRLIK'!AH58,IF(AU57>1,AU57,(0))) -> 0 | AU57: 0 | AV57: =IF((MONTH(PUANTAJ!$B$2))=11,' BORDRO HAZIRLIK'!AC58,IF(AW57>1,AW57,(0))) -> 0 | AW57: 0 | AX57: =IF((MONTH(PUANTAJ!$B$2))=12,' BORDRO HAZIRLIK'!AH58,IF(AY57>1,AY57,(0))) -> 0 | AY57: 0 | AZ57: =IF((MONTH(PUANTAJ!$B$2))=12,' BORDRO HAZIRLIK'!AC58,IF(BA57>1,BA57,(0))) -> 0 | BA57: 0 | BB57: 0 | BC57: =' BORDRO HAZIRLIK'!AH58 -> 0 | BD57: 0 | BE57: 0 | BF57: =' BORDRO HAZIRLIK'!AC58 -> 0 | BG57: 0
B58: =PUANTAJ!A61 ->  | C58: =PUANTAJ!B61 ->  | D58: =BD58+'PERSONEL BİLGİ GİRİŞİ'!AC59 -> 0 | E58: =BG58+'PERSONEL BİLGİ GİRİŞİ'!AL59 -> 0 | F58: =IF((MONTH(PUANTAJ!$B$2))=1,' BORDRO HAZIRLIK'!AH59,IF(G58>1,G58,(0))) -> 0 | G58: 0 | H58: =IF((MONTH(PUANTAJ!$B$2))=1,' BORDRO HAZIRLIK'!AC59,IF(I58>1,I58,(0))) -> 0 | I58: 0 | J58: =IF((MONTH(PUANTAJ!$B$2))=2,' BORDRO HAZIRLIK'!AH59,IF(K58>1,K58,(0))) -> 0 | K58: 0 | L58: =IF((MONTH(PUANTAJ!$B$2))=2,' BORDRO HAZIRLIK'!AC59,IF(M58>1,M58,(0))) -> 0 | M58: 0 | N58: =IF((MONTH(PUANTAJ!$B$2))=3,' BORDRO HAZIRLIK'!AH59,IF(O58>1,O58,(0))) -> 0 | O58: 0 | P58: =IF((MONTH(PUANTAJ!$B$2))=3,' BORDRO HAZIRLIK'!AC59,IF(Q58>1,Q58,(0))) -> 0 | Q58: 0 | R58: =IF((MONTH(PUANTAJ!$B$2))=4,' BORDRO HAZIRLIK'!AH59,IF(S58>1,S58,(0))) -> 0 | S58: 0 | T58: =IF((MONTH(PUANTAJ!$B$2))=4,' BORDRO HAZIRLIK'!AC59,IF(U58>1,U58,(0))) -> 0 | U58: 0 | V58: =IF((MONTH(PUANTAJ!$B$2))=5,' BORDRO HAZIRLIK'!AH59,IF(W58>1,W58,(0))) -> 0 | W58: 0 | X58: =IF((MONTH(PUANTAJ!$B$2))=5,' BORDRO HAZIRLIK'!AC59,IF(Y58>1,Y58,(0))) -> 0 | Y58: 0 | Z58: =IF((MONTH(PUANTAJ!$B$2))=6,' BORDRO HAZIRLIK'!AH59,IF(AA58>1,AA58,(0))) -> 0 | AA58: 0 | AB58: =IF((MONTH(PUANTAJ!$B$2))=6,' BORDRO HAZIRLIK'!AC59,IF(AC58>1,AC58,(0))) -> 0 | AC58: 0 | AD58: =IF((MONTH(PUANTAJ!$B$2))=7,' BORDRO HAZIRLIK'!AH59,IF(AE58>1,AE58,(0))) -> 0 | AE58: 0 | AF58: =IF((MONTH(PUANTAJ!$B$2))=7,' BORDRO HAZIRLIK'!AC59,IF(AG58>1,AG58,(0))) -> 0 | AG58: 0 | AH58: =IF((MONTH(PUANTAJ!$B$2))=8,' BORDRO HAZIRLIK'!AH59,IF(AI58>1,AI58,(0))) -> 0 | AI58: 0 | AJ58: =IF((MONTH(PUANTAJ!$B$2))=8,' BORDRO HAZIRLIK'!AC59,IF(AK58>1,AK58,(0))) -> 0 | AK58: 0 | AL58: =IF((MONTH(PUANTAJ!$B$2))=9,' BORDRO HAZIRLIK'!AH59,IF(AM58>1,AM58,(0))) -> 0 | AM58: 0 | AN58: =IF((MONTH(PUANTAJ!$B$2))=9,' BORDRO HAZIRLIK'!AC59,IF(AO58>1,AO58,(0))) -> 0 | AO58: 0 | AP58: =IF((MONTH(PUANTAJ!$B$2))=10,' BORDRO HAZIRLIK'!AH59,IF(AQ58>1,AQ58,(0))) -> 0 | AQ58: 0 | AR58: =IF((MONTH(PUANTAJ!$B$2))=10,' BORDRO HAZIRLIK'!AC59,IF(AS58>1,AS58,(0))) -> 0 | AS58: 0 | AT58: =IF((MONTH(PUANTAJ!$B$2))=11,' BORDRO HAZIRLIK'!AH59,IF(AU58>1,AU58,(0))) -> 0 | AU58: 0 | AV58: =IF((MONTH(PUANTAJ!$B$2))=11,' BORDRO HAZIRLIK'!AC59,IF(AW58>1,AW58,(0))) -> 0 | AW58: 0 | AX58: =IF((MONTH(PUANTAJ!$B$2))=12,' BORDRO HAZIRLIK'!AH59,IF(AY58>1,AY58,(0))) -> 0 | AY58: 0 | AZ58: =IF((MONTH(PUANTAJ!$B$2))=12,' BORDRO HAZIRLIK'!AC59,IF(BA58>1,BA58,(0))) -> 0 | BA58: 0 | BB58: 0 | BC58: =' BORDRO HAZIRLIK'!AH59 -> 0 | BD58: 0 | BE58: 0 | BF58: =' BORDRO HAZIRLIK'!AC59 -> 0 | BG58: 0
B59: =PUANTAJ!A62 ->  | C59: =PUANTAJ!B62 ->  | D59: =BD59+'PERSONEL BİLGİ GİRİŞİ'!AC60 -> 0 | E59: =BG59+'PERSONEL BİLGİ GİRİŞİ'!AL60 -> 0 | F59: =IF((MONTH(PUANTAJ!$B$2))=1,' BORDRO HAZIRLIK'!AH60,IF(G59>1,G59,(0))) -> 0 | G59: 0 | H59: =IF((MONTH(PUANTAJ!$B$2))=1,' BORDRO HAZIRLIK'!AC60,IF(I59>1,I59,(0))) -> 0 | I59: 0 | J59: =IF((MONTH(PUANTAJ!$B$2))=2,' BORDRO HAZIRLIK'!AH60,IF(K59>1,K59,(0))) -> 0 | K59: 0 | L59: =IF((MONTH(PUANTAJ!$B$2))=2,' BORDRO HAZIRLIK'!AC60,IF(M59>1,M59,(0))) -> 0 | M59: 0 | N59: =IF((MONTH(PUANTAJ!$B$2))=3,' BORDRO HAZIRLIK'!AH60,IF(O59>1,O59,(0))) -> 0 | O59: 0 | P59: =IF((MONTH(PUANTAJ!$B$2))=3,' BORDRO HAZIRLIK'!AC60,IF(Q59>1,Q59,(0))) -> 0 | Q59: 0 | R59: =IF((MONTH(PUANTAJ!$B$2))=4,' BORDRO HAZIRLIK'!AH60,IF(S59>1,S59,(0))) -> 0 | S59: 0 | T59: =IF((MONTH(PUANTAJ!$B$2))=4,' BORDRO HAZIRLIK'!AC60,IF(U59>1,U59,(0))) -> 0 | U59: 0 | V59: =IF((MONTH(PUANTAJ!$B$2))=5,' BORDRO HAZIRLIK'!AH60,IF(W59>1,W59,(0))) -> 0 | W59: 0 | X59: =IF((MONTH(PUANTAJ!$B$2))=5,' BORDRO HAZIRLIK'!AC60,IF(Y59>1,Y59,(0))) -> 0 | Y59: 0 | Z59: =IF((MONTH(PUANTAJ!$B$2))=6,' BORDRO HAZIRLIK'!AH60,IF(AA59>1,AA59,(0))) -> 0 | AA59: 0 | AB59: =IF((MONTH(PUANTAJ!$B$2))=6,' BORDRO HAZIRLIK'!AC60,IF(AC59>1,AC59,(0))) -> 0 | AC59: 0 | AD59: =IF((MONTH(PUANTAJ!$B$2))=7,' BORDRO HAZIRLIK'!AH60,IF(AE59>1,AE59,(0))) -> 0 | AE59: 0 | AF59: =IF((MONTH(PUANTAJ!$B$2))=7,' BORDRO HAZIRLIK'!AC60,IF(AG59>1,AG59,(0))) -> 0 | AG59: 0 | AH59: =IF((MONTH(PUANTAJ!$B$2))=8,' BORDRO HAZIRLIK'!AH60,IF(AI59>1,AI59,(0))) -> 0 | AI59: 0 | AJ59: =IF((MONTH(PUANTAJ!$B$2))=8,' BORDRO HAZIRLIK'!AC60,IF(AK59>1,AK59,(0))) -> 0 | AK59: 0 | AL59: =IF((MONTH(PUANTAJ!$B$2))=9,' BORDRO HAZIRLIK'!AH60,IF(AM59>1,AM59,(0))) -> 0 | AM59: 0 | AN59: =IF((MONTH(PUANTAJ!$B$2))=9,' BORDRO HAZIRLIK'!AC60,IF(AO59>1,AO59,(0))) -> 0 | AO59: 0 | AP59: =IF((MONTH(PUANTAJ!$B$2))=10,' BORDRO HAZIRLIK'!AH60,IF(AQ59>1,AQ59,(0))) -> 0 | AQ59: 0 | AR59: =IF((MONTH(PUANTAJ!$B$2))=10,' BORDRO HAZIRLIK'!AC60,IF(AS59>1,AS59,(0))) -> 0 | AS59: 0 | AT59: =IF((MONTH(PUANTAJ!$B$2))=11,' BORDRO HAZIRLIK'!AH60,IF(AU59>1,AU59,(0))) -> 0 | AU59: 0 | AV59: =IF((MONTH(PUANTAJ!$B$2))=11,' BORDRO HAZIRLIK'!AC60,IF(AW59>1,AW59,(0))) -> 0 | AW59: 0 | AX59: =IF((MONTH(PUANTAJ!$B$2))=12,' BORDRO HAZIRLIK'!AH60,IF(AY59>1,AY59,(0))) -> 0 | AY59: 0 | AZ59: =IF((MONTH(PUANTAJ!$B$2))=12,' BORDRO HAZIRLIK'!AC60,IF(BA59>1,BA59,(0))) -> 0 | BA59: 0 | BB59: 0 | BC59: =' BORDRO HAZIRLIK'!AH60 -> 0 | BD59: 0 | BE59: 0 | BF59: =' BORDRO HAZIRLIK'!AC60 -> 0 | BG59: 0
B60: =PUANTAJ!A63 ->  | C60: =PUANTAJ!B63 ->  | D60: =BD60+'PERSONEL BİLGİ GİRİŞİ'!AC61 -> 0 | E60: =BG60+'PERSONEL BİLGİ GİRİŞİ'!AL61 -> 0 | F60: =IF((MONTH(PUANTAJ!$B$2))=1,' BORDRO HAZIRLIK'!AH61,IF(G60>1,G60,(0))) -> 0 | G60: 0 | H60: =IF((MONTH(PUANTAJ!$B$2))=1,' BORDRO HAZIRLIK'!AC61,IF(I60>1,I60,(0))) -> 0 | I60: 0 | J60: =IF((MONTH(PUANTAJ!$B$2))=2,' BORDRO HAZIRLIK'!AH61,IF(K60>1,K60,(0))) -> 0 | K60: 0 | L60: =IF((MONTH(PUANTAJ!$B$2))=2,' BORDRO HAZIRLIK'!AC61,IF(M60>1,M60,(0))) -> 0 | M60: 0 | N60: =IF((MONTH(PUANTAJ!$B$2))=3,' BORDRO HAZIRLIK'!AH61,IF(O60>1,O60,(0))) -> 0 | O60: 0 | P60: =IF((MONTH(PUANTAJ!$B$2))=3,' BORDRO HAZIRLIK'!AC61,IF(Q60>1,Q60,(0))) -> 0 | Q60: 0 | R60: =IF((MONTH(PUANTAJ!$B$2))=4,' BORDRO HAZIRLIK'!AH61,IF(S60>1,S60,(0))) -> 0 | S60: 0 | T60: =IF((MONTH(PUANTAJ!$B$2))=4,' BORDRO HAZIRLIK'!AC61,IF(U60>1,U60,(0))) -> 0 | U60: 0 | V60: =IF((MONTH(PUANTAJ!$B$2))=5,' BORDRO HAZIRLIK'!AH61,IF(W60>1,W60,(0))) -> 0 | W60: 0 | X60: =IF((MONTH(PUANTAJ!$B$2))=5,' BORDRO HAZIRLIK'!AC61,IF(Y60>1,Y60,(0))) -> 0 | Y60: 0 | Z60: =IF((MONTH(PUANTAJ!$B$2))=6,' BORDRO HAZIRLIK'!AH61,IF(AA60>1,AA60,(0))) -> 0 | AA60: 0 | AB60: =IF((MONTH(PUANTAJ!$B$2))=6,' BORDRO HAZIRLIK'!AC61,IF(AC60>1,AC60,(0))) -> 0 | AC60: 0 | AD60: =IF((MONTH(PUANTAJ!$B$2))=7,' BORDRO HAZIRLIK'!AH61,IF(AE60>1,AE60,(0))) -> 0 | AE60: 0 | AF60: =IF((MONTH(PUANTAJ!$B$2))=7,' BORDRO HAZIRLIK'!AC61,IF(AG60>1,AG60,(0))) -> 0 | AG60: 0 | AH60: =IF((MONTH(PUANTAJ!$B$2))=8,' BORDRO HAZIRLIK'!AH61,IF(AI60>1,AI60,(0))) -> 0 | AI60: 0 | AJ60: =IF((MONTH(PUANTAJ!$B$2))=8,' BORDRO HAZIRLIK'!AC61,IF(AK60>1,AK60,(0))) -> 0 | AK60: 0 | AL60: =IF((MONTH(PUANTAJ!$B$2))=9,' BORDRO HAZIRLIK'!AH61,IF(AM60>1,AM60,(0))) -> 0 | AM60: 0 | AN60: =IF((MONTH(PUANTAJ!$B$2))=9,' BORDRO HAZIRLIK'!AC61,IF(AO60>1,AO60,(0))) -> 0 | AO60: 0 | AP60: =IF((MONTH(PUANTAJ!$B$2))=10,' BORDRO HAZIRLIK'!AH61,IF(AQ60>1,AQ60,(0))) -> 0 | AQ60: 0 | AR60: =IF((MONTH(PUANTAJ!$B$2))=10,' BORDRO HAZIRLIK'!AC61,IF(AS60>1,AS60,(0))) -> 0 | AS60: 0 | AT60: =IF((MONTH(PUANTAJ!$B$2))=11,' BORDRO HAZIRLIK'!AH61,IF(AU60>1,AU60,(0))) -> 0 | AU60: 0 | AV60: =IF((MONTH(PUANTAJ!$B$2))=11,' BORDRO HAZIRLIK'!AC61,IF(AW60>1,AW60,(0))) -> 0 | AW60: 0 | AX60: =IF((MONTH(PUANTAJ!$B$2))=12,' BORDRO HAZIRLIK'!AH61,IF(AY60>1,AY60,(0))) -> 0 | AY60: 0 | AZ60: =IF((MONTH(PUANTAJ!$B$2))=12,' BORDRO HAZIRLIK'!AC61,IF(BA60>1,BA60,(0))) -> 0 | BA60: 0 | BB60: 0 | BC60: =' BORDRO HAZIRLIK'!AH61 -> 0 | BD60: 0 | BE60: 0 | BF60: =' BORDRO HAZIRLIK'!AC61 -> 0 | BG60: 0
B61: =PUANTAJ!A64 ->  | C61: =PUANTAJ!B64 ->  | D61: =BD61+'PERSONEL BİLGİ GİRİŞİ'!AC62 -> 0 | E61: =BG61+'PERSONEL BİLGİ GİRİŞİ'!AL62 -> 0 | F61: =IF((MONTH(PUANTAJ!$B$2))=1,' BORDRO HAZIRLIK'!AH62,IF(G61>1,G61,(0))) -> 0 | G61: 0 | H61: =IF((MONTH(PUANTAJ!$B$2))=1,' BORDRO HAZIRLIK'!AC62,IF(I61>1,I61,(0))) -> 0 | I61: 0 | J61: =IF((MONTH(PUANTAJ!$B$2))=2,' BORDRO HAZIRLIK'!AH62,IF(K61>1,K61,(0))) -> 0 | K61: 0 | L61: =IF((MONTH(PUANTAJ!$B$2))=2,' BORDRO HAZIRLIK'!AC62,IF(M61>1,M61,(0))) -> 0 | M61: 0 | N61: =IF((MONTH(PUANTAJ!$B$2))=3,' BORDRO HAZIRLIK'!AH62,IF(O61>1,O61,(0))) -> 0 | O61: 0 | P61: =IF((MONTH(PUANTAJ!$B$2))=3,' BORDRO HAZIRLIK'!AC62,IF(Q61>1,Q61,(0))) -> 0 | Q61: 0 | R61: =IF((MONTH(PUANTAJ!$B$2))=4,' BORDRO HAZIRLIK'!AH62,IF(S61>1,S61,(0))) -> 0 | S61: 0 | T61: =IF((MONTH(PUANTAJ!$B$2))=4,' BORDRO HAZIRLIK'!AC62,IF(U61>1,U61,(0))) -> 0 | U61: 0 | V61: =IF((MONTH(PUANTAJ!$B$2))=5,' BORDRO HAZIRLIK'!AH62,IF(W61>1,W61,(0))) -> 0 | W61: 0 | X61: =IF((MONTH(PUANTAJ!$B$2))=5,' BORDRO HAZIRLIK'!AC62,IF(Y61>1,Y61,(0))) -> 0 | Y61: 0 | Z61: =IF((MONTH(PUANTAJ!$B$2))=6,' BORDRO HAZIRLIK'!AH62,IF(AA61>1,AA61,(0))) -> 0 | AA61: 0 | AB61: =IF((MONTH(PUANTAJ!$B$2))=6,' BORDRO HAZIRLIK'!AC62,IF(AC61>1,AC61,(0))) -> 0 | AC61: 0 | AD61: =IF((MONTH(PUANTAJ!$B$2))=7,' BORDRO HAZIRLIK'!AH62,IF(AE61>1,AE61,(0))) -> 0 | AE61: 0 | AF61: =IF((MONTH(PUANTAJ!$B$2))=7,' BORDRO HAZIRLIK'!AC62,IF(AG61>1,AG61,(0))) -> 0 | AG61: 0 | AH61: =IF((MONTH(PUANTAJ!$B$2))=8,' BORDRO HAZIRLIK'!AH62,IF(AI61>1,AI61,(0))) -> 0 | AI61: 0 | AJ61: =IF((MONTH(PUANTAJ!$B$2))=8,' BORDRO HAZIRLIK'!AC62,IF(AK61>1,AK61,(0))) -> 0 | AK61: 0 | AL61: =IF((MONTH(PUANTAJ!$B$2))=9,' BORDRO HAZIRLIK'!AH62,IF(AM61>1,AM61,(0))) -> 0 | AM61: 0 | AN61: =IF((MONTH(PUANTAJ!$B$2))=9,' BORDRO HAZIRLIK'!AC62,IF(AO61>1,AO61,(0))) -> 0 | AO61: 0 | AP61: =IF((MONTH(PUANTAJ!$B$2))=10,' BORDRO HAZIRLIK'!AH62,IF(AQ61>1,AQ61,(0))) -> 0 | AQ61: 0 | AR61: =IF((MONTH(PUANTAJ!$B$2))=10,' BORDRO HAZIRLIK'!AC62,IF(AS61>1,AS61,(0))) -> 0 | AS61: 0 | AT61: =IF((MONTH(PUANTAJ!$B$2))=11,' BORDRO HAZIRLIK'!AH62,IF(AU61>1,AU61,(0))) -> 0 | AU61: 0 | AV61: =IF((MONTH(PUANTAJ!$B$2))=11,' BORDRO HAZIRLIK'!AC62,IF(AW61>1,AW61,(0))) -> 0 | AW61: 0 | AX61: =IF((MONTH(PUANTAJ!$B$2))=12,' BORDRO HAZIRLIK'!AH62,IF(AY61>1,AY61,(0))) -> 0 | AY61: 0 | AZ61: =IF((MONTH(PUANTAJ!$B$2))=12,' BORDRO HAZIRLIK'!AC62,IF(BA61>1,BA61,(0))) -> 0 | BA61: 0 | BB61: 0 | BC61: =' BORDRO HAZIRLIK'!AH62 -> 0 | BD61: 0 | BE61: 0 | BF61: =' BORDRO HAZIRLIK'!AC62 -> 0 | BG61: 0
B62: =PUANTAJ!A65 ->  | C62: =PUANTAJ!B65 ->  | D62: =BD62+'PERSONEL BİLGİ GİRİŞİ'!AC63 -> 0 | E62: =BG62+'PERSONEL BİLGİ GİRİŞİ'!AL63 -> 0 | F62: =IF((MONTH(PUANTAJ!$B$2))=1,' BORDRO HAZIRLIK'!AH63,IF(G62>1,G62,(0))) -> 0 | G62: 0 | H62: =IF((MONTH(PUANTAJ!$B$2))=1,' BORDRO HAZIRLIK'!AC63,IF(I62>1,I62,(0))) -> 0 | I62: 0 | J62: =IF((MONTH(PUANTAJ!$B$2))=2,' BORDRO HAZIRLIK'!AH63,IF(K62>1,K62,(0))) -> 0 | K62: 0 | L62: =IF((MONTH(PUANTAJ!$B$2))=2,' BORDRO HAZIRLIK'!AC63,IF(M62>1,M62,(0))) -> 0 | M62: 0 | N62: =IF((MONTH(PUANTAJ!$B$2))=3,' BORDRO HAZIRLIK'!AH63,IF(O62>1,O62,(0))) -> 0 | O62: 0 | P62: =IF((MONTH(PUANTAJ!$B$2))=3,' BORDRO HAZIRLIK'!AC63,IF(Q62>1,Q62,(0))) -> 0 | Q62: 0 | R62: =IF((MONTH(PUANTAJ!$B$2))=4,' BORDRO HAZIRLIK'!AH63,IF(S62>1,S62,(0))) -> 0 | S62: 0 | T62: =IF((MONTH(PUANTAJ!$B$2))=4,' BORDRO HAZIRLIK'!AC63,IF(U62>1,U62,(0))) -> 0 | U62: 0 | V62: =IF((MONTH(PUANTAJ!$B$2))=5,' BORDRO HAZIRLIK'!AH63,IF(W62>1,W62,(0))) -> 0 | W62: 0 | X62: =IF((MONTH(PUANTAJ!$B$2))=5,' BORDRO HAZIRLIK'!AC63,IF(Y62>1,Y62,(0))) -> 0 | Y62: 0 | Z62: =IF((MONTH(PUANTAJ!$B$2))=6,' BORDRO HAZIRLIK'!AH63,IF(AA62>1,AA62,(0))) -> 0 | AA62: 0 | AB62: =IF((MONTH(PUANTAJ!$B$2))=6,' BORDRO HAZIRLIK'!AC63,IF(AC62>1,AC62,(0))) -> 0 | AC62: 0 | AD62: =IF((MONTH(PUANTAJ!$B$2))=7,' BORDRO HAZIRLIK'!AH63,IF(AE62>1,AE62,(0))) -> 0 | AE62: 0 | AF62: =IF((MONTH(PUANTAJ!$B$2))=7,' BORDRO HAZIRLIK'!AC63,IF(AG62>1,AG62,(0))) -> 0 | AG62: 0 | AH62: =IF((MONTH(PUANTAJ!$B$2))=8,' BORDRO HAZIRLIK'!AH63,IF(AI62>1,AI62,(0))) -> 0 | AI62: 0 | AJ62: =IF((MONTH(PUANTAJ!$B$2))=8,' BORDRO HAZIRLIK'!AC63,IF(AK62>1,AK62,(0))) -> 0 | AK62: 0 | AL62: =IF((MONTH(PUANTAJ!$B$2))=9,' BORDRO HAZIRLIK'!AH63,IF(AM62>1,AM62,(0))) -> 0 | AM62: 0 | AN62: =IF((MONTH(PUANTAJ!$B$2))=9,' BORDRO HAZIRLIK'!AC63,IF(AO62>1,AO62,(0))) -> 0 | AO62: 0 | AP62: =IF((MONTH(PUANTAJ!$B$2))=10,' BORDRO HAZIRLIK'!AH63,IF(AQ62>1,AQ62,(0))) -> 0 | AQ62: 0 | AR62: =IF((MONTH(PUANTAJ!$B$2))=10,' BORDRO HAZIRLIK'!AC63,IF(AS62>1,AS62,(0))) -> 0 | AS62: 0 | AT62: =IF((MONTH(PUANTAJ!$B$2))=11,' BORDRO HAZIRLIK'!AH63,IF(AU62>1,AU62,(0))) -> 0 | AU62: 0 | AV62: =IF((MONTH(PUANTAJ!$B$2))=11,' BORDRO HAZIRLIK'!AC63,IF(AW62>1,AW62,(0))) -> 0 | AW62: 0 | AX62: =IF((MONTH(PUANTAJ!$B$2))=12,' BORDRO HAZIRLIK'!AH63,IF(AY62>1,AY62,(0))) -> 0 | AY62: 0 | AZ62: =IF((MONTH(PUANTAJ!$B$2))=12,' BORDRO HAZIRLIK'!AC63,IF(BA62>1,BA62,(0))) -> 0 | BA62: 0 | BB62: 0 | BC62: =' BORDRO HAZIRLIK'!AH63 -> 0 | BD62: 0 | BE62: 0 | BF62: =' BORDRO HAZIRLIK'!AC63 -> 0 | BG62: 0
B63: =PUANTAJ!A66 ->  | C63: =PUANTAJ!B66 ->  | D63: =BD63+'PERSONEL BİLGİ GİRİŞİ'!AC64 -> 0 | E63: =BG63+'PERSONEL BİLGİ GİRİŞİ'!AL64 -> 0 | F63: =IF((MONTH(PUANTAJ!$B$2))=1,' BORDRO HAZIRLIK'!AH64,IF(G63>1,G63,(0))) -> 0 | G63: 0 | H63: =IF((MONTH(PUANTAJ!$B$2))=1,' BORDRO HAZIRLIK'!AC64,IF(I63>1,I63,(0))) -> 0 | I63: 0 | J63: =IF((MONTH(PUANTAJ!$B$2))=2,' BORDRO HAZIRLIK'!AH64,IF(K63>1,K63,(0))) -> 0 | K63: 0 | L63: =IF((MONTH(PUANTAJ!$B$2))=2,' BORDRO HAZIRLIK'!AC64,IF(M63>1,M63,(0))) -> 0 | M63: 0 | N63: =IF((MONTH(PUANTAJ!$B$2))=3,' BORDRO HAZIRLIK'!AH64,IF(O63>1,O63,(0))) -> 0 | O63: 0 | P63: =IF((MONTH(PUANTAJ!$B$2))=3,' BORDRO HAZIRLIK'!AC64,IF(Q63>1,Q63,(0))) -> 0 | Q63: 0 | R63: =IF((MONTH(PUANTAJ!$B$2))=4,' BORDRO HAZIRLIK'!AH64,IF(S63>1,S63,(0))) -> 0 | S63: 0 | T63: =IF((MONTH(PUANTAJ!$B$2))=4,' BORDRO HAZIRLIK'!AC64,IF(U63>1,U63,(0))) -> 0 | U63: 0 | V63: =IF((MONTH(PUANTAJ!$B$2))=5,' BORDRO HAZIRLIK'!AH64,IF(W63>1,W63,(0))) -> 0 | W63: 0 | X63: =IF((MONTH(PUANTAJ!$B$2))=5,' BORDRO HAZIRLIK'!AC64,IF(Y63>1,Y63,(0))) -> 0 | Y63: 0 | Z63: =IF((MONTH(PUANTAJ!$B$2))=6,' BORDRO HAZIRLIK'!AH64,IF(AA63>1,AA63,(0))) -> 0 | AA63: 0 | AB63: =IF((MONTH(PUANTAJ!$B$2))=6,' BORDRO HAZIRLIK'!AC64,IF(AC63>1,AC63,(0))) -> 0 | AC63: 0 | AD63: =IF((MONTH(PUANTAJ!$B$2))=7,' BORDRO HAZIRLIK'!AH64,IF(AE63>1,AE63,(0))) -> 0 | AE63: 0 | AF63: =IF((MONTH(PUANTAJ!$B$2))=7,' BORDRO HAZIRLIK'!AC64,IF(AG63>1,AG63,(0))) -> 0 | AG63: 0 | AH63: =IF((MONTH(PUANTAJ!$B$2))=8,' BORDRO HAZIRLIK'!AH64,IF(AI63>1,AI63,(0))) -> 0 | AI63: 0 | AJ63: =IF((MONTH(PUANTAJ!$B$2))=8,' BORDRO HAZIRLIK'!AC64,IF(AK63>1,AK63,(0))) -> 0 | AK63: 0 | AL63: =IF((MONTH(PUANTAJ!$B$2))=9,' BORDRO HAZIRLIK'!AH64,IF(AM63>1,AM63,(0))) -> 0 | AM63: 0 | AN63: =IF((MONTH(PUANTAJ!$B$2))=9,' BORDRO HAZIRLIK'!AC64,IF(AO63>1,AO63,(0))) -> 0 | AO63: 0 | AP63: =IF((MONTH(PUANTAJ!$B$2))=10,' BORDRO HAZIRLIK'!AH64,IF(AQ63>1,AQ63,(0))) -> 0 | AQ63: 0 | AR63: =IF((MONTH(PUANTAJ!$B$2))=10,' BORDRO HAZIRLIK'!AC64,IF(AS63>1,AS63,(0))) -> 0 | AS63: 0 | AT63: =IF((MONTH(PUANTAJ!$B$2))=11,' BORDRO HAZIRLIK'!AH64,IF(AU63>1,AU63,(0))) -> 0 | AU63: 0 | AV63: =IF((MONTH(PUANTAJ!$B$2))=11,' BORDRO HAZIRLIK'!AC64,IF(AW63>1,AW63,(0))) -> 0 | AW63: 0 | AX63: =IF((MONTH(PUANTAJ!$B$2))=12,' BORDRO HAZIRLIK'!AH64,IF(AY63>1,AY63,(0))) -> 0 | AY63: 0 | AZ63: =IF((MONTH(PUANTAJ!$B$2))=12,' BORDRO HAZIRLIK'!AC64,IF(BA63>1,BA63,(0))) -> 0 | BA63: 0 | BB63: 0 | BC63: =' BORDRO HAZIRLIK'!AH64 -> 0 | BD63: 0 | BE63: 0 | BF63: =' BORDRO HAZIRLIK'!AC64 -> 0 | BG63: 0
B64: =PUANTAJ!A67 ->  | C64: =PUANTAJ!B67 ->  | D64: =BD64+'PERSONEL BİLGİ GİRİŞİ'!AC65 -> 0 | E64: =BG64+'PERSONEL BİLGİ GİRİŞİ'!AL65 -> 0 | F64: =IF((MONTH(PUANTAJ!$B$2))=1,' BORDRO HAZIRLIK'!AH65,IF(G64>1,G64,(0))) -> 0 | G64: 0 | H64: =IF((MONTH(PUANTAJ!$B$2))=1,' BORDRO HAZIRLIK'!AC65,IF(I64>1,I64,(0))) -> 0 | I64: 0 | J64: =IF((MONTH(PUANTAJ!$B$2))=2,' BORDRO HAZIRLIK'!AH65,IF(K64>1,K64,(0))) -> 0 | K64: 0 | L64: =IF((MONTH(PUANTAJ!$B$2))=2,' BORDRO HAZIRLIK'!AC65,IF(M64>1,M64,(0))) -> 0 | M64: 0 | N64: =IF((MONTH(PUANTAJ!$B$2))=3,' BORDRO HAZIRLIK'!AH65,IF(O64>1,O64,(0))) -> 0 | O64: 0 | P64: =IF((MONTH(PUANTAJ!$B$2))=3,' BORDRO HAZIRLIK'!AC65,IF(Q64>1,Q64,(0))) -> 0 | Q64: 0 | R64: =IF((MONTH(PUANTAJ!$B$2))=4,' BORDRO HAZIRLIK'!AH65,IF(S64>1,S64,(0))) -> 0 | S64: 0 | T64: =IF((MONTH(PUANTAJ!$B$2))=4,' BORDRO HAZIRLIK'!AC65,IF(U64>1,U64,(0))) -> 0 | U64: 0 | V64: =IF((MONTH(PUANTAJ!$B$2))=5,' BORDRO HAZIRLIK'!AH65,IF(W64>1,W64,(0))) -> 0 | W64: 0 | X64: =IF((MONTH(PUANTAJ!$B$2))=5,' BORDRO HAZIRLIK'!AC65,IF(Y64>1,Y64,(0))) -> 0 | Y64: 0 | Z64: =IF((MONTH(PUANTAJ!$B$2))=6,' BORDRO HAZIRLIK'!AH65,IF(AA64>1,AA64,(0))) -> 0 | AA64: 0 | AB64: =IF((MONTH(PUANTAJ!$B$2))=6,' BORDRO HAZIRLIK'!AC65,IF(AC64>1,AC64,(0))) -> 0 | AC64: 0 | AD64: =IF((MONTH(PUANTAJ!$B$2))=7,' BORDRO HAZIRLIK'!AH65,IF(AE64>1,AE64,(0))) -> 0 | AE64: 0 | AF64: =IF((MONTH(PUANTAJ!$B$2))=7,' BORDRO HAZIRLIK'!AC65,IF(AG64>1,AG64,(0))) -> 0 | AG64: 0 | AH64: =IF((MONTH(PUANTAJ!$B$2))=8,' BORDRO HAZIRLIK'!AH65,IF(AI64>1,AI64,(0))) -> 0 | AI64: 0 | AJ64: =IF((MONTH(PUANTAJ!$B$2))=8,' BORDRO HAZIRLIK'!AC65,IF(AK64>1,AK64,(0))) -> 0 | AK64: 0 | AL64: =IF((MONTH(PUANTAJ!$B$2))=9,' BORDRO HAZIRLIK'!AH65,IF(AM64>1,AM64,(0))) -> 0 | AM64: 0 | AN64: =IF((MONTH(PUANTAJ!$B$2))=9,' BORDRO HAZIRLIK'!AC65,IF(AO64>1,AO64,(0))) -> 0 | AO64: 0 | AP64: =IF((MONTH(PUANTAJ!$B$2))=10,' BORDRO HAZIRLIK'!AH65,IF(AQ64>1,AQ64,(0))) -> 0 | AQ64: 0 | AR64: =IF((MONTH(PUANTAJ!$B$2))=10,' BORDRO HAZIRLIK'!AC65,IF(AS64>1,AS64,(0))) -> 0 | AS64: 0 | AT64: =IF((MONTH(PUANTAJ!$B$2))=11,' BORDRO HAZIRLIK'!AH65,IF(AU64>1,AU64,(0))) -> 0 | AU64: 0 | AV64: =IF((MONTH(PUANTAJ!$B$2))=11,' BORDRO HAZIRLIK'!AC65,IF(AW64>1,AW64,(0))) -> 0 | AW64: 0 | AX64: =IF((MONTH(PUANTAJ!$B$2))=12,' BORDRO HAZIRLIK'!AH65,IF(AY64>1,AY64,(0))) -> 0 | AY64: 0 | AZ64: =IF((MONTH(PUANTAJ!$B$2))=12,' BORDRO HAZIRLIK'!AC65,IF(BA64>1,BA64,(0))) -> 0 | BA64: 0 | BB64: 0 | BC64: =' BORDRO HAZIRLIK'!AH65 -> 0 | BD64: 0 | BE64: 0 | BF64: =' BORDRO HAZIRLIK'!AC65 -> 0 | BG64: 0
B65: =PUANTAJ!A68 ->  | C65: =PUANTAJ!B68 ->  | D65: =BD65+'PERSONEL BİLGİ GİRİŞİ'!AC66 -> 0 | E65: =BG65+'PERSONEL BİLGİ GİRİŞİ'!AL66 -> 0 | F65: =IF((MONTH(PUANTAJ!$B$2))=1,' BORDRO HAZIRLIK'!AH66,IF(G65>1,G65,(0))) -> 0 | G65: 0 | H65: =IF((MONTH(PUANTAJ!$B$2))=1,' BORDRO HAZIRLIK'!AC66,IF(I65>1,I65,(0))) -> 0 | I65: 0 | J65: =IF((MONTH(PUANTAJ!$B$2))=2,' BORDRO HAZIRLIK'!AH66,IF(K65>1,K65,(0))) -> 0 | K65: 0 | L65: =IF((MONTH(PUANTAJ!$B$2))=2,' BORDRO HAZIRLIK'!AC66,IF(M65>1,M65,(0))) -> 0 | M65: 0 | N65: =IF((MONTH(PUANTAJ!$B$2))=3,' BORDRO HAZIRLIK'!AH66,IF(O65>1,O65,(0))) -> 0 | O65: 0 | P65: =IF((MONTH(PUANTAJ!$B$2))=3,' BORDRO HAZIRLIK'!AC66,IF(Q65>1,Q65,(0))) -> 0 | Q65: 0 | R65: =IF((MONTH(PUANTAJ!$B$2))=4,' BORDRO HAZIRLIK'!AH66,IF(S65>1,S65,(0))) -> 0 | S65: 0 | T65: =IF((MONTH(PUANTAJ!$B$2))=4,' BORDRO HAZIRLIK'!AC66,IF(U65>1,U65,(0))) -> 0 | U65: 0 | V65: =IF((MONTH(PUANTAJ!$B$2))=5,' BORDRO HAZIRLIK'!AH66,IF(W65>1,W65,(0))) -> 0 | W65: 0 | X65: =IF((MONTH(PUANTAJ!$B$2))=5,' BORDRO HAZIRLIK'!AC66,IF(Y65>1,Y65,(0))) -> 0 | Y65: 0 | Z65: =IF((MONTH(PUANTAJ!$B$2))=6,' BORDRO HAZIRLIK'!AH66,IF(AA65>1,AA65,(0))) -> 0 | AA65: 0 | AB65: =IF((MONTH(PUANTAJ!$B$2))=6,' BORDRO HAZIRLIK'!AC66,IF(AC65>1,AC65,(0))) -> 0 | AC65: 0 | AD65: =IF((MONTH(PUANTAJ!$B$2))=7,' BORDRO HAZIRLIK'!AH66,IF(AE65>1,AE65,(0))) -> 0 | AE65: 0 | AF65: =IF((MONTH(PUANTAJ!$B$2))=7,' BORDRO HAZIRLIK'!AC66,IF(AG65>1,AG65,(0))) -> 0 | AG65: 0 | AH65: =IF((MONTH(PUANTAJ!$B$2))=8,' BORDRO HAZIRLIK'!AH66,IF(AI65>1,AI65,(0))) -> 0 | AI65: 0 | AJ65: =IF((MONTH(PUANTAJ!$B$2))=8,' BORDRO HAZIRLIK'!AC66,IF(AK65>1,AK65,(0))) -> 0 | AK65: 0 | AL65: =IF((MONTH(PUANTAJ!$B$2))=9,' BORDRO HAZIRLIK'!AH66,IF(AM65>1,AM65,(0))) -> 0 | AM65: 0 | AN65: =IF((MONTH(PUANTAJ!$B$2))=9,' BORDRO HAZIRLIK'!AC66,IF(AO65>1,AO65,(0))) -> 0 | AO65: 0 | AP65: =IF((MONTH(PUANTAJ!$B$2))=10,' BORDRO HAZIRLIK'!AH66,IF(AQ65>1,AQ65,(0))) -> 0 | AQ65: 0 | AR65: =IF((MONTH(PUANTAJ!$B$2))=10,' BORDRO HAZIRLIK'!AC66,IF(AS65>1,AS65,(0))) -> 0 | AS65: 0 | AT65: =IF((MONTH(PUANTAJ!$B$2))=11,' BORDRO HAZIRLIK'!AH66,IF(AU65>1,AU65,(0))) -> 0 | AU65: 0 | AV65: =IF((MONTH(PUANTAJ!$B$2))=11,' BORDRO HAZIRLIK'!AC66,IF(AW65>1,AW65,(0))) -> 0 | AW65: 0 | AX65: =IF((MONTH(PUANTAJ!$B$2))=12,' BORDRO HAZIRLIK'!AH66,IF(AY65>1,AY65,(0))) -> 0 | AY65: 0 | AZ65: =IF((MONTH(PUANTAJ!$B$2))=12,' BORDRO HAZIRLIK'!AC66,IF(BA65>1,BA65,(0))) -> 0 | BA65: 0 | BB65: 0 | BC65: =' BORDRO HAZIRLIK'!AH66 -> 0 | BD65: 0 | BE65: 0 | BF65: =' BORDRO HAZIRLIK'!AC66 -> 0 | BG65: 0
B66: =PUANTAJ!A69 ->  | C66: =PUANTAJ!B69 ->  | D66: =BD66+'PERSONEL BİLGİ GİRİŞİ'!AC67 -> 0 | E66: =BG66+'PERSONEL BİLGİ GİRİŞİ'!AL67 -> 0 | F66: =IF((MONTH(PUANTAJ!$B$2))=1,' BORDRO HAZIRLIK'!AH67,IF(G66>1,G66,(0))) -> 0 | G66: 0 | H66: =IF((MONTH(PUANTAJ!$B$2))=1,' BORDRO HAZIRLIK'!AC67,IF(I66>1,I66,(0))) -> 0 | I66: 0 | J66: =IF((MONTH(PUANTAJ!$B$2))=2,' BORDRO HAZIRLIK'!AH67,IF(K66>1,K66,(0))) -> 0 | K66: 0 | L66: =IF((MONTH(PUANTAJ!$B$2))=2,' BORDRO HAZIRLIK'!AC67,IF(M66>1,M66,(0))) -> 0 | M66: 0 | N66: =IF((MONTH(PUANTAJ!$B$2))=3,' BORDRO HAZIRLIK'!AH67,IF(O66>1,O66,(0))) -> 0 | O66: 0 | P66: =IF((MONTH(PUANTAJ!$B$2))=3,' BORDRO HAZIRLIK'!AC67,IF(Q66>1,Q66,(0))) -> 0 | Q66: 0 | R66: =IF((MONTH(PUANTAJ!$B$2))=4,' BORDRO HAZIRLIK'!AH67,IF(S66>1,S66,(0))) -> 0 | S66: 0 | T66: =IF((MONTH(PUANTAJ!$B$2))=4,' BORDRO HAZIRLIK'!AC67,IF(U66>1,U66,(0))) -> 0 | U66: 0 | V66: =IF((MONTH(PUANTAJ!$B$2))=5,' BORDRO HAZIRLIK'!AH67,IF(W66>1,W66,(0))) -> 0 | W66: 0 | X66: =IF((MONTH(PUANTAJ!$B$2))=5,' BORDRO HAZIRLIK'!AC67,IF(Y66>1,Y66,(0))) -> 0 | Y66: 0 | Z66: =IF((MONTH(PUANTAJ!$B$2))=6,' BORDRO HAZIRLIK'!AH67,IF(AA66>1,AA66,(0))) -> 0 | AA66: 0 | AB66: =IF((MONTH(PUANTAJ!$B$2))=6,' BORDRO HAZIRLIK'!AC67,IF(AC66>1,AC66,(0))) -> 0 | AC66: 0 | AD66: =IF((MONTH(PUANTAJ!$B$2))=7,' BORDRO HAZIRLIK'!AH67,IF(AE66>1,AE66,(0))) -> 0 | AE66: 0 | AF66: =IF((MONTH(PUANTAJ!$B$2))=7,' BORDRO HAZIRLIK'!AC67,IF(AG66>1,AG66,(0))) -> 0 | AG66: 0 | AH66: =IF((MONTH(PUANTAJ!$B$2))=8,' BORDRO HAZIRLIK'!AH67,IF(AI66>1,AI66,(0))) -> 0 | AI66: 0 | AJ66: =IF((MONTH(PUANTAJ!$B$2))=8,' BORDRO HAZIRLIK'!AC67,IF(AK66>1,AK66,(0))) -> 0 | AK66: 0 | AL66: =IF((MONTH(PUANTAJ!$B$2))=9,' BORDRO HAZIRLIK'!AH67,IF(AM66>1,AM66,(0))) -> 0 | AM66: 0 | AN66: =IF((MONTH(PUANTAJ!$B$2))=9,' BORDRO HAZIRLIK'!AC67,IF(AO66>1,AO66,(0))) -> 0 | AO66: 0 | AP66: =IF((MONTH(PUANTAJ!$B$2))=10,' BORDRO HAZIRLIK'!AH67,IF(AQ66>1,AQ66,(0))) -> 0 | AQ66: 0 | AR66: =IF((MONTH(PUANTAJ!$B$2))=10,' BORDRO HAZIRLIK'!AC67,IF(AS66>1,AS66,(0))) -> 0 | AS66: 0 | AT66: =IF((MONTH(PUANTAJ!$B$2))=11,' BORDRO HAZIRLIK'!AH67,IF(AU66>1,AU66,(0))) -> 0 | AU66: 0 | AV66: =IF((MONTH(PUANTAJ!$B$2))=11,' BORDRO HAZIRLIK'!AC67,IF(AW66>1,AW66,(0))) -> 0 | AW66: 0 | AX66: =IF((MONTH(PUANTAJ!$B$2))=12,' BORDRO HAZIRLIK'!AH67,IF(AY66>1,AY66,(0))) -> 0 | AY66: 0 | AZ66: =IF((MONTH(PUANTAJ!$B$2))=12,' BORDRO HAZIRLIK'!AC67,IF(BA66>1,BA66,(0))) -> 0 | BA66: 0 | BB66: 0 | BC66: =' BORDRO HAZIRLIK'!AH67 -> 0 | BD66: 0 | BE66: 0 | BF66: =' BORDRO HAZIRLIK'!AC67 -> 0 | BG66: 0
B67: =PUANTAJ!A70 ->  | C67: =PUANTAJ!B70 ->  | D67: =BD67+'PERSONEL BİLGİ GİRİŞİ'!AC68 -> 0 | E67: =BG67+'PERSONEL BİLGİ GİRİŞİ'!AL68 -> 0 | F67: =IF((MONTH(PUANTAJ!$B$2))=1,' BORDRO HAZIRLIK'!AH68,IF(G67>1,G67,(0))) -> 0 | G67: 0 | H67: =IF((MONTH(PUANTAJ!$B$2))=1,' BORDRO HAZIRLIK'!AC68,IF(I67>1,I67,(0))) -> 0 | I67: 0 | J67: =IF((MONTH(PUANTAJ!$B$2))=2,' BORDRO HAZIRLIK'!AH68,IF(K67>1,K67,(0))) -> 0 | K67: 0 | L67: =IF((MONTH(PUANTAJ!$B$2))=2,' BORDRO HAZIRLIK'!AC68,IF(M67>1,M67,(0))) -> 0 | M67: 0 | N67: =IF((MONTH(PUANTAJ!$B$2))=3,' BORDRO HAZIRLIK'!AH68,IF(O67>1,O67,(0))) -> 0 | O67: 0 | P67: =IF((MONTH(PUANTAJ!$B$2))=3,' BORDRO HAZIRLIK'!AC68,IF(Q67>1,Q67,(0))) -> 0 | Q67: 0 | R67: =IF((MONTH(PUANTAJ!$B$2))=4,' BORDRO HAZIRLIK'!AH68,IF(S67>1,S67,(0))) -> 0 | S67: 0 | T67: =IF((MONTH(PUANTAJ!$B$2))=4,' BORDRO HAZIRLIK'!AC68,IF(U67>1,U67,(0))) -> 0 | U67: 0 | V67: =IF((MONTH(PUANTAJ!$B$2))=5,' BORDRO HAZIRLIK'!AH68,IF(W67>1,W67,(0))) -> 0 | W67: 0 | X67: =IF((MONTH(PUANTAJ!$B$2))=5,' BORDRO HAZIRLIK'!AC68,IF(Y67>1,Y67,(0))) -> 0 | Y67: 0 | Z67: =IF((MONTH(PUANTAJ!$B$2))=6,' BORDRO HAZIRLIK'!AH68,IF(AA67>1,AA67,(0))) -> 0 | AA67: 0 | AB67: =IF((MONTH(PUANTAJ!$B$2))=6,' BORDRO HAZIRLIK'!AC68,IF(AC67>1,AC67,(0))) -> 0 | AC67: 0 | AD67: =IF((MONTH(PUANTAJ!$B$2))=7,' BORDRO HAZIRLIK'!AH68,IF(AE67>1,AE67,(0))) -> 0 | AE67: 0 | AF67: =IF((MONTH(PUANTAJ!$B$2))=7,' BORDRO HAZIRLIK'!AC68,IF(AG67>1,AG67,(0))) -> 0 | AG67: 0 | AH67: =IF((MONTH(PUANTAJ!$B$2))=8,' BORDRO HAZIRLIK'!AH68,IF(AI67>1,AI67,(0))) -> 0 | AI67: 0 | AJ67: =IF((MONTH(PUANTAJ!$B$2))=8,' BORDRO HAZIRLIK'!AC68,IF(AK67>1,AK67,(0))) -> 0 | AK67: 0 | AL67: =IF((MONTH(PUANTAJ!$B$2))=9,' BORDRO HAZIRLIK'!AH68,IF(AM67>1,AM67,(0))) -> 0 | AM67: 0 | AN67: =IF((MONTH(PUANTAJ!$B$2))=9,' BORDRO HAZIRLIK'!AC68,IF(AO67>1,AO67,(0))) -> 0 | AO67: 0 | AP67: =IF((MONTH(PUANTAJ!$B$2))=10,' BORDRO HAZIRLIK'!AH68,IF(AQ67>1,AQ67,(0))) -> 0 | AQ67: 0 | AR67: =IF((MONTH(PUANTAJ!$B$2))=10,' BORDRO HAZIRLIK'!AC68,IF(AS67>1,AS67,(0))) -> 0 | AS67: 0 | AT67: =IF((MONTH(PUANTAJ!$B$2))=11,' BORDRO HAZIRLIK'!AH68,IF(AU67>1,AU67,(0))) -> 0 | AU67: 0 | AV67: =IF((MONTH(PUANTAJ!$B$2))=11,' BORDRO HAZIRLIK'!AC68,IF(AW67>1,AW67,(0))) -> 0 | AW67: 0 | AX67: =IF((MONTH(PUANTAJ!$B$2))=12,' BORDRO HAZIRLIK'!AH68,IF(AY67>1,AY67,(0))) -> 0 | AY67: 0 | AZ67: =IF((MONTH(PUANTAJ!$B$2))=12,' BORDRO HAZIRLIK'!AC68,IF(BA67>1,BA67,(0))) -> 0 | BA67: 0 | BB67: 0 | BC67: =' BORDRO HAZIRLIK'!AH68 -> 0 | BD67: 0 | BE67: 0 | BF67: =' BORDRO HAZIRLIK'!AC68 -> 0 | BG67: 0
B68: =PUANTAJ!A71 ->  | C68: =PUANTAJ!B71 ->  | D68: =BD68+'PERSONEL BİLGİ GİRİŞİ'!AC69 -> 0 | E68: =BG68+'PERSONEL BİLGİ GİRİŞİ'!AL69 -> 0 | F68: =IF((MONTH(PUANTAJ!$B$2))=1,' BORDRO HAZIRLIK'!AH69,IF(G68>1,G68,(0))) -> 0 | G68: 0 | H68: =IF((MONTH(PUANTAJ!$B$2))=1,' BORDRO HAZIRLIK'!AC69,IF(I68>1,I68,(0))) -> 0 | I68: 0 | J68: =IF((MONTH(PUANTAJ!$B$2))=2,' BORDRO HAZIRLIK'!AH69,IF(K68>1,K68,(0))) -> 0 | K68: 0 | L68: =IF((MONTH(PUANTAJ!$B$2))=2,' BORDRO HAZIRLIK'!AC69,IF(M68>1,M68,(0))) -> 0 | M68: 0 | N68: =IF((MONTH(PUANTAJ!$B$2))=3,' BORDRO HAZIRLIK'!AH69,IF(O68>1,O68,(0))) -> 0 | O68: 0 | P68: =IF((MONTH(PUANTAJ!$B$2))=3,' BORDRO HAZIRLIK'!AC69,IF(Q68>1,Q68,(0))) -> 0 | Q68: 0 | R68: =IF((MONTH(PUANTAJ!$B$2))=4,' BORDRO HAZIRLIK'!AH69,IF(S68>1,S68,(0))) -> 0 | S68: 0 | T68: =IF((MONTH(PUANTAJ!$B$2))=4,' BORDRO HAZIRLIK'!AC69,IF(U68>1,U68,(0))) -> 0 | U68: 0 | V68: =IF((MONTH(PUANTAJ!$B$2))=5,' BORDRO HAZIRLIK'!AH69,IF(W68>1,W68,(0))) -> 0 | W68: 0 | X68: =IF((MONTH(PUANTAJ!$B$2))=5,' BORDRO HAZIRLIK'!AC69,IF(Y68>1,Y68,(0))) -> 0 | Y68: 0 | Z68: =IF((MONTH(PUANTAJ!$B$2))=6,' BORDRO HAZIRLIK'!AH69,IF(AA68>1,AA68,(0))) -> 0 | AA68: 0 | AB68: =IF((MONTH(PUANTAJ!$B$2))=6,' BORDRO HAZIRLIK'!AC69,IF(AC68>1,AC68,(0))) -> 0 | AC68: 0 | AD68: =IF((MONTH(PUANTAJ!$B$2))=7,' BORDRO HAZIRLIK'!AH69,IF(AE68>1,AE68,(0))) -> 0 | AE68: 0 | AF68: =IF((MONTH(PUANTAJ!$B$2))=7,' BORDRO HAZIRLIK'!AC69,IF(AG68>1,AG68,(0))) -> 0 | AG68: 0 | AH68: =IF((MONTH(PUANTAJ!$B$2))=8,' BORDRO HAZIRLIK'!AH69,IF(AI68>1,AI68,(0))) -> 0 | AI68: 0 | AJ68: =IF((MONTH(PUANTAJ!$B$2))=8,' BORDRO HAZIRLIK'!AC69,IF(AK68>1,AK68,(0))) -> 0 | AK68: 0 | AL68: =IF((MONTH(PUANTAJ!$B$2))=9,' BORDRO HAZIRLIK'!AH69,IF(AM68>1,AM68,(0))) -> 0 | AM68: 0 | AN68: =IF((MONTH(PUANTAJ!$B$2))=9,' BORDRO HAZIRLIK'!AC69,IF(AO68>1,AO68,(0))) -> 0 | AO68: 0 | AP68: =IF((MONTH(PUANTAJ!$B$2))=10,' BORDRO HAZIRLIK'!AH69,IF(AQ68>1,AQ68,(0))) -> 0 | AQ68: 0 | AR68: =IF((MONTH(PUANTAJ!$B$2))=10,' BORDRO HAZIRLIK'!AC69,IF(AS68>1,AS68,(0))) -> 0 | AS68: 0 | AT68: =IF((MONTH(PUANTAJ!$B$2))=11,' BORDRO HAZIRLIK'!AH69,IF(AU68>1,AU68,(0))) -> 0 | AU68: 0 | AV68: =IF((MONTH(PUANTAJ!$B$2))=11,' BORDRO HAZIRLIK'!AC69,IF(AW68>1,AW68,(0))) -> 0 | AW68: 0 | AX68: =IF((MONTH(PUANTAJ!$B$2))=12,' BORDRO HAZIRLIK'!AH69,IF(AY68>1,AY68,(0))) -> 0 | AY68: 0 | AZ68: =IF((MONTH(PUANTAJ!$B$2))=12,' BORDRO HAZIRLIK'!AC69,IF(BA68>1,BA68,(0))) -> 0 | BA68: 0 | BB68: 0 | BC68: =' BORDRO HAZIRLIK'!AH69 -> 0 | BD68: 0 | BE68: 0 | BF68: =' BORDRO HAZIRLIK'!AC69 -> 0 | BG68: 0
B69: =PUANTAJ!A72 ->  | C69: =PUANTAJ!B72 ->  | D69: =BD69+'PERSONEL BİLGİ GİRİŞİ'!AC70 -> 0 | E69: =BG69+'PERSONEL BİLGİ GİRİŞİ'!AL70 -> 0 | F69: =IF((MONTH(PUANTAJ!$B$2))=1,' BORDRO HAZIRLIK'!AH70,IF(G69>1,G69,(0))) -> 0 | G69: 0 | H69: =IF((MONTH(PUANTAJ!$B$2))=1,' BORDRO HAZIRLIK'!AC70,IF(I69>1,I69,(0))) -> 0 | I69: 0 | J69: =IF((MONTH(PUANTAJ!$B$2))=2,' BORDRO HAZIRLIK'!AH70,IF(K69>1,K69,(0))) -> 0 | K69: 0 | L69: =IF((MONTH(PUANTAJ!$B$2))=2,' BORDRO HAZIRLIK'!AC70,IF(M69>1,M69,(0))) -> 0 | M69: 0 | N69: =IF((MONTH(PUANTAJ!$B$2))=3,' BORDRO HAZIRLIK'!AH70,IF(O69>1,O69,(0))) -> 0 | O69: 0 | P69: =IF((MONTH(PUANTAJ!$B$2))=3,' BORDRO HAZIRLIK'!AC70,IF(Q69>1,Q69,(0))) -> 0 | Q69: 0 | R69: =IF((MONTH(PUANTAJ!$B$2))=4,' BORDRO HAZIRLIK'!AH70,IF(S69>1,S69,(0))) -> 0 | S69: 0 | T69: =IF((MONTH(PUANTAJ!$B$2))=4,' BORDRO HAZIRLIK'!AC70,IF(U69>1,U69,(0))) -> 0 | U69: 0 | V69: =IF((MONTH(PUANTAJ!$B$2))=5,' BORDRO HAZIRLIK'!AH70,IF(W69>1,W69,(0))) -> 0 | W69: 0 | X69: =IF((MONTH(PUANTAJ!$B$2))=5,' BORDRO HAZIRLIK'!AC70,IF(Y69>1,Y69,(0))) -> 0 | Y69: 0 | Z69: =IF((MONTH(PUANTAJ!$B$2))=6,' BORDRO HAZIRLIK'!AH70,IF(AA69>1,AA69,(0))) -> 0 | AA69: 0 | AB69: =IF((MONTH(PUANTAJ!$B$2))=6,' BORDRO HAZIRLIK'!AC70,IF(AC69>1,AC69,(0))) -> 0 | AC69: 0 | AD69: =IF((MONTH(PUANTAJ!$B$2))=7,' BORDRO HAZIRLIK'!AH70,IF(AE69>1,AE69,(0))) -> 0 | AE69: 0 | AF69: =IF((MONTH(PUANTAJ!$B$2))=7,' BORDRO HAZIRLIK'!AC70,IF(AG69>1,AG69,(0))) -> 0 | AG69: 0 | AH69: =IF((MONTH(PUANTAJ!$B$2))=8,' BORDRO HAZIRLIK'!AH70,IF(AI69>1,AI69,(0))) -> 0 | AI69: 0 | AJ69: =IF((MONTH(PUANTAJ!$B$2))=8,' BORDRO HAZIRLIK'!AC70,IF(AK69>1,AK69,(0))) -> 0 | AK69: 0 | AL69: =IF((MONTH(PUANTAJ!$B$2))=9,' BORDRO HAZIRLIK'!AH70,IF(AM69>1,AM69,(0))) -> 0 | AM69: 0 | AN69: =IF((MONTH(PUANTAJ!$B$2))=9,' BORDRO HAZIRLIK'!AC70,IF(AO69>1,AO69,(0))) -> 0 | AO69: 0 | AP69: =IF((MONTH(PUANTAJ!$B$2))=10,' BORDRO HAZIRLIK'!AH70,IF(AQ69>1,AQ69,(0))) -> 0 | AQ69: 0 | AR69: =IF((MONTH(PUANTAJ!$B$2))=10,' BORDRO HAZIRLIK'!AC70,IF(AS69>1,AS69,(0))) -> 0 | AS69: 0 | AT69: =IF((MONTH(PUANTAJ!$B$2))=11,' BORDRO HAZIRLIK'!AH70,IF(AU69>1,AU69,(0))) -> 0 | AU69: 0 | AV69: =IF((MONTH(PUANTAJ!$B$2))=11,' BORDRO HAZIRLIK'!AC70,IF(AW69>1,AW69,(0))) -> 0 | AW69: 0 | AX69: =IF((MONTH(PUANTAJ!$B$2))=12,' BORDRO HAZIRLIK'!AH70,IF(AY69>1,AY69,(0))) -> 0 | AY69: 0 | AZ69: =IF((MONTH(PUANTAJ!$B$2))=12,' BORDRO HAZIRLIK'!AC70,IF(BA69>1,BA69,(0))) -> 0 | BA69: 0 | BB69: =G69+K69+O69+S69+W69+AA69+AE69+AI69+AM69+AQ69+AU69+AY69 -> 0 | BC69: =' BORDRO HAZIRLIK'!AH70 -> 0 | BD69: =BB69+BC69 -> 0 | BE69: =I69+M69+Q69+U69+Y69+AC69+AG69+AK69+AO69+AS69+AW69+BA69 -> 0 | BF69: =' BORDRO HAZIRLIK'!AC70 -> 0 | BG69: =BE69+BF69 -> 0
B70: =PUANTAJ!A73 ->  | C70: =PUANTAJ!B73 ->  | D70: =BD70+'PERSONEL BİLGİ GİRİŞİ'!AC71 -> 0 | E70: =BG70+'PERSONEL BİLGİ GİRİŞİ'!AL71 -> 0 | F70: =IF((MONTH(PUANTAJ!$B$2))=1,' BORDRO HAZIRLIK'!AH71,IF(G70>1,G70,(0))) -> 0 | G70: 0 | H70: =IF((MONTH(PUANTAJ!$B$2))=1,' BORDRO HAZIRLIK'!AC71,IF(I70>1,I70,(0))) -> 0 | I70: 0 | J70: =IF((MONTH(PUANTAJ!$B$2))=2,' BORDRO HAZIRLIK'!AH71,IF(K70>1,K70,(0))) -> 0 | K70: 0 | L70: =IF((MONTH(PUANTAJ!$B$2))=2,' BORDRO HAZIRLIK'!AC71,IF(M70>1,M70,(0))) -> 0 | M70: 0 | N70: =IF((MONTH(PUANTAJ!$B$2))=3,' BORDRO HAZIRLIK'!AH71,IF(O70>1,O70,(0))) -> 0 | O70: 0 | P70: =IF((MONTH(PUANTAJ!$B$2))=3,' BORDRO HAZIRLIK'!AC71,IF(Q70>1,Q70,(0))) -> 0 | Q70: 0 | R70: =IF((MONTH(PUANTAJ!$B$2))=4,' BORDRO HAZIRLIK'!AH71,IF(S70>1,S70,(0))) -> 0 | S70: 0 | T70: =IF((MONTH(PUANTAJ!$B$2))=4,' BORDRO HAZIRLIK'!AC71,IF(U70>1,U70,(0))) -> 0 | U70: 0 | V70: =IF((MONTH(PUANTAJ!$B$2))=5,' BORDRO HAZIRLIK'!AH71,IF(W70>1,W70,(0))) -> 0 | W70: 0 | X70: =IF((MONTH(PUANTAJ!$B$2))=5,' BORDRO HAZIRLIK'!AC71,IF(Y70>1,Y70,(0))) -> 0 | Y70: 0 | Z70: =IF((MONTH(PUANTAJ!$B$2))=6,' BORDRO HAZIRLIK'!AH71,IF(AA70>1,AA70,(0))) -> 0 | AA70: 0 | AB70: =IF((MONTH(PUANTAJ!$B$2))=6,' BORDRO HAZIRLIK'!AC71,IF(AC70>1,AC70,(0))) -> 0 | AC70: 0 | AD70: =IF((MONTH(PUANTAJ!$B$2))=7,' BORDRO HAZIRLIK'!AH71,IF(AE70>1,AE70,(0))) -> 0 | AE70: 0 | AF70: =IF((MONTH(PUANTAJ!$B$2))=7,' BORDRO HAZIRLIK'!AC71,IF(AG70>1,AG70,(0))) -> 0 | AG70: 0 | AH70: =IF((MONTH(PUANTAJ!$B$2))=8,' BORDRO HAZIRLIK'!AH71,IF(AI70>1,AI70,(0))) -> 0 | AI70: 0 | AJ70: =IF((MONTH(PUANTAJ!$B$2))=8,' BORDRO HAZIRLIK'!AC71,IF(AK70>1,AK70,(0))) -> 0 | AK70: 0 | AL70: =IF((MONTH(PUANTAJ!$B$2))=9,' BORDRO HAZIRLIK'!AH71,IF(AM70>1,AM70,(0))) -> 0 | AM70: 0 | AN70: =IF((MONTH(PUANTAJ!$B$2))=9,' BORDRO HAZIRLIK'!AC71,IF(AO70>1,AO70,(0))) -> 0 | AO70: 0 | AP70: =IF((MONTH(PUANTAJ!$B$2))=10,' BORDRO HAZIRLIK'!AH71,IF(AQ70>1,AQ70,(0))) -> 0 | AQ70: 0 | AR70: =IF((MONTH(PUANTAJ!$B$2))=10,' BORDRO HAZIRLIK'!AC71,IF(AS70>1,AS70,(0))) -> 0 | AS70: 0 | AT70: =IF((MONTH(PUANTAJ!$B$2))=11,' BORDRO HAZIRLIK'!AH71,IF(AU70>1,AU70,(0))) -> 0 | AU70: 0 | AV70: =IF((MONTH(PUANTAJ!$B$2))=11,' BORDRO HAZIRLIK'!AC71,IF(AW70>1,AW70,(0))) -> 0 | AW70: 0 | AX70: =IF((MONTH(PUANTAJ!$B$2))=12,' BORDRO HAZIRLIK'!AH71,IF(AY70>1,AY70,(0))) -> 0 | AY70: 0 | AZ70: =IF((MONTH(PUANTAJ!$B$2))=12,' BORDRO HAZIRLIK'!AC71,IF(BA70>1,BA70,(0))) -> 0 | BA70: 0 | BB70: 0 | BC70: =' BORDRO HAZIRLIK'!AH71 -> 0 | BD70: 0 | BE70: 0 | BF70: =' BORDRO HAZIRLIK'!AC71 -> 0 | BG70: 0
B71: =PUANTAJ!A74 ->  | C71: =PUANTAJ!B74 ->  | D71: =BD71+'PERSONEL BİLGİ GİRİŞİ'!AC72 -> 0 | E71: =BG71+'PERSONEL BİLGİ GİRİŞİ'!AL72 -> 0 | F71: =IF((MONTH(PUANTAJ!$B$2))=1,' BORDRO HAZIRLIK'!AH72,IF(G71>1,G71,(0))) -> 0 | G71: 0 | H71: =IF((MONTH(PUANTAJ!$B$2))=1,' BORDRO HAZIRLIK'!AC72,IF(I71>1,I71,(0))) -> 0 | I71: 0 | J71: =IF((MONTH(PUANTAJ!$B$2))=2,' BORDRO HAZIRLIK'!AH72,IF(K71>1,K71,(0))) -> 0 | K71: 0 | L71: =IF((MONTH(PUANTAJ!$B$2))=2,' BORDRO HAZIRLIK'!AC72,IF(M71>1,M71,(0))) -> 0 | M71: 0 | N71: =IF((MONTH(PUANTAJ!$B$2))=3,' BORDRO HAZIRLIK'!AH72,IF(O71>1,O71,(0))) -> 0 | O71: 0 | P71: =IF((MONTH(PUANTAJ!$B$2))=3,' BORDRO HAZIRLIK'!AC72,IF(Q71>1,Q71,(0))) -> 0 | Q71: 0 | R71: =IF((MONTH(PUANTAJ!$B$2))=4,' BORDRO HAZIRLIK'!AH72,IF(S71>1,S71,(0))) -> 0 | S71: 0 | T71: =IF((MONTH(PUANTAJ!$B$2))=4,' BORDRO HAZIRLIK'!AC72,IF(U71>1,U71,(0))) -> 0 | U71: 0 | V71: =IF((MONTH(PUANTAJ!$B$2))=5,' BORDRO HAZIRLIK'!AH72,IF(W71>1,W71,(0))) -> 0 | W71: 0 | X71: =IF((MONTH(PUANTAJ!$B$2))=5,' BORDRO HAZIRLIK'!AC72,IF(Y71>1,Y71,(0))) -> 0 | Y71: 0 | Z71: =IF((MONTH(PUANTAJ!$B$2))=6,' BORDRO HAZIRLIK'!AH72,IF(AA71>1,AA71,(0))) -> 0 | AA71: 0 | AB71: =IF((MONTH(PUANTAJ!$B$2))=6,' BORDRO HAZIRLIK'!AC72,IF(AC71>1,AC71,(0))) -> 0 | AC71: 0 | AD71: =IF((MONTH(PUANTAJ!$B$2))=7,' BORDRO HAZIRLIK'!AH72,IF(AE71>1,AE71,(0))) -> 0 | AE71: 0 | AF71: =IF((MONTH(PUANTAJ!$B$2))=7,' BORDRO HAZIRLIK'!AC72,IF(AG71>1,AG71,(0))) -> 0 | AG71: 0 | AH71: =IF((MONTH(PUANTAJ!$B$2))=8,' BORDRO HAZIRLIK'!AH72,IF(AI71>1,AI71,(0))) -> 0 | AI71: 0 | AJ71: =IF((MONTH(PUANTAJ!$B$2))=8,' BORDRO HAZIRLIK'!AC72,IF(AK71>1,AK71,(0))) -> 0 | AK71: 0 | AL71: =IF((MONTH(PUANTAJ!$B$2))=9,' BORDRO HAZIRLIK'!AH72,IF(AM71>1,AM71,(0))) -> 0 | AM71: 0 | AN71: =IF((MONTH(PUANTAJ!$B$2))=9,' BORDRO HAZIRLIK'!AC72,IF(AO71>1,AO71,(0))) -> 0 | AO71: 0 | AP71: =IF((MONTH(PUANTAJ!$B$2))=10,' BORDRO HAZIRLIK'!AH72,IF(AQ71>1,AQ71,(0))) -> 0 | AQ71: 0 | AR71: =IF((MONTH(PUANTAJ!$B$2))=10,' BORDRO HAZIRLIK'!AC72,IF(AS71>1,AS71,(0))) -> 0 | AS71: 0 | AT71: =IF((MONTH(PUANTAJ!$B$2))=11,' BORDRO HAZIRLIK'!AH72,IF(AU71>1,AU71,(0))) -> 0 | AU71: 0 | AV71: =IF((MONTH(PUANTAJ!$B$2))=11,' BORDRO HAZIRLIK'!AC72,IF(AW71>1,AW71,(0))) -> 0 | AW71: 0 | AX71: =IF((MONTH(PUANTAJ!$B$2))=12,' BORDRO HAZIRLIK'!AH72,IF(AY71>1,AY71,(0))) -> 0 | AY71: 0 | AZ71: =IF((MONTH(PUANTAJ!$B$2))=12,' BORDRO HAZIRLIK'!AC72,IF(BA71>1,BA71,(0))) -> 0 | BA71: 0 | BB71: 0 | BC71: =' BORDRO HAZIRLIK'!AH72 -> 0 | BD71: 0 | BE71: 0 | BF71: =' BORDRO HAZIRLIK'!AC72 -> 0 | BG71: 0
B72: =PUANTAJ!A75 ->  | C72: =PUANTAJ!B75 ->  | D72: =BD72+'PERSONEL BİLGİ GİRİŞİ'!AC73 -> 0 | E72: =BG72+'PERSONEL BİLGİ GİRİŞİ'!AL73 -> 0 | F72: =IF((MONTH(PUANTAJ!$B$2))=1,' BORDRO HAZIRLIK'!AH73,IF(G72>1,G72,(0))) -> 0 | G72: 0 | H72: =IF((MONTH(PUANTAJ!$B$2))=1,' BORDRO HAZIRLIK'!AC73,IF(I72>1,I72,(0))) -> 0 | I72: 0 | J72: =IF((MONTH(PUANTAJ!$B$2))=2,' BORDRO HAZIRLIK'!AH73,IF(K72>1,K72,(0))) -> 0 | K72: 0 | L72: =IF((MONTH(PUANTAJ!$B$2))=2,' BORDRO HAZIRLIK'!AC73,IF(M72>1,M72,(0))) -> 0 | M72: 0 | N72: =IF((MONTH(PUANTAJ!$B$2))=3,' BORDRO HAZIRLIK'!AH73,IF(O72>1,O72,(0))) -> 0 | O72: 0 | P72: =IF((MONTH(PUANTAJ!$B$2))=3,' BORDRO HAZIRLIK'!AC73,IF(Q72>1,Q72,(0))) -> 0 | Q72: 0 | R72: =IF((MONTH(PUANTAJ!$B$2))=4,' BORDRO HAZIRLIK'!AH73,IF(S72>1,S72,(0))) -> 0 | S72: 0 | T72: =IF((MONTH(PUANTAJ!$B$2))=4,' BORDRO HAZIRLIK'!AC73,IF(U72>1,U72,(0))) -> 0 | U72: 0 | V72: =IF((MONTH(PUANTAJ!$B$2))=5,' BORDRO HAZIRLIK'!AH73,IF(W72>1,W72,(0))) -> 0 | W72: 0 | X72: =IF((MONTH(PUANTAJ!$B$2))=5,' BORDRO HAZIRLIK'!AC73,IF(Y72>1,Y72,(0))) -> 0 | Y72: 0 | Z72: =IF((MONTH(PUANTAJ!$B$2))=6,' BORDRO HAZIRLIK'!AH73,IF(AA72>1,AA72,(0))) -> 0 | AA72: 0 | AB72: =IF((MONTH(PUANTAJ!$B$2))=6,' BORDRO HAZIRLIK'!AC73,IF(AC72>1,AC72,(0))) -> 0 | AC72: 0 | AD72: =IF((MONTH(PUANTAJ!$B$2))=7,' BORDRO HAZIRLIK'!AH73,IF(AE72>1,AE72,(0))) -> 0 | AE72: 0 | AF72: =IF((MONTH(PUANTAJ!$B$2))=7,' BORDRO HAZIRLIK'!AC73,IF(AG72>1,AG72,(0))) -> 0 | AG72: 0 | AH72: =IF((MONTH(PUANTAJ!$B$2))=8,' BORDRO HAZIRLIK'!AH73,IF(AI72>1,AI72,(0))) -> 0 | AI72: 0 | AJ72: =IF((MONTH(PUANTAJ!$B$2))=8,' BORDRO HAZIRLIK'!AC73,IF(AK72>1,AK72,(0))) -> 0 | AK72: 0 | AL72: =IF((MONTH(PUANTAJ!$B$2))=9,' BORDRO HAZIRLIK'!AH73,IF(AM72>1,AM72,(0))) -> 0 | AM72: 0 | AN72: =IF((MONTH(PUANTAJ!$B$2))=9,' BORDRO HAZIRLIK'!AC73,IF(AO72>1,AO72,(0))) -> 0 | AO72: 0 | AP72: =IF((MONTH(PUANTAJ!$B$2))=10,' BORDRO HAZIRLIK'!AH73,IF(AQ72>1,AQ72,(0))) -> 0 | AQ72: 0 | AR72: =IF((MONTH(PUANTAJ!$B$2))=10,' BORDRO HAZIRLIK'!AC73,IF(AS72>1,AS72,(0))) -> 0 | AS72: 0 | AT72: =IF((MONTH(PUANTAJ!$B$2))=11,' BORDRO HAZIRLIK'!AH73,IF(AU72>1,AU72,(0))) -> 0 | AU72: 0 | AV72: =IF((MONTH(PUANTAJ!$B$2))=11,' BORDRO HAZIRLIK'!AC73,IF(AW72>1,AW72,(0))) -> 0 | AW72: 0 | AX72: =IF((MONTH(PUANTAJ!$B$2))=12,' BORDRO HAZIRLIK'!AH73,IF(AY72>1,AY72,(0))) -> 0 | AY72: 0 | AZ72: =IF((MONTH(PUANTAJ!$B$2))=12,' BORDRO HAZIRLIK'!AC73,IF(BA72>1,BA72,(0))) -> 0 | BA72: 0 | BB72: 0 | BC72: =' BORDRO HAZIRLIK'!AH73 -> 0 | BD72: 0 | BE72: 0 | BF72: =' BORDRO HAZIRLIK'!AC73 -> 0 | BG72: 0
B73: =PUANTAJ!A76 ->  | C73: =PUANTAJ!B76 ->  | D73: =BD73+'PERSONEL BİLGİ GİRİŞİ'!AC74 -> 0 | E73: =BG73+'PERSONEL BİLGİ GİRİŞİ'!AL74 -> 0 | F73: =IF((MONTH(PUANTAJ!$B$2))=1,' BORDRO HAZIRLIK'!AH74,IF(G73>1,G73,(0))) -> 0 | G73: 0 | H73: =IF((MONTH(PUANTAJ!$B$2))=1,' BORDRO HAZIRLIK'!AC74,IF(I73>1,I73,(0))) -> 0 | I73: 0 | J73: =IF((MONTH(PUANTAJ!$B$2))=2,' BORDRO HAZIRLIK'!AH74,IF(K73>1,K73,(0))) -> 0 | K73: 0 | L73: =IF((MONTH(PUANTAJ!$B$2))=2,' BORDRO HAZIRLIK'!AC74,IF(M73>1,M73,(0))) -> 0 | M73: 0 | N73: =IF((MONTH(PUANTAJ!$B$2))=3,' BORDRO HAZIRLIK'!AH74,IF(O73>1,O73,(0))) -> 0 | O73: 0 | P73: =IF((MONTH(PUANTAJ!$B$2))=3,' BORDRO HAZIRLIK'!AC74,IF(Q73>1,Q73,(0))) -> 0 | Q73: 0 | R73: =IF((MONTH(PUANTAJ!$B$2))=4,' BORDRO HAZIRLIK'!AH74,IF(S73>1,S73,(0))) -> 0 | S73: 0 | T73: =IF((MONTH(PUANTAJ!$B$2))=4,' BORDRO HAZIRLIK'!AC74,IF(U73>1,U73,(0))) -> 0 | U73: 0 | V73: =IF((MONTH(PUANTAJ!$B$2))=5,' BORDRO HAZIRLIK'!AH74,IF(W73>1,W73,(0))) -> 0 | W73: 0 | X73: =IF((MONTH(PUANTAJ!$B$2))=5,' BORDRO HAZIRLIK'!AC74,IF(Y73>1,Y73,(0))) -> 0 | Y73: 0 | Z73: =IF((MONTH(PUANTAJ!$B$2))=6,' BORDRO HAZIRLIK'!AH74,IF(AA73>1,AA73,(0))) -> 0 | AA73: 0 | AB73: =IF((MONTH(PUANTAJ!$B$2))=6,' BORDRO HAZIRLIK'!AC74,IF(AC73>1,AC73,(0))) -> 0 | AC73: 0 | AD73: =IF((MONTH(PUANTAJ!$B$2))=7,' BORDRO HAZIRLIK'!AH74,IF(AE73>1,AE73,(0))) -> 0 | AE73: 0 | AF73: =IF((MONTH(PUANTAJ!$B$2))=7,' BORDRO HAZIRLIK'!AC74,IF(AG73>1,AG73,(0))) -> 0 | AG73: 0 | AH73: =IF((MONTH(PUANTAJ!$B$2))=8,' BORDRO HAZIRLIK'!AH74,IF(AI73>1,AI73,(0))) -> 0 | AI73: 0 | AJ73: =IF((MONTH(PUANTAJ!$B$2))=8,' BORDRO HAZIRLIK'!AC74,IF(AK73>1,AK73,(0))) -> 0 | AK73: 0 | AL73: =IF((MONTH(PUANTAJ!$B$2))=9,' BORDRO HAZIRLIK'!AH74,IF(AM73>1,AM73,(0))) -> 0 | AM73: 0 | AN73: =IF((MONTH(PUANTAJ!$B$2))=9,' BORDRO HAZIRLIK'!AC74,IF(AO73>1,AO73,(0))) -> 0 | AO73: 0 | AP73: =IF((MONTH(PUANTAJ!$B$2))=10,' BORDRO HAZIRLIK'!AH74,IF(AQ73>1,AQ73,(0))) -> 0 | AQ73: 0 | AR73: =IF((MONTH(PUANTAJ!$B$2))=10,' BORDRO HAZIRLIK'!AC74,IF(AS73>1,AS73,(0))) -> 0 | AS73: 0 | AT73: =IF((MONTH(PUANTAJ!$B$2))=11,' BORDRO HAZIRLIK'!AH74,IF(AU73>1,AU73,(0))) -> 0 | AU73: 0 | AV73: =IF((MONTH(PUANTAJ!$B$2))=11,' BORDRO HAZIRLIK'!AC74,IF(AW73>1,AW73,(0))) -> 0 | AW73: 0 | AX73: =IF((MONTH(PUANTAJ!$B$2))=12,' BORDRO HAZIRLIK'!AH74,IF(AY73>1,AY73,(0))) -> 0 | AY73: 0 | AZ73: =IF((MONTH(PUANTAJ!$B$2))=12,' BORDRO HAZIRLIK'!AC74,IF(BA73>1,BA73,(0))) -> 0 | BA73: 0 | BB73: 0 | BC73: =' BORDRO HAZIRLIK'!AH74 -> 0 | BD73: 0 | BE73: 0 | BF73: =' BORDRO HAZIRLIK'!AC74 -> 0 | BG73: 0
B74: =PUANTAJ!A77 ->  | C74: =PUANTAJ!B77 ->  | D74: =BD74+'PERSONEL BİLGİ GİRİŞİ'!AC75 -> 0 | E74: =BG74+'PERSONEL BİLGİ GİRİŞİ'!AL75 -> 0 | F74: =IF((MONTH(PUANTAJ!$B$2))=1,' BORDRO HAZIRLIK'!AH75,IF(G74>1,G74,(0))) -> 0 | G74: 0 | H74: =IF((MONTH(PUANTAJ!$B$2))=1,' BORDRO HAZIRLIK'!AC75,IF(I74>1,I74,(0))) -> 0 | I74: 0 | J74: =IF((MONTH(PUANTAJ!$B$2))=2,' BORDRO HAZIRLIK'!AH75,IF(K74>1,K74,(0))) -> 0 | K74: 0 | L74: =IF((MONTH(PUANTAJ!$B$2))=2,' BORDRO HAZIRLIK'!AC75,IF(M74>1,M74,(0))) -> 0 | M74: 0 | N74: =IF((MONTH(PUANTAJ!$B$2))=3,' BORDRO HAZIRLIK'!AH75,IF(O74>1,O74,(0))) -> 0 | O74: 0 | P74: =IF((MONTH(PUANTAJ!$B$2))=3,' BORDRO HAZIRLIK'!AC75,IF(Q74>1,Q74,(0))) -> 0 | Q74: 0 | R74: =IF((MONTH(PUANTAJ!$B$2))=4,' BORDRO HAZIRLIK'!AH75,IF(S74>1,S74,(0))) -> 0 | S74: 0 | T74: =IF((MONTH(PUANTAJ!$B$2))=4,' BORDRO HAZIRLIK'!AC75,IF(U74>1,U74,(0))) -> 0 | U74: 0 | V74: =IF((MONTH(PUANTAJ!$B$2))=5,' BORDRO HAZIRLIK'!AH75,IF(W74>1,W74,(0))) -> 0 | W74: 0 | X74: =IF((MONTH(PUANTAJ!$B$2))=5,' BORDRO HAZIRLIK'!AC75,IF(Y74>1,Y74,(0))) -> 0 | Y74: 0 | Z74: =IF((MONTH(PUANTAJ!$B$2))=6,' BORDRO HAZIRLIK'!AH75,IF(AA74>1,AA74,(0))) -> 0 | AA74: 0 | AB74: =IF((MONTH(PUANTAJ!$B$2))=6,' BORDRO HAZIRLIK'!AC75,IF(AC74>1,AC74,(0))) -> 0 | AC74: 0 | AD74: =IF((MONTH(PUANTAJ!$B$2))=7,' BORDRO HAZIRLIK'!AH75,IF(AE74>1,AE74,(0))) -> 0 | AE74: 0 | AF74: =IF((MONTH(PUANTAJ!$B$2))=7,' BORDRO HAZIRLIK'!AC75,IF(AG74>1,AG74,(0))) -> 0 | AG74: 0 | AH74: =IF((MONTH(PUANTAJ!$B$2))=8,' BORDRO HAZIRLIK'!AH75,IF(AI74>1,AI74,(0))) -> 0 | AI74: 0 | AJ74: =IF((MONTH(PUANTAJ!$B$2))=8,' BORDRO HAZIRLIK'!AC75,IF(AK74>1,AK74,(0))) -> 0 | AK74: 0 | AL74: =IF((MONTH(PUANTAJ!$B$2))=9,' BORDRO HAZIRLIK'!AH75,IF(AM74>1,AM74,(0))) -> 0 | AM74: 0 | AN74: =IF((MONTH(PUANTAJ!$B$2))=9,' BORDRO HAZIRLIK'!AC75,IF(AO74>1,AO74,(0))) -> 0 | AO74: 0 | AP74: =IF((MONTH(PUANTAJ!$B$2))=10,' BORDRO HAZIRLIK'!AH75,IF(AQ74>1,AQ74,(0))) -> 0 | AQ74: 0 | AR74: =IF((MONTH(PUANTAJ!$B$2))=10,' BORDRO HAZIRLIK'!AC75,IF(AS74>1,AS74,(0))) -> 0 | AS74: 0 | AT74: =IF((MONTH(PUANTAJ!$B$2))=11,' BORDRO HAZIRLIK'!AH75,IF(AU74>1,AU74,(0))) -> 0 | AU74: 0 | AV74: =IF((MONTH(PUANTAJ!$B$2))=11,' BORDRO HAZIRLIK'!AC75,IF(AW74>1,AW74,(0))) -> 0 | AW74: 0 | AX74: =IF((MONTH(PUANTAJ!$B$2))=12,' BORDRO HAZIRLIK'!AH75,IF(AY74>1,AY74,(0))) -> 0 | AY74: 0 | AZ74: =IF((MONTH(PUANTAJ!$B$2))=12,' BORDRO HAZIRLIK'!AC75,IF(BA74>1,BA74,(0))) -> 0 | BA74: 0 | BB74: 0 | BC74: =' BORDRO HAZIRLIK'!AH75 -> 0 | BD74: 0 | BE74: 0 | BF74: =' BORDRO HAZIRLIK'!AC75 -> 0 | BG74: 0
B75: =PUANTAJ!A78 ->  | C75: =PUANTAJ!B78 ->  | D75: =BD75+'PERSONEL BİLGİ GİRİŞİ'!AC76 -> 0 | E75: =BG75+'PERSONEL BİLGİ GİRİŞİ'!AL76 -> 0 | F75: =IF((MONTH(PUANTAJ!$B$2))=1,' BORDRO HAZIRLIK'!AH76,IF(G75>1,G75,(0))) -> 0 | G75: 0 | H75: =IF((MONTH(PUANTAJ!$B$2))=1,' BORDRO HAZIRLIK'!AC76,IF(I75>1,I75,(0))) -> 0 | I75: 0 | J75: =IF((MONTH(PUANTAJ!$B$2))=2,' BORDRO HAZIRLIK'!AH76,IF(K75>1,K75,(0))) -> 0 | K75: 0 | L75: =IF((MONTH(PUANTAJ!$B$2))=2,' BORDRO HAZIRLIK'!AC76,IF(M75>1,M75,(0))) -> 0 | M75: 0 | N75: =IF((MONTH(PUANTAJ!$B$2))=3,' BORDRO HAZIRLIK'!AH76,IF(O75>1,O75,(0))) -> 0 | O75: 0 | P75: =IF((MONTH(PUANTAJ!$B$2))=3,' BORDRO HAZIRLIK'!AC76,IF(Q75>1,Q75,(0))) -> 0 | Q75: 0 | R75: =IF((MONTH(PUANTAJ!$B$2))=4,' BORDRO HAZIRLIK'!AH76,IF(S75>1,S75,(0))) -> 0 | S75: 0 | T75: =IF((MONTH(PUANTAJ!$B$2))=4,' BORDRO HAZIRLIK'!AC76,IF(U75>1,U75,(0))) -> 0 | U75: 0 | V75: =IF((MONTH(PUANTAJ!$B$2))=5,' BORDRO HAZIRLIK'!AH76,IF(W75>1,W75,(0))) -> 0 | W75: 0 | X75: =IF((MONTH(PUANTAJ!$B$2))=5,' BORDRO HAZIRLIK'!AC76,IF(Y75>1,Y75,(0))) -> 0 | Y75: 0 | Z75: =IF((MONTH(PUANTAJ!$B$2))=6,' BORDRO HAZIRLIK'!AH76,IF(AA75>1,AA75,(0))) -> 0 | AA75: 0 | AB75: =IF((MONTH(PUANTAJ!$B$2))=6,' BORDRO HAZIRLIK'!AC76,IF(AC75>1,AC75,(0))) -> 0 | AC75: 0 | AD75: =IF((MONTH(PUANTAJ!$B$2))=7,' BORDRO HAZIRLIK'!AH76,IF(AE75>1,AE75,(0))) -> 0 | AE75: 0 | AF75: =IF((MONTH(PUANTAJ!$B$2))=7,' BORDRO HAZIRLIK'!AC76,IF(AG75>1,AG75,(0))) -> 0 | AG75: 0 | AH75: =IF((MONTH(PUANTAJ!$B$2))=8,' BORDRO HAZIRLIK'!AH76,IF(AI75>1,AI75,(0))) -> 0 | AI75: 0 | AJ75: =IF((MONTH(PUANTAJ!$B$2))=8,' BORDRO HAZIRLIK'!AC76,IF(AK75>1,AK75,(0))) -> 0 | AK75: 0 | AL75: =IF((MONTH(PUANTAJ!$B$2))=9,' BORDRO HAZIRLIK'!AH76,IF(AM75>1,AM75,(0))) -> 0 | AM75: 0 | AN75: =IF((MONTH(PUANTAJ!$B$2))=9,' BORDRO HAZIRLIK'!AC76,IF(AO75>1,AO75,(0))) -> 0 | AO75: 0 | AP75: =IF((MONTH(PUANTAJ!$B$2))=10,' BORDRO HAZIRLIK'!AH76,IF(AQ75>1,AQ75,(0))) -> 0 | AQ75: 0 | AR75: =IF((MONTH(PUANTAJ!$B$2))=10,' BORDRO HAZIRLIK'!AC76,IF(AS75>1,AS75,(0))) -> 0 | AS75: 0 | AT75: =IF((MONTH(PUANTAJ!$B$2))=11,' BORDRO HAZIRLIK'!AH76,IF(AU75>1,AU75,(0))) -> 0 | AU75: 0 | AV75: =IF((MONTH(PUANTAJ!$B$2))=11,' BORDRO HAZIRLIK'!AC76,IF(AW75>1,AW75,(0))) -> 0 | AW75: 0 | AX75: =IF((MONTH(PUANTAJ!$B$2))=12,' BORDRO HAZIRLIK'!AH76,IF(AY75>1,AY75,(0))) -> 0 | AY75: 0 | AZ75: =IF((MONTH(PUANTAJ!$B$2))=12,' BORDRO HAZIRLIK'!AC76,IF(BA75>1,BA75,(0))) -> 0 | BA75: 0 | BB75: 0 | BC75: =' BORDRO HAZIRLIK'!AH76 -> 0 | BD75: 0 | BE75: 0 | BF75: =' BORDRO HAZIRLIK'!AC76 -> 0 | BG75: 0
B76: =PUANTAJ!A79 ->  | C76: =PUANTAJ!B79 ->  | D76: =BD76+'PERSONEL BİLGİ GİRİŞİ'!AC77 -> 0 | E76: =BG76+'PERSONEL BİLGİ GİRİŞİ'!AL77 -> 0 | F76: =IF((MONTH(PUANTAJ!$B$2))=1,' BORDRO HAZIRLIK'!AH77,IF(G76>1,G76,(0))) -> 0 | G76: 0 | H76: =IF((MONTH(PUANTAJ!$B$2))=1,' BORDRO HAZIRLIK'!AC77,IF(I76>1,I76,(0))) -> 0 | I76: 0 | J76: =IF((MONTH(PUANTAJ!$B$2))=2,' BORDRO HAZIRLIK'!AH77,IF(K76>1,K76,(0))) -> 0 | K76: 0 | L76: =IF((MONTH(PUANTAJ!$B$2))=2,' BORDRO HAZIRLIK'!AC77,IF(M76>1,M76,(0))) -> 0 | M76: 0 | N76: =IF((MONTH(PUANTAJ!$B$2))=3,' BORDRO HAZIRLIK'!AH77,IF(O76>1,O76,(0))) -> 0 | O76: 0 | P76: =IF((MONTH(PUANTAJ!$B$2))=3,' BORDRO HAZIRLIK'!AC77,IF(Q76>1,Q76,(0))) -> 0 | Q76: 0 | R76: =IF((MONTH(PUANTAJ!$B$2))=4,' BORDRO HAZIRLIK'!AH77,IF(S76>1,S76,(0))) -> 0 | S76: 0 | T76: =IF((MONTH(PUANTAJ!$B$2))=4,' BORDRO HAZIRLIK'!AC77,IF(U76>1,U76,(0))) -> 0 | U76: 0 | V76: =IF((MONTH(PUANTAJ!$B$2))=5,' BORDRO HAZIRLIK'!AH77,IF(W76>1,W76,(0))) -> 0 | W76: 0 | X76: =IF((MONTH(PUANTAJ!$B$2))=5,' BORDRO HAZIRLIK'!AC77,IF(Y76>1,Y76,(0))) -> 0 | Y76: 0 | Z76: =IF((MONTH(PUANTAJ!$B$2))=6,' BORDRO HAZIRLIK'!AH77,IF(AA76>1,AA76,(0))) -> 0 | AA76: 0 | AB76: =IF((MONTH(PUANTAJ!$B$2))=6,' BORDRO HAZIRLIK'!AC77,IF(AC76>1,AC76,(0))) -> 0 | AC76: 0 | AD76: =IF((MONTH(PUANTAJ!$B$2))=7,' BORDRO HAZIRLIK'!AH77,IF(AE76>1,AE76,(0))) -> 0 | AE76: 0 | AF76: =IF((MONTH(PUANTAJ!$B$2))=7,' BORDRO HAZIRLIK'!AC77,IF(AG76>1,AG76,(0))) -> 0 | AG76: 0 | AH76: =IF((MONTH(PUANTAJ!$B$2))=8,' BORDRO HAZIRLIK'!AH77,IF(AI76>1,AI76,(0))) -> 0 | AI76: 0 | AJ76: =IF((MONTH(PUANTAJ!$B$2))=8,' BORDRO HAZIRLIK'!AC77,IF(AK76>1,AK76,(0))) -> 0 | AK76: 0 | AL76: =IF((MONTH(PUANTAJ!$B$2))=9,' BORDRO HAZIRLIK'!AH77,IF(AM76>1,AM76,(0))) -> 0 | AM76: 0 | AN76: =IF((MONTH(PUANTAJ!$B$2))=9,' BORDRO HAZIRLIK'!AC77,IF(AO76>1,AO76,(0))) -> 0 | AO76: 0 | AP76: =IF((MONTH(PUANTAJ!$B$2))=10,' BORDRO HAZIRLIK'!AH77,IF(AQ76>1,AQ76,(0))) -> 0 | AQ76: 0 | AR76: =IF((MONTH(PUANTAJ!$B$2))=10,' BORDRO HAZIRLIK'!AC77,IF(AS76>1,AS76,(0))) -> 0 | AS76: 0 | AT76: =IF((MONTH(PUANTAJ!$B$2))=11,' BORDRO HAZIRLIK'!AH77,IF(AU76>1,AU76,(0))) -> 0 | AU76: 0 | AV76: =IF((MONTH(PUANTAJ!$B$2))=11,' BORDRO HAZIRLIK'!AC77,IF(AW76>1,AW76,(0))) -> 0 | AW76: 0 | AX76: =IF((MONTH(PUANTAJ!$B$2))=12,' BORDRO HAZIRLIK'!AH77,IF(AY76>1,AY76,(0))) -> 0 | AY76: 0 | AZ76: =IF((MONTH(PUANTAJ!$B$2))=12,' BORDRO HAZIRLIK'!AC77,IF(BA76>1,BA76,(0))) -> 0 | BA76: 0 | BB76: 0 | BC76: =' BORDRO HAZIRLIK'!AH77 -> 0 | BD76: 0 | BE76: 0 | BF76: =' BORDRO HAZIRLIK'!AC77 -> 0 | BG76: 0
B77: =PUANTAJ!A80 ->  | C77: =PUANTAJ!B80 ->  | D77: =BD77+'PERSONEL BİLGİ GİRİŞİ'!AC78 -> 0 | E77: =BG77+'PERSONEL BİLGİ GİRİŞİ'!AL78 -> 0 | F77: =IF((MONTH(PUANTAJ!$B$2))=1,' BORDRO HAZIRLIK'!AH78,IF(G77>1,G77,(0))) -> 0 | G77: 0 | H77: =IF((MONTH(PUANTAJ!$B$2))=1,' BORDRO HAZIRLIK'!AC78,IF(I77>1,I77,(0))) -> 0 | I77: 0 | J77: =IF((MONTH(PUANTAJ!$B$2))=2,' BORDRO HAZIRLIK'!AH78,IF(K77>1,K77,(0))) -> 0 | K77: 0 | L77: =IF((MONTH(PUANTAJ!$B$2))=2,' BORDRO HAZIRLIK'!AC78,IF(M77>1,M77,(0))) -> 0 | M77: 0 | N77: =IF((MONTH(PUANTAJ!$B$2))=3,' BORDRO HAZIRLIK'!AH78,IF(O77>1,O77,(0))) -> 0 | O77: 0 | P77: =IF((MONTH(PUANTAJ!$B$2))=3,' BORDRO HAZIRLIK'!AC78,IF(Q77>1,Q77,(0))) -> 0 | Q77: 0 | R77: =IF((MONTH(PUANTAJ!$B$2))=4,' BORDRO HAZIRLIK'!AH78,IF(S77>1,S77,(0))) -> 0 | S77: 0 | T77: =IF((MONTH(PUANTAJ!$B$2))=4,' BORDRO HAZIRLIK'!AC78,IF(U77>1,U77,(0))) -> 0 | U77: 0 | V77: =IF((MONTH(PUANTAJ!$B$2))=5,' BORDRO HAZIRLIK'!AH78,IF(W77>1,W77,(0))) -> 0 | W77: 0 | X77: =IF((MONTH(PUANTAJ!$B$2))=5,' BORDRO HAZIRLIK'!AC78,IF(Y77>1,Y77,(0))) -> 0 | Y77: 0 | Z77: =IF((MONTH(PUANTAJ!$B$2))=6,' BORDRO HAZIRLIK'!AH78,IF(AA77>1,AA77,(0))) -> 0 | AA77: 0 | AB77: =IF((MONTH(PUANTAJ!$B$2))=6,' BORDRO HAZIRLIK'!AC78,IF(AC77>1,AC77,(0))) -> 0 | AC77: 0 | AD77: =IF((MONTH(PUANTAJ!$B$2))=7,' BORDRO HAZIRLIK'!AH78,IF(AE77>1,AE77,(0))) -> 0 | AE77: 0 | AF77: =IF((MONTH(PUANTAJ!$B$2))=7,' BORDRO HAZIRLIK'!AC78,IF(AG77>1,AG77,(0))) -> 0 | AG77: 0 | AH77: =IF((MONTH(PUANTAJ!$B$2))=8,' BORDRO HAZIRLIK'!AH78,IF(AI77>1,AI77,(0))) -> 0 | AI77: 0 | AJ77: =IF((MONTH(PUANTAJ!$B$2))=8,' BORDRO HAZIRLIK'!AC78,IF(AK77>1,AK77,(0))) -> 0 | AK77: 0 | AL77: =IF((MONTH(PUANTAJ!$B$2))=9,' BORDRO HAZIRLIK'!AH78,IF(AM77>1,AM77,(0))) -> 0 | AM77: 0 | AN77: =IF((MONTH(PUANTAJ!$B$2))=9,' BORDRO HAZIRLIK'!AC78,IF(AO77>1,AO77,(0))) -> 0 | AO77: 0 | AP77: =IF((MONTH(PUANTAJ!$B$2))=10,' BORDRO HAZIRLIK'!AH78,IF(AQ77>1,AQ77,(0))) -> 0 | AQ77: 0 | AR77: =IF((MONTH(PUANTAJ!$B$2))=10,' BORDRO HAZIRLIK'!AC78,IF(AS77>1,AS77,(0))) -> 0 | AS77: 0 | AT77: =IF((MONTH(PUANTAJ!$B$2))=11,' BORDRO HAZIRLIK'!AH78,IF(AU77>1,AU77,(0))) -> 0 | AU77: 0 | AV77: =IF((MONTH(PUANTAJ!$B$2))=11,' BORDRO HAZIRLIK'!AC78,IF(AW77>1,AW77,(0))) -> 0 | AW77: 0 | AX77: =IF((MONTH(PUANTAJ!$B$2))=12,' BORDRO HAZIRLIK'!AH78,IF(AY77>1,AY77,(0))) -> 0 | AY77: 0 | AZ77: =IF((MONTH(PUANTAJ!$B$2))=12,' BORDRO HAZIRLIK'!AC78,IF(BA77>1,BA77,(0))) -> 0 | BA77: 0 | BB77: 0 | BC77: =' BORDRO HAZIRLIK'!AH78 -> 0 | BD77: 0 | BE77: 0 | BF77: =' BORDRO HAZIRLIK'!AC78 -> 0 | BG77: 0
B78: =PUANTAJ!A81 ->  | C78: =PUANTAJ!B81 ->  | D78: =BD78+'PERSONEL BİLGİ GİRİŞİ'!AC79 -> 0 | E78: =BG78+'PERSONEL BİLGİ GİRİŞİ'!AL79 -> 0 | F78: =IF((MONTH(PUANTAJ!$B$2))=1,' BORDRO HAZIRLIK'!AH79,IF(G78>1,G78,(0))) -> 0 | G78: 0 | H78: =IF((MONTH(PUANTAJ!$B$2))=1,' BORDRO HAZIRLIK'!AC79,IF(I78>1,I78,(0))) -> 0 | I78: 0 | J78: =IF((MONTH(PUANTAJ!$B$2))=2,' BORDRO HAZIRLIK'!AH79,IF(K78>1,K78,(0))) -> 0 | K78: 0 | L78: =IF((MONTH(PUANTAJ!$B$2))=2,' BORDRO HAZIRLIK'!AC79,IF(M78>1,M78,(0))) -> 0 | M78: 0 | N78: =IF((MONTH(PUANTAJ!$B$2))=3,' BORDRO HAZIRLIK'!AH79,IF(O78>1,O78,(0))) -> 0 | O78: 0 | P78: =IF((MONTH(PUANTAJ!$B$2))=3,' BORDRO HAZIRLIK'!AC79,IF(Q78>1,Q78,(0))) -> 0 | Q78: 0 | R78: =IF((MONTH(PUANTAJ!$B$2))=4,' BORDRO HAZIRLIK'!AH79,IF(S78>1,S78,(0))) -> 0 | S78: 0 | T78: =IF((MONTH(PUANTAJ!$B$2))=4,' BORDRO HAZIRLIK'!AC79,IF(U78>1,U78,(0))) -> 0 | U78: 0 | V78: =IF((MONTH(PUANTAJ!$B$2))=5,' BORDRO HAZIRLIK'!AH79,IF(W78>1,W78,(0))) -> 0 | W78: 0 | X78: =IF((MONTH(PUANTAJ!$B$2))=5,' BORDRO HAZIRLIK'!AC79,IF(Y78>1,Y78,(0))) -> 0 | Y78: 0 | Z78: =IF((MONTH(PUANTAJ!$B$2))=6,' BORDRO HAZIRLIK'!AH79,IF(AA78>1,AA78,(0))) -> 0 | AA78: 0 | AB78: =IF((MONTH(PUANTAJ!$B$2))=6,' BORDRO HAZIRLIK'!AC79,IF(AC78>1,AC78,(0))) -> 0 | AC78: 0 | AD78: =IF((MONTH(PUANTAJ!$B$2))=7,' BORDRO HAZIRLIK'!AH79,IF(AE78>1,AE78,(0))) -> 0 | AE78: 0 | AF78: =IF((MONTH(PUANTAJ!$B$2))=7,' BORDRO HAZIRLIK'!AC79,IF(AG78>1,AG78,(0))) -> 0 | AG78: 0 | AH78: =IF((MONTH(PUANTAJ!$B$2))=8,' BORDRO HAZIRLIK'!AH79,IF(AI78>1,AI78,(0))) -> 0 | AI78: 0 | AJ78: =IF((MONTH(PUANTAJ!$B$2))=8,' BORDRO HAZIRLIK'!AC79,IF(AK78>1,AK78,(0))) -> 0 | AK78: 0 | AL78: =IF((MONTH(PUANTAJ!$B$2))=9,' BORDRO HAZIRLIK'!AH79,IF(AM78>1,AM78,(0))) -> 0 | AM78: 0 | AN78: =IF((MONTH(PUANTAJ!$B$2))=9,' BORDRO HAZIRLIK'!AC79,IF(AO78>1,AO78,(0))) -> 0 | AO78: 0 | AP78: =IF((MONTH(PUANTAJ!$B$2))=10,' BORDRO HAZIRLIK'!AH79,IF(AQ78>1,AQ78,(0))) -> 0 | AQ78: 0 | AR78: =IF((MONTH(PUANTAJ!$B$2))=10,' BORDRO HAZIRLIK'!AC79,IF(AS78>1,AS78,(0))) -> 0 | AS78: 0 | AT78: =IF((MONTH(PUANTAJ!$B$2))=11,' BORDRO HAZIRLIK'!AH79,IF(AU78>1,AU78,(0))) -> 0 | AU78: 0 | AV78: =IF((MONTH(PUANTAJ!$B$2))=11,' BORDRO HAZIRLIK'!AC79,IF(AW78>1,AW78,(0))) -> 0 | AW78: 0 | AX78: =IF((MONTH(PUANTAJ!$B$2))=12,' BORDRO HAZIRLIK'!AH79,IF(AY78>1,AY78,(0))) -> 0 | AY78: 0 | AZ78: =IF((MONTH(PUANTAJ!$B$2))=12,' BORDRO HAZIRLIK'!AC79,IF(BA78>1,BA78,(0))) -> 0 | BA78: 0 | BB78: 0 | BC78: =' BORDRO HAZIRLIK'!AH79 -> 0 | BD78: 0 | BE78: 0 | BF78: =' BORDRO HAZIRLIK'!AC79 -> 0 | BG78: 0
C79: =SUM(C4:C78) -> 0 | D79: 8928.85 | E79: 8506.8 | F79: 8928.85 | G79: 17887.31 | H79: =SUM(H4:H78) -> 8506.8 | I79: 17013.6 | J79: 0 | K79: 17802.28 | L79: 0 | M79: 17013.6 | N79: 0 | O79: 20410.24 | P79: 0 | Q79: 17013.6 | R79: 0 | S79: 18612.23 | T79: 0 | U79: 17013.6 | V79: 0 | W79: 19422.12 | X79: 0 | Y79: 17013.6 | Z79: 0 | AA79: 19503.12 | AB79: 0 | AC79: 17013.6 | AD79: 0 | AE79: 26119.24 | AF79: 0 | AG79: 22001.4 | AH79: 0 | AI79: 28586.57 | AJ79: 0 | AK79: 22001.4 | AL79: 0 | AM79: 0 | AN79: 0 | AO79: 0 | AP79: 0 | AQ79: 0 | AR79: 0 | AS79: 0 | AT79: 0 | AU79: 0 | AV79: 0 | AW79: 0 | AX79: 0 | AY79: 0 | AZ79: 0 | BA79: 0 | BB79: 0 | BC79: 8928.85 | BD79: 8928.85 | BE79: 0 | BF79: 8506.8 | BG79: 8506.8

Sheet TEK KİŞİ BORD
A1: ='ANA SAYFA'!A1 -> AİLE VE SOSYAL HİZMETLER İL MÜDÜRLÜĞÜ | I1: E-POSTA DÜZETLME
A2: =PUANTAJ!AI2 -> 2023-01-01 | B2: K İ Ş İ B O R D R O S U | E2: =TODAY() -> 2023-01-31
A3: ASGARİ ÜCRET | B3: ='ANA SAYFA'!J15 -> 10008 | C3: EK DERS | E3: ANA SAYFA | V3: 1 | W3: 2 | X3: 3 | Y3: 4 | Z3: 5 | AA3: 6 | AB3: 7 | AC3: 8 | AD3: 9 | AE3: 10 | AF3: 11 | AG3: 12 | AH3: 13 | AI3: 14 | AJ3: 15 | AK3: 16 | AL3: 17 | AM3: 18 | AN3: 19 | AO3: 20 | AP3: 21 | AQ3: 22 | AR3: 23 | AS3: 24 | AT3: 25 | AU3: 26 | AV3: 27 | AW3: 28 | AX3: 29 | AY3: 30 | AZ3: 31 | BA3: 32 | BB3: 33 | BC3: 34 | BD3: 35 | BE3: 36 | BF3: 37 | BG3: 38 | BH3: 39 | BI3: 40 | BJ3: 41 | BK3: 42 | BL3: 43 | BM3: 44 | BN3: 45 | BO3: 46 | BP3: 47 | BQ3: 48 | BR3: 49 | BS3: 50 | BT3: 51
A4: AD-SOYAD | B4: T.C. KİMLİK NO | C4: HAM ÜCRET | E4: Meslek-Ünvan | V4: AD SOYAD | W4: TC | X4: BÜRÜT TUTAR | Y4: GÜNDÜZ | Z4: GECE | AA4: MESLEĞİ | AB4: SGK | AC4: aylık istisna | AD4: toplam istisna | AE4: =' BORDRO HAZIRLIK'!K5 -> 10382.39 | AF4: NET ÜCRET | AG4: aylık vergi | AH4: gelir vergisi | AI4: damga vergisi | AJ4: sgk matrahı | AK4: toplam gelir vergisi matr. | AL4: YOL ÜCRETİ (GÜNLÜK) | AM4: YEMEK ÜCRETİ (GÜNLÜK) | AN4: nafaka | AO4: FAZLA MESAİ | AP4: GÜNDÜZ | AQ4: GECE | AR4: HAFTA SONU | AS4: TOPLAM SAAT | AT4: yakacak | AU4: toplu sözleşme | AV4: resmi tatil | AW4: MALULUK YAŞLILIK (İŞVEREN-İŞÇİ) %11 | AX4: MALULUK YAŞLILIK (İŞTİRAKÇİ-İŞÇİ) %9 | AY4: G.S.S. (İŞTİRAKÇİ İŞÇİ) %5 | AZ4: G.S.S. (İŞVEREN İŞÇİ) %7.5 | BA4: SENDİKA ZAMMI | BB4: SENDİKA AİDTI | BC4: BRÜT ÜCRET | BD4: ikramiye | BE4: bes | BF4: İCRA | BG4: ödeme günü | BH4: kefalet | BI4: kefalet giriş aidatı | BJ4: KISA VAADELİ SİGORTA KOLLARI PİRİMİ %2 | BK4: İŞSİZLİK SİGORTASI PİRİMİ- İŞVEREN %2 | BL4: İŞSİZLİK SİGORTASI PİRİMİ- İŞÇİ %1 | BM4: E MAİL | BN4: FAZLA ÇALIŞMA | BO4: HAFTA TATİLİ | BP4: MAZERET İZNİ | BQ4: ÜCRETSİZ İZİN | BR4: RESMİ TATİL | BS4: İSTİSNA GLİR | BT4: İSTİSNA DAMGA
A5: ALİ BZC BZC | B5: =VLOOKUP(A5,V5:Y80,2,FALSE) ->  | C5: =VLOOKUP(A5,V5:Y80,3,FALSE) ->  | E5: =VLOOKUP(A5,V5:AA80,6,FALSE) ->  | U5: 1 | V5: =PUANTAJ!B7 -> ALİ BZC | W5: ='PERSONEL BİLGİ GİRİŞİ'!H5 -> 0 | X5: ='PERSONEL BİLGİ GİRİŞİ'!Q5 -> 10382.39 | Y5: ='PERSONEL BİLGİ GİRİŞİ'!R5 -> 60.72 | Z5: ='PERSONEL BİLGİ GİRİŞİ'!U5 -> 65.05 | AA5: ='PERSONEL BİLGİ GİRİŞİ'!E5 -> 2634.01 | AB5: =PUANTAJ!AT7 -> 30 | AC5: =' BORDRO HAZIRLIK'!AC5 -> 8506.8 | AD5: =' BORDRO HAZIRLIK'!AD5 -> 8506.8 | AE5: =' BORDRO HAZIRLIK'!K6 -> 0 | AF5: =' BORDRO HAZIRLIK'!BE5 -> 8862.7 | AG5: =' BORDRO HAZIRLIK'!AH5 -> 8928.85 | AH5: =' BORDRO HAZIRLIK'!AL5 -> 63.31 | AI5: =' BORDRO HAZIRLIK'!AM5 -> 2.84 | AJ5: =' BORDRO HAZIRLIK'!AN5 -> 10382.39 | AK5: =' BORDRO HAZIRLIK'!AK5 -> 8928.85 | AL5: =' BORDRO HAZIRLIK'!R5 -> 0 | AM5: =' BORDRO HAZIRLIK'!S5 -> 0 | AN5: =' BORDRO HAZIRLIK'!AR5 -> 0 | AO5: =' BORDRO HAZIRLIK'!Y5 -> 0 | AP5: =PUANTAJ!AI7 -> 171 | AQ5: =PUANTAJ!AJ7 -> 0 | AR5: =PUANTAJ!AK7 -> 0 | AS5: =PUANTAJ!AL7 -> 171 | AT5: =' BORDRO HAZIRLIK'!N5 -> 0 | AU5: =' BORDRO HAZIRLIK'!J5 -> 0 | AV5: =' BORDRO HAZIRLIK'!L5 -> 0 | AW5: =' BORDRO HAZIRLIK'!AV5 -> 1142.06 | AX5: =' BORDRO HAZIRLIK'!AW5 -> 934.42 | AY5: =' BORDRO HAZIRLIK'!AX5 -> 519.12 | AZ5: =' BORDRO HAZIRLIK'!AY5 -> 778.68 | BA5: 0 | BB5: =' BORDRO HAZIRLIK'!AO5 -> 0 | BC5: =' BORDRO HAZIRLIK'!AG5 -> 10382.39 | BE5: =' BORDRO HAZIRLIK'!AP5 -> 0 | BF5: =' BORDRO HAZIRLIK'!AQ5 -> 0 | BG5: =' BORDRO HAZIRLIK'!I5 -> 22 | BH5: =' BORDRO HAZIRLIK'!AS5 -> 0 | BI5: =' BORDRO HAZIRLIK'!AT5 -> 0 | BJ5: =' BORDRO HAZIRLIK'!AZ5 -> 207.65 | BK5: =' BORDRO HAZIRLIK'!BA5 -> 0 | BL5: =' BORDRO HAZIRLIK'!BB5 -> 0 | BM5: ='PERSONEL BİLGİ GİRİŞİ'!I5 -> 0 | BN5: =PUANTAJ!AN7 -> 0 | BO5: =PUANTAJ!AO7 -> 9 | BP5: =PUANTAJ!AP7 -> 0 | BQ5: =PUANTAJ!AQ7 -> 0 | BR5: =PUANTAJ!AR7 -> 0 | BS5: =' BORDRO HAZIRLIK'!AE5 -> 1276.02 | BT5: =' BORDRO HAZIRLIK'!AF5 -> 75.96
A6: Çalışma Günü | B6: =VLOOKUP(A5,V5:BG80,38,FALSE) ->  | C6: FAZLA ÇALIŞMA | D6: =VLOOKUP(A5,V5:BR80,45,FALSE) ->  | E6: Kefalet Kesintisi | F6: =VLOOKUP(A5,V5:BI80,39,FALSE) ->  | U6: 2 | V6: =PUANTAJ!B8 ->  | W6: ='PERSONEL BİLGİ GİRİŞİ'!H6 -> 0 | X6: ='PERSONEL BİLGİ GİRİŞİ'!Q6 -> 0 | Y6: ='PERSONEL BİLGİ GİRİŞİ'!R6 -> 0 | Z6: ='PERSONEL BİLGİ GİRİŞİ'!U6 -> 0 | AA6: ='PERSONEL BİLGİ GİRİŞİ'!E6 -> 0 | AB6: =PUANTAJ!AT8 -> 0 | AC6: =' BORDRO HAZIRLIK'!AC6 -> 0 | AD6: =' BORDRO HAZIRLIK'!AD6 -> 0 | AE6: =' BORDRO HAZIRLIK'!K7 -> 0 | AF6: =' BORDRO HAZIRLIK'!BE6 -> 0 | AG6: =' BORDRO HAZIRLIK'!AH6 -> 0 | AH6: =' BORDRO HAZIRLIK'!AL6 -> 0 | AI6: =' BORDRO HAZIRLIK'!AM6 -> 0 | AJ6: =' BORDRO HAZIRLIK'!AN6 -> 0 | AK6: =' BORDRO HAZIRLIK'!AK6 -> 0 | AL6: =' BORDRO HAZIRLIK'!R6 -> 0 | AM6: =' BORDRO HAZIRLIK'!S6 -> 0 | AN6: =' BORDRO HAZIRLIK'!AR6 -> 0 | AO6: =' BORDRO HAZIRLIK'!Y6 -> 0 | AP6: =PUANTAJ!AI8 -> 0 | AQ6: =PUANTAJ!AJ8 -> 0 | AR6: =PUANTAJ!AK8 -> 0 | AS6: =PUANTAJ!AL8 -> 0 | AT6: =' BORDRO HAZIRLIK'!N6 -> 0 | AU6: =' BORDRO HAZIRLIK'!J6 -> 0 | AV6: =' BORDRO HAZIRLIK'!L6 -> 0 | AW6: =' BORDRO HAZIRLIK'!AV6 -> 0 | AX6: =' BORDRO HAZIRLIK'!AW6 -> 0 | AY6: =' BORDRO HAZIRLIK'!AX6 -> 0 | AZ6: =' BORDRO HAZIRLIK'!AY6 -> 0 | BA6: 0 | BB6: =' BORDRO HAZIRLIK'!AO6 -> 0 | BC6: =' BORDRO HAZIRLIK'!AG6 -> 0 | BE6: =' BORDRO HAZIRLIK'!AP6 -> 0 | BF6: =' BORDRO HAZIRLIK'!AQ6 -> 0 | BG6: =' BORDRO HAZIRLIK'!I6 -> 0 | BH6: =' BORDRO HAZIRLIK'!AS6 -> 0 | BI6: =' BORDRO HAZIRLIK'!AT6 -> 0 | BJ6: =' BORDRO HAZIRLIK'!AZ6 -> 0 | BK6: =' BORDRO HAZIRLIK'!BA6 -> 0 | BL6: =' BORDRO HAZIRLIK'!BB6 -> 0 | BM6: ='PERSONEL BİLGİ GİRİŞİ'!I6 -> 0 | BN6: =PUANTAJ!AN8 -> 0 | BO6: =PUANTAJ!AO8 -> 0 | BP6: =PUANTAJ!AP8 -> 0 | BQ6: =PUANTAJ!AQ8 -> 0 | BR6: =PUANTAJ!AR8 -> 0 | BS6: =' BORDRO HAZIRLIK'!AE6 -> 0 | BT6: =' BORDRO HAZIRLIK'!AF6 -> 0
A7: SGK Günü | B7: =VLOOKUP(A5,V5:AB80,7,FALSE) ->  | C7: HAFTA TATİLİ | D7: =VLOOKUP(A5,V5:BR80,46,FALSE) ->  | E7: Kefalet Giriş Aidatı | F7: =VLOOKUP(A5,V5:BI80,40,FALSE) ->  | L7: Mail Başlığı: | M7: [TARİH] Tarihli Bordronuz | U7: 3 | V7: =PUANTAJ!B9 ->  | W7: ='PERSONEL BİLGİ GİRİŞİ'!H7 -> 0 | X7: ='PERSONEL BİLGİ GİRİŞİ'!Q7 -> 0 | Y7: ='PERSONEL BİLGİ GİRİŞİ'!R7 -> 0 | Z7: ='PERSONEL BİLGİ GİRİŞİ'!U7 -> 0 | AA7: ='PERSONEL BİLGİ GİRİŞİ'!E7 -> 0 | AB7: =PUANTAJ!AT9 -> 0 | AC7: =' BORDRO HAZIRLIK'!AC7 -> 0 | AD7: =' BORDRO HAZIRLIK'!AD7 -> 0 | AE7: =' BORDRO HAZIRLIK'!K8 -> 0 | AF7: =' BORDRO HAZIRLIK'!BE7 -> 0 | AG7: =' BORDRO HAZIRLIK'!AH7 -> 0 | AH7: =' BORDRO HAZIRLIK'!AL7 -> 0 | AI7: =' BORDRO HAZIRLIK'!AM7 -> 0 | AJ7: =' BORDRO HAZIRLIK'!AN7 -> 0 | AK7: =' BORDRO HAZIRLIK'!AK7 -> 0 | AL7: =' BORDRO HAZIRLIK'!R7 -> 0 | AM7: =' BORDRO HAZIRLIK'!S7 -> 0 | AN7: =' BORDRO HAZIRLIK'!AR7 -> 0 | AO7: =' BORDRO HAZIRLIK'!Y7 -> 0 | AP7: =PUANTAJ!AI9 -> 0 | AQ7: =PUANTAJ!AJ9 -> 0 | AR7: =PUANTAJ!AK9 -> 0 | AS7: =PUANTAJ!AL9 -> 0 | AT7: =' BORDRO HAZIRLIK'!N7 -> 0 | AU7: =' BORDRO HAZIRLIK'!J7 -> 0 | AV7: =' BORDRO HAZIRLIK'!L7 -> 0 | AW7: =' BORDRO HAZIRLIK'!AV7 -> 0 | AX7: =' BORDRO HAZIRLIK'!AW7 -> 0 | AY7: =' BORDRO HAZIRLIK'!AX7 -> 0 | AZ7: =' BORDRO HAZIRLIK'!AY7 -> 0 | BA7: 0 | BB7: =' BORDRO HAZIRLIK'!AO7 -> 0 | BC7: =' BORDRO HAZIRLIK'!AG7 -> 0 | BE7: =' BORDRO HAZIRLIK'!AP7 -> 0 | BF7: =' BORDRO HAZIRLIK'!AQ7 -> 0 | BG7: =' BORDRO HAZIRLIK'!I7 -> 0 | BH7: =' BORDRO HAZIRLIK'!AS7 -> 0 | BI7: =' BORDRO HAZIRLIK'!AT7 -> 0 | BJ7: =' BORDRO HAZIRLIK'!AZ7 -> 0 | BK7: =' BORDRO HAZIRLIK'!BA7 -> 0 | BL7: =' BORDRO HAZIRLIK'!BB7 -> 0 | BM7: ='PERSONEL BİLGİ GİRİŞİ'!I7 -> 0 | BN7: =PUANTAJ!AN9 -> 0 | BO7: =PUANTAJ!AO9 -> 0 | BP7: =PUANTAJ!AP9 -> 0 | BQ7: =PUANTAJ!AQ9 -> 0 | BR7: =PUANTAJ!AR9 -> 0 | BS7: =' BORDRO HAZIRLIK'!AE7 -> 0 | BT7: =' BORDRO HAZIRLIK'!AF7 -> 0
A8: Fazla Çalışma İzni | B8: =VLOOKUP(A5,V5:AC80,8,FALSE) ->  | C8: MAZERET İZNİ | D8: =VLOOKUP(A5,V5:BR80,47,FALSE) ->  | E8: Gelir Vergisi | F8: =VLOOKUP(A5,V5:AO80,13,FALSE) ->  | L8: Mail İçeriği: | M8: Sayın [İSİM], [TARİH] tarihli bordronuzu ekte bulabilirsiniz. İyi Çalışmalar, | U8: 4 | V8: =PUANTAJ!B10 ->  | W8: ='PERSONEL BİLGİ GİRİŞİ'!H8 -> 0 | X8: ='PERSONEL BİLGİ GİRİŞİ'!Q8 -> 0 | Y8: ='PERSONEL BİLGİ GİRİŞİ'!R8 -> 0 | Z8: ='PERSONEL BİLGİ GİRİŞİ'!U8 -> 0 | AA8: ='PERSONEL BİLGİ GİRİŞİ'!E8 -> 0 | AB8: =PUANTAJ!AT10 -> 0 | AC8: =' BORDRO HAZIRLIK'!AC8 -> 0 | AD8: =' BORDRO HAZIRLIK'!AD8 -> 0 | AE8: =' BORDRO HAZIRLIK'!K9 -> 0 | AF8: =' BORDRO HAZIRLIK'!BE8 -> 0 | AG8: =' BORDRO HAZIRLIK'!AH8 -> 0 | AH8: =' BORDRO HAZIRLIK'!AL8 -> 0 | AI8: =' BORDRO HAZIRLIK'!AM8 -> 0 | AJ8: =' BORDRO HAZIRLIK'!AN8 -> 0 | AK8: =' BORDRO HAZIRLIK'!AK8 -> 0 | AL8: =' BORDRO HAZIRLIK'!R8 -> 0 | AM8: =' BORDRO HAZIRLIK'!S8 -> 0 | AN8: =' BORDRO HAZIRLIK'!AR8 -> 0 | AO8: =' BORDRO HAZIRLIK'!Y8 -> 0 | AP8: =PUANTAJ!AI10 -> 0 | AQ8: =PUANTAJ!AJ10 -> 0 | AR8: =PUANTAJ!AK10 -> 0 | AS8: =PUANTAJ!AL10 -> 0 | AT8: =' BORDRO HAZIRLIK'!N8 -> 0 | AU8: =' BORDRO HAZIRLIK'!J8 -> 0 | AV8: =' BORDRO HAZIRLIK'!L8 -> 0 | AW8: =' BORDRO HAZIRLIK'!AV8 -> 0 | AX8: =' BORDRO HAZIRLIK'!AW8 -> 0 | AY8: =' BORDRO HAZIRLIK'!AX8 -> 0 | AZ8: =' BORDRO HAZIRLIK'!AY8 -> 0 | BA8: 0 | BB8: =' BORDRO HAZIRLIK'!AO8 -> 0 | BC8: =' BORDRO HAZIRLIK'!AG8 -> 0 | BE8: =' BORDRO HAZIRLIK'!AP8 -> 0 | BF8: =' BORDRO HAZIRLIK'!AQ8 -> 0 | BG8: =' BORDRO HAZIRLIK'!I8 -> 0 | BH8: =' BORDRO HAZIRLIK'!AS8 -> 0 | BI8: =' BORDRO HAZIRLIK'!AT8 -> 0 | BJ8: =' BORDRO HAZIRLIK'!AZ8 -> 0 | BK8: =' BORDRO HAZIRLIK'!BA8 -> 0 | BL8: =' BORDRO HAZIRLIK'!BB8 -> 0 | BM8: ='PERSONEL BİLGİ GİRİŞİ'!I8 -> 0 | BN8: =PUANTAJ!AN10 -> 0 | BO8: =PUANTAJ!AO10 -> 0 | BP8: =PUANTAJ!AP10 -> 0 | BQ8: =PUANTAJ!AQ10 -> 0 | BR8: =PUANTAJ!AR10 -> 0 | BS8: =' BORDRO HAZIRLIK'!AE8 -> 0 | BT8: =' BORDRO HAZIRLIK'!AF8 -> 0
A9: Bürüt Ücret | B9: =VLOOKUP(A5,V5:BC80,34,FALSE) ->  | C9: ÜCRETSİZ İZİN | D9: =VLOOKUP(A5,V5:BR80,48,FALSE) ->  | E9: Damga Vergisi | F9: =VLOOKUP(A5,V5:AO80,14,FALSE) ->  | U9: 5 | V9: =PUANTAJ!B11 ->  | W9: ='PERSONEL BİLGİ GİRİŞİ'!H9 -> 0 | X9: ='PERSONEL BİLGİ GİRİŞİ'!Q9 -> 0 | Y9: ='PERSONEL BİLGİ GİRİŞİ'!R9 -> 0 | Z9: ='PERSONEL BİLGİ GİRİŞİ'!U9 -> 0 | AA9: ='PERSONEL BİLGİ GİRİŞİ'!E9 -> 0 | AB9: =PUANTAJ!AT11 -> 0 | AC9: =' BORDRO HAZIRLIK'!AC9 -> 0 | AD9: =' BORDRO HAZIRLIK'!AD9 -> 0 | AE9: =' BORDRO HAZIRLIK'!K10 -> 0 | AF9: =' BORDRO HAZIRLIK'!BE9 -> 0 | AG9: =' BORDRO HAZIRLIK'!AH9 -> 0 | AH9: =' BORDRO HAZIRLIK'!AL9 -> 0 | AI9: =' BORDRO HAZIRLIK'!AM9 -> 0 | AJ9: =' BORDRO HAZIRLIK'!AN9 -> 0 | AK9: =' BORDRO HAZIRLIK'!AK9 -> 0 | AL9: =' BORDRO HAZIRLIK'!R9 -> 0 | AM9: =' BORDRO HAZIRLIK'!S9 -> 0 | AN9: =' BORDRO HAZIRLIK'!AR9 -> 0 | AO9: =' BORDRO HAZIRLIK'!Y9 -> 0 | AP9: =PUANTAJ!AI11 -> 0 | AQ9: =PUANTAJ!AJ11 -> 0 | AR9: =PUANTAJ!AK11 -> 0 | AS9: =PUANTAJ!AL11 -> 0 | AT9: =' BORDRO HAZIRLIK'!N9 -> 0 | AU9: =' BORDRO HAZIRLIK'!J9 -> 0 | AV9: =' BORDRO HAZIRLIK'!L9 -> 0 | AW9: =' BORDRO HAZIRLIK'!AV9 -> 0 | AX9: =' BORDRO HAZIRLIK'!AW9 -> 0 | AY9: =' BORDRO HAZIRLIK'!AX9 -> 0 | AZ9: =' BORDRO HAZIRLIK'!AY9 -> 0 | BA9: 0 | BB9: =' BORDRO HAZIRLIK'!AO9 -> 0 | BC9: =' BORDRO HAZIRLIK'!AG9 -> 0 | BE9: =' BORDRO HAZIRLIK'!AP9 -> 0 | BF9: =' BORDRO HAZIRLIK'!AQ9 -> 0 | BG9: =' BORDRO HAZIRLIK'!I9 -> 0 | BH9: =' BORDRO HAZIRLIK'!AS9 -> 0 | BI9: =' BORDRO HAZIRLIK'!AT9 -> 0 | BJ9: =' BORDRO HAZIRLIK'!AZ9 -> 0 | BK9: =' BORDRO HAZIRLIK'!BA9 -> 0 | BL9: =' BORDRO HAZIRLIK'!BB9 -> 0 | BM9: ='PERSONEL BİLGİ GİRİŞİ'!I9 -> 0 | BN9: =PUANTAJ!AN11 -> 0 | BO9: =PUANTAJ!AO11 -> 0 | BP9: =PUANTAJ!AP11 -> 0 | BQ9: =PUANTAJ!AQ11 -> 0 | BR9: =PUANTAJ!AR11 -> 0 | BS9: =' BORDRO HAZIRLIK'!AE9 -> 0 | BT9: =' BORDRO HAZIRLIK'!AF9 -> 0
A10: Asgari Geçim İndirimi | B10: =VLOOKUP(A5,V5:AD80,9,FALSE) ->  | C10: RESMİ TATİL | D10: =VLOOKUP(A5,V5:BR80,49,FALSE) ->  | E10: SGK Matrahı | F10: =VLOOKUP(A5,V5:AO80,15,FALSE) ->  | U10: 6 | V10: =PUANTAJ!B12 ->  | W10: ='PERSONEL BİLGİ GİRİŞİ'!H10 -> 0 | X10: ='PERSONEL BİLGİ GİRİŞİ'!Q10 -> 0 | Y10: ='PERSONEL BİLGİ GİRİŞİ'!R10 -> 0 | Z10: ='PERSONEL BİLGİ GİRİŞİ'!U10 -> 0 | AA10: ='PERSONEL BİLGİ GİRİŞİ'!E10 -> 0 | AB10: =PUANTAJ!AT12 -> 0 | AC10: =' BORDRO HAZIRLIK'!AC10 -> 0 | AD10: =' BORDRO HAZIRLIK'!AD10 -> 0 | AE10: =' BORDRO HAZIRLIK'!K11 -> 0 | AF10: =' BORDRO HAZIRLIK'!BE10 -> 0 | AG10: =' BORDRO HAZIRLIK'!AH10 -> 0 | AH10: =' BORDRO HAZIRLIK'!AL10 -> 0 | AI10: =' BORDRO HAZIRLIK'!AM10 -> 0 | AJ10: =' BORDRO HAZIRLIK'!AN10 -> 0 | AK10: =' BORDRO HAZIRLIK'!AK10 -> 0 | AL10: =' BORDRO HAZIRLIK'!R10 -> 0 | AM10: =' BORDRO HAZIRLIK'!S10 -> 0 | AN10: =' BORDRO HAZIRLIK'!AR10 -> 0 | AO10: =' BORDRO HAZIRLIK'!Y10 -> 0 | AP10: =PUANTAJ!AI12 -> 0 | AQ10: =PUANTAJ!AJ12 -> 0 | AR10: =PUANTAJ!AK12 -> 0 | AS10: =PUANTAJ!AL12 -> 0 | AT10: =' BORDRO HAZIRLIK'!N10 -> 0 | AU10: =' BORDRO HAZIRLIK'!J10 -> 0 | AV10: =' BORDRO HAZIRLIK'!L10 -> 0 | AW10: =' BORDRO HAZIRLIK'!AV10 -> 0 | AX10: =' BORDRO HAZIRLIK'!AW10 -> 0 | AY10: =' BORDRO HAZIRLIK'!AX10 -> 0 | AZ10: =' BORDRO HAZIRLIK'!AY10 -> 0 | BA10: 0 | BB10: =' BORDRO HAZIRLIK'!AO10 -> 0 | BC10: =' BORDRO HAZIRLIK'!AG10 -> 0 | BE10: =' BORDRO HAZIRLIK'!AP10 -> 0 | BF10: =' BORDRO HAZIRLIK'!AQ10 -> 0 | BG10: =' BORDRO HAZIRLIK'!I10 -> 0 | BH10: =' BORDRO HAZIRLIK'!AS10 -> 0 | BI10: =' BORDRO HAZIRLIK'!AT10 -> 0 | BJ10: =' BORDRO HAZIRLIK'!AZ10 -> 0 | BK10: =' BORDRO HAZIRLIK'!BA10 -> 0 | BL10: =' BORDRO HAZIRLIK'!BB10 -> 0 | BM10: ='PERSONEL BİLGİ GİRİŞİ'!I10 -> 0 | BN10: =PUANTAJ!AN12 -> 0 | BO10: =PUANTAJ!AO12 -> 0 | BP10: =PUANTAJ!AP12 -> 0 | BQ10: =PUANTAJ!AQ12 -> 0 | BR10: =PUANTAJ!AR12 -> 0 | BS10: =' BORDRO HAZIRLIK'!AE10 -> 0 | BT10: =' BORDRO HAZIRLIK'!AF10 -> 0
A11: Gündüz | B11: =VLOOKUP(A5,V5:AE780,10,FALSE) ->  | C11: =VLOOKUP(A5,V5:BR80,21,FALSE) ->  | D11: SAAT | E11: MALULUK YAŞLILIK (İŞVEREN-İŞÇİ) %11 | F11: =VLOOKUP(A5,V5:AZ80,28,FALSE) ->  | U11: 7 | V11: =PUANTAJ!B13 ->  | W11: ='PERSONEL BİLGİ GİRİŞİ'!H11 -> 0 | X11: ='PERSONEL BİLGİ GİRİŞİ'!Q11 -> 0 | Y11: ='PERSONEL BİLGİ GİRİŞİ'!R11 -> 0 | Z11: ='PERSONEL BİLGİ GİRİŞİ'!U11 -> 0 | AA11: ='PERSONEL BİLGİ GİRİŞİ'!E11 -> 0 | AB11: =PUANTAJ!AT13 -> 0 | AC11: =' BORDRO HAZIRLIK'!AC11 -> 0 | AD11: =' BORDRO HAZIRLIK'!AD11 -> 0 | AE11: =' BORDRO HAZIRLIK'!K12 -> 0 | AF11: =' BORDRO HAZIRLIK'!BE11 -> 0 | AG11: =' BORDRO HAZIRLIK'!AH11 -> 0 | AH11: =' BORDRO HAZIRLIK'!AL11 -> 0 | AI11: =' BORDRO HAZIRLIK'!AM11 -> 0 | AJ11: =' BORDRO HAZIRLIK'!AN11 -> 0 | AK11: =' BORDRO HAZIRLIK'!AK11 -> 0 | AL11: =' BORDRO HAZIRLIK'!R11 -> 0 | AM11: =' BORDRO HAZIRLIK'!S11 -> 0 | AN11: =' BORDRO HAZIRLIK'!AR11 -> 0 | AO11: =' BORDRO HAZIRLIK'!Y11 -> 0 | AP11: =PUANTAJ!AI13 -> 0 | AQ11: =PUANTAJ!AJ13 -> 0 | AR11: =PUANTAJ!AK13 -> 0 | AS11: =PUANTAJ!AL13 -> 0 | AT11: =' BORDRO HAZIRLIK'!N11 -> 0 | AU11: =' BORDRO HAZIRLIK'!J11 -> 0 | AV11: =' BORDRO HAZIRLIK'!L11 -> 0 | AW11: =' BORDRO HAZIRLIK'!AV11 -> 0 | AX11: =' BORDRO HAZIRLIK'!AW11 -> 0 | AY11: =' BORDRO HAZIRLIK'!AX11 -> 0 | AZ11: =' BORDRO HAZIRLIK'!AY11 -> 0 | BA11: 0 | BB11: =' BORDRO HAZIRLIK'!AO11 -> 0 | BC11: =' BORDRO HAZIRLIK'!AG11 -> 0 | BE11: =' BORDRO HAZIRLIK'!AP11 -> 0 | BF11: =' BORDRO HAZIRLIK'!AQ11 -> 0 | BG11: =' BORDRO HAZIRLIK'!I11 -> 0 | BH11: =' BORDRO HAZIRLIK'!AS11 -> 0 | BI11: =' BORDRO HAZIRLIK'!AT11 -> 0 | BJ11: =' BORDRO HAZIRLIK'!AZ11 -> 0 | BK11: =' BORDRO HAZIRLIK'!BA11 -> 0 | BL11: =' BORDRO HAZIRLIK'!BB11 -> 0 | BM11: ='PERSONEL BİLGİ GİRİŞİ'!I11 -> 0 | BN11: =PUANTAJ!AN13 -> 0 | BO11: =PUANTAJ!AO13 -> 0 | BP11: =PUANTAJ!AP13 -> 0 | BQ11: =PUANTAJ!AQ13 -> 0 | BR11: =PUANTAJ!AR13 -> 0 | BS11: =' BORDRO HAZIRLIK'!AE11 -> 0 | BT11: =' BORDRO HAZIRLIK'!AF11 -> 0
A12: Gece | B12: =VLOOKUP(A5,V5:AS80,22,FALSE) ->  | C12: =VLOOKUP(A5,V5:BR80,22,FALSE) ->  | D12: SAAT | E12: MALULUK YAŞLILIK (İŞTİRAKÇİ-İŞÇİ) %9 | F12: =VLOOKUP(A5,V5:AZ80,29,FALSE) ->  | U12: 8 | V12: =PUANTAJ!B14 ->  | W12: ='PERSONEL BİLGİ GİRİŞİ'!H12 -> 0 | X12: ='PERSONEL BİLGİ GİRİŞİ'!Q12 -> 0 | Y12: ='PERSONEL BİLGİ GİRİŞİ'!R12 -> 0 | Z12: ='PERSONEL BİLGİ GİRİŞİ'!U12 -> 0 | AA12: ='PERSONEL BİLGİ GİRİŞİ'!E12 -> 0 | AB12: =PUANTAJ!AT14 -> 0 | AC12: =' BORDRO HAZIRLIK'!AC12 -> 0 | AD12: =' BORDRO HAZIRLIK'!AD12 -> 0 | AE12: =' BORDRO HAZIRLIK'!K13 -> 0 | AF12: =' BORDRO HAZIRLIK'!BE12 -> 0 | AG12: =' BORDRO HAZIRLIK'!AH12 -> 0 | AH12: =' BORDRO HAZIRLIK'!AL12 -> 0 | AI12: =' BORDRO HAZIRLIK'!AM12 -> 0 | AJ12: =' BORDRO HAZIRLIK'!AN12 -> 0 | AK12: =' BORDRO HAZIRLIK'!AK12 -> 0 | AL12: =' BORDRO HAZIRLIK'!R12 -> 0 | AM12: =' BORDRO HAZIRLIK'!S12 -> 0 | AN12: =' BORDRO HAZIRLIK'!AR12 -> 0 | AO12: =' BORDRO HAZIRLIK'!Y12 -> 0 | AP12: =PUANTAJ!AI14 -> 0 | AQ12: =PUANTAJ!AJ14 -> 0 | AR12: =PUANTAJ!AK14 -> 0 | AS12: =PUANTAJ!AL14 -> 0 | AT12: =' BORDRO HAZIRLIK'!N12 -> 0 | AU12: =' BORDRO HAZIRLIK'!J12 -> 0 | AV12: =' BORDRO HAZIRLIK'!L12 -> 0 | AW12: =' BORDRO HAZIRLIK'!AV12 -> 0 | AX12: =' BORDRO HAZIRLIK'!AW12 -> 0 | AY12: =' BORDRO HAZIRLIK'!AX12 -> 0 | AZ12: =' BORDRO HAZIRLIK'!AY12 -> 0 | BA12: 0 | BB12: =' BORDRO HAZIRLIK'!AO12 -> 0 | BC12: =' BORDRO HAZIRLIK'!AG12 -> 0 | BE12: =' BORDRO HAZIRLIK'!AP12 -> 0 | BF12: =' BORDRO HAZIRLIK'!AQ12 -> 0 | BG12: =' BORDRO HAZIRLIK'!I12 -> 0 | BH12: =' BORDRO HAZIRLIK'!AS12 -> 0 | BI12: =' BORDRO HAZIRLIK'!AT12 -> 0 | BJ12: =' BORDRO HAZIRLIK'!AZ12 -> 0 | BK12: =' BORDRO HAZIRLIK'!BA12 -> 0 | BL12: =' BORDRO HAZIRLIK'!BB12 -> 0 | BM12: ='PERSONEL BİLGİ GİRİŞİ'!I12 -> 0 | BN12: =PUANTAJ!AN14 -> 0 | BO12: =PUANTAJ!AO14 -> 0 | BP12: =PUANTAJ!AP14 -> 0 | BQ12: =PUANTAJ!AQ14 -> 0 | BR12: =PUANTAJ!AR14 -> 0 | BS12: =' BORDRO HAZIRLIK'!AE12 -> 0 | BT12: =' BORDRO HAZIRLIK'!AF12 -> 0
A13: Hafta Sonu | B13: =VLOOKUP(A5,V5:AS80,21,FALSE) ->  | C13: =VLOOKUP(A5,V5:BR80,23,FALSE) ->  | D13: SAAT | E13: G.S.S. (İŞTİRAKÇİ İŞÇİ) %5 | F13: =VLOOKUP(A5,V5:AZ80,30,FALSE) ->  | U13: 9 | V13: =PUANTAJ!B15 ->  | W13: ='PERSONEL BİLGİ GİRİŞİ'!H13 -> 0 | X13: ='PERSONEL BİLGİ GİRİŞİ'!Q13 -> 0 | Y13: ='PERSONEL BİLGİ GİRİŞİ'!R13 -> 0 | Z13: ='PERSONEL BİLGİ GİRİŞİ'!U13 -> 0 | AA13: ='PERSONEL BİLGİ GİRİŞİ'!E13 -> 0 | AB13: =PUANTAJ!AT15 -> 0 | AC13: =' BORDRO HAZIRLIK'!AC13 -> 0 | AD13: =' BORDRO HAZIRLIK'!AD13 -> 0 | AE13: =' BORDRO HAZIRLIK'!K14 -> 0 | AF13: =' BORDRO HAZIRLIK'!BE13 -> 0 | AG13: =' BORDRO HAZIRLIK'!AH13 -> 0 | AH13: =' BORDRO HAZIRLIK'!AL13 -> 0 | AI13: =' BORDRO HAZIRLIK'!AM13 -> 0 | AJ13: =' BORDRO HAZIRLIK'!AN13 -> 0 | AK13: =' BORDRO HAZIRLIK'!AK13 -> 0 | AL13: =' BORDRO HAZIRLIK'!R13 -> 0 | AM13: =' BORDRO HAZIRLIK'!S13 -> 0 | AN13: =' BORDRO HAZIRLIK'!AR13 -> 0 | AO13: =' BORDRO HAZIRLIK'!Y13 -> 0 | AP13: =PUANTAJ!AI15 -> 0 | AQ13: =PUANTAJ!AJ15 -> 0 | AR13: =PUANTAJ!AK15 -> 0 | AS13: =PUANTAJ!AL15 -> 0 | AT13: =' BORDRO HAZIRLIK'!N13 -> 0 | AU13: =' BORDRO HAZIRLIK'!J13 -> 0 | AV13: =' BORDRO HAZIRLIK'!L13 -> 0 | AW13: =' BORDRO HAZIRLIK'!AV13 -> 0 | AX13: =' BORDRO HAZIRLIK'!AW13 -> 0 | AY13: =' BORDRO HAZIRLIK'!AX13 -> 0 | AZ13: =' BORDRO HAZIRLIK'!AY13 -> 0 | BA13: 0 | BB13: =' BORDRO HAZIRLIK'!AO13 -> 0 | BC13: =' BORDRO HAZIRLIK'!AG13 -> 0 | BE13: =' BORDRO HAZIRLIK'!AP13 -> 0 | BF13: =' BORDRO HAZIRLIK'!AQ13 -> 0 | BG13: =' BORDRO HAZIRLIK'!I13 -> 0 | BH13: =' BORDRO HAZIRLIK'!AS13 -> 0 | BI13: =' BORDRO HAZIRLIK'!AT13 -> 0 | BJ13: =' BORDRO HAZIRLIK'!AZ13 -> 0 | BK13: =' BORDRO HAZIRLIK'!BA13 -> 0 | BL13: =' BORDRO HAZIRLIK'!BB13 -> 0 | BM13: ='PERSONEL BİLGİ GİRİŞİ'!I13 -> 0 | BN13: =PUANTAJ!AN15 -> 0 | BO13: =PUANTAJ!AO15 -> 0 | BP13: =PUANTAJ!AP15 -> 0 | BQ13: =PUANTAJ!AQ15 -> 0 | BR13: =PUANTAJ!AR15 -> 0 | BS13: =' BORDRO HAZIRLIK'!AE13 -> 0 | BT13: =' BORDRO HAZIRLIK'!AF13 -> 0
A14: TOPLAM | B14: =VLOOKUP(A5,V5:AS80,24,FALSE) ->  | C14: SAAT | E14: G.S.S. (İŞVEREN İŞÇİ) %7.5 | F14: =VLOOKUP(A5,V5:AZ80,31,FALSE) ->  | U14: 10 | V14: =PUANTAJ!B16 ->  | W14: ='PERSONEL BİLGİ GİRİŞİ'!H14 -> 0 | X14: ='PERSONEL BİLGİ GİRİŞİ'!Q14 -> 0 | Y14: ='PERSONEL BİLGİ GİRİŞİ'!R14 -> 0 | Z14: ='PERSONEL BİLGİ GİRİŞİ'!U14 -> 0 | AA14: ='PERSONEL BİLGİ GİRİŞİ'!E14 -> 0 | AB14: =PUANTAJ!AT16 -> 0 | AC14: =' BORDRO HAZIRLIK'!AC14 -> 0 | AD14: =' BORDRO HAZIRLIK'!AD14 -> 0 | AE14: =' BORDRO HAZIRLIK'!K15 -> 0 | AF14: =' BORDRO HAZIRLIK'!BE14 -> 0 | AG14: =' BORDRO HAZIRLIK'!AH14 -> 0 | AH14: =' BORDRO HAZIRLIK'!AL14 -> 0 | AI14: =' BORDRO HAZIRLIK'!AM14 -> 0 | AJ14: =' BORDRO HAZIRLIK'!AN14 -> 0 | AK14: =' BORDRO HAZIRLIK'!AK14 -> 0 | AL14: =' BORDRO HAZIRLIK'!R14 -> 0 | AM14: =' BORDRO HAZIRLIK'!S14 -> 0 | AN14: =' BORDRO HAZIRLIK'!AR14 -> 0 | AO14: =' BORDRO HAZIRLIK'!Y14 -> 0 | AP14: =PUANTAJ!AI16 -> 0 | AQ14: =PUANTAJ!AJ16 -> 0 | AR14: =PUANTAJ!AK16 -> 0 | AS14: =PUANTAJ!AL16 -> 0 | AT14: =' BORDRO HAZIRLIK'!N14 -> 0 | AU14: =' BORDRO HAZIRLIK'!J14 -> 0 | AV14: =' BORDRO HAZIRLIK'!L14 -> 0 | AW14: =' BORDRO HAZIRLIK'!AV14 -> 0 | AX14: =' BORDRO HAZIRLIK'!AW14 -> 0 | AY14: =' BORDRO HAZIRLIK'!AX14 -> 0 | AZ14: =' BORDRO HAZIRLIK'!AY14 -> 0 | BA14: 0 | BB14: =' BORDRO HAZIRLIK'!AO14 -> 0 | BC14: =' BORDRO HAZIRLIK'!AG14 -> 0 | BE14: =' BORDRO HAZIRLIK'!AP14 -> 0 | BF14: =' BORDRO HAZIRLIK'!AQ14 -> 0 | BG14: =' BORDRO HAZIRLIK'!I14 -> 0 | BH14: =' BORDRO HAZIRLIK'!AS14 -> 0 | BI14: =' BORDRO HAZIRLIK'!AT14 -> 0 | BJ14: =' BORDRO HAZIRLIK'!AZ14 -> 0 | BK14: =' BORDRO HAZIRLIK'!BA14 -> 0 | BL14: =' BORDRO HAZIRLIK'!BB14 -> 0 | BM14: ='PERSONEL BİLGİ GİRİŞİ'!I14 -> 0 | BN14: =PUANTAJ!AN16 -> 0 | BO14: =PUANTAJ!AO16 -> 0 | BP14: =PUANTAJ!AP16 -> 0 | BQ14: =PUANTAJ!AQ16 -> 0 | BR14: =PUANTAJ!AR16 -> 0 | BS14: =' BORDRO HAZIRLIK'!AE14 -> 0 | BT14: =' BORDRO HAZIRLIK'!AF14 -> 0
E15: KISA VAADELİ SİGORTA KOLLARI PİRİMİ %2 | F15: =VLOOKUP(A5,V5:BL80,41,FALSE) ->  | U15: 11 | V15: =PUANTAJ!B17 ->  | W15: ='PERSONEL BİLGİ GİRİŞİ'!H15 -> 0 | X15: ='PERSONEL BİLGİ GİRİŞİ'!Q15 -> 0 | Y15: ='PERSONEL BİLGİ GİRİŞİ'!R15 -> 0 | Z15: ='PERSONEL BİLGİ GİRİŞİ'!U15 -> 0 | AA15: ='PERSONEL BİLGİ GİRİŞİ'!E15 -> 0 | AB15: =PUANTAJ!AT17 -> 0 | AC15: =' BORDRO HAZIRLIK'!AC15 -> 0 | AD15: =' BORDRO HAZIRLIK'!AD15 -> 0 | AE15: =' BORDRO HAZIRLIK'!K16 -> 0 | AF15: =' BORDRO HAZIRLIK'!BE15 -> 0 | AG15: =' BORDRO HAZIRLIK'!AH15 -> 0 | AH15: =' BORDRO HAZIRLIK'!AL15 -> 0 | AI15: =' BORDRO HAZIRLIK'!AM15 -> 0 | AJ15: =' BORDRO HAZIRLIK'!AN15 -> 0 | AK15: =' BORDRO HAZIRLIK'!AK15 -> 0 | AL15: =' BORDRO HAZIRLIK'!R15 -> 0 | AM15: =' BORDRO HAZIRLIK'!S15 -> 0 | AN15: =' BORDRO HAZIRLIK'!AR15 -> 0 | AO15: =' BORDRO HAZIRLIK'!Y15 -> 0 | AP15: =PUANTAJ!AI17 -> 0 | AQ15: =PUANTAJ!AJ17 -> 0 | AR15: =PUANTAJ!AK17 -> 0 | AS15: =PUANTAJ!AL17 -> 0 | AT15: =' BORDRO HAZIRLIK'!N15 -> 0 | AU15: =' BORDRO HAZIRLIK'!J15 -> 0 | AV15: =' BORDRO HAZIRLIK'!L15 -> 0 | AW15: =' BORDRO HAZIRLIK'!AV15 -> 0 | AX15: =' BORDRO HAZIRLIK'!AW15 -> 0 | AY15: =' BORDRO HAZIRLIK'!AX15 -> 0 | AZ15: =' BORDRO HAZIRLIK'!AY15 -> 0 | BA15: 0 | BB15: =' BORDRO HAZIRLIK'!AO15 -> 0 | BC15: =' BORDRO HAZIRLIK'!AG15 -> 0 | BE15: =' BORDRO HAZIRLIK'!AP15 -> 0 | BF15: =' BORDRO HAZIRLIK'!AQ15 -> 0 | BG15: =' BORDRO HAZIRLIK'!I15 -> 0 | BH15: =' BORDRO HAZIRLIK'!AS15 -> 0 | BI15: =' BORDRO HAZIRLIK'!AT15 -> 0 | BJ15: =' BORDRO HAZIRLIK'!AZ15 -> 0 | BK15: =' BORDRO HAZIRLIK'!BA15 -> 0 | BL15: =' BORDRO HAZIRLIK'!BB15 -> 0 | BM15: ='PERSONEL BİLGİ GİRİŞİ'!I15 -> 0 | BN15: =PUANTAJ!AN17 -> 0 | BO15: =PUANTAJ!AO17 -> 0 | BP15: =PUANTAJ!AP17 -> 0 | BQ15: =PUANTAJ!AQ17 -> 0 | BR15: =PUANTAJ!AR17 -> 0 | BS15: =' BORDRO HAZIRLIK'!AE15 -> 0 | BT15: =' BORDRO HAZIRLIK'!AF15 -> 0
A16: GÜNDÜZ SAAT ÜCRETİ(1SAAT) | B16: =VLOOKUP(A5,V5:AS80,4,FALSE) ->  | E16: İŞSİZLİK SİGORTASI PİRİMİ- İŞVEREN %2 | F16: =VLOOKUP(A5,V5:BL80,42,FALSE) ->  | U16: 12 | V16: =PUANTAJ!B18 ->  | W16: ='PERSONEL BİLGİ GİRİŞİ'!H16 -> 0 | X16: ='PERSONEL BİLGİ GİRİŞİ'!Q16 -> 0 | Y16: ='PERSONEL BİLGİ GİRİŞİ'!R16 -> 0 | Z16: ='PERSONEL BİLGİ GİRİŞİ'!U16 -> 0 | AA16: ='PERSONEL BİLGİ GİRİŞİ'!E16 -> 0 | AB16: =PUANTAJ!AT18 -> 0 | AC16: =' BORDRO HAZIRLIK'!AC16 -> 0 | AD16: =' BORDRO HAZIRLIK'!AD16 -> 0 | AE16: =' BORDRO HAZIRLIK'!K17 -> 0 | AF16: =' BORDRO HAZIRLIK'!BE16 -> 0 | AG16: =' BORDRO HAZIRLIK'!AH16 -> 0 | AH16: =' BORDRO HAZIRLIK'!AL16 -> 0 | AI16: =' BORDRO HAZIRLIK'!AM16 -> 0 | AJ16: =' BORDRO HAZIRLIK'!AN16 -> 0 | AK16: =' BORDRO HAZIRLIK'!AK16 -> 0 | AL16: =' BORDRO HAZIRLIK'!R16 -> 0 | AM16: =' BORDRO HAZIRLIK'!S16 -> 0 | AN16: =' BORDRO HAZIRLIK'!AR16 -> 0 | AO16: =' BORDRO HAZIRLIK'!Y16 -> 0 | AP16: =PUANTAJ!AI18 -> 0 | AQ16: =PUANTAJ!AJ18 -> 0 | AR16: =PUANTAJ!AK18 -> 0 | AS16: =PUANTAJ!AL18 -> 0 | AT16: =' BORDRO HAZIRLIK'!N16 -> 0 | AU16: =' BORDRO HAZIRLIK'!J16 -> 0 | AV16: =' BORDRO HAZIRLIK'!L16 -> 0 | AW16: =' BORDRO HAZIRLIK'!AV16 -> 0 | AX16: =' BORDRO HAZIRLIK'!AW16 -> 0 | AY16: =' BORDRO HAZIRLIK'!AX16 -> 0 | AZ16: =' BORDRO HAZIRLIK'!AY16 -> 0 | BA16: 0 | BB16: =' BORDRO HAZIRLIK'!AO16 -> 0 | BC16: =' BORDRO HAZIRLIK'!AG16 -> 0 | BE16: =' BORDRO HAZIRLIK'!AP16 -> 0 | BF16: =' BORDRO HAZIRLIK'!AQ16 -> 0 | BG16: =' BORDRO HAZIRLIK'!I16 -> 0 | BH16: =' BORDRO HAZIRLIK'!AS16 -> 0 | BI16: =' BORDRO HAZIRLIK'!AT16 -> 0 | BJ16: =' BORDRO HAZIRLIK'!AZ16 -> 0 | BK16: =' BORDRO HAZIRLIK'!BA16 -> 0 | BL16: =' BORDRO HAZIRLIK'!BB16 -> 0 | BM16: ='PERSONEL BİLGİ GİRİŞİ'!I16 -> 0 | BN16: =PUANTAJ!AN18 -> 0 | BO16: =PUANTAJ!AO18 -> 0 | BP16: =PUANTAJ!AP18 -> 0 | BQ16: =PUANTAJ!AQ18 -> 0 | BR16: =PUANTAJ!AR18 -> 0 | BS16: =' BORDRO HAZIRLIK'!AE16 -> 0 | BT16: =' BORDRO HAZIRLIK'!AF16 -> 0
A17: GECE SAAT ÜCRETİ(1 SAAT) | B17: =VLOOKUP(A5,V5:AS80,5,FALSE) ->  | E17: İŞSİZLİK SİGORTASI PİRİMİ- İŞÇİ %1 | F17: =VLOOKUP(A5,V5:BL80,43,FALSE) ->  | U17: 13 | V17: =PUANTAJ!B19 ->  | W17: ='PERSONEL BİLGİ GİRİŞİ'!H17 -> 0 | X17: ='PERSONEL BİLGİ GİRİŞİ'!Q17 -> 0 | Y17: ='PERSONEL BİLGİ GİRİŞİ'!R17 -> 0 | Z17: ='PERSONEL BİLGİ GİRİŞİ'!U17 -> 0 | AA17: ='PERSONEL BİLGİ GİRİŞİ'!E17 -> 0 | AB17: =PUANTAJ!AT19 -> 0 | AC17: =' BORDRO HAZIRLIK'!AC17 -> 0 | AD17: =' BORDRO HAZIRLIK'!AD17 -> 0 | AE17: =' BORDRO HAZIRLIK'!K18 -> 0 | AF17: =' BORDRO HAZIRLIK'!BE17 -> 0 | AG17: =' BORDRO HAZIRLIK'!AH17 -> 0 | AH17: =' BORDRO HAZIRLIK'!AL17 -> 0 | AI17: =' BORDRO HAZIRLIK'!AM17 -> 0 | AJ17: =' BORDRO HAZIRLIK'!AN17 -> 0 | AK17: =' BORDRO HAZIRLIK'!AK17 -> 0 | AL17: =' BORDRO HAZIRLIK'!R17 -> 0 | AM17: =' BORDRO HAZIRLIK'!S17 -> 0 | AN17: =' BORDRO HAZIRLIK'!AR17 -> 0 | AO17: =' BORDRO HAZIRLIK'!Y17 -> 0 | AP17: =PUANTAJ!AI19 -> 0 | AQ17: =PUANTAJ!AJ19 -> 0 | AR17: =PUANTAJ!AK19 -> 0 | AS17: =PUANTAJ!AL19 -> 0 | AT17: =' BORDRO HAZIRLIK'!N17 -> 0 | AU17: =' BORDRO HAZIRLIK'!J17 -> 0 | AV17: =' BORDRO HAZIRLIK'!L17 -> 0 | AW17: =' BORDRO HAZIRLIK'!AV17 -> 0 | AX17: =' BORDRO HAZIRLIK'!AW17 -> 0 | AY17: =' BORDRO HAZIRLIK'!AX17 -> 0 | AZ17: =' BORDRO HAZIRLIK'!AY17 -> 0 | BA17: 0 | BB17: =' BORDRO HAZIRLIK'!AO17 -> 0 | BC17: =' BORDRO HAZIRLIK'!AG17 -> 0 | BE17: =' BORDRO HAZIRLIK'!AP17 -> 0 | BF17: =' BORDRO HAZIRLIK'!AQ17 -> 0 | BG17: =' BORDRO HAZIRLIK'!I17 -> 0 | BH17: =' BORDRO HAZIRLIK'!AS17 -> 0 | BI17: =' BORDRO HAZIRLIK'!AT17 -> 0 | BJ17: =' BORDRO HAZIRLIK'!AZ17 -> 0 | BK17: =' BORDRO HAZIRLIK'!BA17 -> 0 | BL17: =' BORDRO HAZIRLIK'!BB17 -> 0 | BM17: ='PERSONEL BİLGİ GİRİŞİ'!I17 -> 0 | BN17: =PUANTAJ!AN19 -> 0 | BO17: =PUANTAJ!AO19 -> 0 | BP17: =PUANTAJ!AP19 -> 0 | BQ17: =PUANTAJ!AQ19 -> 0 | BR17: =PUANTAJ!AR19 -> 0 | BS17: =' BORDRO HAZIRLIK'!AE17 -> 0 | BT17: =' BORDRO HAZIRLIK'!AF17 -> 0
E18: Sendika Aidatı | F18: =VLOOKUP(A5,V5:BB80,33,FALSE) ->  | U18: 14 | V18: =PUANTAJ!B20 ->  | W18: ='PERSONEL BİLGİ GİRİŞİ'!H18 -> 0 | X18: ='PERSONEL BİLGİ GİRİŞİ'!Q18 -> 0 | Y18: ='PERSONEL BİLGİ GİRİŞİ'!R18 -> 0 | Z18: ='PERSONEL BİLGİ GİRİŞİ'!U18 -> 0 | AA18: ='PERSONEL BİLGİ GİRİŞİ'!E18 -> 0 | AB18: =PUANTAJ!AT20 -> 0 | AC18: =' BORDRO HAZIRLIK'!AC18 -> 0 | AD18: =' BORDRO HAZIRLIK'!AD18 -> 0 | AE18: =' BORDRO HAZIRLIK'!K19 -> 0 | AF18: =' BORDRO HAZIRLIK'!BE18 -> 0 | AG18: =' BORDRO HAZIRLIK'!AH18 -> 0 | AH18: =' BORDRO HAZIRLIK'!AL18 -> 0 | AI18: =' BORDRO HAZIRLIK'!AM18 -> 0 | AJ18: =' BORDRO HAZIRLIK'!AN18 -> 0 | AK18: =' BORDRO HAZIRLIK'!AK18 -> 0 | AL18: =' BORDRO HAZIRLIK'!R18 -> 0 | AM18: =' BORDRO HAZIRLIK'!S18 -> 0 | AN18: =' BORDRO HAZIRLIK'!AR18 -> 0 | AO18: =' BORDRO HAZIRLIK'!Y18 -> 0 | AP18: =PUANTAJ!AI20 -> 0 | AQ18: =PUANTAJ!AJ20 -> 0 | AR18: =PUANTAJ!AK20 -> 0 | AS18: =PUANTAJ!AL20 -> 0 | AT18: =' BORDRO HAZIRLIK'!N18 -> 0 | AU18: =' BORDRO HAZIRLIK'!J18 -> 0 | AV18: =' BORDRO HAZIRLIK'!L18 -> 0 | AW18: =' BORDRO HAZIRLIK'!AV18 -> 0 | AX18: =' BORDRO HAZIRLIK'!AW18 -> 0 | AY18: =' BORDRO HAZIRLIK'!AX18 -> 0 | AZ18: =' BORDRO HAZIRLIK'!AY18 -> 0 | BA18: 0 | BB18: =' BORDRO HAZIRLIK'!AO18 -> 0 | BC18: =' BORDRO HAZIRLIK'!AG18 -> 0 | BE18: =' BORDRO HAZIRLIK'!AP18 -> 0 | BF18: =' BORDRO HAZIRLIK'!AQ18 -> 0 | BG18: =' BORDRO HAZIRLIK'!I18 -> 0 | BH18: =' BORDRO HAZIRLIK'!AS18 -> 0 | BI18: =' BORDRO HAZIRLIK'!AT18 -> 0 | BJ18: =' BORDRO HAZIRLIK'!AZ18 -> 0 | BK18: =' BORDRO HAZIRLIK'!BA18 -> 0 | BL18: =' BORDRO HAZIRLIK'!BB18 -> 0 | BM18: ='PERSONEL BİLGİ GİRİŞİ'!I18 -> 0 | BN18: =PUANTAJ!AN20 -> 0 | BO18: =PUANTAJ!AO20 -> 0 | BP18: =PUANTAJ!AP20 -> 0 | BQ18: =PUANTAJ!AQ20 -> 0 | BR18: =PUANTAJ!AR20 -> 0 | BS18: =' BORDRO HAZIRLIK'!AE18 -> 0 | BT18: =' BORDRO HAZIRLIK'!AF18 -> 0
E19: Bes | F19: =VLOOKUP(A5,V5:BE80,36,FALSE) ->  | U19: 15 | V19: =PUANTAJ!B21 ->  | W19: ='PERSONEL BİLGİ GİRİŞİ'!H19 -> 0 | X19: ='PERSONEL BİLGİ GİRİŞİ'!Q19 -> 0 | Y19: ='PERSONEL BİLGİ GİRİŞİ'!R19 -> 0 | Z19: ='PERSONEL BİLGİ GİRİŞİ'!U19 -> 0 | AA19: ='PERSONEL BİLGİ GİRİŞİ'!E19 -> 0 | AB19: =PUANTAJ!AT21 -> 0 | AC19: =' BORDRO HAZIRLIK'!AC19 -> 0 | AD19: =' BORDRO HAZIRLIK'!AD19 -> 0 | AE19: =' BORDRO HAZIRLIK'!K20 -> 0 | AF19: =' BORDRO HAZIRLIK'!BE19 -> 0 | AG19: =' BORDRO HAZIRLIK'!AH19 -> 0 | AH19: =' BORDRO HAZIRLIK'!AL19 -> 0 | AI19: =' BORDRO HAZIRLIK'!AM19 -> 0 | AJ19: =' BORDRO HAZIRLIK'!AN19 -> 0 | AK19: =' BORDRO HAZIRLIK'!AK19 -> 0 | AL19: =' BORDRO HAZIRLIK'!R19 -> 0 | AM19: =' BORDRO HAZIRLIK'!S19 -> 0 | AN19: =' BORDRO HAZIRLIK'!AR19 -> 0 | AO19: =' BORDRO HAZIRLIK'!Y19 -> 0 | AP19: =PUANTAJ!AI21 -> 0 | AQ19: =PUANTAJ!AJ21 -> 0 | AR19: =PUANTAJ!AK21 -> 0 | AS19: =PUANTAJ!AL21 -> 0 | AT19: =' BORDRO HAZIRLIK'!N19 -> 0 | AU19: =' BORDRO HAZIRLIK'!J19 -> 0 | AV19: =' BORDRO HAZIRLIK'!L19 -> 0 | AW19: =' BORDRO HAZIRLIK'!AV19 -> 0 | AX19: =' BORDRO HAZIRLIK'!AW19 -> 0 | AY19: =' BORDRO HAZIRLIK'!AX19 -> 0 | AZ19: =' BORDRO HAZIRLIK'!AY19 -> 0 | BA19: 0 | BB19: =' BORDRO HAZIRLIK'!AO19 -> 0 | BC19: =' BORDRO HAZIRLIK'!AG19 -> 0 | BE19: =' BORDRO HAZIRLIK'!AP19 -> 0 | BF19: =' BORDRO HAZIRLIK'!AQ19 -> 0 | BG19: =' BORDRO HAZIRLIK'!I19 -> 0 | BH19: =' BORDRO HAZIRLIK'!AS19 -> 0 | BI19: =' BORDRO HAZIRLIK'!AT19 -> 0 | BJ19: =' BORDRO HAZIRLIK'!AZ19 -> 0 | BK19: =' BORDRO HAZIRLIK'!BA19 -> 0 | BL19: =' BORDRO HAZIRLIK'!BB19 -> 0 | BM19: ='PERSONEL BİLGİ GİRİŞİ'!I19 -> 0 | BN19: =PUANTAJ!AN21 -> 0 | BO19: =PUANTAJ!AO21 -> 0 | BP19: =PUANTAJ!AP21 -> 0 | BQ19: =PUANTAJ!AQ21 -> 0 | BR19: =PUANTAJ!AR21 -> 0 | BS19: =' BORDRO HAZIRLIK'!AE19 -> 0 | BT19: =' BORDRO HAZIRLIK'!AF19 -> 0
E20: İcra | F20: =VLOOKUP(A5,V5:BF80,37,FALSE) ->  | U20: 16 | V20: =PUANTAJ!B22 ->  | W20: ='PERSONEL BİLGİ GİRİŞİ'!H20 -> 0 | X20: ='PERSONEL BİLGİ GİRİŞİ'!Q20 -> 0 | Y20: ='PERSONEL BİLGİ GİRİŞİ'!R20 -> 0 | Z20: ='PERSONEL BİLGİ GİRİŞİ'!U20 -> 0 | AA20: ='PERSONEL BİLGİ GİRİŞİ'!E20 -> 0 | AB20: =PUANTAJ!AT22 -> 0 | AC20: =' BORDRO HAZIRLIK'!AC20 -> 0 | AD20: =' BORDRO HAZIRLIK'!AD20 -> 0 | AE20: =' BORDRO HAZIRLIK'!K21 -> 0 | AF20: =' BORDRO HAZIRLIK'!BE20 -> 0 | AG20: =' BORDRO HAZIRLIK'!AH20 -> 0 | AH20: =' BORDRO HAZIRLIK'!AL20 -> 0 | AI20: =' BORDRO HAZIRLIK'!AM20 -> 0 | AJ20: =' BORDRO HAZIRLIK'!AN20 -> 0 | AK20: =' BORDRO HAZIRLIK'!AK20 -> 0 | AL20: =' BORDRO HAZIRLIK'!R20 -> 0 | AM20: =' BORDRO HAZIRLIK'!S20 -> 0 | AN20: =' BORDRO HAZIRLIK'!AR20 -> 0 | AO20: =' BORDRO HAZIRLIK'!Y20 -> 0 | AP20: =PUANTAJ!AI22 -> 0 | AQ20: =PUANTAJ!AJ22 -> 0 | AR20: =PUANTAJ!AK22 -> 0 | AS20: =PUANTAJ!AL22 -> 0 | AT20: =' BORDRO HAZIRLIK'!N20 -> 0 | AU20: =' BORDRO HAZIRLIK'!J20 -> 0 | AV20: =' BORDRO HAZIRLIK'!L20 -> 0 | AW20: =' BORDRO HAZIRLIK'!AV20 -> 0 | AX20: =' BORDRO HAZIRLIK'!AW20 -> 0 | AY20: =' BORDRO HAZIRLIK'!AX20 -> 0 | AZ20: =' BORDRO HAZIRLIK'!AY20 -> 0 | BA20: 0 | BB20: =' BORDRO HAZIRLIK'!AO20 -> 0 | BC20: =' BORDRO HAZIRLIK'!AG20 -> 0 | BE20: =' BORDRO HAZIRLIK'!AP20 -> 0 | BF20: =' BORDRO HAZIRLIK'!AQ20 -> 0 | BG20: =' BORDRO HAZIRLIK'!I20 -> 0 | BH20: =' BORDRO HAZIRLIK'!AS20 -> 0 | BI20: =' BORDRO HAZIRLIK'!AT20 -> 0 | BJ20: =' BORDRO HAZIRLIK'!AZ20 -> 0 | BK20: =' BORDRO HAZIRLIK'!BA20 -> 0 | BL20: =' BORDRO HAZIRLIK'!BB20 -> 0 | BM20: ='PERSONEL BİLGİ GİRİŞİ'!I20 -> 0 | BN20: =PUANTAJ!AN22 -> 0 | BO20: =PUANTAJ!AO22 -> 0 | BP20: =PUANTAJ!AP22 -> 0 | BQ20: =PUANTAJ!AQ22 -> 0 | BR20: =PUANTAJ!AR22 -> 0 | BS20: =' BORDRO HAZIRLIK'!AE20 -> 0 | BT20: =' BORDRO HAZIRLIK'!AF20 -> 0
E21: Nafaka | F21: =VLOOKUP(A5,V5:BF80,19,FALSE) ->  | U21: 17 | V21: =PUANTAJ!B23 ->  | W21: ='PERSONEL BİLGİ GİRİŞİ'!H21 -> 0 | X21: ='PERSONEL BİLGİ GİRİŞİ'!Q21 -> 0 | Y21: ='PERSONEL BİLGİ GİRİŞİ'!R21 -> 0 | Z21: ='PERSONEL BİLGİ GİRİŞİ'!U21 -> 0 | AA21: ='PERSONEL BİLGİ GİRİŞİ'!E21 -> 0 | AB21: =PUANTAJ!AT23 -> 0 | AC21: =' BORDRO HAZIRLIK'!AC21 -> 0 | AD21: =' BORDRO HAZIRLIK'!AD21 -> 0 | AE21: =' BORDRO HAZIRLIK'!K22 -> 0 | AF21: =' BORDRO HAZIRLIK'!BE21 -> 0 | AG21: =' BORDRO HAZIRLIK'!AH21 -> 0 | AH21: =' BORDRO HAZIRLIK'!AL21 -> 0 | AI21: =' BORDRO HAZIRLIK'!AM21 -> 0 | AJ21: =' BORDRO HAZIRLIK'!AN21 -> 0 | AK21: =' BORDRO HAZIRLIK'!AK21 -> 0 | AL21: =' BORDRO HAZIRLIK'!R21 -> 0 | AM21: =' BORDRO HAZIRLIK'!S21 -> 0 | AN21: =' BORDRO HAZIRLIK'!AR21 -> 0 | AO21: =' BORDRO HAZIRLIK'!Y21 -> 0 | AP21: =PUANTAJ!AI23 -> 0 | AQ21: =PUANTAJ!AJ23 -> 0 | AR21: =PUANTAJ!AK23 -> 0 | AS21: =PUANTAJ!AL23 -> 0 | AT21: =' BORDRO HAZIRLIK'!N21 -> 0 | AU21: =' BORDRO HAZIRLIK'!J21 -> 0 | AV21: =' BORDRO HAZIRLIK'!L21 -> 0 | AW21: =' BORDRO HAZIRLIK'!AV21 -> 0 | AX21: =' BORDRO HAZIRLIK'!AW21 -> 0 | AY21: =' BORDRO HAZIRLIK'!AX21 -> 0 | AZ21: =' BORDRO HAZIRLIK'!AY21 -> 0 | BA21: 0 | BB21: =' BORDRO HAZIRLIK'!AO21 -> 0 | BC21: =' BORDRO HAZIRLIK'!AG21 -> 0 | BE21: =' BORDRO HAZIRLIK'!AP21 -> 0 | BF21: =' BORDRO HAZIRLIK'!AQ21 -> 0 | BG21: =' BORDRO HAZIRLIK'!I21 -> 0 | BH21: =' BORDRO HAZIRLIK'!AS21 -> 0 | BI21: =' BORDRO HAZIRLIK'!AT21 -> 0 | BJ21: =' BORDRO HAZIRLIK'!AZ21 -> 0 | BK21: =' BORDRO HAZIRLIK'!BA21 -> 0 | BL21: =' BORDRO HAZIRLIK'!BB21 -> 0 | BM21: ='PERSONEL BİLGİ GİRİŞİ'!I21 -> 0 | BN21: =PUANTAJ!AN23 -> 0 | BO21: =PUANTAJ!AO23 -> 0 | BP21: =PUANTAJ!AP23 -> 0 | BQ21: =PUANTAJ!AQ23 -> 0 | BR21: =PUANTAJ!AR23 -> 0 | BS21: =' BORDRO HAZIRLIK'!AE21 -> 0 | BT21: =' BORDRO HAZIRLIK'!AF21 -> 0
E22: KESİNTİLER | F22: =SUM(F6:F21)-F10 ->  | U22: 18 | V22: =PUANTAJ!B24 ->  | W22: ='PERSONEL BİLGİ GİRİŞİ'!H22 -> 0 | X22: ='PERSONEL BİLGİ GİRİŞİ'!Q22 -> 0 | Y22: ='PERSONEL BİLGİ GİRİŞİ'!R22 -> 0 | Z22: ='PERSONEL BİLGİ GİRİŞİ'!U22 -> 0 | AA22: ='PERSONEL BİLGİ GİRİŞİ'!E22 -> 0 | AB22: =PUANTAJ!AT24 -> 0 | AC22: =' BORDRO HAZIRLIK'!AC22 -> 0 | AD22: =' BORDRO HAZIRLIK'!AD22 -> 0 | AE22: =' BORDRO HAZIRLIK'!K23 -> 0 | AF22: =' BORDRO HAZIRLIK'!BE22 -> 0 | AG22: =' BORDRO HAZIRLIK'!AH22 -> 0 | AH22: =' BORDRO HAZIRLIK'!AL22 -> 0 | AI22: =' BORDRO HAZIRLIK'!AM22 -> 0 | AJ22: =' BORDRO HAZIRLIK'!AN22 -> 0 | AK22: =' BORDRO HAZIRLIK'!AK22 -> 0 | AL22: =' BORDRO HAZIRLIK'!R22 -> 0 | AM22: =' BORDRO HAZIRLIK'!S22 -> 0 | AN22: =' BORDRO HAZIRLIK'!AR22 -> 0 | AO22: =' BORDRO HAZIRLIK'!Y22 -> 0 | AP22: =PUANTAJ!AI24 -> 0 | AQ22: =PUANTAJ!AJ24 -> 0 | AR22: =PUANTAJ!AK24 -> 0 | AS22: =PUANTAJ!AL24 -> 0 | AT22: =' BORDRO HAZIRLIK'!N22 -> 0 | AU22: =' BORDRO HAZIRLIK'!J22 -> 0 | AV22: =' BORDRO HAZIRLIK'!L22 -> 0 | AW22: =' BORDRO HAZIRLIK'!AV22 -> 0 | AX22: =' BORDRO HAZIRLIK'!AW22 -> 0 | AY22: =' BORDRO HAZIRLIK'!AX22 -> 0 | AZ22: =' BORDRO HAZIRLIK'!AY22 -> 0 | BA22: 0 | BB22: =' BORDRO HAZIRLIK'!AO22 -> 0 | BC22: =' BORDRO HAZIRLIK'!AG22 -> 0 | BE22: =' BORDRO HAZIRLIK'!AP22 -> 0 | BF22: =' BORDRO HAZIRLIK'!AQ22 -> 0 | BG22: =' BORDRO HAZIRLIK'!I22 -> 0 | BH22: =' BORDRO HAZIRLIK'!AS22 -> 0 | BI22: =' BORDRO HAZIRLIK'!AT22 -> 0 | BJ22: =' BORDRO HAZIRLIK'!AZ22 -> 0 | BK22: =' BORDRO HAZIRLIK'!BA22 -> 0 | BL22: =' BORDRO HAZIRLIK'!BB22 -> 0 | BM22: ='PERSONEL BİLGİ GİRİŞİ'!I22 -> 0 | BN22: =PUANTAJ!AN24 -> 0 | BO22: =PUANTAJ!AO24 -> 0 | BP22: =PUANTAJ!AP24 -> 0 | BQ22: =PUANTAJ!AQ24 -> 0 | BR22: =PUANTAJ!AR24 -> 0 | BS22: =' BORDRO HAZIRLIK'!AE22 -> 0 | BT22: =' BORDRO HAZIRLIK'!AF22 -> 0
E23: KAZANÇ | F23: =B9+B10 ->  | U23: 19 | V23: =PUANTAJ!B25 ->  | W23: ='PERSONEL BİLGİ GİRİŞİ'!H23 -> 0 | X23: ='PERSONEL BİLGİ GİRİŞİ'!Q23 -> 0 | Y23: ='PERSONEL BİLGİ GİRİŞİ'!R23 -> 0 | Z23: ='PERSONEL BİLGİ GİRİŞİ'!U23 -> 0 | AA23: ='PERSONEL BİLGİ GİRİŞİ'!E23 -> 0 | AB23: =PUANTAJ!AT25 -> 0 | AC23: =' BORDRO HAZIRLIK'!AC23 -> 0 | AD23: =' BORDRO HAZIRLIK'!AD23 -> 0 | AE23: =' BORDRO HAZIRLIK'!K24 -> 0 | AF23: =' BORDRO HAZIRLIK'!BE23 -> 0 | AG23: =' BORDRO HAZIRLIK'!AH23 -> 0 | AH23: =' BORDRO HAZIRLIK'!AL23 -> 0 | AI23: =' BORDRO HAZIRLIK'!AM23 -> 0 | AJ23: =' BORDRO HAZIRLIK'!AN23 -> 0 | AK23: =' BORDRO HAZIRLIK'!AK23 -> 0 | AL23: =' BORDRO HAZIRLIK'!R23 -> 0 | AM23: =' BORDRO HAZIRLIK'!S23 -> 0 | AN23: =' BORDRO HAZIRLIK'!AR23 -> 0 | AO23: =' BORDRO HAZIRLIK'!Y23 -> 0 | AP23: =PUANTAJ!AI25 -> 0 | AQ23: =PUANTAJ!AJ25 -> 0 | AR23: =PUANTAJ!AK25 -> 0 | AS23: =PUANTAJ!AL25 -> 0 | AT23: =' BORDRO HAZIRLIK'!N23 -> 0 | AU23: =' BORDRO HAZIRLIK'!J23 -> 0 | AV23: =' BORDRO HAZIRLIK'!L23 -> 0 | AW23: =' BORDRO HAZIRLIK'!AV23 -> 0 | AX23: =' BORDRO HAZIRLIK'!AW23 -> 0 | AY23: =' BORDRO HAZIRLIK'!AX23 -> 0 | AZ23: =' BORDRO HAZIRLIK'!AY23 -> 0 | BA23: 0 | BB23: =' BORDRO HAZIRLIK'!AO23 -> 0 | BC23: =' BORDRO HAZIRLIK'!AG23 -> 0 | BE23: =' BORDRO HAZIRLIK'!AP23 -> 0 | BF23: =' BORDRO HAZIRLIK'!AQ23 -> 0 | BG23: =' BORDRO HAZIRLIK'!I23 -> 0 | BH23: =' BORDRO HAZIRLIK'!AS23 -> 0 | BI23: =' BORDRO HAZIRLIK'!AT23 -> 0 | BJ23: =' BORDRO HAZIRLIK'!AZ23 -> 0 | BK23: =' BORDRO HAZIRLIK'!BA23 -> 0 | BL23: =' BORDRO HAZIRLIK'!BB23 -> 0 | BM23: ='PERSONEL BİLGİ GİRİŞİ'!I23 -> 0 | BN23: =PUANTAJ!AN25 -> 0 | BO23: =PUANTAJ!AO25 -> 0 | BP23: =PUANTAJ!AP25 -> 0 | BQ23: =PUANTAJ!AQ25 -> 0 | BR23: =PUANTAJ!AR25 -> 0 | BS23: =' BORDRO HAZIRLIK'!AE23 -> 0 | BT23: =' BORDRO HAZIRLIK'!AF23 -> 0
A24: GELİR VERGİSİ İSTİSNA TUTARI | B24: =VLOOKUP(A5,V5:BU79,50,FALSE) ->  | E24: NET ÜCRET | F24: =VLOOKUP(A5,V5:AF80,11,FALSE) ->  | U24: 20 | V24: =PUANTAJ!B26 ->  | W24: ='PERSONEL BİLGİ GİRİŞİ'!H24 -> 0 | X24: ='PERSONEL BİLGİ GİRİŞİ'!Q24 -> 0 | Y24: ='PERSONEL BİLGİ GİRİŞİ'!R24 -> 0 | Z24: ='PERSONEL BİLGİ GİRİŞİ'!U24 -> 0 | AA24: ='PERSONEL BİLGİ GİRİŞİ'!E24 -> 0 | AB24: =PUANTAJ!AT26 -> 0 | AC24: =' BORDRO HAZIRLIK'!AC24 -> 0 | AD24: =' BORDRO HAZIRLIK'!AD24 -> 0 | AE24: =' BORDRO HAZIRLIK'!K25 -> 0 | AF24: =' BORDRO HAZIRLIK'!BE24 -> 0 | AG24: =' BORDRO HAZIRLIK'!AH24 -> 0 | AH24: =' BORDRO HAZIRLIK'!AL24 -> 0 | AI24: =' BORDRO HAZIRLIK'!AM24 -> 0 | AJ24: =' BORDRO HAZIRLIK'!AN24 -> 0 | AK24: =' BORDRO HAZIRLIK'!AK24 -> 0 | AL24: =' BORDRO HAZIRLIK'!R24 -> 0 | AM24: =' BORDRO HAZIRLIK'!S24 -> 0 | AN24: =' BORDRO HAZIRLIK'!AR24 -> 0 | AO24: =' BORDRO HAZIRLIK'!Y24 -> 0 | AP24: =PUANTAJ!AI26 -> 0 | AQ24: =PUANTAJ!AJ26 -> 0 | AR24: =PUANTAJ!AK26 -> 0 | AS24: =PUANTAJ!AL26 -> 0 | AT24: =' BORDRO HAZIRLIK'!N24 -> 0 | AU24: =' BORDRO HAZIRLIK'!J24 -> 0 | AV24: =' BORDRO HAZIRLIK'!L24 -> 0 | AW24: =' BORDRO HAZIRLIK'!AV24 -> 0 | AX24: =' BORDRO HAZIRLIK'!AW24 -> 0 | AY24: =' BORDRO HAZIRLIK'!AX24 -> 0 | AZ24: =' BORDRO HAZIRLIK'!AY24 -> 0 | BA24: 0 | BB24: =' BORDRO HAZIRLIK'!AO24 -> 0 | BC24: =' BORDRO HAZIRLIK'!AG24 -> 0 | BE24: =' BORDRO HAZIRLIK'!AP24 -> 0 | BF24: =' BORDRO HAZIRLIK'!AQ24 -> 0 | BG24: =' BORDRO HAZIRLIK'!I24 -> 0 | BH24: =' BORDRO HAZIRLIK'!AS24 -> 0 | BI24: =' BORDRO HAZIRLIK'!AT24 -> 0 | BJ24: =' BORDRO HAZIRLIK'!AZ24 -> 0 | BK24: =' BORDRO HAZIRLIK'!BA24 -> 0 | BL24: =' BORDRO HAZIRLIK'!BB24 -> 0 | BM24: ='PERSONEL BİLGİ GİRİŞİ'!I24 -> 0 | BN24: =PUANTAJ!AN26 -> 0 | BO24: =PUANTAJ!AO26 -> 0 | BP24: =PUANTAJ!AP26 -> 0 | BQ24: =PUANTAJ!AQ26 -> 0 | BR24: =PUANTAJ!AR26 -> 0 | BS24: =' BORDRO HAZIRLIK'!AE24 -> 0 | BT24: =' BORDRO HAZIRLIK'!AF24 -> 0
A25: DAMGA VERGİSİ İSTİSNA TUTARI | B25: =VLOOKUP(A5,V5:BU79,51,FALSE) ->  | U25: 21 | V25: =PUANTAJ!B27 ->  | W25: ='PERSONEL BİLGİ GİRİŞİ'!H25 -> 0 | X25: ='PERSONEL BİLGİ GİRİŞİ'!Q25 -> 0 | Y25: ='PERSONEL BİLGİ GİRİŞİ'!R25 -> 0 | Z25: ='PERSONEL BİLGİ GİRİŞİ'!U25 -> 0 | AA25: ='PERSONEL BİLGİ GİRİŞİ'!E25 -> 0 | AB25: =PUANTAJ!AT27 -> 0 | AC25: =' BORDRO HAZIRLIK'!AC25 -> 0 | AD25: =' BORDRO HAZIRLIK'!AD25 -> 0 | AE25: =' BORDRO HAZIRLIK'!K26 -> 0 | AF25: =' BORDRO HAZIRLIK'!BE25 -> 0 | AG25: =' BORDRO HAZIRLIK'!AH25 -> 0 | AH25: =' BORDRO HAZIRLIK'!AL25 -> 0 | AI25: =' BORDRO HAZIRLIK'!AM25 -> 0 | AJ25: =' BORDRO HAZIRLIK'!AN25 -> 0 | AK25: =' BORDRO HAZIRLIK'!AK25 -> 0 | AL25: =' BORDRO HAZIRLIK'!R25 -> 0 | AM25: =' BORDRO HAZIRLIK'!S25 -> 0 | AN25: =' BORDRO HAZIRLIK'!AR25 -> 0 | AO25: =' BORDRO HAZIRLIK'!Y25 -> 0 | AP25: =PUANTAJ!AI27 -> 0 | AQ25: =PUANTAJ!AJ27 -> 0 | AR25: =PUANTAJ!AK27 -> 0 | AS25: =PUANTAJ!AL27 -> 0 | AT25: =' BORDRO HAZIRLIK'!N25 -> 0 | AU25: =' BORDRO HAZIRLIK'!J25 -> 0 | AV25: =' BORDRO HAZIRLIK'!L25 -> 0 | AW25: =' BORDRO HAZIRLIK'!AV25 -> 0 | AX25: =' BORDRO HAZIRLIK'!AW25 -> 0 | AY25: =' BORDRO HAZIRLIK'!AX25 -> 0 | AZ25: =' BORDRO HAZIRLIK'!AY25 -> 0 | BA25: 0 | BB25: =' BORDRO HAZIRLIK'!AO25 -> 0 | BC25: =' BORDRO HAZIRLIK'!AG25 -> 0 | BE25: =' BORDRO HAZIRLIK'!AP25 -> 0 | BF25: =' BORDRO HAZIRLIK'!AQ25 -> 0 | BG25: =' BORDRO HAZIRLIK'!I25 -> 0 | BH25: =' BORDRO HAZIRLIK'!AS25 -> 0 | BI25: =' BORDRO HAZIRLIK'!AT25 -> 0 | BJ25: =' BORDRO HAZIRLIK'!AZ25 -> 0 | BK25: =' BORDRO HAZIRLIK'!BA25 -> 0 | BL25: =' BORDRO HAZIRLIK'!BB25 -> 0 | BM25: ='PERSONEL BİLGİ GİRİŞİ'!I25 -> 0 | BN25: =PUANTAJ!AN27 -> 0 | BO25: =PUANTAJ!AO27 -> 0 | BP25: =PUANTAJ!AP27 -> 0 | BQ25: =PUANTAJ!AQ27 -> 0 | BR25: =PUANTAJ!AR27 -> 0 | BS25: =' BORDRO HAZIRLIK'!AE25 -> 0 | BT25: =' BORDRO HAZIRLIK'!AF25 -> 0
E26: İMZA | U26: 22 | V26: =PUANTAJ!B28 ->  | W26: ='PERSONEL BİLGİ GİRİŞİ'!H26 -> 0 | X26: ='PERSONEL BİLGİ GİRİŞİ'!Q26 -> 0 | Y26: ='PERSONEL BİLGİ GİRİŞİ'!R26 -> 0 | Z26: ='PERSONEL BİLGİ GİRİŞİ'!U26 -> 0 | AA26: ='PERSONEL BİLGİ GİRİŞİ'!E26 -> 0 | AB26: =PUANTAJ!AT28 -> 0 | AC26: =' BORDRO HAZIRLIK'!AC26 -> 0 | AD26: =' BORDRO HAZIRLIK'!AD26 -> 0 | AE26: =' BORDRO HAZIRLIK'!K27 -> 0 | AF26: =' BORDRO HAZIRLIK'!BE26 -> 0 | AG26: =' BORDRO HAZIRLIK'!AH26 -> 0 | AH26: =' BORDRO HAZIRLIK'!AL26 -> 0 | AI26: =' BORDRO HAZIRLIK'!AM26 -> 0 | AJ26: =' BORDRO HAZIRLIK'!AN26 -> 0 | AK26: =' BORDRO HAZIRLIK'!AK26 -> 0 | AL26: =' BORDRO HAZIRLIK'!R26 -> 0 | AM26: =' BORDRO HAZIRLIK'!S26 -> 0 | AN26: =' BORDRO HAZIRLIK'!AR26 -> 0 | AO26: =' BORDRO HAZIRLIK'!Y26 -> 0 | AP26: =PUANTAJ!AI28 -> 0 | AQ26: =PUANTAJ!AJ28 -> 0 | AR26: =PUANTAJ!AK28 -> 0 | AS26: =PUANTAJ!AL28 -> 0 | AT26: =' BORDRO HAZIRLIK'!N26 -> 0 | AU26: =' BORDRO HAZIRLIK'!J26 -> 0 | AV26: =' BORDRO HAZIRLIK'!L26 -> 0 | AW26: =' BORDRO HAZIRLIK'!AV26 -> 0 | AX26: =' BORDRO HAZIRLIK'!AW26 -> 0 | AY26: =' BORDRO HAZIRLIK'!AX26 -> 0 | AZ26: =' BORDRO HAZIRLIK'!AY26 -> 0 | BA26: 0 | BB26: =' BORDRO HAZIRLIK'!AO26 -> 0 | BC26: =' BORDRO HAZIRLIK'!AG26 -> 0 | BE26: =' BORDRO HAZIRLIK'!AP26 -> 0 | BF26: =' BORDRO HAZIRLIK'!AQ26 -> 0 | BG26: =' BORDRO HAZIRLIK'!I26 -> 0 | BH26: =' BORDRO HAZIRLIK'!AS26 -> 0 | BI26: =' BORDRO HAZIRLIK'!AT26 -> 0 | BJ26: =' BORDRO HAZIRLIK'!AZ26 -> 0 | BK26: =' BORDRO HAZIRLIK'!BA26 -> 0 | BL26: =' BORDRO HAZIRLIK'!BB26 -> 0 | BM26: ='PERSONEL BİLGİ GİRİŞİ'!I26 -> 0 | BN26: =PUANTAJ!AN28 -> 0 | BO26: =PUANTAJ!AO28 -> 0 | BP26: =PUANTAJ!AP28 -> 0 | BQ26: =PUANTAJ!AQ28 -> 0 | BR26: =PUANTAJ!AR28 -> 0 | BS26: =' BORDRO HAZIRLIK'!AE26 -> 0 | BT26: =' BORDRO HAZIRLIK'!AF26 -> 0
A27: Aylık Gelir Vergi Matr. | B27: =VLOOKUP(A5,V5:AO80,12,FALSE) ->  | C27: % | D27: =IF(B28<'ANA SAYFA'!P19,15,IF(B28<'ANA SAYFA'!P20,20,27)) ->  | E27: =A5 -> ALİ BZC BZC | U27: 23 | V27: =PUANTAJ!B29 ->  | W27: ='PERSONEL BİLGİ GİRİŞİ'!H27 -> 0 | X27: ='PERSONEL BİLGİ GİRİŞİ'!Q27 -> 0 | Y27: ='PERSONEL BİLGİ GİRİŞİ'!R27 -> 0 | Z27: ='PERSONEL BİLGİ GİRİŞİ'!U27 -> 0 | AA27: ='PERSONEL BİLGİ GİRİŞİ'!E27 -> 0 | AB27: =PUANTAJ!AT29 -> 0 | AC27: =' BORDRO HAZIRLIK'!AC27 -> 0 | AD27: =' BORDRO HAZIRLIK'!AD27 -> 0 | AE27: =' BORDRO HAZIRLIK'!K28 -> 0 | AF27: =' BORDRO HAZIRLIK'!BE27 -> 0 | AG27: =' BORDRO HAZIRLIK'!AH27 -> 0 | AH27: =' BORDRO HAZIRLIK'!AL27 -> 0 | AI27: =' BORDRO HAZIRLIK'!AM27 -> 0 | AJ27: =' BORDRO HAZIRLIK'!AN27 -> 0 | AK27: =' BORDRO HAZIRLIK'!AK27 -> 0 | AL27: =' BORDRO HAZIRLIK'!R27 -> 0 | AM27: =' BORDRO HAZIRLIK'!S27 -> 0 | AN27: =' BORDRO HAZIRLIK'!AR27 -> 0 | AO27: =' BORDRO HAZIRLIK'!Y27 -> 0 | AP27: =PUANTAJ!AI29 -> 0 | AQ27: =PUANTAJ!AJ29 -> 0 | AR27: =PUANTAJ!AK29 -> 0 | AS27: =PUANTAJ!AL29 -> 0 | AT27: =' BORDRO HAZIRLIK'!N27 -> 0 | AU27: =' BORDRO HAZIRLIK'!J27 -> 0 | AV27: =' BORDRO HAZIRLIK'!L27 -> 0 | AW27: =' BORDRO HAZIRLIK'!AV27 -> 0 | AX27: =' BORDRO HAZIRLIK'!AW27 -> 0 | AY27: =' BORDRO HAZIRLIK'!AX27 -> 0 | AZ27: =' BORDRO HAZIRLIK'!AY27 -> 0 | BA27: 0 | BB27: =' BORDRO HAZIRLIK'!AO27 -> 0 | BC27: =' BORDRO HAZIRLIK'!AG27 -> 0 | BE27: =' BORDRO HAZIRLIK'!AP27 -> 0 | BF27: =' BORDRO HAZIRLIK'!AQ27 -> 0 | BG27: =' BORDRO HAZIRLIK'!I27 -> 0 | BH27: =' BORDRO HAZIRLIK'!AS27 -> 0 | BI27: =' BORDRO HAZIRLIK'!AT27 -> 0 | BJ27: =' BORDRO HAZIRLIK'!AZ27 -> 0 | BK27: =' BORDRO HAZIRLIK'!BA27 -> 0 | BL27: =' BORDRO HAZIRLIK'!BB27 -> 0 | BM27: ='PERSONEL BİLGİ GİRİŞİ'!I27 -> 0 | BN27: =PUANTAJ!AN29 -> 0 | BO27: =PUANTAJ!AO29 -> 0 | BP27: =PUANTAJ!AP29 -> 0 | BQ27: =PUANTAJ!AQ29 -> 0 | BR27: =PUANTAJ!AR29 -> 0 | BS27: =' BORDRO HAZIRLIK'!AE27 -> 0 | BT27: =' BORDRO HAZIRLIK'!AF27 -> 0
A28: Yıllık Toplam Gelir Vergisi | B28: =VLOOKUP(A5,V5:AK80,16,FALSE) ->  | U28: 24 | V28: =PUANTAJ!B30 ->  | W28: ='PERSONEL BİLGİ GİRİŞİ'!H28 -> 0 | X28: ='PERSONEL BİLGİ GİRİŞİ'!Q28 -> 0 | Y28: ='PERSONEL BİLGİ GİRİŞİ'!R28 -> 0 | Z28: ='PERSONEL BİLGİ GİRİŞİ'!U28 -> 0 | AA28: ='PERSONEL BİLGİ GİRİŞİ'!E28 -> 0 | AB28: =PUANTAJ!AT30 -> 0 | AC28: =' BORDRO HAZIRLIK'!AC28 -> 0 | AD28: =' BORDRO HAZIRLIK'!AD28 -> 0 | AE28: =' BORDRO HAZIRLIK'!K29 -> 0 | AF28: =' BORDRO HAZIRLIK'!BE28 -> 0 | AG28: =' BORDRO HAZIRLIK'!AH28 -> 0 | AH28: =' BORDRO HAZIRLIK'!AL28 -> 0 | AI28: =' BORDRO HAZIRLIK'!AM28 -> 0 | AJ28: =' BORDRO HAZIRLIK'!AN28 -> 0 | AK28: =' BORDRO HAZIRLIK'!AK28 -> 0 | AL28: =' BORDRO HAZIRLIK'!R28 -> 0 | AM28: =' BORDRO HAZIRLIK'!S28 -> 0 | AN28: =' BORDRO HAZIRLIK'!AR28 -> 0 | AO28: =' BORDRO HAZIRLIK'!Y28 -> 0 | AP28: =PUANTAJ!AI30 -> 0 | AQ28: =PUANTAJ!AJ30 -> 0 | AR28: =PUANTAJ!AK30 -> 0 | AS28: =PUANTAJ!AL30 -> 0 | AT28: =' BORDRO HAZIRLIK'!N28 -> 0 | AU28: =' BORDRO HAZIRLIK'!J28 -> 0 | AV28: =' BORDRO HAZIRLIK'!L28 -> 0 | AW28: =' BORDRO HAZIRLIK'!AV28 -> 0 | AX28: =' BORDRO HAZIRLIK'!AW28 -> 0 | AY28: =' BORDRO HAZIRLIK'!AX28 -> 0 | AZ28: =' BORDRO HAZIRLIK'!AY28 -> 0 | BA28: 0 | BB28: =' BORDRO HAZIRLIK'!AO28 -> 0 | BC28: =' BORDRO HAZIRLIK'!AG28 -> 0 | BE28: =' BORDRO HAZIRLIK'!AP28 -> 0 | BF28: =' BORDRO HAZIRLIK'!AQ28 -> 0 | BG28: =' BORDRO HAZIRLIK'!I28 -> 0 | BH28: =' BORDRO HAZIRLIK'!AS28 -> 0 | BI28: =' BORDRO HAZIRLIK'!AT28 -> 0 | BJ28: =' BORDRO HAZIRLIK'!AZ28 -> 0 | BK28: =' BORDRO HAZIRLIK'!BA28 -> 0 | BL28: =' BORDRO HAZIRLIK'!BB28 -> 0 | BM28: ='PERSONEL BİLGİ GİRİŞİ'!I28 -> 0 | BN28: =PUANTAJ!AN30 -> 0 | BO28: =PUANTAJ!AO30 -> 0 | BP28: =PUANTAJ!AP30 -> 0 | BQ28: =PUANTAJ!AQ30 -> 0 | BR28: =PUANTAJ!AR30 -> 0 | BS28: =' BORDRO HAZIRLIK'!AE28 -> 0 | BT28: =' BORDRO HAZIRLIK'!AF28 -> 0
A29: İstisna Aylık Gelir Vergi Matr. | B29: =VLOOKUP(A5,V5:AO80,8,FALSE) ->  | C29: % | D29: =IF(B30<'ANA SAYFA'!P19,15,IF(B30<'ANA SAYFA'!P20,20,27)) ->  | U29: 25 | V29: =PUANTAJ!B31 ->  | W29: ='PERSONEL BİLGİ GİRİŞİ'!H29 -> 0 | X29: ='PERSONEL BİLGİ GİRİŞİ'!Q29 -> 0 | Y29: ='PERSONEL BİLGİ GİRİŞİ'!R29 -> 0 | Z29: ='PERSONEL BİLGİ GİRİŞİ'!U29 -> 0 | AA29: ='PERSONEL BİLGİ GİRİŞİ'!E29 -> 0 | AB29: =PUANTAJ!AT31 -> 0 | AC29: =' BORDRO HAZIRLIK'!AC29 -> 0 | AD29: =' BORDRO HAZIRLIK'!AD29 -> 0 | AE29: =' BORDRO HAZIRLIK'!K30 -> 0 | AF29: =' BORDRO HAZIRLIK'!BE29 -> 0 | AG29: =' BORDRO HAZIRLIK'!AH29 -> 0 | AH29: =' BORDRO HAZIRLIK'!AL29 -> 0 | AI29: =' BORDRO HAZIRLIK'!AM29 -> 0 | AJ29: =' BORDRO HAZIRLIK'!AN29 -> 0 | AK29: =' BORDRO HAZIRLIK'!AK29 -> 0 | AL29: =' BORDRO HAZIRLIK'!R29 -> 0 | AM29: =' BORDRO HAZIRLIK'!S29 -> 0 | AN29: =' BORDRO HAZIRLIK'!AR29 -> 0 | AO29: =' BORDRO HAZIRLIK'!Y29 -> 0 | AP29: =PUANTAJ!AI31 -> 0 | AQ29: =PUANTAJ!AJ31 -> 0 | AR29: =PUANTAJ!AK31 -> 0 | AS29: =PUANTAJ!AL31 -> 0 | AT29: =' BORDRO HAZIRLIK'!N29 -> 0 | AU29: =' BORDRO HAZIRLIK'!J29 -> 0 | AV29: =' BORDRO HAZIRLIK'!L29 -> 0 | AW29: =' BORDRO HAZIRLIK'!AV29 -> 0 | AX29: =' BORDRO HAZIRLIK'!AW29 -> 0 | AY29: =' BORDRO HAZIRLIK'!AX29 -> 0 | AZ29: =' BORDRO HAZIRLIK'!AY29 -> 0 | BA29: 0 | BB29: =' BORDRO HAZIRLIK'!AO29 -> 0 | BC29: =' BORDRO HAZIRLIK'!AG29 -> 0 | BE29: =' BORDRO HAZIRLIK'!AP29 -> 0 | BF29: =' BORDRO HAZIRLIK'!AQ29 -> 0 | BG29: =' BORDRO HAZIRLIK'!I29 -> 0 | BH29: =' BORDRO HAZIRLIK'!AS29 -> 0 | BI29: =' BORDRO HAZIRLIK'!AT29 -> 0 | BJ29: =' BORDRO HAZIRLIK'!AZ29 -> 0 | BK29: =' BORDRO HAZIRLIK'!BA29 -> 0 | BL29: =' BORDRO HAZIRLIK'!BB29 -> 0 | BM29: ='PERSONEL BİLGİ GİRİŞİ'!I29 -> 0 | BN29: =PUANTAJ!AN31 -> 0 | BO29: =PUANTAJ!AO31 -> 0 | BP29: =PUANTAJ!AP31 -> 0 | BQ29: =PUANTAJ!AQ31 -> 0 | BR29: =PUANTAJ!AR31 -> 0 | BS29: =' BORDRO HAZIRLIK'!AE29 -> 0 | BT29: =' BORDRO HAZIRLIK'!AF29 -> 0
A30: İstisna Yıllık Top. Gelir Vergisi | B30: =VLOOKUP(A5,V5:AK80,9,FALSE) ->  | U30: 26 | V30: =PUANTAJ!B32 ->  | W30: ='PERSONEL BİLGİ GİRİŞİ'!H30 -> 0 | X30: ='PERSONEL BİLGİ GİRİŞİ'!Q30 -> 0 | Y30: ='PERSONEL BİLGİ GİRİŞİ'!R30 -> 0 | Z30: ='PERSONEL BİLGİ GİRİŞİ'!U30 -> 0 | AA30: ='PERSONEL BİLGİ GİRİŞİ'!E30 -> 0 | AB30: =PUANTAJ!AT32 -> 0 | AC30: =' BORDRO HAZIRLIK'!AC30 -> 0 | AD30: =' BORDRO HAZIRLIK'!AD30 -> 0 | AE30: =' BORDRO HAZIRLIK'!K31 -> 0 | AF30: =' BORDRO HAZIRLIK'!BE30 -> 0 | AG30: =' BORDRO HAZIRLIK'!AH30 -> 0 | AH30: =' BORDRO HAZIRLIK'!AL30 -> 0 | AI30: =' BORDRO HAZIRLIK'!AM30 -> 0 | AJ30: =' BORDRO HAZIRLIK'!AN30 -> 0 | AK30: =' BORDRO HAZIRLIK'!AK30 -> 0 | AL30: =' BORDRO HAZIRLIK'!R30 -> 0 | AM30: =' BORDRO HAZIRLIK'!S30 -> 0 | AN30: =' BORDRO HAZIRLIK'!AR30 -> 0 | AO30: =' BORDRO HAZIRLIK'!Y30 -> 0 | AP30: =PUANTAJ!AI32 -> 0 | AQ30: =PUANTAJ!AJ32 -> 0 | AR30: =PUANTAJ!AK32 -> 0 | AS30: =PUANTAJ!AL32 -> 0 | AT30: =' BORDRO HAZIRLIK'!N30 -> 0 | AU30: =' BORDRO HAZIRLIK'!J30 -> 0 | AV30: =' BORDRO HAZIRLIK'!L30 -> 0 | AW30: =' BORDRO HAZIRLIK'!AV30 -> 0 | AX30: =' BORDRO HAZIRLIK'!AW30 -> 0 | AY30: =' BORDRO HAZIRLIK'!AX30 -> 0 | AZ30: =' BORDRO HAZIRLIK'!AY30 -> 0 | BA30: 0 | BB30: =' BORDRO HAZIRLIK'!AO30 -> 0 | BC30: =' BORDRO HAZIRLIK'!AG30 -> 0 | BE30: =' BORDRO HAZIRLIK'!AP30 -> 0 | BF30: =' BORDRO HAZIRLIK'!AQ30 -> 0 | BG30: =' BORDRO HAZIRLIK'!I30 -> 0 | BH30: =' BORDRO HAZIRLIK'!AS30 -> 0 | BI30: =' BORDRO HAZIRLIK'!AT30 -> 0 | BJ30: =' BORDRO HAZIRLIK'!AZ30 -> 0 | BK30: =' BORDRO HAZIRLIK'!BA30 -> 0 | BL30: =' BORDRO HAZIRLIK'!BB30 -> 0 | BM30: ='PERSONEL BİLGİ GİRİŞİ'!I30 -> 0 | BN30: =PUANTAJ!AN32 -> 0 | BO30: =PUANTAJ!AO32 -> 0 | BP30: =PUANTAJ!AP32 -> 0 | BQ30: =PUANTAJ!AQ32 -> 0 | BR30: =PUANTAJ!AR32 -> 0 | BS30: =' BORDRO HAZIRLIK'!AE30 -> 0 | BT30: =' BORDRO HAZIRLIK'!AF30 -> 0
A31: E MAİL | B31: =VLOOKUP(A5,V5:BM45,44,FALSE) ->  | E31: =TODAY() -> 2023-01-31 | U31: 27 | V31: =PUANTAJ!B33 ->  | W31: ='PERSONEL BİLGİ GİRİŞİ'!H31 -> 0 | X31: ='PERSONEL BİLGİ GİRİŞİ'!Q31 -> 0 | Y31: ='PERSONEL BİLGİ GİRİŞİ'!R31 -> 0 | Z31: ='PERSONEL BİLGİ GİRİŞİ'!U31 -> 0 | AA31: ='PERSONEL BİLGİ GİRİŞİ'!E31 -> 0 | AB31: =PUANTAJ!AT33 -> 0 | AC31: =' BORDRO HAZIRLIK'!AC31 -> 0 | AD31: =' BORDRO HAZIRLIK'!AD31 -> 0 | AE31: =' BORDRO HAZIRLIK'!K32 -> 0 | AF31: =' BORDRO HAZIRLIK'!BE31 -> 0 | AG31: =' BORDRO HAZIRLIK'!AH31 -> 0 | AH31: =' BORDRO HAZIRLIK'!AL31 -> 0 | AI31: =' BORDRO HAZIRLIK'!AM31 -> 0 | AJ31: =' BORDRO HAZIRLIK'!AN31 -> 0 | AK31: =' BORDRO HAZIRLIK'!AK31 -> 0 | AL31: =' BORDRO HAZIRLIK'!R31 -> 0 | AM31: =' BORDRO HAZIRLIK'!S31 -> 0 | AN31: =' BORDRO HAZIRLIK'!AR31 -> 0 | AO31: =' BORDRO HAZIRLIK'!Y31 -> 0 | AP31: =PUANTAJ!AI33 -> 0 | AQ31: =PUANTAJ!AJ33 -> 0 | AR31: =PUANTAJ!AK33 -> 0 | AS31: =PUANTAJ!AL33 -> 0 | AT31: =' BORDRO HAZIRLIK'!N31 -> 0 | AU31: =' BORDRO HAZIRLIK'!J31 -> 0 | AV31: =' BORDRO HAZIRLIK'!L31 -> 0 | AW31: =' BORDRO HAZIRLIK'!AV31 -> 0 | AX31: =' BORDRO HAZIRLIK'!AW31 -> 0 | AY31: =' BORDRO HAZIRLIK'!AX31 -> 0 | AZ31: =' BORDRO HAZIRLIK'!AY31 -> 0 | BA31: 0 | BB31: =' BORDRO HAZIRLIK'!AO31 -> 0 | BC31: =' BORDRO HAZIRLIK'!AG31 -> 0 | BE31: =' BORDRO HAZIRLIK'!AP31 -> 0 | BF31: =' BORDRO HAZIRLIK'!AQ31 -> 0 | BG31: =' BORDRO HAZIRLIK'!I31 -> 0 | BH31: =' BORDRO HAZIRLIK'!AS31 -> 0 | BI31: =' BORDRO HAZIRLIK'!AT31 -> 0 | BJ31: =' BORDRO HAZIRLIK'!AZ31 -> 0 | BK31: =' BORDRO HAZIRLIK'!BA31 -> 0 | BL31: =' BORDRO HAZIRLIK'!BB31 -> 0 | BM31: ='PERSONEL BİLGİ GİRİŞİ'!I31 -> 0 | BN31: =PUANTAJ!AN33 -> 0 | BO31: =PUANTAJ!AO33 -> 0 | BP31: =PUANTAJ!AP33 -> 0 | BQ31: =PUANTAJ!AQ33 -> 0 | BR31: =PUANTAJ!AR33 -> 0 | BS31: =' BORDRO HAZIRLIK'!AE31 -> 0 | BT31: =' BORDRO HAZIRLIK'!AF31 -> 0
U32: 28 | V32: =PUANTAJ!B34 ->  | W32: ='PERSONEL BİLGİ GİRİŞİ'!H32 -> 0 | X32: ='PERSONEL BİLGİ GİRİŞİ'!Q32 -> 0 | Y32: ='PERSONEL BİLGİ GİRİŞİ'!R32 -> 0 | Z32: ='PERSONEL BİLGİ GİRİŞİ'!U32 -> 0 | AA32: ='PERSONEL BİLGİ GİRİŞİ'!E32 -> 0 | AB32: =PUANTAJ!AT34 -> 0 | AC32: =' BORDRO HAZIRLIK'!AC32 -> 0 | AD32: =' BORDRO HAZIRLIK'!AD32 -> 0 | AE32: =' BORDRO HAZIRLIK'!K33 -> 0 | AF32: =' BORDRO HAZIRLIK'!BE32 -> 0 | AG32: =' BORDRO HAZIRLIK'!AH32 -> 0 | AH32: =' BORDRO HAZIRLIK'!AL32 -> 0 | AI32: =' BORDRO HAZIRLIK'!AM32 -> 0 | AJ32: =' BORDRO HAZIRLIK'!AN32 -> 0 | AK32: =' BORDRO HAZIRLIK'!AK32 -> 0 | AL32: =' BORDRO HAZIRLIK'!R32 -> 0 | AM32: =' BORDRO HAZIRLIK'!S32 -> 0 | AN32: =' BORDRO HAZIRLIK'!AR32 -> 0 | AO32: =' BORDRO HAZIRLIK'!Y32 -> 0 | AP32: =PUANTAJ!AI34 -> 0 | AQ32: =PUANTAJ!AJ34 -> 0 | AR32: =PUANTAJ!AK34 -> 0 | AS32: =PUANTAJ!AL34 -> 0 | AT32: =' BORDRO HAZIRLIK'!N32 -> 0 | AU32: =' BORDRO HAZIRLIK'!J32 -> 0 | AV32: =' BORDRO HAZIRLIK'!L32 -> 0 | AW32: =' BORDRO HAZIRLIK'!AV32 -> 0 | AX32: =' BORDRO HAZIRLIK'!AW32 -> 0 | AY32: =' BORDRO HAZIRLIK'!AX32 -> 0 | AZ32: =' BORDRO HAZIRLIK'!AY32 -> 0 | BA32: 0 | BB32: =' BORDRO HAZIRLIK'!AO32 -> 0 | BC32: =' BORDRO HAZIRLIK'!AG32 -> 0 | BE32: =' BORDRO HAZIRLIK'!AP32 -> 0 | BF32: =' BORDRO HAZIRLIK'!AQ32 -> 0 | BG32: =' BORDRO HAZIRLIK'!I32 -> 0 | BH32: =' BORDRO HAZIRLIK'!AS32 -> 0 | BI32: =' BORDRO HAZIRLIK'!AT32 -> 0 | BJ32: =' BORDRO HAZIRLIK'!AZ32 -> 0 | BK32: =' BORDRO HAZIRLIK'!BA32 -> 0 | BL32: =' BORDRO HAZIRLIK'!BB32 -> 0 | BM32: ='PERSONEL BİLGİ GİRİŞİ'!I32 -> 0 | BN32: =PUANTAJ!AN34 -> 0 | BO32: =PUANTAJ!AO34 -> 0 | BP32: =PUANTAJ!AP34 -> 0 | BQ32: =PUANTAJ!AQ34 -> 0 | BR32: =PUANTAJ!AR34 -> 0 | BS32: =' BORDRO HAZIRLIK'!AE32 -> 0 | BT32: =' BORDRO HAZIRLIK'!AF32 -> 0
A33: ='PERSONEL BİLGİ GİRİŞİ'!J82 -> 0 | U33: 29 | V33: =PUANTAJ!B35 ->  | W33: ='PERSONEL BİLGİ GİRİŞİ'!H33 -> 0 | X33: ='PERSONEL BİLGİ GİRİŞİ'!Q33 -> 0 | Y33: ='PERSONEL BİLGİ GİRİŞİ'!R33 -> 0 | Z33: ='PERSONEL BİLGİ GİRİŞİ'!U33 -> 0 | AA33: ='PERSONEL BİLGİ GİRİŞİ'!E33 -> 0 | AB33: =PUANTAJ!AT35 -> 0 | AC33: =' BORDRO HAZIRLIK'!AC33 -> 0 | AD33: =' BORDRO HAZIRLIK'!AD33 -> 0 | AE33: =' BORDRO HAZIRLIK'!K34 -> 0 | AF33: =' BORDRO HAZIRLIK'!BE33 -> 0 | AG33: =' BORDRO HAZIRLIK'!AH33 -> 0 | AH33: =' BORDRO HAZIRLIK'!AL33 -> 0 | AI33: =' BORDRO HAZIRLIK'!AM33 -> 0 | AJ33: =' BORDRO HAZIRLIK'!AN33 -> 0 | AK33: =' BORDRO HAZIRLIK'!AK33 -> 0 | AL33: =' BORDRO HAZIRLIK'!R33 -> 0 | AM33: =' BORDRO HAZIRLIK'!S33 -> 0 | AN33: =' BORDRO HAZIRLIK'!AR33 -> 0 | AO33: =' BORDRO HAZIRLIK'!Y33 -> 0 | AP33: =PUANTAJ!AI35 -> 0 | AQ33: =PUANTAJ!AJ35 -> 0 | AR33: =PUANTAJ!AK35 -> 0 | AS33: =PUANTAJ!AL35 -> 0 | AT33: =' BORDRO HAZIRLIK'!N33 -> 0 | AU33: =' BORDRO HAZIRLIK'!J33 -> 0 | AV33: =' BORDRO HAZIRLIK'!L33 -> 0 | AW33: =' BORDRO HAZIRLIK'!AV33 -> 0 | AX33: =' BORDRO HAZIRLIK'!AW33 -> 0 | AY33: =' BORDRO HAZIRLIK'!AX33 -> 0 | AZ33: =' BORDRO HAZIRLIK'!AY33 -> 0 | BA33: 0 | BB33: =' BORDRO HAZIRLIK'!AO33 -> 0 | BC33: =' BORDRO HAZIRLIK'!AG33 -> 0 | BE33: =' BORDRO HAZIRLIK'!AP33 -> 0 | BF33: =' BORDRO HAZIRLIK'!AQ33 -> 0 | BG33: =' BORDRO HAZIRLIK'!I33 -> 0 | BH33: =' BORDRO HAZIRLIK'!AS33 -> 0 | BI33: =' BORDRO HAZIRLIK'!AT33 -> 0 | BJ33: =' BORDRO HAZIRLIK'!AZ33 -> 0 | BK33: =' BORDRO HAZIRLIK'!BA33 -> 0 | BL33: =' BORDRO HAZIRLIK'!BB33 -> 0 | BM33: ='PERSONEL BİLGİ GİRİŞİ'!I33 -> 0 | BN33: =PUANTAJ!AN35 -> 0 | BO33: =PUANTAJ!AO35 -> 0 | BP33: =PUANTAJ!AP35 -> 0 | BQ33: =PUANTAJ!AQ35 -> 0 | BR33: =PUANTAJ!AR35 -> 0 | BS33: =' BORDRO HAZIRLIK'!AE33 -> 0 | BT33: =' BORDRO HAZIRLIK'!AF33 -> 0
A34: ='PERSONEL BİLGİ GİRİŞİ'!J83 ->  | U34: 30 | V34: =PUANTAJ!B36 ->  | W34: ='PERSONEL BİLGİ GİRİŞİ'!H34 -> 0 | X34: ='PERSONEL BİLGİ GİRİŞİ'!Q34 -> 0 | Y34: ='PERSONEL BİLGİ GİRİŞİ'!R34 -> 0 | Z34: ='PERSONEL BİLGİ GİRİŞİ'!U34 -> 0 | AA34: ='PERSONEL BİLGİ GİRİŞİ'!E34 -> 0 | AB34: =PUANTAJ!AT36 -> 0 | AC34: =' BORDRO HAZIRLIK'!AC34 -> 0 | AD34: =' BORDRO HAZIRLIK'!AD34 -> 0 | AE34: =' BORDRO HAZIRLIK'!K35 -> 0 | AF34: =' BORDRO HAZIRLIK'!BE34 -> 0 | AG34: =' BORDRO HAZIRLIK'!AH34 -> 0 | AH34: =' BORDRO HAZIRLIK'!AL34 -> 0 | AI34: =' BORDRO HAZIRLIK'!AM34 -> 0 | AJ34: =' BORDRO HAZIRLIK'!AN34 -> 0 | AK34: =' BORDRO HAZIRLIK'!AK34 -> 0 | AL34: =' BORDRO HAZIRLIK'!R34 -> 0 | AM34: =' BORDRO HAZIRLIK'!S34 -> 0 | AN34: =' BORDRO HAZIRLIK'!AR34 -> 0 | AO34: =' BORDRO HAZIRLIK'!Y34 -> 0 | AP34: =PUANTAJ!AI36 -> 0 | AQ34: =PUANTAJ!AJ36 -> 0 | AR34: =PUANTAJ!AK36 -> 0 | AS34: =PUANTAJ!AL36 -> 0 | AT34: =' BORDRO HAZIRLIK'!N34 -> 0 | AU34: =' BORDRO HAZIRLIK'!J34 -> 0 | AV34: =' BORDRO HAZIRLIK'!L34 -> 0 | AW34: =' BORDRO HAZIRLIK'!AV34 -> 0 | AX34: =' BORDRO HAZIRLIK'!AW34 -> 0 | AY34: =' BORDRO HAZIRLIK'!AX34 -> 0 | AZ34: =' BORDRO HAZIRLIK'!AY34 -> 0 | BA34: 0 | BB34: =' BORDRO HAZIRLIK'!AO34 -> 0 | BC34: =' BORDRO HAZIRLIK'!AG34 -> 0 | BE34: =' BORDRO HAZIRLIK'!AP34 -> 0 | BF34: =' BORDRO HAZIRLIK'!AQ34 -> 0 | BG34: =' BORDRO HAZIRLIK'!I34 -> 0 | BH34: =' BORDRO HAZIRLIK'!AS34 -> 0 | BI34: =' BORDRO HAZIRLIK'!AT34 -> 0 | BJ34: =' BORDRO HAZIRLIK'!AZ34 -> 0 | BK34: =' BORDRO HAZIRLIK'!BA34 -> 0 | BL34: =' BORDRO HAZIRLIK'!BB34 -> 0 | BM34: ='PERSONEL BİLGİ GİRİŞİ'!I34 -> 0 | BN34: =PUANTAJ!AN36 -> 0 | BO34: =PUANTAJ!AO36 -> 0 | BP34: =PUANTAJ!AP36 -> 0 | BQ34: =PUANTAJ!AQ36 -> 0 | BR34: =PUANTAJ!AR36 -> 0 | BS34: =' BORDRO HAZIRLIK'!AE34 -> 0 | BT34: =' BORDRO HAZIRLIK'!AF34 -> 0
A35: =TODAY() -> 2023-01-31 | U35: 31 | V35: =PUANTAJ!B37 ->  | W35: ='PERSONEL BİLGİ GİRİŞİ'!H35 -> 0 | X35: ='PERSONEL BİLGİ GİRİŞİ'!Q35 -> 0 | Y35: ='PERSONEL BİLGİ GİRİŞİ'!R35 -> 0 | Z35: ='PERSONEL BİLGİ GİRİŞİ'!U35 -> 0 | AA35: ='PERSONEL BİLGİ GİRİŞİ'!E35 -> 0 | AB35: =PUANTAJ!AT37 -> 0 | AC35: =' BORDRO HAZIRLIK'!AC35 -> 0 | AD35: =' BORDRO HAZIRLIK'!AD35 -> 0 | AE35: =' BORDRO HAZIRLIK'!K36 -> 0 | AF35: =' BORDRO HAZIRLIK'!BE35 -> 0 | AG35: =' BORDRO HAZIRLIK'!AH35 -> 0 | AH35: =' BORDRO HAZIRLIK'!AL35 -> 0 | AI35: =' BORDRO HAZIRLIK'!AM35 -> 0 | AJ35: =' BORDRO HAZIRLIK'!AN35 -> 0 | AK35: =' BORDRO HAZIRLIK'!AK35 -> 0 | AL35: =' BORDRO HAZIRLIK'!R35 -> 0 | AM35: =' BORDRO HAZIRLIK'!S35 -> 0 | AN35: =' BORDRO HAZIRLIK'!AR35 -> 0 | AO35: =' BORDRO HAZIRLIK'!Y35 -> 0 | AP35: =PUANTAJ!AI37 -> 0 | AQ35: =PUANTAJ!AJ37 -> 0 | AR35: =PUANTAJ!AK37 -> 0 | AS35: =PUANTAJ!AL37 -> 0 | AT35: =' BORDRO HAZIRLIK'!N35 -> 0 | AU35: =' BORDRO HAZIRLIK'!J35 -> 0 | AV35: =' BORDRO HAZIRLIK'!L35 -> 0 | AW35: =' BORDRO HAZIRLIK'!AV35 -> 0 | AX35: =' BORDRO HAZIRLIK'!AW35 -> 0 | AY35: =' BORDRO HAZIRLIK'!AX35 -> 0 | AZ35: =' BORDRO HAZIRLIK'!AY35 -> 0 | BA35: 0 | BB35: =' BORDRO HAZIRLIK'!AO35 -> 0 | BC35: =' BORDRO HAZIRLIK'!AG35 -> 0 | BE35: =' BORDRO HAZIRLIK'!AP35 -> 0 | BF35: =' BORDRO HAZIRLIK'!AQ35 -> 0 | BG35: =' BORDRO HAZIRLIK'!I35 -> 0 | BH35: =' BORDRO HAZIRLIK'!AS35 -> 0 | BI35: =' BORDRO HAZIRLIK'!AT35 -> 0 | BJ35: =' BORDRO HAZIRLIK'!AZ35 -> 0 | BK35: =' BORDRO HAZIRLIK'!BA35 -> 0 | BL35: =' BORDRO HAZIRLIK'!BB35 -> 0 | BM35: ='PERSONEL BİLGİ GİRİŞİ'!I35 -> 0 | BN35: =PUANTAJ!AN37 -> 0 | BO35: =PUANTAJ!AO37 -> 0 | BP35: =PUANTAJ!AP37 -> 0 | BQ35: =PUANTAJ!AQ37 -> 0 | BR35: =PUANTAJ!AR37 -> 0 | BS35: =' BORDRO HAZIRLIK'!AE35 -> 0 | BT35: =' BORDRO HAZIRLIK'!AF35 -> 0
U36: 32 | V36: =PUANTAJ!B38 ->  | W36: ='PERSONEL BİLGİ GİRİŞİ'!H36 -> 0 | X36: ='PERSONEL BİLGİ GİRİŞİ'!Q36 -> 0 | Y36: ='PERSONEL BİLGİ GİRİŞİ'!R36 -> 0 | Z36: ='PERSONEL BİLGİ GİRİŞİ'!U36 -> 0 | AA36: ='PERSONEL BİLGİ GİRİŞİ'!E36 -> 0 | AB36: =PUANTAJ!AT38 -> 0 | AC36: =' BORDRO HAZIRLIK'!AC36 -> 0 | AD36: =' BORDRO HAZIRLIK'!AD36 -> 0 | AE36: =' BORDRO HAZIRLIK'!K37 -> 0 | AF36: =' BORDRO HAZIRLIK'!BE36 -> 0 | AG36: =' BORDRO HAZIRLIK'!AH36 -> 0 | AH36: =' BORDRO HAZIRLIK'!AL36 -> 0 | AI36: =' BORDRO HAZIRLIK'!AM36 -> 0 | AJ36: =' BORDRO HAZIRLIK'!AN36 -> 0 | AK36: =' BORDRO HAZIRLIK'!AK36 -> 0 | AL36: =' BORDRO HAZIRLIK'!R36 -> 0 | AM36: =' BORDRO HAZIRLIK'!S36 -> 0 | AN36: =' BORDRO HAZIRLIK'!AR36 -> 0 | AO36: =' BORDRO HAZIRLIK'!Y36 -> 0 | AP36: =PUANTAJ!AI38 -> 0 | AQ36: =PUANTAJ!AJ38 -> 0 | AR36: =PUANTAJ!AK38 -> 0 | AS36: =PUANTAJ!AL38 -> 0 | AT36: =' BORDRO HAZIRLIK'!N36 -> 0 | AU36: =' BORDRO HAZIRLIK'!J36 -> 0 | AV36: =' BORDRO HAZIRLIK'!L36 -> 0 | AW36: =' BORDRO HAZIRLIK'!AV36 -> 0 | AX36: =' BORDRO HAZIRLIK'!AW36 -> 0 | AY36: =' BORDRO HAZIRLIK'!AX36 -> 0 | AZ36: =' BORDRO HAZIRLIK'!AY36 -> 0 | BA36: 0 | BB36: =' BORDRO HAZIRLIK'!AO36 -> 0 | BC36: =' BORDRO HAZIRLIK'!AG36 -> 0 | BE36: =' BORDRO HAZIRLIK'!AP36 -> 0 | BF36: =' BORDRO HAZIRLIK'!AQ36 -> 0 | BG36: =' BORDRO HAZIRLIK'!I36 -> 0 | BH36: =' BORDRO HAZIRLIK'!AS36 -> 0 | BI36: =' BORDRO HAZIRLIK'!AT36 -> 0 | BJ36: =' BORDRO HAZIRLIK'!AZ36 -> 0 | BK36: =' BORDRO HAZIRLIK'!BA36 -> 0 | BL36: =' BORDRO HAZIRLIK'!BB36 -> 0 | BM36: ='PERSONEL BİLGİ GİRİŞİ'!I36 -> 0 | BN36: =PUANTAJ!AN38 -> 0 | BO36: =PUANTAJ!AO38 -> 0 | BP36: =PUANTAJ!AP38 -> 0 | BQ36: =PUANTAJ!AQ38 -> 0 | BR36: =PUANTAJ!AR38 -> 0 | BS36: =' BORDRO HAZIRLIK'!AE36 -> 0 | BT36: =' BORDRO HAZIRLIK'!AF36 -> 0
U37: 33 | V37: =PUANTAJ!B39 ->  | W37: ='PERSONEL BİLGİ GİRİŞİ'!H37 -> 0 | X37: ='PERSONEL BİLGİ GİRİŞİ'!Q37 -> 0 | Y37: ='PERSONEL BİLGİ GİRİŞİ'!R37 -> 0 | Z37: ='PERSONEL BİLGİ GİRİŞİ'!U37 -> 0 | AA37: ='PERSONEL BİLGİ GİRİŞİ'!E37 -> 0 | AB37: =PUANTAJ!AT39 -> 0 | AC37: =' BORDRO HAZIRLIK'!AC37 -> 0 | AD37: =' BORDRO HAZIRLIK'!AD37 -> 0 | AE37: =' BORDRO HAZIRLIK'!K38 -> 0 | AF37: =' BORDRO HAZIRLIK'!BE37 -> 0 | AG37: =' BORDRO HAZIRLIK'!AH37 -> 0 | AH37: =' BORDRO HAZIRLIK'!AL37 -> 0 | AI37: =' BORDRO HAZIRLIK'!AM37 -> 0 | AJ37: =' BORDRO HAZIRLIK'!AN37 -> 0 | AK37: =' BORDRO HAZIRLIK'!AK37 -> 0 | AL37: =' BORDRO HAZIRLIK'!R37 -> 0 | AM37: =' BORDRO HAZIRLIK'!S37 -> 0 | AN37: =' BORDRO HAZIRLIK'!AR37 -> 0 | AO37: =' BORDRO HAZIRLIK'!Y37 -> 0 | AP37: =PUANTAJ!AI39 -> 0 | AQ37: =PUANTAJ!AJ39 -> 0 | AR37: =PUANTAJ!AK39 -> 0 | AS37: =PUANTAJ!AL39 -> 0 | AT37: =' BORDRO HAZIRLIK'!N37 -> 0 | AU37: =' BORDRO HAZIRLIK'!J37 -> 0 | AV37: =' BORDRO HAZIRLIK'!L37 -> 0 | AW37: =' BORDRO HAZIRLIK'!AV37 -> 0 | AX37: =' BORDRO HAZIRLIK'!AW37 -> 0 | AY37: =' BORDRO HAZIRLIK'!AX37 -> 0 | AZ37: =' BORDRO HAZIRLIK'!AY37 -> 0 | BA37: 0 | BB37: =' BORDRO HAZIRLIK'!AO37 -> 0 | BC37: =' BORDRO HAZIRLIK'!AG37 -> 0 | BE37: =' BORDRO HAZIRLIK'!AP37 -> 0 | BF37: =' BORDRO HAZIRLIK'!AQ37 -> 0 | BG37: =' BORDRO HAZIRLIK'!I37 -> 0 | BH37: =' BORDRO HAZIRLIK'!AS37 -> 0 | BI37: =' BORDRO HAZIRLIK'!AT37 -> 0 | BJ37: =' BORDRO HAZIRLIK'!AZ37 -> 0 | BK37: =' BORDRO HAZIRLIK'!BA37 -> 0 | BL37: =' BORDRO HAZIRLIK'!BB37 -> 0 | BM37: ='PERSONEL BİLGİ GİRİŞİ'!I37 -> 0 | BN37: =PUANTAJ!AN39 -> 0 | BO37: =PUANTAJ!AO39 -> 0 | BP37: =PUANTAJ!AP39 -> 0 | BQ37: =PUANTAJ!AQ39 -> 0 | BR37: =PUANTAJ!AR39 -> 0 | BS37: =' BORDRO HAZIRLIK'!AE37 -> 0 | BT37: =' BORDRO HAZIRLIK'!AF37 -> 0
U38: 34 | V38: =PUANTAJ!B40 ->  | W38: ='PERSONEL BİLGİ GİRİŞİ'!H38 -> 0 | X38: ='PERSONEL BİLGİ GİRİŞİ'!Q38 -> 0 | Y38: ='PERSONEL BİLGİ GİRİŞİ'!R38 -> 0 | Z38: ='PERSONEL BİLGİ GİRİŞİ'!U38 -> 0 | AA38: ='PERSONEL BİLGİ GİRİŞİ'!E38 -> 0 | AB38: =PUANTAJ!AT40 -> 0 | AC38: =' BORDRO HAZIRLIK'!AC38 -> 0 | AD38: =' BORDRO HAZIRLIK'!AD38 -> 0 | AE38: =' BORDRO HAZIRLIK'!K39 -> 0 | AF38: =' BORDRO HAZIRLIK'!BE38 -> 0 | AG38: =' BORDRO HAZIRLIK'!AH38 -> 0 | AH38: =' BORDRO HAZIRLIK'!AL38 -> 0 | AI38: =' BORDRO HAZIRLIK'!AM38 -> 0 | AJ38: =' BORDRO HAZIRLIK'!AN38 -> 0 | AK38: =' BORDRO HAZIRLIK'!AK38 -> 0 | AL38: =' BORDRO HAZIRLIK'!R38 -> 0 | AM38: =' BORDRO HAZIRLIK'!S38 -> 0 | AN38: =' BORDRO HAZIRLIK'!AR38 -> 0 | AO38: =' BORDRO HAZIRLIK'!Y38 -> 0 | AP38: =PUANTAJ!AI40 -> 0 | AQ38: =PUANTAJ!AJ40 -> 0 | AR38: =PUANTAJ!AK40 -> 0 | AS38: =PUANTAJ!AL40 -> 0 | AT38: =' BORDRO HAZIRLIK'!N38 -> 0 | AU38: =' BORDRO HAZIRLIK'!J38 -> 0 | AV38: =' BORDRO HAZIRLIK'!L38 -> 0 | AW38: =' BORDRO HAZIRLIK'!AV38 -> 0 | AX38: =' BORDRO HAZIRLIK'!AW38 -> 0 | AY38: =' BORDRO HAZIRLIK'!AX38 -> 0 | AZ38: =' BORDRO HAZIRLIK'!AY38 -> 0 | BA38: 0 | BB38: =' BORDRO HAZIRLIK'!AO38 -> 0 | BC38: =' BORDRO HAZIRLIK'!AG38 -> 0 | BE38: =' BORDRO HAZIRLIK'!AP38 -> 0 | BF38: =' BORDRO HAZIRLIK'!AQ38 -> 0 | BG38: =' BORDRO HAZIRLIK'!I38 -> 0 | BH38: =' BORDRO HAZIRLIK'!AS38 -> 0 | BI38: =' BORDRO HAZIRLIK'!AT38 -> 0 | BJ38: =' BORDRO HAZIRLIK'!AZ38 -> 0 | BK38: =' BORDRO HAZIRLIK'!BA38 -> 0 | BL38: =' BORDRO HAZIRLIK'!BB38 -> 0 | BM38: ='PERSONEL BİLGİ GİRİŞİ'!I38 -> 0 | BN38: =PUANTAJ!AN40 -> 0 | BO38: =PUANTAJ!AO40 -> 0 | BP38: =PUANTAJ!AP40 -> 0 | BQ38: =PUANTAJ!AQ40 -> 0 | BR38: =PUANTAJ!AR40 -> 0 | BS38: =' BORDRO HAZIRLIK'!AE38 -> 0 | BT38: =' BORDRO HAZIRLIK'!AF38 -> 0
U39: 35 | V39: =PUANTAJ!B41 ->  | W39: ='PERSONEL BİLGİ GİRİŞİ'!H39 -> 0 | X39: ='PERSONEL BİLGİ GİRİŞİ'!Q39 -> 0 | Y39: ='PERSONEL BİLGİ GİRİŞİ'!R39 -> 0 | Z39: ='PERSONEL BİLGİ GİRİŞİ'!U39 -> 0 | AA39: ='PERSONEL BİLGİ GİRİŞİ'!E39 -> 0 | AB39: =PUANTAJ!AT41 -> 0 | AC39: =' BORDRO HAZIRLIK'!AC39 -> 0 | AD39: =' BORDRO HAZIRLIK'!AD39 -> 0 | AE39: =' BORDRO HAZIRLIK'!K40 -> 0 | AF39: =' BORDRO HAZIRLIK'!BE39 -> 0 | AG39: =' BORDRO HAZIRLIK'!AH39 -> 0 | AH39: =' BORDRO HAZIRLIK'!AL39 -> 0 | AI39: =' BORDRO HAZIRLIK'!AM39 -> 0 | AJ39: =' BORDRO HAZIRLIK'!AN39 -> 0 | AK39: =' BORDRO HAZIRLIK'!AK39 -> 0 | AL39: =' BORDRO HAZIRLIK'!R39 -> 0 | AM39: =' BORDRO HAZIRLIK'!S39 -> 0 | AN39: =' BORDRO HAZIRLIK'!AR39 -> 0 | AO39: =' BORDRO HAZIRLIK'!Y39 -> 0 | AP39: =PUANTAJ!AI41 -> 0 | AQ39: =PUANTAJ!AJ41 -> 0 | AR39: =PUANTAJ!AK41 -> 0 | AS39: =PUANTAJ!AL41 -> 0 | AT39: =' BORDRO HAZIRLIK'!N39 -> 0 | AU39: =' BORDRO HAZIRLIK'!J39 -> 0 | AV39: =' BORDRO HAZIRLIK'!L39 -> 0 | AW39: =' BORDRO HAZIRLIK'!AV39 -> 0 | AX39: =' BORDRO HAZIRLIK'!AW39 -> 0 | AY39: =' BORDRO HAZIRLIK'!AX39 -> 0 | AZ39: =' BORDRO HAZIRLIK'!AY39 -> 0 | BA39: 0 | BB39: =' BORDRO HAZIRLIK'!AO39 -> 0 | BC39: =' BORDRO HAZIRLIK'!AG39 -> 0 | BE39: =' BORDRO HAZIRLIK'!AP39 -> 0 | BF39: =' BORDRO HAZIRLIK'!AQ39 -> 0 | BG39: =' BORDRO HAZIRLIK'!I39 -> 0 | BH39: =' BORDRO HAZIRLIK'!AS39 -> 0 | BI39: =' BORDRO HAZIRLIK'!AT39 -> 0 | BJ39: =' BORDRO HAZIRLIK'!AZ39 -> 0 | BK39: =' BORDRO HAZIRLIK'!BA39 -> 0 | BL39: =' BORDRO HAZIRLIK'!BB39 -> 0 | BM39: ='PERSONEL BİLGİ GİRİŞİ'!I39 -> 0 | BN39: =PUANTAJ!AN41 -> 0 | BO39: =PUANTAJ!AO41 -> 0 | BP39: =PUANTAJ!AP41 -> 0 | BQ39: =PUANTAJ!AQ41 -> 0 | BR39: =PUANTAJ!AR41 -> 0 | BS39: =' BORDRO HAZIRLIK'!AE39 -> 0 | BT39: =' BORDRO HAZIRLIK'!AF39 -> 0
U40: 36 | V40: =PUANTAJ!B42 ->  | W40: ='PERSONEL BİLGİ GİRİŞİ'!H40 -> 0 | X40: ='PERSONEL BİLGİ GİRİŞİ'!Q40 -> 0 | Y40: ='PERSONEL BİLGİ GİRİŞİ'!R40 -> 0 | Z40: ='PERSONEL BİLGİ GİRİŞİ'!U40 -> 0 | AA40: ='PERSONEL BİLGİ GİRİŞİ'!E40 -> 0 | AB40: =PUANTAJ!AT42 -> 0 | AC40: =' BORDRO HAZIRLIK'!AC40 -> 0 | AD40: =' BORDRO HAZIRLIK'!AD40 -> 0 | AE40: =' BORDRO HAZIRLIK'!K41 -> 0 | AF40: =' BORDRO HAZIRLIK'!BE40 -> 0 | AG40: =' BORDRO HAZIRLIK'!AH40 -> 0 | AH40: =' BORDRO HAZIRLIK'!AL40 -> 0 | AI40: =' BORDRO HAZIRLIK'!AM40 -> 0 | AJ40: =' BORDRO HAZIRLIK'!AN40 -> 0 | AK40: =' BORDRO HAZIRLIK'!AK40 -> 0 | AL40: =' BORDRO HAZIRLIK'!R40 -> 0 | AM40: =' BORDRO HAZIRLIK'!S40 -> 0 | AN40: =' BORDRO HAZIRLIK'!AR40 -> 0 | AO40: =' BORDRO HAZIRLIK'!Y40 -> 0 | AP40: =PUANTAJ!AI42 -> 0 | AQ40: =PUANTAJ!AJ42 -> 0 | AR40: =PUANTAJ!AK42 -> 0 | AS40: =PUANTAJ!AL42 -> 0 | AT40: =' BORDRO HAZIRLIK'!N40 -> 0 | AU40: =' BORDRO HAZIRLIK'!J40 -> 0 | AV40: =' BORDRO HAZIRLIK'!L40 -> 0 | AW40: =' BORDRO HAZIRLIK'!AV40 -> 0 | AX40: =' BORDRO HAZIRLIK'!AW40 -> 0 | AY40: =' BORDRO HAZIRLIK'!AX40 -> 0 | AZ40: =' BORDRO HAZIRLIK'!AY40 -> 0 | BA40: 0 | BB40: =' BORDRO HAZIRLIK'!AO40 -> 0 | BC40: =' BORDRO HAZIRLIK'!AG40 -> 0 | BE40: =' BORDRO HAZIRLIK'!AP40 -> 0 | BF40: =' BORDRO HAZIRLIK'!AQ40 -> 0 | BG40: =' BORDRO HAZIRLIK'!I40 -> 0 | BH40: =' BORDRO HAZIRLIK'!AS40 -> 0 | BI40: =' BORDRO HAZIRLIK'!AT40 -> 0 | BJ40: =' BORDRO HAZIRLIK'!AZ40 -> 0 | BK40: =' BORDRO HAZIRLIK'!BA40 -> 0 | BL40: =' BORDRO HAZIRLIK'!BB40 -> 0 | BM40: ='PERSONEL BİLGİ GİRİŞİ'!I40 -> 0 | BN40: =PUANTAJ!AN42 -> 0 | BO40: =PUANTAJ!AO42 -> 0 | BP40: =PUANTAJ!AP42 -> 0 | BQ40: =PUANTAJ!AQ42 -> 0 | BR40: =PUANTAJ!AR42 -> 0 | BS40: =' BORDRO HAZIRLIK'!AE40 -> 0 | BT40: =' BORDRO HAZIRLIK'!AF40 -> 0
U41: 37 | V41: =PUANTAJ!B43 ->  | W41: ='PERSONEL BİLGİ GİRİŞİ'!H41 -> 0 | X41: ='PERSONEL BİLGİ GİRİŞİ'!Q41 -> 0 | Y41: ='PERSONEL BİLGİ GİRİŞİ'!R41 -> 0 | Z41: ='PERSONEL BİLGİ GİRİŞİ'!U41 -> 0 | AA41: ='PERSONEL BİLGİ GİRİŞİ'!E41 -> 0 | AB41: =PUANTAJ!AT43 -> 0 | AC41: =' BORDRO HAZIRLIK'!AC41 -> 0 | AD41: =' BORDRO HAZIRLIK'!AD41 -> 0 | AE41: =' BORDRO HAZIRLIK'!K42 -> 0 | AF41: =' BORDRO HAZIRLIK'!BE41 -> 0 | AG41: =' BORDRO HAZIRLIK'!AH41 -> 0 | AH41: =' BORDRO HAZIRLIK'!AL41 -> 0 | AI41: =' BORDRO HAZIRLIK'!AM41 -> 0 | AJ41: =' BORDRO HAZIRLIK'!AN41 -> 0 | AK41: =' BORDRO HAZIRLIK'!AK41 -> 0 | AL41: =' BORDRO HAZIRLIK'!R41 -> 0 | AM41: =' BORDRO HAZIRLIK'!S41 -> 0 | AN41: =' BORDRO HAZIRLIK'!AR41 -> 0 | AO41: =' BORDRO HAZIRLIK'!Y41 -> 0 | AP41: =PUANTAJ!AI43 -> 0 | AQ41: =PUANTAJ!AJ43 -> 0 | AR41: =PUANTAJ!AK43 -> 0 | AS41: =PUANTAJ!AL43 -> 0 | AT41: =' BORDRO HAZIRLIK'!N41 -> 0 | AU41: =' BORDRO HAZIRLIK'!J41 -> 0 | AV41: =' BORDRO HAZIRLIK'!L41 -> 0 | AW41: =' BORDRO HAZIRLIK'!AV41 -> 0 | AX41: =' BORDRO HAZIRLIK'!AW41 -> 0 | AY41: =' BORDRO HAZIRLIK'!AX41 -> 0 | AZ41: =' BORDRO HAZIRLIK'!AY41 -> 0 | BA41: 0 | BB41: =' BORDRO HAZIRLIK'!AO41 -> 0 | BC41: =' BORDRO HAZIRLIK'!AG41 -> 0 | BE41: =' BORDRO HAZIRLIK'!AP41 -> 0 | BF41: =' BORDRO HAZIRLIK'!AQ41 -> 0 | BG41: =' BORDRO HAZIRLIK'!I41 -> 0 | BH41: =' BORDRO HAZIRLIK'!AS41 -> 0 | BI41: =' BORDRO HAZIRLIK'!AT41 -> 0 | BJ41: =' BORDRO HAZIRLIK'!AZ41 -> 0 | BK41: =' BORDRO HAZIRLIK'!BA41 -> 0 | BL41: =' BORDRO HAZIRLIK'!BB41 -> 0 | BM41: ='PERSONEL BİLGİ GİRİŞİ'!I41 -> 0 | BN41: =PUANTAJ!AN43 -> 0 | BO41: =PUANTAJ!AO43 -> 0 | BP41: =PUANTAJ!AP43 -> 0 | BQ41: =PUANTAJ!AQ43 -> 0 | BR41: =PUANTAJ!AR43 -> 0 | BS41: =' BORDRO HAZIRLIK'!AE41 -> 0 | BT41: =' BORDRO HAZIRLIK'!AF41 -> 0
U42: 38 | V42: =PUANTAJ!B44 ->  | W42: ='PERSONEL BİLGİ GİRİŞİ'!H42 -> 0 | X42: ='PERSONEL BİLGİ GİRİŞİ'!Q42 -> 0 | Y42: ='PERSONEL BİLGİ GİRİŞİ'!R42 -> 0 | Z42: ='PERSONEL BİLGİ GİRİŞİ'!U42 -> 0 | AA42: ='PERSONEL BİLGİ GİRİŞİ'!E42 -> 0 | AB42: =PUANTAJ!AT44 -> 0 | AC42: =' BORDRO HAZIRLIK'!AC42 -> 0 | AD42: =' BORDRO HAZIRLIK'!AD42 -> 0 | AE42: =' BORDRO HAZIRLIK'!K43 -> 0 | AF42: =' BORDRO HAZIRLIK'!BE42 -> 0 | AG42: =' BORDRO HAZIRLIK'!AH42 -> 0 | AH42: =' BORDRO HAZIRLIK'!AL42 -> 0 | AI42: =' BORDRO HAZIRLIK'!AM42 -> 0 | AJ42: =' BORDRO HAZIRLIK'!AN42 -> 0 | AK42: =' BORDRO HAZIRLIK'!AK42 -> 0 | AL42: =' BORDRO HAZIRLIK'!R42 -> 0 | AM42: =' BORDRO HAZIRLIK'!S42 -> 0 | AN42: =' BORDRO HAZIRLIK'!AR42 -> 0 | AO42: =' BORDRO HAZIRLIK'!Y42 -> 0 | AP42: =PUANTAJ!AI44 -> 0 | AQ42: =PUANTAJ!AJ44 -> 0 | AR42: =PUANTAJ!AK44 -> 0 | AS42: =PUANTAJ!AL44 -> 0 | AT42: =' BORDRO HAZIRLIK'!N42 -> 0 | AU42: =' BORDRO HAZIRLIK'!J42 -> 0 | AV42: =' BORDRO HAZIRLIK'!L42 -> 0 | AW42: =' BORDRO HAZIRLIK'!AV42 -> 0 | AX42: =' BORDRO HAZIRLIK'!AW42 -> 0 | AY42: =' BORDRO HAZIRLIK'!AX42 -> 0 | AZ42: =' BORDRO HAZIRLIK'!AY42 -> 0 | BA42: 0 | BB42: =' BORDRO HAZIRLIK'!AO42 -> 0 | BC42: =' BORDRO HAZIRLIK'!AG42 -> 0 | BE42: =' BORDRO HAZIRLIK'!AP42 -> 0 | BF42: =' BORDRO HAZIRLIK'!AQ42 -> 0 | BG42: =' BORDRO HAZIRLIK'!I42 -> 0 | BH42: =' BORDRO HAZIRLIK'!AS42 -> 0 | BI42: =' BORDRO HAZIRLIK'!AT42 -> 0 | BJ42: =' BORDRO HAZIRLIK'!AZ42 -> 0 | BK42: =' BORDRO HAZIRLIK'!BA42 -> 0 | BL42: =' BORDRO HAZIRLIK'!BB42 -> 0 | BM42: ='PERSONEL BİLGİ GİRİŞİ'!I42 -> 0 | BN42: =PUANTAJ!AN44 -> 0 | BO42: =PUANTAJ!AO44 -> 0 | BP42: =PUANTAJ!AP44 -> 0 | BQ42: =PUANTAJ!AQ44 -> 0 | BR42: =PUANTAJ!AR44 -> 0 | BS42: =' BORDRO HAZIRLIK'!AE42 -> 0 | BT42: =' BORDRO HAZIRLIK'!AF42 -> 0
U43: 39 | V43: =PUANTAJ!B45 ->  | W43: ='PERSONEL BİLGİ GİRİŞİ'!H43 -> 0 | X43: ='PERSONEL BİLGİ GİRİŞİ'!Q43 -> 0 | Y43: ='PERSONEL BİLGİ GİRİŞİ'!R43 -> 0 | Z43: ='PERSONEL BİLGİ GİRİŞİ'!U43 -> 0 | AA43: ='PERSONEL BİLGİ GİRİŞİ'!E43 -> 0 | AB43: =PUANTAJ!AT45 -> 0 | AC43: =' BORDRO HAZIRLIK'!AC43 -> 0 | AD43: =' BORDRO HAZIRLIK'!AD43 -> 0 | AE43: =' BORDRO HAZIRLIK'!K44 -> 0 | AF43: =' BORDRO HAZIRLIK'!BE43 -> 0 | AG43: =' BORDRO HAZIRLIK'!AH43 -> 0 | AH43: =' BORDRO HAZIRLIK'!AL43 -> 0 | AI43: =' BORDRO HAZIRLIK'!AM43 -> 0 | AJ43: =' BORDRO HAZIRLIK'!AN43 -> 0 | AK43: =' BORDRO HAZIRLIK'!AK43 -> 0 | AL43: =' BORDRO HAZIRLIK'!R43 -> 0 | AM43: =' BORDRO HAZIRLIK'!S43 -> 0 | AN43: =' BORDRO HAZIRLIK'!AR43 -> 0 | AO43: =' BORDRO HAZIRLIK'!Y43 -> 0 | AP43: =PUANTAJ!AI45 -> 0 | AQ43: =PUANTAJ!AJ45 -> 0 | AR43: =PUANTAJ!AK45 -> 0 | AS43: =PUANTAJ!AL45 -> 0 | AT43: =' BORDRO HAZIRLIK'!N43 -> 0 | AU43: =' BORDRO HAZIRLIK'!J43 -> 0 | AV43: =' BORDRO HAZIRLIK'!L43 -> 0 | AW43: =' BORDRO HAZIRLIK'!AV43 -> 0 | AX43: =' BORDRO HAZIRLIK'!AW43 -> 0 | AY43: =' BORDRO HAZIRLIK'!AX43 -> 0 | AZ43: =' BORDRO HAZIRLIK'!AY43 -> 0 | BA43: 0 | BB43: =' BORDRO HAZIRLIK'!AO43 -> 0 | BC43: =' BORDRO HAZIRLIK'!AG43 -> 0 | BE43: =' BORDRO HAZIRLIK'!AP43 -> 0 | BF43: =' BORDRO HAZIRLIK'!AQ43 -> 0 | BG43: =' BORDRO HAZIRLIK'!I43 -> 0 | BH43: =' BORDRO HAZIRLIK'!AS43 -> 0 | BI43: =' BORDRO HAZIRLIK'!AT43 -> 0 | BJ43: =' BORDRO HAZIRLIK'!AZ43 -> 0 | BK43: =' BORDRO HAZIRLIK'!BA43 -> 0 | BL43: =' BORDRO HAZIRLIK'!BB43 -> 0 | BM43: ='PERSONEL BİLGİ GİRİŞİ'!I43 -> 0 | BN43: =PUANTAJ!AN45 -> 0 | BO43: =PUANTAJ!AO45 -> 0 | BP43: =PUANTAJ!AP45 -> 0 | BQ43: =PUANTAJ!AQ45 -> 0 | BR43: =PUANTAJ!AR45 -> 0 | BS43: =' BORDRO HAZIRLIK'!AE43 -> 0 | BT43: =' BORDRO HAZIRLIK'!AF43 -> 0
U44: 40 | V44: =PUANTAJ!B46 ->  | W44: ='PERSONEL BİLGİ GİRİŞİ'!H44 -> 0 | X44: ='PERSONEL BİLGİ GİRİŞİ'!Q44 -> 0 | Y44: ='PERSONEL BİLGİ GİRİŞİ'!R44 -> 0 | Z44: ='PERSONEL BİLGİ GİRİŞİ'!U44 -> 0 | AA44: ='PERSONEL BİLGİ GİRİŞİ'!E44 -> 0 | AB44: =PUANTAJ!AT46 -> 0 | AC44: =' BORDRO HAZIRLIK'!AC44 -> 0 | AD44: =' BORDRO HAZIRLIK'!AD44 -> 0 | AE44: =' BORDRO HAZIRLIK'!K45 -> 0 | AF44: =' BORDRO HAZIRLIK'!BE44 -> 0 | AG44: =' BORDRO HAZIRLIK'!AH44 -> 0 | AH44: =' BORDRO HAZIRLIK'!AL44 -> 0 | AI44: =' BORDRO HAZIRLIK'!AM44 -> 0 | AJ44: =' BORDRO HAZIRLIK'!AN44 -> 0 | AK44: =' BORDRO HAZIRLIK'!AK44 -> 0 | AL44: =' BORDRO HAZIRLIK'!R44 -> 0 | AM44: =' BORDRO HAZIRLIK'!S44 -> 0 | AN44: =' BORDRO HAZIRLIK'!AR44 -> 0 | AO44: =' BORDRO HAZIRLIK'!Y44 -> 0 | AP44: =PUANTAJ!AI46 -> 0 | AQ44: =PUANTAJ!AJ46 -> 0 | AR44: =PUANTAJ!AK46 -> 0 | AS44: =PUANTAJ!AL46 -> 0 | AT44: =' BORDRO HAZIRLIK'!N44 -> 0 | AU44: =' BORDRO HAZIRLIK'!J44 -> 0 | AV44: =' BORDRO HAZIRLIK'!L44 -> 0 | AW44: =' BORDRO HAZIRLIK'!AV44 -> 0 | AX44: =' BORDRO HAZIRLIK'!AW44 -> 0 | AY44: =' BORDRO HAZIRLIK'!AX44 -> 0 | AZ44: =' BORDRO HAZIRLIK'!AY44 -> 0 | BA44: 0 | BB44: =' BORDRO HAZIRLIK'!AO44 -> 0 | BC44: =' BORDRO HAZIRLIK'!AG44 -> 0 | BE44: =' BORDRO HAZIRLIK'!AP44 -> 0 | BF44: =' BORDRO HAZIRLIK'!AQ44 -> 0 | BG44: =' BORDRO HAZIRLIK'!I44 -> 0 | BH44: =' BORDRO HAZIRLIK'!AS44 -> 0 | BI44: =' BORDRO HAZIRLIK'!AT44 -> 0 | BJ44: =' BORDRO HAZIRLIK'!AZ44 -> 0 | BK44: =' BORDRO HAZIRLIK'!BA44 -> 0 | BL44: =' BORDRO HAZIRLIK'!BB44 -> 0 | BM44: ='PERSONEL BİLGİ GİRİŞİ'!I44 -> 0 | BN44: =PUANTAJ!AN46 -> 0 | BO44: =PUANTAJ!AO46 -> 0 | BP44: =PUANTAJ!AP46 -> 0 | BQ44: =PUANTAJ!AQ46 -> 0 | BR44: =PUANTAJ!AR46 -> 0 | BS44: =' BORDRO HAZIRLIK'!AE44 -> 0 | BT44: =' BORDRO HAZIRLIK'!AF44 -> 0
U45: 41 | V45: =PUANTAJ!B47 ->  | W45: ='PERSONEL BİLGİ GİRİŞİ'!H45 -> 0 | X45: ='PERSONEL BİLGİ GİRİŞİ'!Q45 -> 0 | Y45: ='PERSONEL BİLGİ GİRİŞİ'!R45 -> 0 | Z45: ='PERSONEL BİLGİ GİRİŞİ'!U45 -> 0 | AA45: ='PERSONEL BİLGİ GİRİŞİ'!E45 -> 0 | AB45: =PUANTAJ!AT47 -> 0 | AC45: =' BORDRO HAZIRLIK'!AC45 -> 0 | AD45: =' BORDRO HAZIRLIK'!AD45 -> 0 | AE45: =' BORDRO HAZIRLIK'!K46 -> 0 | AF45: =' BORDRO HAZIRLIK'!BE45 -> 0 | AG45: =' BORDRO HAZIRLIK'!AH45 -> 0 | AH45: =' BORDRO HAZIRLIK'!AL45 -> 0 | AI45: =' BORDRO HAZIRLIK'!AM45 -> 0 | AJ45: =' BORDRO HAZIRLIK'!AN45 -> 0 | AK45: =' BORDRO HAZIRLIK'!AK45 -> 0 | AL45: =' BORDRO HAZIRLIK'!R45 -> 0 | AM45: =' BORDRO HAZIRLIK'!S45 -> 0 | AN45: =' BORDRO HAZIRLIK'!AR45 -> 0 | AO45: =' BORDRO HAZIRLIK'!Y45 -> 0 | AP45: =PUANTAJ!AI47 -> 0 | AQ45: =PUANTAJ!AJ47 -> 0 | AR45: =PUANTAJ!AK47 -> 0 | AS45: =PUANTAJ!AL47 -> 0 | AT45: =' BORDRO HAZIRLIK'!N45 -> 0 | AU45: =' BORDRO HAZIRLIK'!J45 -> 0 | AV45: =' BORDRO HAZIRLIK'!L45 -> 0 | AW45: =' BORDRO HAZIRLIK'!AV45 -> 0 | AX45: =' BORDRO HAZIRLIK'!AW45 -> 0 | AY45: =' BORDRO HAZIRLIK'!AX45 -> 0 | AZ45: =' BORDRO HAZIRLIK'!AY45 -> 0 | BA45: 0 | BB45: =' BORDRO HAZIRLIK'!AO45 -> 0 | BC45: =' BORDRO HAZIRLIK'!AG45 -> 0 | BE45: =' BORDRO HAZIRLIK'!AP45 -> 0 | BF45: =' BORDRO HAZIRLIK'!AQ45 -> 0 | BG45: =' BORDRO HAZIRLIK'!I45 -> 0 | BH45: =' BORDRO HAZIRLIK'!AS45 -> 0 | BI45: =' BORDRO HAZIRLIK'!AT45 -> 0 | BJ45: =' BORDRO HAZIRLIK'!AZ45 -> 0 | BK45: =' BORDRO HAZIRLIK'!BA45 -> 0 | BL45: =' BORDRO HAZIRLIK'!BB45 -> 0 | BM45: ='PERSONEL BİLGİ GİRİŞİ'!I45 -> 0 | BN45: =PUANTAJ!AN47 -> 0 | BO45: =PUANTAJ!AO47 -> 0 | BP45: =PUANTAJ!AP47 -> 0 | BQ45: =PUANTAJ!AQ47 -> 0 | BR45: =PUANTAJ!AR47 -> 0 | BS45: =' BORDRO HAZIRLIK'!AE45 -> 0 | BT45: =' BORDRO HAZIRLIK'!AF45 -> 0
U46: 42 | V46: =PUANTAJ!B48 ->  | W46: ='PERSONEL BİLGİ GİRİŞİ'!H46 -> 0 | X46: ='PERSONEL BİLGİ GİRİŞİ'!Q46 -> 0 | Y46: ='PERSONEL BİLGİ GİRİŞİ'!R46 -> 0 | Z46: ='PERSONEL BİLGİ GİRİŞİ'!U46 -> 0 | AA46: ='PERSONEL BİLGİ GİRİŞİ'!E46 -> 0 | AB46: =PUANTAJ!AT48 -> 0 | AC46: =' BORDRO HAZIRLIK'!AC46 -> 0 | AD46: =' BORDRO HAZIRLIK'!AD46 -> 0 | AE46: =' BORDRO HAZIRLIK'!K47 -> 0 | AF46: =' BORDRO HAZIRLIK'!BE46 -> 0 | AG46: =' BORDRO HAZIRLIK'!AH46 -> 0 | AH46: =' BORDRO HAZIRLIK'!AL46 -> 0 | AI46: =' BORDRO HAZIRLIK'!AM46 -> 0 | AJ46: =' BORDRO HAZIRLIK'!AN46 -> 0 | AK46: =' BORDRO HAZIRLIK'!AK46 -> 0 | AL46: =' BORDRO HAZIRLIK'!R46 -> 0 | AM46: =' BORDRO HAZIRLIK'!S46 -> 0 | AN46: =' BORDRO HAZIRLIK'!AR46 -> 0 | AO46: =' BORDRO HAZIRLIK'!Y46 -> 0 | AP46: =PUANTAJ!AI48 -> 0 | AQ46: =PUANTAJ!AJ48 -> 0 | AR46: =PUANTAJ!AK48 -> 0 | AS46: =PUANTAJ!AL48 -> 0 | AT46: =' BORDRO HAZIRLIK'!N46 -> 0 | AU46: =' BORDRO HAZIRLIK'!J46 -> 0 | AV46: =' BORDRO HAZIRLIK'!L46 -> 0 | AW46: =' BORDRO HAZIRLIK'!AV46 -> 0 | AX46: =' BORDRO HAZIRLIK'!AW46 -> 0 | AY46: =' BORDRO HAZIRLIK'!AX46 -> 0 | AZ46: =' BORDRO HAZIRLIK'!AY46 -> 0 | BA46: 0 | BB46: =' BORDRO HAZIRLIK'!AO46 -> 0 | BC46: =' BORDRO HAZIRLIK'!AG46 -> 0 | BE46: =' BORDRO HAZIRLIK'!AP46 -> 0 | BF46: =' BORDRO HAZIRLIK'!AQ46 -> 0 | BG46: =' BORDRO HAZIRLIK'!I46 -> 0 | BH46: =' BORDRO HAZIRLIK'!AS46 -> 0 | BI46: =' BORDRO HAZIRLIK'!AT46 -> 0 | BJ46: =' BORDRO HAZIRLIK'!AZ46 -> 0 | BK46: =' BORDRO HAZIRLIK'!BA46 -> 0 | BL46: =' BORDRO HAZIRLIK'!BB46 -> 0 | BM46: ='PERSONEL BİLGİ GİRİŞİ'!I46 -> 0 | BN46: =PUANTAJ!AN48 -> 0 | BO46: =PUANTAJ!AO48 -> 0 | BP46: =PUANTAJ!AP48 -> 0 | BQ46: =PUANTAJ!AQ48 -> 0 | BR46: =PUANTAJ!AR48 -> 0 | BS46: =' BORDRO HAZIRLIK'!AE46 -> 0 | BT46: =' BORDRO HAZIRLIK'!AF46 -> 0
U47: 43 | V47: =PUANTAJ!B49 ->  | W47: ='PERSONEL BİLGİ GİRİŞİ'!H47 -> 0 | X47: ='PERSONEL BİLGİ GİRİŞİ'!Q47 -> 0 | Y47: ='PERSONEL BİLGİ GİRİŞİ'!R47 -> 0 | Z47: ='PERSONEL BİLGİ GİRİŞİ'!U47 -> 0 | AA47: ='PERSONEL BİLGİ GİRİŞİ'!E47 -> 0 | AB47: =PUANTAJ!AT49 -> 0 | AC47: =' BORDRO HAZIRLIK'!AC47 -> 0 | AD47: =' BORDRO HAZIRLIK'!AD47 -> 0 | AE47: =' BORDRO HAZIRLIK'!K48 -> 0 | AF47: =' BORDRO HAZIRLIK'!BE47 -> 0 | AG47: =' BORDRO HAZIRLIK'!AH47 -> 0 | AH47: =' BORDRO HAZIRLIK'!AL47 -> 0 | AI47: =' BORDRO HAZIRLIK'!AM47 -> 0 | AJ47: =' BORDRO HAZIRLIK'!AN47 -> 0 | AK47: =' BORDRO HAZIRLIK'!AK47 -> 0 | AL47: =' BORDRO HAZIRLIK'!R47 -> 0 | AM47: =' BORDRO HAZIRLIK'!S47 -> 0 | AN47: =' BORDRO HAZIRLIK'!AR47 -> 0 | AO47: =' BORDRO HAZIRLIK'!Y47 -> 0 | AP47: =PUANTAJ!AI49 -> 0 | AQ47: =PUANTAJ!AJ49 -> 0 | AR47: =PUANTAJ!AK49 -> 0 | AS47: =PUANTAJ!AL49 -> 0 | AT47: =' BORDRO HAZIRLIK'!N47 -> 0 | AU47: =' BORDRO HAZIRLIK'!J47 -> 0 | AV47: =' BORDRO HAZIRLIK'!L47 -> 0 | AW47: =' BORDRO HAZIRLIK'!AV47 -> 0 | AX47: =' BORDRO HAZIRLIK'!AW47 -> 0 | AY47: =' BORDRO HAZIRLIK'!AX47 -> 0 | AZ47: =' BORDRO HAZIRLIK'!AY47 -> 0 | BA47: 0 | BB47: =' BORDRO HAZIRLIK'!AO47 -> 0 | BC47: =' BORDRO HAZIRLIK'!AG47 -> 0 | BE47: =' BORDRO HAZIRLIK'!AP47 -> 0 | BF47: =' BORDRO HAZIRLIK'!AQ47 -> 0 | BG47: =' BORDRO HAZIRLIK'!I47 -> 0 | BH47: =' BORDRO HAZIRLIK'!AS47 -> 0 | BI47: =' BORDRO HAZIRLIK'!AT47 -> 0 | BJ47: =' BORDRO HAZIRLIK'!AZ47 -> 0 | BK47: =' BORDRO HAZIRLIK'!BA47 -> 0 | BL47: =' BORDRO HAZIRLIK'!BB47 -> 0 | BM47: ='PERSONEL BİLGİ GİRİŞİ'!I47 -> 0 | BN47: =PUANTAJ!AN49 -> 0 | BO47: =PUANTAJ!AO49 -> 0 | BP47: =PUANTAJ!AP49 -> 0 | BQ47: =PUANTAJ!AQ49 -> 0 | BR47: =PUANTAJ!AR49 -> 0 | BS47: =' BORDRO HAZIRLIK'!AE47 -> 0 | BT47: =' BORDRO HAZIRLIK'!AF47 -> 0
U48: 44 | V48: =PUANTAJ!B50 ->  | W48: ='PERSONEL BİLGİ GİRİŞİ'!H48 -> 0 | X48: ='PERSONEL BİLGİ GİRİŞİ'!Q48 -> 0 | Y48: ='PERSONEL BİLGİ GİRİŞİ'!R48 -> 0 | Z48: ='PERSONEL BİLGİ GİRİŞİ'!U48 -> 0 | AA48: ='PERSONEL BİLGİ GİRİŞİ'!E48 -> 0 | AB48: =PUANTAJ!AT50 -> 0 | AC48: =' BORDRO HAZIRLIK'!AC48 -> 0 | AD48: =' BORDRO HAZIRLIK'!AD48 -> 0 | AE48: =' BORDRO HAZIRLIK'!K49 -> 0 | AF48: =' BORDRO HAZIRLIK'!BE48 -> 0 | AG48: =' BORDRO HAZIRLIK'!AH48 -> 0 | AH48: =' BORDRO HAZIRLIK'!AL48 -> 0 | AI48: =' BORDRO HAZIRLIK'!AM48 -> 0 | AJ48: =' BORDRO HAZIRLIK'!AN48 -> 0 | AK48: =' BORDRO HAZIRLIK'!AK48 -> 0 | AL48: =' BORDRO HAZIRLIK'!R48 -> 0 | AM48: =' BORDRO HAZIRLIK'!S48 -> 0 | AN48: =' BORDRO HAZIRLIK'!AR48 -> 0 | AO48: =' BORDRO HAZIRLIK'!Y48 -> 0 | AP48: =PUANTAJ!AI50 -> 0 | AQ48: =PUANTAJ!AJ50 -> 0 | AR48: =PUANTAJ!AK50 -> 0 | AS48: =PUANTAJ!AL50 -> 0 | AT48: =' BORDRO HAZIRLIK'!N48 -> 0 | AU48: =' BORDRO HAZIRLIK'!J48 -> 0 | AV48: =' BORDRO HAZIRLIK'!L48 -> 0 | AW48: =' BORDRO HAZIRLIK'!AV48 -> 0 | AX48: =' BORDRO HAZIRLIK'!AW48 -> 0 | AY48: =' BORDRO HAZIRLIK'!AX48 -> 0 | AZ48: =' BORDRO HAZIRLIK'!AY48 -> 0 | BA48: 0 | BB48: =' BORDRO HAZIRLIK'!AO48 -> 0 | BC48: =' BORDRO HAZIRLIK'!AG48 -> 0 | BE48: =' BORDRO HAZIRLIK'!AP48 -> 0 | BF48: =' BORDRO HAZIRLIK'!AQ48 -> 0 | BG48: =' BORDRO HAZIRLIK'!I48 -> 0 | BH48: =' BORDRO HAZIRLIK'!AS48 -> 0 | BI48: =' BORDRO HAZIRLIK'!AT48 -> 0 | BJ48: =' BORDRO HAZIRLIK'!AZ48 -> 0 | BK48: =' BORDRO HAZIRLIK'!BA48 -> 0 | BL48: =' BORDRO HAZIRLIK'!BB48 -> 0 | BM48: ='PERSONEL BİLGİ GİRİŞİ'!I48 -> 0 | BN48: =PUANTAJ!AN50 -> 0 | BO48: =PUANTAJ!AO50 -> 0 | BP48: =PUANTAJ!AP50 -> 0 | BQ48: =PUANTAJ!AQ50 -> 0 | BR48: =PUANTAJ!AR50 -> 0 | BS48: =' BORDRO HAZIRLIK'!AE48 -> 0 | BT48: =' BORDRO HAZIRLIK'!AF48 -> 0
U49: 45 | V49: =PUANTAJ!B51 ->  | W49: ='PERSONEL BİLGİ GİRİŞİ'!H49 -> 0 | X49: ='PERSONEL BİLGİ GİRİŞİ'!Q49 -> 0 | Y49: ='PERSONEL BİLGİ GİRİŞİ'!R49 -> 0 | Z49: ='PERSONEL BİLGİ GİRİŞİ'!U49 -> 0 | AA49: ='PERSONEL BİLGİ GİRİŞİ'!E49 -> 0 | AB49: =PUANTAJ!AT51 -> 0 | AC49: =' BORDRO HAZIRLIK'!AC49 -> 0 | AD49: =' BORDRO HAZIRLIK'!AD49 -> 0 | AE49: =' BORDRO HAZIRLIK'!K50 -> 0 | AF49: =' BORDRO HAZIRLIK'!BE49 -> 0 | AG49: =' BORDRO HAZIRLIK'!AH49 -> 0 | AH49: =' BORDRO HAZIRLIK'!AL49 -> 0 | AI49: =' BORDRO HAZIRLIK'!AM49 -> 0 | AJ49: =' BORDRO HAZIRLIK'!AN49 -> 0 | AK49: =' BORDRO HAZIRLIK'!AK49 -> 0 | AL49: =' BORDRO HAZIRLIK'!R49 -> 0 | AM49: =' BORDRO HAZIRLIK'!S49 -> 0 | AN49: =' BORDRO HAZIRLIK'!AR49 -> 0 | AO49: =' BORDRO HAZIRLIK'!Y49 -> 0 | AP49: =PUANTAJ!AI51 -> 0 | AQ49: =PUANTAJ!AJ51 -> 0 | AR49: =PUANTAJ!AK51 -> 0 | AS49: =PUANTAJ!AL51 -> 0 | AT49: =' BORDRO HAZIRLIK'!N49 -> 0 | AU49: =' BORDRO HAZIRLIK'!J49 -> 0 | AV49: =' BORDRO HAZIRLIK'!L49 -> 0 | AW49: =' BORDRO HAZIRLIK'!AV49 -> 0 | AX49: =' BORDRO HAZIRLIK'!AW49 -> 0 | AY49: =' BORDRO HAZIRLIK'!AX49 -> 0 | AZ49: =' BORDRO HAZIRLIK'!AY49 -> 0 | BA49: 0 | BB49: =' BORDRO HAZIRLIK'!AO49 -> 0 | BC49: =' BORDRO HAZIRLIK'!AG49 -> 0 | BE49: =' BORDRO HAZIRLIK'!AP49 -> 0 | BF49: =' BORDRO HAZIRLIK'!AQ49 -> 0 | BG49: =' BORDRO HAZIRLIK'!I49 -> 0 | BH49: =' BORDRO HAZIRLIK'!AS49 -> 0 | BI49: =' BORDRO HAZIRLIK'!AT49 -> 0 | BJ49: =' BORDRO HAZIRLIK'!AZ49 -> 0 | BK49: =' BORDRO HAZIRLIK'!BA49 -> 0 | BL49: =' BORDRO HAZIRLIK'!BB49 -> 0 | BM49: ='PERSONEL BİLGİ GİRİŞİ'!I49 -> 0 | BN49: =PUANTAJ!AN51 -> 0 | BO49: =PUANTAJ!AO51 -> 0 | BP49: =PUANTAJ!AP51 -> 0 | BQ49: =PUANTAJ!AQ51 -> 0 | BR49: =PUANTAJ!AR51 -> 0 | BS49: =' BORDRO HAZIRLIK'!AE49 -> 0 | BT49: =' BORDRO HAZIRLIK'!AF49 -> 0
U50: 46 | V50: =PUANTAJ!B52 ->  | W50: ='PERSONEL BİLGİ GİRİŞİ'!H50 -> 0 | X50: ='PERSONEL BİLGİ GİRİŞİ'!Q50 -> 0 | Y50: ='PERSONEL BİLGİ GİRİŞİ'!R50 -> 0 | Z50: ='PERSONEL BİLGİ GİRİŞİ'!U50 -> 0 | AA50: ='PERSONEL BİLGİ GİRİŞİ'!E50 -> 0 | AB50: =PUANTAJ!AT52 -> 0 | AC50: =' BORDRO HAZIRLIK'!AC50 -> 0 | AD50: =' BORDRO HAZIRLIK'!AD50 -> 0 | AE50: =' BORDRO HAZIRLIK'!K51 -> 0 | AF50: =' BORDRO HAZIRLIK'!BE50 -> 0 | AG50: =' BORDRO HAZIRLIK'!AH50 -> 0 | AH50: =' BORDRO HAZIRLIK'!AL50 -> 0 | AI50: =' BORDRO HAZIRLIK'!AM50 -> 0 | AJ50: =' BORDRO HAZIRLIK'!AN50 -> 0 | AK50: =' BORDRO HAZIRLIK'!AK50 -> 0 | AL50: =' BORDRO HAZIRLIK'!R50 -> 0 | AM50: =' BORDRO HAZIRLIK'!S50 -> 0 | AN50: =' BORDRO HAZIRLIK'!AR50 -> 0 | AO50: =' BORDRO HAZIRLIK'!Y50 -> 0 | AP50: =PUANTAJ!AI52 -> 0 | AQ50: =PUANTAJ!AJ52 -> 0 | AR50: =PUANTAJ!AK52 -> 0 | AS50: =PUANTAJ!AL52 -> 0 | AT50: =' BORDRO HAZIRLIK'!N50 -> 0 | AU50: =' BORDRO HAZIRLIK'!J50 -> 0 | AV50: =' BORDRO HAZIRLIK'!L50 -> 0 | AW50: =' BORDRO HAZIRLIK'!AV50 -> 0 | AX50: =' BORDRO HAZIRLIK'!AW50 -> 0 | AY50: =' BORDRO HAZIRLIK'!AX50 -> 0 | AZ50: =' BORDRO HAZIRLIK'!AY50 -> 0 | BA50: 0 | BB50: =' BORDRO HAZIRLIK'!AO50 -> 0 | BC50: =' BORDRO HAZIRLIK'!AG50 -> 0 | BE50: =' BORDRO HAZIRLIK'!AP50 -> 0 | BF50: =' BORDRO HAZIRLIK'!AQ50 -> 0 | BG50: =' BORDRO HAZIRLIK'!I50 -> 0 | BH50: =' BORDRO HAZIRLIK'!AS50 -> 0 | BI50: =' BORDRO HAZIRLIK'!AT50 -> 0 | BJ50: =' BORDRO HAZIRLIK'!AZ50 -> 0 | BK50: =' BORDRO HAZIRLIK'!BA50 -> 0 | BL50: =' BORDRO HAZIRLIK'!BB50 -> 0 | BM50: ='PERSONEL BİLGİ GİRİŞİ'!I50 -> 0 | BN50: =PUANTAJ!AN52 -> 0 | BO50: =PUANTAJ!AO52 -> 0 | BP50: =PUANTAJ!AP52 -> 0 | BQ50: =PUANTAJ!AQ52 -> 0 | BR50: =PUANTAJ!AR52 -> 0 | BS50: =' BORDRO HAZIRLIK'!AE50 -> 0 | BT50: =' BORDRO HAZIRLIK'!AF50 -> 0
U51: 47 | V51: =PUANTAJ!B53 ->  | W51: ='PERSONEL BİLGİ GİRİŞİ'!H51 -> 0 | X51: ='PERSONEL BİLGİ GİRİŞİ'!Q51 -> 0 | Y51: ='PERSONEL BİLGİ GİRİŞİ'!R51 -> 0 | Z51: ='PERSONEL BİLGİ GİRİŞİ'!U51 -> 0 | AA51: ='PERSONEL BİLGİ GİRİŞİ'!E51 -> 0 | AB51: =PUANTAJ!AT53 -> 0 | AC51: =' BORDRO HAZIRLIK'!AC51 -> 0 | AD51: =' BORDRO HAZIRLIK'!AD51 -> 0 | AE51: =' BORDRO HAZIRLIK'!K52 -> 0 | AF51: =' BORDRO HAZIRLIK'!BE51 -> 0 | AG51: =' BORDRO HAZIRLIK'!AH51 -> 0 | AH51: =' BORDRO HAZIRLIK'!AL51 -> 0 | AI51: =' BORDRO HAZIRLIK'!AM51 -> 0 | AJ51: =' BORDRO HAZIRLIK'!AN51 -> 0 | AK51: =' BORDRO HAZIRLIK'!AK51 -> 0 | AL51: =' BORDRO HAZIRLIK'!R51 -> 0 | AM51: =' BORDRO HAZIRLIK'!S51 -> 0 | AN51: =' BORDRO HAZIRLIK'!AR51 -> 0 | AO51: =' BORDRO HAZIRLIK'!Y51 -> 0 | AP51: =PUANTAJ!AI53 -> 0 | AQ51: =PUANTAJ!AJ53 -> 0 | AR51: =PUANTAJ!AK53 -> 0 | AS51: =PUANTAJ!AL53 -> 0 | AT51: =' BORDRO HAZIRLIK'!N51 -> 0 | AU51: =' BORDRO HAZIRLIK'!J51 -> 0 | AV51: =' BORDRO HAZIRLIK'!L51 -> 0 | AW51: =' BORDRO HAZIRLIK'!AV51 -> 0 | AX51: =' BORDRO HAZIRLIK'!AW51 -> 0 | AY51: =' BORDRO HAZIRLIK'!AX51 -> 0 | AZ51: =' BORDRO HAZIRLIK'!AY51 -> 0 | BA51: 0 | BB51: =' BORDRO HAZIRLIK'!AO51 -> 0 | BC51: =' BORDRO HAZIRLIK'!AG51 -> 0 | BE51: =' BORDRO HAZIRLIK'!AP51 -> 0 | BF51: =' BORDRO HAZIRLIK'!AQ51 -> 0 | BG51: =' BORDRO HAZIRLIK'!I51 -> 0 | BH51: =' BORDRO HAZIRLIK'!AS51 -> 0 | BI51: =' BORDRO HAZIRLIK'!AT51 -> 0 | BJ51: =' BORDRO HAZIRLIK'!AZ51 -> 0 | BK51: =' BORDRO HAZIRLIK'!BA51 -> 0 | BL51: =' BORDRO HAZIRLIK'!BB51 -> 0 | BM51: ='PERSONEL BİLGİ GİRİŞİ'!I51 -> 0 | BN51: =PUANTAJ!AN53 -> 0 | BO51: =PUANTAJ!AO53 -> 0 | BP51: =PUANTAJ!AP53 -> 0 | BQ51: =PUANTAJ!AQ53 -> 0 | BR51: =PUANTAJ!AR53 -> 0 | BS51: =' BORDRO HAZIRLIK'!AE51 -> 0 | BT51: =' BORDRO HAZIRLIK'!AF51 -> 0
U52: 48 | V52: =PUANTAJ!B54 ->  | W52: ='PERSONEL BİLGİ GİRİŞİ'!H52 -> 0 | X52: ='PERSONEL BİLGİ GİRİŞİ'!Q52 -> 0 | Y52: ='PERSONEL BİLGİ GİRİŞİ'!R52 -> 0 | Z52: ='PERSONEL BİLGİ GİRİŞİ'!U52 -> 0 | AA52: ='PERSONEL BİLGİ GİRİŞİ'!E52 -> 0 | AB52: =PUANTAJ!AT54 -> 0 | AC52: =' BORDRO HAZIRLIK'!AC52 -> 0 | AD52: =' BORDRO HAZIRLIK'!AD52 -> 0 | AE52: =' BORDRO HAZIRLIK'!K53 -> 0 | AF52: =' BORDRO HAZIRLIK'!BE52 -> 0 | AG52: =' BORDRO HAZIRLIK'!AH52 -> 0 | AH52: =' BORDRO HAZIRLIK'!AL52 -> 0 | AI52: =' BORDRO HAZIRLIK'!AM52 -> 0 | AJ52: =' BORDRO HAZIRLIK'!AN52 -> 0 | AK52: =' BORDRO HAZIRLIK'!AK52 -> 0 | AL52: =' BORDRO HAZIRLIK'!R52 -> 0 | AM52: =' BORDRO HAZIRLIK'!S52 -> 0 | AN52: =' BORDRO HAZIRLIK'!AR52 -> 0 | AO52: =' BORDRO HAZIRLIK'!Y52 -> 0 | AP52: =PUANTAJ!AI54 -> 0 | AQ52: =PUANTAJ!AJ54 -> 0 | AR52: =PUANTAJ!AK54 -> 0 | AS52: =PUANTAJ!AL54 -> 0 | AT52: =' BORDRO HAZIRLIK'!N52 -> 0 | AU52: =' BORDRO HAZIRLIK'!J52 -> 0 | AV52: =' BORDRO HAZIRLIK'!L52 -> 0 | AW52: =' BORDRO HAZIRLIK'!AV52 -> 0 | AX52: =' BORDRO HAZIRLIK'!AW52 -> 0 | AY52: =' BORDRO HAZIRLIK'!AX52 -> 0 | AZ52: =' BORDRO HAZIRLIK'!AY52 -> 0 | BA52: 0 | BB52: =' BORDRO HAZIRLIK'!AO52 -> 0 | BC52: =' BORDRO HAZIRLIK'!AG52 -> 0 | BE52: =' BORDRO HAZIRLIK'!AP52 -> 0 | BF52: =' BORDRO HAZIRLIK'!AQ52 -> 0 | BG52: =' BORDRO HAZIRLIK'!I52 -> 0 | BH52: =' BORDRO HAZIRLIK'!AS52 -> 0 | BI52: =' BORDRO HAZIRLIK'!AT52 -> 0 | BJ52: =' BORDRO HAZIRLIK'!AZ52 -> 0 | BK52: =' BORDRO HAZIRLIK'!BA52 -> 0 | BL52: =' BORDRO HAZIRLIK'!BB52 -> 0 | BM52: ='PERSONEL BİLGİ GİRİŞİ'!I52 -> 0 | BN52: =PUANTAJ!AN54 -> 0 | BO52: =PUANTAJ!AO54 -> 0 | BP52: =PUANTAJ!AP54 -> 0 | BQ52: =PUANTAJ!AQ54 -> 0 | BR52: =PUANTAJ!AR54 -> 0 | BS52: =' BORDRO HAZIRLIK'!AE52 -> 0 | BT52: =' BORDRO HAZIRLIK'!AF52 -> 0
U53: 49 | V53: =PUANTAJ!B55 ->  | W53: ='PERSONEL BİLGİ GİRİŞİ'!H53 -> 0 | X53: ='PERSONEL BİLGİ GİRİŞİ'!Q53 -> 0 | Y53: ='PERSONEL BİLGİ GİRİŞİ'!R53 -> 0 | Z53: ='PERSONEL BİLGİ GİRİŞİ'!U53 -> 0 | AA53: ='PERSONEL BİLGİ GİRİŞİ'!E53 -> 0 | AB53: =PUANTAJ!AT55 -> 0 | AC53: =' BORDRO HAZIRLIK'!AC53 -> 0 | AD53: =' BORDRO HAZIRLIK'!AD53 -> 0 | AE53: =' BORDRO HAZIRLIK'!K54 -> 0 | AF53: =' BORDRO HAZIRLIK'!BE53 -> 0 | AG53: =' BORDRO HAZIRLIK'!AH53 -> 0 | AH53: =' BORDRO HAZIRLIK'!AL53 -> 0 | AI53: =' BORDRO HAZIRLIK'!AM53 -> 0 | AJ53: =' BORDRO HAZIRLIK'!AN53 -> 0 | AK53: =' BORDRO HAZIRLIK'!AK53 -> 0 | AL53: =' BORDRO HAZIRLIK'!R53 -> 0 | AM53: =' BORDRO HAZIRLIK'!S53 -> 0 | AN53: =' BORDRO HAZIRLIK'!AR53 -> 0 | AO53: =' BORDRO HAZIRLIK'!Y53 -> 0 | AP53: =PUANTAJ!AI55 -> 0 | AQ53: =PUANTAJ!AJ55 -> 0 | AR53: =PUANTAJ!AK55 -> 0 | AS53: =PUANTAJ!AL55 -> 0 | AT53: =' BORDRO HAZIRLIK'!N53 -> 0 | AU53: =' BORDRO HAZIRLIK'!J53 -> 0 | AV53: =' BORDRO HAZIRLIK'!L53 -> 0 | AW53: =' BORDRO HAZIRLIK'!AV53 -> 0 | AX53: =' BORDRO HAZIRLIK'!AW53 -> 0 | AY53: =' BORDRO HAZIRLIK'!AX53 -> 0 | AZ53: =' BORDRO HAZIRLIK'!AY53 -> 0 | BA53: 0 | BB53: =' BORDRO HAZIRLIK'!AO53 -> 0 | BC53: =' BORDRO HAZIRLIK'!AG53 -> 0 | BE53: =' BORDRO HAZIRLIK'!AP53 -> 0 | BF53: =' BORDRO HAZIRLIK'!AQ53 -> 0 | BG53: =' BORDRO HAZIRLIK'!I53 -> 0 | BH53: =' BORDRO HAZIRLIK'!AS53 -> 0 | BI53: =' BORDRO HAZIRLIK'!AT53 -> 0 | BJ53: =' BORDRO HAZIRLIK'!AZ53 -> 0 | BK53: =' BORDRO HAZIRLIK'!BA53 -> 0 | BL53: =' BORDRO HAZIRLIK'!BB53 -> 0 | BM53: ='PERSONEL BİLGİ GİRİŞİ'!I53 -> 0 | BN53: =PUANTAJ!AN55 -> 0 | BO53: =PUANTAJ!AO55 -> 0 | BP53: =PUANTAJ!AP55 -> 0 | BQ53: =PUANTAJ!AQ55 -> 0 | BR53: =PUANTAJ!AR55 -> 0 | BS53: =' BORDRO HAZIRLIK'!AE53 -> 0 | BT53: =' BORDRO HAZIRLIK'!AF53 -> 0
U54: 50 | V54: =PUANTAJ!B56 ->  | W54: ='PERSONEL BİLGİ GİRİŞİ'!H54 -> 0 | X54: ='PERSONEL BİLGİ GİRİŞİ'!Q54 -> 0 | Y54: ='PERSONEL BİLGİ GİRİŞİ'!R54 -> 0 | Z54: ='PERSONEL BİLGİ GİRİŞİ'!U54 -> 0 | AA54: ='PERSONEL BİLGİ GİRİŞİ'!E54 -> 0 | AB54: =PUANTAJ!AT56 -> 0 | AC54: =' BORDRO HAZIRLIK'!AC54 -> 0 | AD54: =' BORDRO HAZIRLIK'!AD54 -> 0 | AE54: =' BORDRO HAZIRLIK'!K55 -> 0 | AF54: =' BORDRO HAZIRLIK'!BE54 -> 0 | AG54: =' BORDRO HAZIRLIK'!AH54 -> 0 | AH54: =' BORDRO HAZIRLIK'!AL54 -> 0 | AI54: =' BORDRO HAZIRLIK'!AM54 -> 0 | AJ54: =' BORDRO HAZIRLIK'!AN54 -> 0 | AK54: =' BORDRO HAZIRLIK'!AK54 -> 0 | AL54: =' BORDRO HAZIRLIK'!R54 -> 0 | AM54: =' BORDRO HAZIRLIK'!S54 -> 0 | AN54: =' BORDRO HAZIRLIK'!AR54 -> 0 | AO54: =' BORDRO HAZIRLIK'!Y54 -> 0 | AP54: =PUANTAJ!AI56 -> 0 | AQ54: =PUANTAJ!AJ56 -> 0 | AR54: =PUANTAJ!AK56 -> 0 | AS54: =PUANTAJ!AL56 -> 0 | AT54: =' BORDRO HAZIRLIK'!N54 -> 0 | AU54: =' BORDRO HAZIRLIK'!J54 -> 0 | AV54: =' BORDRO HAZIRLIK'!L54 -> 0 | AW54: =' BORDRO HAZIRLIK'!AV54 -> 0 | AX54: =' BORDRO HAZIRLIK'!AW54 -> 0 | AY54: =' BORDRO HAZIRLIK'!AX54 -> 0 | AZ54: =' BORDRO HAZIRLIK'!AY54 -> 0 | BA54: 0 | BB54: =' BORDRO HAZIRLIK'!AO54 -> 0 | BC54: =' BORDRO HAZIRLIK'!AG54 -> 0 | BE54: =' BORDRO HAZIRLIK'!AP54 -> 0 | BF54: =' BORDRO HAZIRLIK'!AQ54 -> 0 | BG54: =' BORDRO HAZIRLIK'!I54 -> 0 | BH54: =' BORDRO HAZIRLIK'!AS54 -> 0 | BI54: =' BORDRO HAZIRLIK'!AT54 -> 0 | BJ54: =' BORDRO HAZIRLIK'!AZ54 -> 0 | BK54: =' BORDRO HAZIRLIK'!BA54 -> 0 | BL54: =' BORDRO HAZIRLIK'!BB54 -> 0 | BM54: ='PERSONEL BİLGİ GİRİŞİ'!I54 -> 0 | BN54: =PUANTAJ!AN56 -> 0 | BO54: =PUANTAJ!AO56 -> 0 | BP54: =PUANTAJ!AP56 -> 0 | BQ54: =PUANTAJ!AQ56 -> 0 | BR54: =PUANTAJ!AR56 -> 0 | BS54: =' BORDRO HAZIRLIK'!AE54 -> 0 | BT54: =' BORDRO HAZIRLIK'!AF54 -> 0
U55: 51 | V55: =PUANTAJ!B57 ->  | W55: ='PERSONEL BİLGİ GİRİŞİ'!H55 -> 0 | X55: ='PERSONEL BİLGİ GİRİŞİ'!Q55 -> 0 | Y55: ='PERSONEL BİLGİ GİRİŞİ'!R55 -> 0 | Z55: ='PERSONEL BİLGİ GİRİŞİ'!U55 -> 0 | AA55: ='PERSONEL BİLGİ GİRİŞİ'!E55 -> 0 | AB55: =PUANTAJ!AT57 -> 0 | AC55: =' BORDRO HAZIRLIK'!AC55 -> 0 | AD55: =' BORDRO HAZIRLIK'!AD55 -> 0 | AE55: =' BORDRO HAZIRLIK'!K56 -> 0 | AF55: =' BORDRO HAZIRLIK'!BE55 -> 0 | AG55: =' BORDRO HAZIRLIK'!AH55 -> 0 | AH55: =' BORDRO HAZIRLIK'!AL55 -> 0 | AI55: =' BORDRO HAZIRLIK'!AM55 -> 0 | AJ55: =' BORDRO HAZIRLIK'!AN55 -> 0 | AK55: =' BORDRO HAZIRLIK'!AK55 -> 0 | AL55: =' BORDRO HAZIRLIK'!R55 -> 0 | AM55: =' BORDRO HAZIRLIK'!S55 -> 0 | AN55: =' BORDRO HAZIRLIK'!AR55 -> 0 | AO55: =' BORDRO HAZIRLIK'!Y55 -> 0 | AP55: =PUANTAJ!AI57 -> 0 | AQ55: =PUANTAJ!AJ57 -> 0 | AR55: =PUANTAJ!AK57 -> 0 | AS55: =PUANTAJ!AL57 -> 0 | AT55: =' BORDRO HAZIRLIK'!N55 -> 0 | AU55: =' BORDRO HAZIRLIK'!J55 -> 0 | AV55: =' BORDRO HAZIRLIK'!L55 -> 0 | AW55: =' BORDRO HAZIRLIK'!AV55 -> 0 | AX55: =' BORDRO HAZIRLIK'!AW55 -> 0 | AY55: =' BORDRO HAZIRLIK'!AX55 -> 0 | AZ55: =' BORDRO HAZIRLIK'!AY55 -> 0 | BA55: 0 | BB55: =' BORDRO HAZIRLIK'!AO55 -> 0 | BC55: =' BORDRO HAZIRLIK'!AG55 -> 0 | BE55: =' BORDRO HAZIRLIK'!AP55 -> 0 | BF55: =' BORDRO HAZIRLIK'!AQ55 -> 0 | BG55: =' BORDRO HAZIRLIK'!I55 -> 0 | BH55: =' BORDRO HAZIRLIK'!AS55 -> 0 | BI55: =' BORDRO HAZIRLIK'!AT55 -> 0 | BJ55: =' BORDRO HAZIRLIK'!AZ55 -> 0 | BK55: =' BORDRO HAZIRLIK'!BA55 -> 0 | BL55: =' BORDRO HAZIRLIK'!BB55 -> 0 | BM55: ='PERSONEL BİLGİ GİRİŞİ'!I55 -> 0 | BN55: =PUANTAJ!AN57 -> 0 | BO55: =PUANTAJ!AO57 -> 0 | BP55: =PUANTAJ!AP57 -> 0 | BQ55: =PUANTAJ!AQ57 -> 0 | BR55: =PUANTAJ!AR57 -> 0 | BS55: =' BORDRO HAZIRLIK'!AE55 -> 0 | BT55: =' BORDRO HAZIRLIK'!AF55 -> 0
U56: 52 | V56: =PUANTAJ!B58 ->  | W56: ='PERSONEL BİLGİ GİRİŞİ'!H56 -> 0 | X56: ='PERSONEL BİLGİ GİRİŞİ'!Q56 -> 0 | Y56: ='PERSONEL BİLGİ GİRİŞİ'!R56 -> 0 | Z56: ='PERSONEL BİLGİ GİRİŞİ'!U56 -> 0 | AA56: ='PERSONEL BİLGİ GİRİŞİ'!E56 -> 0 | AB56: =PUANTAJ!AT58 -> 0 | AC56: =' BORDRO HAZIRLIK'!AC56 -> 0 | AD56: =' BORDRO HAZIRLIK'!AD56 -> 0 | AE56: =' BORDRO HAZIRLIK'!K57 -> 0 | AF56: =' BORDRO HAZIRLIK'!BE56 -> 0 | AG56: =' BORDRO HAZIRLIK'!AH56 -> 0 | AH56: =' BORDRO HAZIRLIK'!AL56 -> 0 | AI56: =' BORDRO HAZIRLIK'!AM56 -> 0 | AJ56: =' BORDRO HAZIRLIK'!AN56 -> 0 | AK56: =' BORDRO HAZIRLIK'!AK56 -> 0 | AL56: =' BORDRO HAZIRLIK'!R56 -> 0 | AM56: =' BORDRO HAZIRLIK'!S56 -> 0 | AN56: =' BORDRO HAZIRLIK'!AR56 -> 0 | AO56: =' BORDRO HAZIRLIK'!Y56 -> 0 | AP56: =PUANTAJ!AI58 -> 0 | AQ56: =PUANTAJ!AJ58 -> 0 | AR56: =PUANTAJ!AK58 -> 0 | AS56: =PUANTAJ!AL58 -> 0 | AT56: =' BORDRO HAZIRLIK'!N56 -> 0 | AU56: =' BORDRO HAZIRLIK'!J56 -> 0 | AV56: =' BORDRO HAZIRLIK'!L56 -> 0 | AW56: =' BORDRO HAZIRLIK'!AV56 -> 0 | AX56: =' BORDRO HAZIRLIK'!AW56 -> 0 | AY56: =' BORDRO HAZIRLIK'!AX56 -> 0 | AZ56: =' BORDRO HAZIRLIK'!AY56 -> 0 | BA56: 0 | BB56: =' BORDRO HAZIRLIK'!AO56 -> 0 | BC56: =' BORDRO HAZIRLIK'!AG56 -> 0 | BE56: =' BORDRO HAZIRLIK'!AP56 -> 0 | BF56: =' BORDRO HAZIRLIK'!AQ56 -> 0 | BG56: =' BORDRO HAZIRLIK'!I56 -> 0 | BH56: =' BORDRO HAZIRLIK'!AS56 -> 0 | BI56: =' BORDRO HAZIRLIK'!AT56 -> 0 | BJ56: =' BORDRO HAZIRLIK'!AZ56 -> 0 | BK56: =' BORDRO HAZIRLIK'!BA56 -> 0 | BL56: =' BORDRO HAZIRLIK'!BB56 -> 0 | BM56: ='PERSONEL BİLGİ GİRİŞİ'!I56 -> 0 | BN56: =PUANTAJ!AN58 -> 0 | BO56: =PUANTAJ!AO58 -> 0 | BP56: =PUANTAJ!AP58 -> 0 | BQ56: =PUANTAJ!AQ58 -> 0 | BR56: =PUANTAJ!AR58 -> 0 | BS56: =' BORDRO HAZIRLIK'!AE56 -> 0 | BT56: =' BORDRO HAZIRLIK'!AF56 -> 0
U57: 53 | V57: =PUANTAJ!B59 ->  | W57: ='PERSONEL BİLGİ GİRİŞİ'!H57 -> 0 | X57: ='PERSONEL BİLGİ GİRİŞİ'!Q57 -> 0 | Y57: ='PERSONEL BİLGİ GİRİŞİ'!R57 -> 0 | Z57: ='PERSONEL BİLGİ GİRİŞİ'!U57 -> 0 | AA57: ='PERSONEL BİLGİ GİRİŞİ'!E57 -> 0 | AB57: =PUANTAJ!AT59 -> 0 | AC57: =' BORDRO HAZIRLIK'!AC57 -> 0 | AD57: =' BORDRO HAZIRLIK'!AD57 -> 0 | AE57: =' BORDRO HAZIRLIK'!K58 -> 0 | AF57: =' BORDRO HAZIRLIK'!BE57 -> 0 | AG57: =' BORDRO HAZIRLIK'!AH57 -> 0 | AH57: =' BORDRO HAZIRLIK'!AL57 -> 0 | AI57: =' BORDRO HAZIRLIK'!AM57 -> 0 | AJ57: =' BORDRO HAZIRLIK'!AN57 -> 0 | AK57: =' BORDRO HAZIRLIK'!AK57 -> 0 | AL57: =' BORDRO HAZIRLIK'!R57 -> 0 | AM57: =' BORDRO HAZIRLIK'!S57 -> 0 | AN57: =' BORDRO HAZIRLIK'!AR57 -> 0 | AO57: =' BORDRO HAZIRLIK'!Y57 -> 0 | AP57: =PUANTAJ!AI59 -> 0 | AQ57: =PUANTAJ!AJ59 -> 0 | AR57: =PUANTAJ!AK59 -> 0 | AS57: =PUANTAJ!AL59 -> 0 | AT57: =' BORDRO HAZIRLIK'!N57 -> 0 | AU57: =' BORDRO HAZIRLIK'!J57 -> 0 | AV57: =' BORDRO HAZIRLIK'!L57 -> 0 | AW57: =' BORDRO HAZIRLIK'!AV57 -> 0 | AX57: =' BORDRO HAZIRLIK'!AW57 -> 0 | AY57: =' BORDRO HAZIRLIK'!AX57 -> 0 | AZ57: =' BORDRO HAZIRLIK'!AY57 -> 0 | BA57: 0 | BB57: =' BORDRO HAZIRLIK'!AO57 -> 0 | BC57: =' BORDRO HAZIRLIK'!AG57 -> 0 | BE57: =' BORDRO HAZIRLIK'!AP57 -> 0 | BF57: =' BORDRO HAZIRLIK'!AQ57 -> 0 | BG57: =' BORDRO HAZIRLIK'!I57 -> 0 | BH57: =' BORDRO HAZIRLIK'!AS57 -> 0 | BI57: =' BORDRO HAZIRLIK'!AT57 -> 0 | BJ57: =' BORDRO HAZIRLIK'!AZ57 -> 0 | BK57: =' BORDRO HAZIRLIK'!BA57 -> 0 | BL57: =' BORDRO HAZIRLIK'!BB57 -> 0 | BM57: ='PERSONEL BİLGİ GİRİŞİ'!I57 -> 0 | BN57: =PUANTAJ!AN59 -> 0 | BO57: =PUANTAJ!AO59 -> 0 | BP57: =PUANTAJ!AP59 -> 0 | BQ57: =PUANTAJ!AQ59 -> 0 | BR57: =PUANTAJ!AR59 -> 0 | BS57: =' BORDRO HAZIRLIK'!AE57 -> 0 | BT57: =' BORDRO HAZIRLIK'!AF57 -> 0
U58: 54 | V58: =PUANTAJ!B60 ->  | W58: ='PERSONEL BİLGİ GİRİŞİ'!H58 -> 0 | X58: ='PERSONEL BİLGİ GİRİŞİ'!Q58 -> 0 | Y58: ='PERSONEL BİLGİ GİRİŞİ'!R58 -> 0 | Z58: ='PERSONEL BİLGİ GİRİŞİ'!U58 -> 0 | AA58: ='PERSONEL BİLGİ GİRİŞİ'!E58 -> 0 | AB58: =PUANTAJ!AT60 -> 0 | AC58: =' BORDRO HAZIRLIK'!AC58 -> 0 | AD58: =' BORDRO HAZIRLIK'!AD58 -> 0 | AE58: =' BORDRO HAZIRLIK'!K59 -> 0 | AF58: =' BORDRO HAZIRLIK'!BE58 -> 0 | AG58: =' BORDRO HAZIRLIK'!AH58 -> 0 | AH58: =' BORDRO HAZIRLIK'!AL58 -> 0 | AI58: =' BORDRO HAZIRLIK'!AM58 -> 0 | AJ58: =' BORDRO HAZIRLIK'!AN58 -> 0 | AK58: =' BORDRO HAZIRLIK'!AK58 -> 0 | AL58: =' BORDRO HAZIRLIK'!R58 -> 0 | AM58: =' BORDRO HAZIRLIK'!S58 -> 0 | AN58: =' BORDRO HAZIRLIK'!AR58 -> 0 | AO58: =' BORDRO HAZIRLIK'!Y58 -> 0 | AP58: =PUANTAJ!AI60 -> 0 | AQ58: =PUANTAJ!AJ60 -> 0 | AR58: =PUANTAJ!AK60 -> 0 | AS58: =PUANTAJ!AL60 -> 0 | AT58: =' BORDRO HAZIRLIK'!N58 -> 0 | AU58: =' BORDRO HAZIRLIK'!J58 -> 0 | AV58: =' BORDRO HAZIRLIK'!L58 -> 0 | AW58: =' BORDRO HAZIRLIK'!AV58 -> 0 | AX58: =' BORDRO HAZIRLIK'!AW58 -> 0 | AY58: =' BORDRO HAZIRLIK'!AX58 -> 0 | AZ58: =' BORDRO HAZIRLIK'!AY58 -> 0 | BA58: 0 | BB58: =' BORDRO HAZIRLIK'!AO58 -> 0 | BC58: =' BORDRO HAZIRLIK'!AG58 -> 0 | BE58: =' BORDRO HAZIRLIK'!AP58 -> 0 | BF58: =' BORDRO HAZIRLIK'!AQ58 -> 0 | BG58: =' BORDRO HAZIRLIK'!I58 -> 0 | BH58: =' BORDRO HAZIRLIK'!AS58 -> 0 | BI58: =' BORDRO HAZIRLIK'!AT58 -> 0 | BJ58: =' BORDRO HAZIRLIK'!AZ58 -> 0 | BK58: =' BORDRO HAZIRLIK'!BA58 -> 0 | BL58: =' BORDRO HAZIRLIK'!BB58 -> 0 | BM58: ='PERSONEL BİLGİ GİRİŞİ'!I58 -> 0 | BN58: =PUANTAJ!AN60 -> 0 | BO58: =PUANTAJ!AO60 -> 0 | BP58: =PUANTAJ!AP60 -> 0 | BQ58: =PUANTAJ!AQ60 -> 0 | BR58: =PUANTAJ!AR60 -> 0 | BS58: =' BORDRO HAZIRLIK'!AE58 -> 0 | BT58: =' BORDRO HAZIRLIK'!AF58 -> 0
